Workbook

Sheet المخزن
B1: بحث بالكود | C1: بحث بالاسم | J1: =SUM(J6:J2000) -> 11167.96685 | Z1: =IF(A6="","",VLOOKUP(A6,الموردين!A:B,2,0)) -> مورد ا | AA1: =IF(A7="","",VLOOKUP(A7,الموردين!A:B,2,0)) -> مورد 2 | AB1: =IF(A8="","",VLOOKUP(A8,الموردين!A:B,2,0)) ->  | AC1: =IF(A9="","",VLOOKUP(A9,الموردين!A:B,2,0)) ->  | AD1: =IF(A10="","",VLOOKUP(A10,الموردين!A:B,2,0)) ->  | AE1: =IF(A11="","",VLOOKUP(B11,الموردين!A:B,2,0)) ->  | AF1: =IF(A12="","",VLOOKUP(A12,الموردين!A:B,2,0)) ->  | AG1: =IF(A13="","",VLOOKUP(A13,الموردين!A:B,2,0)) ->  | AH1: =IF(A14="","",VLOOKUP(A14,الموردين!A:B,2,0)) ->  | AI1: =IF(A15="","",VLOOKUP(A15,الموردين!A:B,2,0)) ->  | AJ1: =IF(A16="","",VLOOKUP(A16,الموردين!A:B,2,0)) ->  | AK1: =IF(A17="","",VLOOKUP(A17,الموردين!A:B,2,0)) ->  | AL1: =IF(A18="","",VLOOKUP(A18,الموردين!A:B,2,0)) ->  | AM1: =IF(A19="","",VLOOKUP(A19,الموردين!A:B,2,0)) ->  | AN1: =IF(A20="","",VLOOKUP(A20,الموردين!A:B,2,0)) ->  | AO1: =IF(A21="","",VLOOKUP(A21,الموردين!A:B,2,0)) ->  | AP1: =IF(A22="","",VLOOKUP(A22,الموردين!A:B,2,0)) ->  | AQ1: =IF(A23="","",VLOOKUP(A23,الموردين!A:B,2,0)) ->  | AR1: =IF(A24="","",VLOOKUP(A24,الموردين!A:B,2,0)) ->  | AS1: =IF(A25="","",VLOOKUP(A25,الموردين!A:B,2,0)) ->  | AT1: =IF(A26="","",VLOOKUP(A26,الموردين!A:B,2,0)) ->  | AU1: =IF(A27="","",VLOOKUP(A27,الموردين!A:B,2,0)) ->  | AV1: =IF(A28="","",VLOOKUP(A28,الموردين!A:B,2,0)) -> 
C2: سن | L2: =SUM(L6:L2000) -> 0
A3: م | B3: الكود | C3: اسم الصنف | D3: رصيد اول المدة | E3: سعر المفرد | F3: القيمة | G3: المشتريات | H3: صادر | I3: رصيد أخرالمدة | J3: جملة المخزن | K3: متوسط سعر الوحدة | L3: ربح الصنف | M3: البيع | W3: عدد المنتجات | X3: حالة الصلاحيه
O4: تاريخ اليوم | P4: =TODAY() -> 2026-04-13 | W4: =COUNTIF($U$6:$U$670,X4) -> 0 | X4: الصلاحيه إنتهت
C5: إسم العميل | O5: تاريخ الانتاج | P5: مدة الصلاحية | Q5: تاريخ الانتهاء | R5: يوم | S5: شهر | T5: سنه | U5: حالة الصلاحيه | W5: =COUNTIF($U$7:$U$670,X5) -> 0 | X5: متبقى 30 يوم أو أقل
A6: 1 | B6: 1 | C6: صنف 1 | E6: 0.5 | F6: =IF(D6+E6>0,E6*D6," ") -> 0 | G6: =SUMIF(المشتريات!E:E,B6,المشتريات!G:G) -> 0 | H6: =SUMIF(المبيعات!D:D,B6,المبيعات!F:F) -> 0 | I6: =(D6+G6)-(H6) -> 0 | J6: =I6*E6 -> 0 | K6: =IF(D6<>0,E6/1,"") ->  | L6: =SUMIF(المبيعات!D:D,B6,المبيعات!K:K) -> 0 | M6: 1 | O6: 2025-11-01 | P6: 60 | Q6: =EDATE(O6,P6) -> 2030-11-01 | R6: =IFERROR(DATEDIF($P$4,$Q6,"MD"),0) -> 19 | S6: =IFERROR(DATEDIF($P$4,$Q6,"ym"),0) -> 6 | T6: =IFERROR(DATEDIF($P$4,$Q6,"y"),0) -> 4 | U6: =IF(AND(Q6-TODAY()<=30,Q6-TODAY()>0),$X$5,IF(Q6-TODAY()<=0,$X$4,$X$6)) -> الصلاحيه ساريه | W6: =COUNTIF($U$7:$U$1579,X6) -> 1573 | X6: الصلاحيه ساريه
A7: 2 | B7: 2 | C7: صنف 2 | F7: =IF(D7+E7>0,E7*D7," ") ->  | G7: =SUMIF(المشتريات!E:E,B7,المشتريات!G:G) -> 0 | H7: =SUMIF(المبيعات!D:D,B7,المبيعات!F:F) -> 0 | I7: =(D7+G7)-(H7) -> 0 | J7: =I7*E7 -> 0 | K7: =IF(D7<>0,E7/1,"") ->  | L7: =SUMIF(المبيعات!D:D,B7,المبيعات!K:K) -> 0 | O7: 2025-11-01 | P7: 60 | Q7: =EDATE(O7,P7) -> 2030-11-01 | R7: =IFERROR(DATEDIF($P$4,$Q7,"MD"),0) -> 19 | S7: =IFERROR(DATEDIF($P$4,$Q7,"ym"),0) -> 6 | T7: =IFERROR(DATEDIF($P$4,$Q7,"y"),0) -> 4 | U7: =IF(AND(Q7-TODAY()<=30,Q7-TODAY()>0),$X$5,IF(Q7-TODAY()<=0,$X$4,$X$6)) -> الصلاحيه ساريه
G8: =SUMIF(المشتريات!E:E,B8,المشتريات!G:G) -> 0 | H8: =SUMIF(المبيعات!D:D,B8,المبيعات!F:F) -> 0 | I8: 0 | J8: 0 | L8: =SUMIF(المبيعات!D:D,B8,المبيعات!K:K) -> 0 | O8: 2025-11-01 | P8: 60 | Q8: 2030-11-01 | R8: 19 | S8: 6 | T8: 4 | U8: الصلاحيه ساريه
G9: =SUMIF(المشتريات!E:E,B9,المشتريات!G:G) -> 0 | H9: =SUMIF(المبيعات!D:D,B9,المبيعات!F:F) -> 0 | I9: 0 | J9: 0 | L9: =SUMIF(المبيعات!D:D,B9,المبيعات!K:K) -> 0 | M9: 5 | O9: 2025-11-01 | P9: 60 | Q9: 2030-11-01 | R9: 19 | S9: 6 | T9: 4 | U9: الصلاحيه ساريه
G10: =SUMIF(المشتريات!E:E,B10,المشتريات!G:G) -> 0 | H10: =SUMIF(المبيعات!D:D,B10,المبيعات!F:F) -> 0 | I10: 0 | J10: 0 | L10: =SUMIF(المبيعات!D:D,B10,المبيعات!K:K) -> 0 | O10: 2025-11-01 | P10: 60 | Q10: 2030-11-01 | R10: 19 | S10: 6 | T10: 4 | U10: الصلاحيه ساريه
G11: =SUMIF(المشتريات!E:E,B11,المشتريات!G:G) -> 0 | H11: =SUMIF(المبيعات!D:D,B11,المبيعات!F:F) -> 0 | I11: 0 | J11: 0 | L11: =SUMIF(المبيعات!D:D,B11,المبيعات!K:K) -> 0 | O11: 2025-11-01 | P11: 60 | Q11: 2030-11-01 | R11: 19 | S11: 6 | T11: 4 | U11: الصلاحيه ساريه | AJ11: 645
G12: =SUMIF(المشتريات!E:E,B12,المشتريات!G:G) -> 0 | H12: =SUMIF(المبيعات!D:D,B12,المبيعات!F:F) -> 0 | I12: 0 | J12: 0 | L12: =SUMIF(المبيعات!D:D,B12,المبيعات!K:K) -> 0 | O12: 2025-11-01 | P12: 60 | Q12: 2030-11-01 | R12: 19 | S12: 6 | T12: 4 | U12: الصلاحيه ساريه | AM12: 65
G13: =SUMIF(المشتريات!E:E,B13,المشتريات!G:G) -> 0 | H13: =SUMIF(المبيعات!D:D,B13,المبيعات!F:F) -> 0 | I13: 0 | J13: 0 | L13: =SUMIF(المبيعات!D:D,B13,المبيعات!K:K) -> 0 | O13: 2025-11-01 | P13: 60 | Q13: 2030-11-01 | R13: 19 | S13: 6 | T13: 4 | U13: الصلاحيه ساريه
G14: =SUMIF(المشتريات!E:E,B14,المشتريات!G:G) -> 0 | H14: =SUMIF(المبيعات!D:D,B14,المبيعات!F:F) -> 0 | I14: 0 | J14: 0 | L14: =SUMIF(المبيعات!D:D,B14,المبيعات!K:K) -> 0 | O14: 2025-11-01 | P14: 60 | Q14: 2030-11-01 | R14: 19 | S14: 6 | T14: 4 | U14: الصلاحيه ساريه
G15: =SUMIF(المشتريات!E:E,B15,المشتريات!G:G) -> 0 | H15: =SUMIF(المبيعات!D:D,B15,المبيعات!F:F) -> 0 | I15: 0 | J15: 0 | L15: =SUMIF(المبيعات!D:D,B15,المبيعات!K:K) -> 0 | O15: 2025-11-01 | P15: 60 | Q15: 2030-11-01 | R15: 19 | S15: 6 | T15: 4 | U15: الصلاحيه ساريه
E16: 23.6 | F16: 0 | G16: =SUMIF(المشتريات!E:E,B16,المشتريات!G:G) -> 0 | H16: =SUMIF(المبيعات!D:D,B16,المبيعات!F:F) -> 0 | I16: 0 | J16: 0 | K16: =IF(D16<>0,E16/25,"") ->  | L16: =SUMIF(المبيعات!D:D,B16,المبيعات!K:K) -> 0 | M16: 26 | O16: 2025-11-01 | P16: 60 | Q16: 2030-11-01 | R16: 19 | S16: 6 | T16: 4 | U16: الصلاحيه ساريه | AJ16: 525
E17: 24.4 | F17: 0 | G17: =SUMIF(المشتريات!E:E,B17,المشتريات!G:G) -> 0 | H17: =SUMIF(المبيعات!D:D,B17,المبيعات!F:F) -> 0 | I17: 0 | J17: 0 | K17: =IF(D17<>0,E17/25,"") ->  | L17: =SUMIF(المبيعات!D:D,B17,المبيعات!K:K) -> 0 | M17: 25 | O17: 2025-11-01 | P17: 60 | Q17: 2030-11-01 | R17: 19 | S17: 6 | T17: 4 | U17: الصلاحيه ساريه | AJ17: 610
G18: =SUMIF(المشتريات!E:E,B18,المشتريات!G:G) -> 0 | H18: =SUMIF(المبيعات!D:D,B18,المبيعات!F:F) -> 0 | I18: 0 | J18: 0 | L18: =SUMIF(المبيعات!D:D,B18,المبيعات!K:K) -> 0 | M18: 25 | O18: 2025-11-01 | P18: 60 | Q18: 2030-11-01 | R18: 19 | S18: 6 | T18: 4 | U18: الصلاحيه ساريه
G19: =SUMIF(المشتريات!E:E,B19,المشتريات!G:G) -> 0 | H19: =SUMIF(المبيعات!D:D,B19,المبيعات!F:F) -> 0 | I19: 0 | J19: 0 | L19: =SUMIF(المبيعات!D:D,B19,المبيعات!K:K) -> 0 | M19: 29 | O19: 2025-11-01 | P19: 60 | Q19: 2030-11-01 | R19: 19 | S19: 6 | T19: 4 | U19: الصلاحيه ساريه
G20: =SUMIF(المشتريات!E:E,B20,المشتريات!G:G) -> 0 | H20: =SUMIF(المبيعات!D:D,B20,المبيعات!F:F) -> 0 | I20: 0 | J20: 0 | L20: =SUMIF(المبيعات!D:D,B20,المبيعات!K:K) -> 0 | M20: 27 | O20: 2025-11-01 | P20: 60 | Q20: 2030-11-01 | R20: 19 | S20: 6 | T20: 4 | U20: الصلاحيه ساريه
G21: =SUMIF(المشتريات!E:E,B21,المشتريات!G:G) -> 0 | H21: =SUMIF(المبيعات!D:D,B21,المبيعات!F:F) -> 0 | I21: 0 | J21: 0 | L21: =SUMIF(المبيعات!D:D,B21,المبيعات!K:K) -> 0 | M21: 28 | O21: 2025-11-01 | P21: 60 | Q21: 2030-11-01 | R21: 19 | S21: 6 | T21: 4 | U21: الصلاحيه ساريه | AJ21: 500
G22: =SUMIF(المشتريات!E:E,B22,المشتريات!G:G) -> 0 | H22: =SUMIF(المبيعات!D:D,B22,المبيعات!F:F) -> 0 | I22: 0 | J22: 0 | L22: =SUMIF(المبيعات!D:D,B22,المبيعات!K:K) -> 0 | O22: 2025-11-01 | P22: 60 | Q22: 2030-11-01 | R22: 19 | S22: 6 | T22: 4 | U22: الصلاحيه ساريه
G23: =SUMIF(المشتريات!E:E,B23,المشتريات!G:G) -> 0 | H23: =SUMIF(المبيعات!D:D,B23,المبيعات!F:F) -> 0 | I23: 0 | J23: 0 | L23: =SUMIF(المبيعات!D:D,B23,المبيعات!K:K) -> 0 | O23: 2025-11-01 | P23: 60 | Q23: 2030-11-01 | R23: 19 | S23: 6 | T23: 4 | U23: الصلاحيه ساريه
G24: =SUMIF(المشتريات!E:E,B24,المشتريات!G:G) -> 0 | H24: =SUMIF(المبيعات!D:D,B24,المبيعات!F:F) -> 0 | I24: 0 | J24: 0 | L24: =SUMIF(المبيعات!D:D,B24,المبيعات!K:K) -> 0 | O24: 2025-11-01 | P24: 60 | Q24: 2030-11-01 | R24: 19 | S24: 6 | T24: 4 | U24: الصلاحيه ساريه
G25: =SUMIF(المشتريات!E:E,B25,المشتريات!G:G) -> 0 | H25: =SUMIF(المبيعات!D:D,B25,المبيعات!F:F) -> 0 | I25: 0 | J25: 0 | L25: =SUMIF(المبيعات!D:D,B25,المبيعات!K:K) -> 0 | M25: 1 | O25: 2025-11-01 | P25: 60 | Q25: 2030-11-01 | R25: 19 | S25: 6 | T25: 4 | U25: الصلاحيه ساريه
E26: 3.33 | F26: 0 | G26: =SUMIF(المشتريات!E:E,B26,المشتريات!G:G) -> 0 | H26: =SUMIF(المبيعات!D:D,B26,المبيعات!F:F) -> 0 | I26: 0 | J26: 0 | L26: =SUMIF(المبيعات!D:D,B26,المبيعات!K:K) -> 0 | M26: 5 | O26: 2025-11-01 | P26: 60 | Q26: 2030-11-01 | R26: 19 | S26: 6 | T26: 4 | U26: الصلاحيه ساريه | AH26: 265
G27: =SUMIF(المشتريات!E:E,B27,المشتريات!G:G) -> 0 | H27: =SUMIF(المبيعات!D:D,B27,المبيعات!F:F) -> 0 | I27: 0 | J27: 0 | L27: =SUMIF(المبيعات!D:D,B27,المبيعات!K:K) -> 0 | M27: 8 | O27: 2025-11-01 | P27: 60 | Q27: 2030-11-01 | R27: 19 | S27: 6 | T27: 4 | U27: الصلاحيه ساريه
E28: 1.5 | F28: 0 | G28: =SUMIF(المشتريات!E:E,B28,المشتريات!G:G) -> 0 | H28: =SUMIF(المبيعات!D:D,B28,المبيعات!F:F) -> 0 | I28: 0 | J28: 0 | L28: =SUMIF(المبيعات!D:D,B28,المبيعات!K:K) -> 0 | M28: 3 | O28: 2025-11-01 | P28: 60 | Q28: 2030-11-01 | R28: 19 | S28: 6 | T28: 4 | U28: الصلاحيه ساريه
G29: =SUMIF(المشتريات!E:E,B29,المشتريات!G:G) -> 0 | H29: =SUMIF(المبيعات!D:D,B29,المبيعات!F:F) -> 0 | I29: 0 | J29: 0 | L29: =SUMIF(المبيعات!D:D,B29,المبيعات!K:K) -> 0 | O29: 2025-11-01 | P29: 60 | Q29: 2030-11-01 | R29: 19 | S29: 6 | T29: 4 | U29: الصلاحيه ساريه
G30: =SUMIF(المشتريات!E:E,B30,المشتريات!G:G) -> 0 | H30: =SUMIF(المبيعات!D:D,B30,المبيعات!F:F) -> 0 | I30: 0 | J30: 0 | L30: =SUMIF(المبيعات!D:D,B30,المبيعات!K:K) -> 0 | O30: 2025-11-01 | P30: 60 | Q30: 2030-11-01 | R30: 19 | S30: 6 | T30: 4 | U30: الصلاحيه ساريه
G31: =SUMIF(المشتريات!E:E,B31,المشتريات!G:G) -> 0 | H31: =SUMIF(المبيعات!D:D,B31,المبيعات!F:F) -> 0 | I31: 0 | J31: 0 | L31: =SUMIF(المبيعات!D:D,B31,المبيعات!K:K) -> 0 | O31: 2025-11-01 | P31: 60 | Q31: 2030-11-01 | R31: 19 | S31: 6 | T31: 4 | U31: الصلاحيه ساريه
G32: =SUMIF(المشتريات!E:E,B32,المشتريات!G:G) -> 0 | H32: =SUMIF(المبيعات!D:D,B32,المبيعات!F:F) -> 0 | I32: 0 | J32: 0 | L32: =SUMIF(المبيعات!D:D,B32,المبيعات!K:K) -> 0 | O32: 2025-11-01 | P32: 60 | Q32: 2030-11-01 | R32: 19 | S32: 6 | T32: 4 | U32: الصلاحيه ساريه
G33: =SUMIF(المشتريات!E:E,B33,المشتريات!G:G) -> 0 | H33: =SUMIF(المبيعات!D:D,B33,المبيعات!F:F) -> 0 | I33: 0 | J33: 0 | L33: =SUMIF(المبيعات!D:D,B33,المبيعات!K:K) -> 0 | O33: 2025-11-01 | P33: 60 | Q33: 2030-11-01 | R33: 19 | S33: 6 | T33: 4 | U33: الصلاحيه ساريه
G34: =SUMIF(المشتريات!E:E,B34,المشتريات!G:G) -> 0 | H34: =SUMIF(المبيعات!D:D,B34,المبيعات!F:F) -> 0 | I34: 0 | J34: 0 | L34: =SUMIF(المبيعات!D:D,B34,المبيعات!K:K) -> 0 | O34: 2025-11-01 | P34: 60 | Q34: 2030-11-01 | R34: 19 | S34: 6 | T34: 4 | U34: الصلاحيه ساريه
G35: =SUMIF(المشتريات!E:E,B35,المشتريات!G:G) -> 0 | H35: =SUMIF(المبيعات!D:D,B35,المبيعات!F:F) -> 0 | I35: 0 | J35: 0 | L35: =SUMIF(المبيعات!D:D,B35,المبيعات!K:K) -> 0 | O35: 2025-11-01 | P35: 60 | Q35: 2030-11-01 | R35: 19 | S35: 6 | T35: 4 | U35: الصلاحيه ساريه | Z35: 185
D36: 39 | E36: 9.25 | F36: 360.75 | G36: =SUMIF(المشتريات!E:E,B36,المشتريات!G:G) -> 0 | H36: =SUMIF(المبيعات!D:D,B36,المبيعات!F:F) -> 0 | I36: 39 | J36: 360.75 | K36: =IF(D36<>0,E36/40,"") -> 0.23125 | L36: =SUMIF(المبيعات!D:D,B36,المبيعات!K:K) -> 0 | M36: 10 | O36: 2025-11-01 | P36: 60 | Q36: 2030-11-01 | R36: 19 | S36: 6 | T36: 4 | U36: الصلاحيه ساريه | Z36: 370
G37: =SUMIF(المشتريات!E:E,B37,المشتريات!G:G) -> 0 | H37: =SUMIF(المبيعات!D:D,B37,المبيعات!F:F) -> 0 | I37: 0 | J37: 0 | K37: =IF(D37<>0,E37/40,"") ->  | L37: =SUMIF(المبيعات!D:D,B37,المبيعات!K:K) -> 0 | O37: 2025-11-01 | P37: 60 | Q37: 2030-11-01 | R37: 19 | S37: 6 | T37: 4 | U37: الصلاحيه ساريه | Z37: 365
G38: =SUMIF(المشتريات!E:E,B38,المشتريات!G:G) -> 0 | H38: =SUMIF(المبيعات!D:D,B38,المبيعات!F:F) -> 0 | I38: 0 | J38: 0 | L38: =SUMIF(المبيعات!D:D,B38,المبيعات!K:K) -> 0 | O38: 2025-11-01 | P38: 60 | Q38: 2030-11-01 | R38: 19 | S38: 6 | T38: 4 | U38: الصلاحيه ساريه | Z38: 365
G39: =SUMIF(المشتريات!E:E,B39,المشتريات!G:G) -> 0 | H39: =SUMIF(المبيعات!D:D,B39,المبيعات!F:F) -> 0 | I39: 0 | J39: 0 | L39: =SUMIF(المبيعات!D:D,B39,المبيعات!K:K) -> 0 | O39: 2025-11-01 | P39: 60 | Q39: 2030-11-01 | R39: 19 | S39: 6 | T39: 4 | U39: الصلاحيه ساريه | Z39: 365 | AC39: 113
D40: 45 | E40: 4.3125 | F40: 194.0625 | G40: =SUMIF(المشتريات!E:E,B40,المشتريات!G:G) -> 0 | H40: =SUMIF(المبيعات!D:D,B40,المبيعات!F:F) -> 0 | I40: 45 | J40: 194.0625 | K40: =IF(D40<>0,E40/48,"") -> 0.08984375 | L40: =SUMIF(المبيعات!D:D,B40,المبيعات!K:K) -> 0 | M40: 5 | O40: 2025-11-01 | P40: 60 | Q40: 2030-11-01 | R40: 19 | S40: 6 | T40: 4 | U40: الصلاحيه ساريه | Z40: 207
E41: 4.5 | F41: 0 | G41: =SUMIF(المشتريات!E:E,B41,المشتريات!G:G) -> 0 | H41: =SUMIF(المبيعات!D:D,B41,المبيعات!F:F) -> 0 | I41: 0 | J41: 0 | L41: =SUMIF(المبيعات!D:D,B41,المبيعات!K:K) -> 0 | M41: 5 | O41: 2025-11-01 | P41: 60 | Q41: 2030-11-01 | R41: 19 | S41: 6 | T41: 4 | U41: الصلاحيه ساريه
G42: =SUMIF(المشتريات!E:E,B42,المشتريات!G:G) -> 0 | H42: =SUMIF(المبيعات!D:D,B42,المبيعات!F:F) -> 0 | I42: 0 | J42: 0 | L42: =SUMIF(المبيعات!D:D,B42,المبيعات!K:K) -> 0 | O42: 2025-11-01 | P42: 60 | Q42: 2030-11-01 | R42: 19 | S42: 6 | T42: 4 | U42: الصلاحيه ساريه
G43: =SUMIF(المشتريات!E:E,B43,المشتريات!G:G) -> 0 | H43: =SUMIF(المبيعات!D:D,B43,المبيعات!F:F) -> 0 | I43: 0 | J43: 0 | L43: =SUMIF(المبيعات!D:D,B43,المبيعات!K:K) -> 0 | O43: 2025-11-01 | P43: 60 | Q43: 2030-11-01 | R43: 19 | S43: 6 | T43: 4 | U43: الصلاحيه ساريه
G44: =SUMIF(المشتريات!E:E,B44,المشتريات!G:G) -> 0 | H44: =SUMIF(المبيعات!D:D,B44,المبيعات!F:F) -> 0 | I44: 0 | J44: 0 | L44: =SUMIF(المبيعات!D:D,B44,المبيعات!K:K) -> 0 | O44: 2025-11-01 | P44: 60 | Q44: 2030-11-01 | R44: 19 | S44: 6 | T44: 4 | U44: الصلاحيه ساريه
G45: =SUMIF(المشتريات!E:E,B45,المشتريات!G:G) -> 0 | H45: =SUMIF(المبيعات!D:D,B45,المبيعات!F:F) -> 0 | I45: 0 | J45: 0 | L45: =SUMIF(المبيعات!D:D,B45,المبيعات!K:K) -> 0 | O45: 2025-11-01 | P45: 60 | Q45: 2030-11-01 | R45: 19 | S45: 6 | T45: 4 | U45: الصلاحيه ساريه
G46: =SUMIF(المشتريات!E:E,B46,المشتريات!G:G) -> 0 | H46: =SUMIF(المبيعات!D:D,B46,المبيعات!F:F) -> 0 | I46: 0 | J46: 0 | L46: =SUMIF(المبيعات!D:D,B46,المبيعات!K:K) -> 0 | O46: 2025-11-01 | P46: 60 | Q46: 2030-11-01 | R46: 19 | S46: 6 | T46: 4 | U46: الصلاحيه ساريه
G47: =SUMIF(المشتريات!E:E,B47,المشتريات!G:G) -> 0 | H47: =SUMIF(المبيعات!D:D,B47,المبيعات!F:F) -> 0 | I47: 0 | J47: 0 | L47: =SUMIF(المبيعات!D:D,B47,المبيعات!K:K) -> 0 | O47: 2025-11-01 | P47: 60 | Q47: 2030-11-01 | R47: 19 | S47: 6 | T47: 4 | U47: الصلاحيه ساريه
G48: =SUMIF(المشتريات!E:E,B48,المشتريات!G:G) -> 0 | H48: =SUMIF(المبيعات!D:D,B48,المبيعات!F:F) -> 0 | I48: 0 | J48: 0 | L48: =SUMIF(المبيعات!D:D,B48,المبيعات!K:K) -> 0 | O48: 2025-11-01 | P48: 60 | Q48: 2030-11-01 | R48: 19 | S48: 6 | T48: 4 | U48: الصلاحيه ساريه | Z48: 495 | AA48: 500 | AD48: 500
G49: =SUMIF(المشتريات!E:E,B49,المشتريات!G:G) -> 0 | H49: =SUMIF(المبيعات!D:D,B49,المبيعات!F:F) -> 0 | I49: 0 | J49: 0 | L49: =SUMIF(المبيعات!D:D,B49,المبيعات!K:K) -> 0 | O49: 2025-11-01 | P49: 60 | Q49: 2030-11-01 | R49: 19 | S49: 6 | T49: 4 | U49: الصلاحيه ساريه
G50: =SUMIF(المشتريات!E:E,B50,المشتريات!G:G) -> 0 | H50: =SUMIF(المبيعات!D:D,B50,المبيعات!F:F) -> 0 | I50: 0 | J50: 0 | L50: =SUMIF(المبيعات!D:D,B50,المبيعات!K:K) -> 0 | O50: 2025-11-01 | P50: 60 | Q50: 2030-11-01 | R50: 19 | S50: 6 | T50: 4 | U50: الصلاحيه ساريه | Z50: 365
G51: =SUMIF(المشتريات!E:E,B51,المشتريات!G:G) -> 0 | H51: =SUMIF(المبيعات!D:D,B51,المبيعات!F:F) -> 0 | I51: 0 | J51: 0 | L51: =SUMIF(المبيعات!D:D,B51,المبيعات!K:K) -> 0 | O51: 2025-11-01 | P51: 60 | Q51: 2030-11-01 | R51: 19 | S51: 6 | T51: 4 | U51: الصلاحيه ساريه
G52: =SUMIF(المشتريات!E:E,B52,المشتريات!G:G) -> 0 | H52: =SUMIF(المبيعات!D:D,B52,المبيعات!F:F) -> 0 | I52: 0 | J52: 0 | L52: =SUMIF(المبيعات!D:D,B52,المبيعات!K:K) -> 0 | O52: 2025-11-01 | P52: 60 | Q52: 2030-11-01 | R52: 19 | S52: 6 | T52: 4 | U52: الصلاحيه ساريه | AA52: 11 | AC52: 10
G53: =SUMIF(المشتريات!E:E,B53,المشتريات!G:G) -> 0 | H53: =SUMIF(المبيعات!D:D,B53,المبيعات!F:F) -> 0 | I53: 0 | J53: 0 | L53: =SUMIF(المبيعات!D:D,B53,المبيعات!K:K) -> 0 | O53: 2025-11-01 | P53: 60 | Q53: 2030-11-01 | R53: 19 | S53: 6 | T53: 4 | U53: الصلاحيه ساريه
G54: =SUMIF(المشتريات!E:E,B54,المشتريات!G:G) -> 0 | H54: =SUMIF(المبيعات!D:D,B54,المبيعات!F:F) -> 0 | I54: 0 | J54: 0 | L54: =SUMIF(المبيعات!D:D,B54,المبيعات!K:K) -> 0 | O54: 2025-11-01 | P54: 60 | Q54: 2030-11-01 | R54: 19 | S54: 6 | T54: 4 | U54: الصلاحيه ساريه
G55: =SUMIF(المشتريات!E:E,B55,المشتريات!G:G) -> 0 | H55: =SUMIF(المبيعات!D:D,B55,المبيعات!F:F) -> 0 | I55: 0 | J55: 0 | L55: =SUMIF(المبيعات!D:D,B55,المبيعات!K:K) -> 0 | O55: 2025-11-01 | P55: 60 | Q55: 2030-11-01 | R55: 19 | S55: 6 | T55: 4 | U55: الصلاحيه ساريه
G56: =SUMIF(المشتريات!E:E,B56,المشتريات!G:G) -> 0 | H56: =SUMIF(المبيعات!D:D,B56,المبيعات!F:F) -> 0 | I56: 0 | J56: 0 | L56: =SUMIF(المبيعات!D:D,B56,المبيعات!K:K) -> 0 | O56: 2025-11-01 | P56: 60 | Q56: 2030-11-01 | R56: 19 | S56: 6 | T56: 4 | U56: الصلاحيه ساريه
G57: =SUMIF(المشتريات!E:E,B57,المشتريات!G:G) -> 0 | H57: =SUMIF(المبيعات!D:D,B57,المبيعات!F:F) -> 0 | I57: 0 | J57: 0 | L57: =SUMIF(المبيعات!D:D,B57,المبيعات!K:K) -> 0 | O57: 2025-11-01 | P57: 60 | Q57: 2030-11-01 | R57: 19 | S57: 6 | T57: 4 | U57: الصلاحيه ساريه
G58: =SUMIF(المشتريات!E:E,B58,المشتريات!G:G) -> 0 | H58: =SUMIF(المبيعات!D:D,B58,المبيعات!F:F) -> 0 | I58: 0 | J58: 0 | L58: =SUMIF(المبيعات!D:D,B58,المبيعات!K:K) -> 0 | O58: 2025-11-01 | P58: 60 | Q58: 2030-11-01 | R58: 19 | S58: 6 | T58: 4 | U58: الصلاحيه ساريه
G59: =SUMIF(المشتريات!E:E,B59,المشتريات!G:G) -> 0 | H59: =SUMIF(المبيعات!D:D,B59,المبيعات!F:F) -> 0 | I59: 0 | J59: 0 | L59: =SUMIF(المبيعات!D:D,B59,المبيعات!K:K) -> 0 | O59: 2025-11-01 | P59: 60 | Q59: 2030-11-01 | R59: 19 | S59: 6 | T59: 4 | U59: الصلاحيه ساريه
G60: =SUMIF(المشتريات!E:E,B60,المشتريات!G:G) -> 0 | H60: =SUMIF(المبيعات!D:D,B60,المبيعات!F:F) -> 0 | I60: 0 | J60: 0 | L60: =SUMIF(المبيعات!D:D,B60,المبيعات!K:K) -> 0 | O60: 2025-11-01 | P60: 60 | Q60: 2030-11-01 | R60: 19 | S60: 6 | T60: 4 | U60: الصلاحيه ساريه
E61: 3.8 | F61: 0 | G61: =SUMIF(المشتريات!E:E,B61,المشتريات!G:G) -> 0 | H61: =SUMIF(المبيعات!D:D,B61,المبيعات!F:F) -> 0 | I61: 0 | J61: 0 | L61: =SUMIF(المبيعات!D:D,B61,المبيعات!K:K) -> 0 | M61: 5 | O61: 2025-11-01 | P61: 60 | Q61: 2030-11-01 | R61: 19 | S61: 6 | T61: 4 | U61: الصلاحيه ساريه
E62: 7.65 | F62: 0 | G62: =SUMIF(المشتريات!E:E,B62,المشتريات!G:G) -> 0 | H62: =SUMIF(المبيعات!D:D,B62,المبيعات!F:F) -> 0 | I62: 0 | J62: 0 | L62: =SUMIF(المبيعات!D:D,B62,المبيعات!K:K) -> 0 | M62: 10 | O62: 2025-11-01 | P62: 60 | Q62: 2030-11-01 | R62: 19 | S62: 6 | T62: 4 | U62: الصلاحيه ساريه
G63: =SUMIF(المشتريات!E:E,B63,المشتريات!G:G) -> 0 | H63: =SUMIF(المبيعات!D:D,B63,المبيعات!F:F) -> 0 | I63: 0 | J63: 0 | L63: =SUMIF(المبيعات!D:D,B63,المبيعات!K:K) -> 0 | O63: 2025-11-01 | P63: 60 | Q63: 2030-11-01 | R63: 19 | S63: 6 | T63: 4 | U63: الصلاحيه ساريه
G64: =SUMIF(المشتريات!E:E,B64,المشتريات!G:G) -> 0 | H64: =SUMIF(المبيعات!D:D,B64,المبيعات!F:F) -> 0 | I64: 0 | J64: 0 | L64: =SUMIF(المبيعات!D:D,B64,المبيعات!K:K) -> 0 | O64: 2025-11-01 | P64: 60 | Q64: 2030-11-01 | R64: 19 | S64: 6 | T64: 4 | U64: الصلاحيه ساريه
G65: =SUMIF(المشتريات!E:E,B65,المشتريات!G:G) -> 0 | H65: =SUMIF(المبيعات!D:D,B65,المبيعات!F:F) -> 0 | I65: 0 | J65: 0 | L65: =SUMIF(المبيعات!D:D,B65,المبيعات!K:K) -> 0 | O65: 2025-11-01 | P65: 60 | Q65: 2030-11-01 | R65: 19 | S65: 6 | T65: 4 | U65: الصلاحيه ساريه
G66: =SUMIF(المشتريات!E:E,B66,المشتريات!G:G) -> 0 | H66: =SUMIF(المبيعات!D:D,B66,المبيعات!F:F) -> 0 | I66: 0 | J66: 0 | L66: =SUMIF(المبيعات!D:D,B66,المبيعات!K:K) -> 0 | O66: 2025-11-01 | P66: 60 | Q66: 2030-11-01 | R66: 19 | S66: 6 | T66: 4 | U66: الصلاحيه ساريه
G67: =SUMIF(المشتريات!E:E,B67,المشتريات!G:G) -> 0 | H67: =SUMIF(المبيعات!D:D,B67,المبيعات!F:F) -> 0 | I67: 0 | J67: 0 | L67: =SUMIF(المبيعات!D:D,B67,المبيعات!K:K) -> 0 | O67: 2025-11-01 | P67: 60 | Q67: 2030-11-01 | R67: 19 | S67: 6 | T67: 4 | U67: الصلاحيه ساريه
G68: =SUMIF(المشتريات!E:E,B68,المشتريات!G:G) -> 0 | H68: =SUMIF(المبيعات!D:D,B68,المبيعات!F:F) -> 0 | I68: 0 | J68: 0 | L68: =SUMIF(المبيعات!D:D,B68,المبيعات!K:K) -> 0 | O68: 2025-11-01 | P68: 60 | Q68: 2030-11-01 | R68: 19 | S68: 6 | T68: 4 | U68: الصلاحيه ساريه
G69: =SUMIF(المشتريات!E:E,B69,المشتريات!G:G) -> 0 | H69: =SUMIF(المبيعات!D:D,B69,المبيعات!F:F) -> 0 | I69: 0 | J69: 0 | L69: =SUMIF(المبيعات!D:D,B69,المبيعات!K:K) -> 0 | O69: 2025-11-01 | P69: 60 | Q69: 2030-11-01 | R69: 19 | S69: 6 | T69: 4 | U69: الصلاحيه ساريه
G70: =SUMIF(المشتريات!E:E,B70,المشتريات!G:G) -> 0 | H70: =SUMIF(المبيعات!D:D,B70,المبيعات!F:F) -> 0 | I70: 0 | J70: 0 | L70: =SUMIF(المبيعات!D:D,B70,المبيعات!K:K) -> 0 | O70: 2025-11-01 | P70: 60 | Q70: 2030-11-01 | R70: 19 | S70: 6 | T70: 4 | U70: الصلاحيه ساريه
F71: =IF(D71+E71>0,E71*D71," ") ->  | G71: =SUMIF(المشتريات!E:E,B71,المشتريات!G:G) -> 0 | H71: =SUMIF(المبيعات!D:D,B71,المبيعات!F:F) -> 0 | I71: =(D71+G71)-(H71) -> 0 | J71: =I71*E71 -> 0 | K71: =IF(D71<>0,E71/1,"") ->  | L71: =SUMIF(المبيعات!D:D,B71,المبيعات!K:K) -> 0 | O71: 2025-11-01 | P71: 60 | Q71: =EDATE(O71,P71) -> 2030-11-01 | R71: =IFERROR(DATEDIF($P$4,$Q71,"MD"),0) -> 19 | S71: =IFERROR(DATEDIF($P$4,$Q71,"ym"),0) -> 6 | T71: =IFERROR(DATEDIF($P$4,$Q71,"y"),0) -> 4 | U71: =IF(AND(Q71-TODAY()<=30,Q71-TODAY()>0),$X$5,IF(Q71-TODAY()<=0,$X$4,$X$6)) -> الصلاحيه ساريه | Z71: 240 | AA71: 240
G72: =SUMIF(المشتريات!E:E,B72,المشتريات!G:G) -> 0 | H72: =SUMIF(المبيعات!D:D,B72,المبيعات!F:F) -> 0 | I72: 0 | J72: 0 | L72: =SUMIF(المبيعات!D:D,B72,المبيعات!K:K) -> 0 | O72: 2025-11-01 | P72: 60 | Q72: 2030-11-01 | R72: 19 | S72: 6 | T72: 4 | U72: الصلاحيه ساريه | Z72: 240 | AA72: 240
G73: =SUMIF(المشتريات!E:E,B73,المشتريات!G:G) -> 0 | H73: =SUMIF(المبيعات!D:D,B73,المبيعات!F:F) -> 0 | I73: 0 | J73: 0 | L73: =SUMIF(المبيعات!D:D,B73,المبيعات!K:K) -> 0 | O73: 2025-11-01 | P73: 60 | Q73: 2030-11-01 | R73: 19 | S73: 6 | T73: 4 | U73: الصلاحيه ساريه
G74: =SUMIF(المشتريات!E:E,B74,المشتريات!G:G) -> 0 | H74: =SUMIF(المبيعات!D:D,B74,المبيعات!F:F) -> 0 | I74: 0 | J74: 0 | L74: =SUMIF(المبيعات!D:D,B74,المبيعات!K:K) -> 0 | O74: 2025-11-01 | P74: 60 | Q74: 2030-11-01 | R74: 19 | S74: 6 | T74: 4 | U74: الصلاحيه ساريه | AC74: 770
G75: =SUMIF(المشتريات!E:E,B75,المشتريات!G:G) -> 0 | H75: =SUMIF(المبيعات!D:D,B75,المبيعات!F:F) -> 0 | I75: 0 | J75: 0 | L75: =SUMIF(المبيعات!D:D,B75,المبيعات!K:K) -> 0 | O75: 2025-11-01 | P75: 60 | Q75: 2030-11-01 | R75: 19 | S75: 6 | T75: 4 | U75: الصلاحيه ساريه | AC75: 600
G76: =SUMIF(المشتريات!E:E,B76,المشتريات!G:G) -> 0 | H76: =SUMIF(المبيعات!D:D,B76,المبيعات!F:F) -> 0 | I76: 0 | J76: 0 | L76: =SUMIF(المبيعات!D:D,B76,المبيعات!K:K) -> 0 | O76: 2025-11-01 | P76: 60 | Q76: 2030-11-01 | R76: 19 | S76: 6 | T76: 4 | U76: الصلاحيه ساريه | Z76: 238
G77: =SUMIF(المشتريات!E:E,B77,المشتريات!G:G) -> 0 | H77: =SUMIF(المبيعات!D:D,B77,المبيعات!F:F) -> 0 | I77: 0 | J77: 0 | L77: =SUMIF(المبيعات!D:D,B77,المبيعات!K:K) -> 0 | M77: 2 | O77: 2025-11-01 | P77: 60 | Q77: 2030-11-01 | R77: 19 | S77: 6 | T77: 4 | U77: الصلاحيه ساريه | AH77: 315
G78: =SUMIF(المشتريات!E:E,B78,المشتريات!G:G) -> 0 | H78: =SUMIF(المبيعات!D:D,B78,المبيعات!F:F) -> 0 | I78: 0 | J78: 0 | L78: =SUMIF(المبيعات!D:D,B78,المبيعات!K:K) -> 0 | M78: 3 | O78: 2025-11-01 | P78: 60 | Q78: 2030-11-01 | R78: 19 | S78: 6 | T78: 4 | U78: الصلاحيه ساريه
D79: 41 | E79: 3.75 | F79: 153.75 | G79: =SUMIF(المشتريات!E:E,B79,المشتريات!G:G) -> 0 | H79: =SUMIF(المبيعات!D:D,B79,المبيعات!F:F) -> 0 | I79: 41 | J79: 153.75 | K79: =IF(D79<>0,E79/32,"") -> 0.1171875 | L79: =SUMIF(المبيعات!D:D,B79,المبيعات!K:K) -> 0 | M79: 5 | O79: 2025-11-01 | P79: 60 | Q79: 2030-11-01 | R79: 19 | S79: 6 | T79: 4 | U79: الصلاحيه ساريه | AH79: 120
D80: 21 | E80: 8.541666667 | F80: 179.375 | G80: =SUMIF(المشتريات!E:E,B80,المشتريات!G:G) -> 0 | H80: =SUMIF(المبيعات!D:D,B80,المبيعات!F:F) -> 0 | I80: 21 | J80: 179.375 | K80: =IF(D80<>0,E80/24,"") -> 0.3559027778 | L80: =SUMIF(المبيعات!D:D,B80,المبيعات!K:K) -> 0 | M80: 10 | O80: 2025-11-01 | P80: 60 | Q80: 2030-11-01 | R80: 19 | S80: 6 | T80: 4 | U80: الصلاحيه ساريه | Z80: 135 | AD80: 205 | AH80: 135
E81: 11.83333333 | F81: 0 | G81: =SUMIF(المشتريات!E:E,B81,المشتريات!G:G) -> 0 | H81: =SUMIF(المبيعات!D:D,B81,المبيعات!F:F) -> 0 | I81: 0 | J81: 0 | K81: =IF(D81<>0,E81/12,"") ->  | L81: =SUMIF(المبيعات!D:D,B81,المبيعات!K:K) -> 0 | M81: 15 | O81: 2025-11-01 | P81: 60 | Q81: 2030-11-01 | R81: 19 | S81: 6 | T81: 4 | U81: الصلاحيه ساريه | AD81: 142
D82: 6 | E82: 16.75 | F82: 100.5 | G82: =SUMIF(المشتريات!E:E,B82,المشتريات!G:G) -> 0 | H82: =SUMIF(المبيعات!D:D,B82,المبيعات!F:F) -> 0 | I82: 6 | J82: 100.5 | K82: =IF(D82<>0,E82/8,"") -> 2.09375 | L82: =SUMIF(المبيعات!D:D,B82,المبيعات!K:K) -> 0 | M82: 20 | O82: 2025-11-01 | P82: 60 | Q82: 2030-11-01 | R82: 19 | S82: 6 | T82: 4 | U82: الصلاحيه ساريه | AD82: 134
E83: 21.25 | F83: 0 | G83: =SUMIF(المشتريات!E:E,B83,المشتريات!G:G) -> 0 | H83: =SUMIF(المبيعات!D:D,B83,المبيعات!F:F) -> 0 | I83: 0 | J83: 0 | K83: =IF(D83<>0,E83/8,"") ->  | L83: =SUMIF(المبيعات!D:D,B83,المبيعات!K:K) -> 0 | M83: 25 | O83: 2025-11-01 | P83: 60 | Q83: 2030-11-01 | R83: 19 | S83: 6 | T83: 4 | U83: الصلاحيه ساريه | AD83: 170 | AH83: 170
E84: 48.25 | F84: 0 | G84: =SUMIF(المشتريات!E:E,B84,المشتريات!G:G) -> 0 | H84: =SUMIF(المبيعات!D:D,B84,المبيعات!F:F) -> 0 | I84: 0 | J84: 0 | L84: =SUMIF(المبيعات!D:D,B84,المبيعات!K:K) -> 0 | M84: 54 | O84: 2025-11-01 | P84: 60 | Q84: 2030-11-01 | R84: 19 | S84: 6 | T84: 4 | U84: الصلاحيه ساريه
E85: 70 | F85: 0 | G85: =SUMIF(المشتريات!E:E,B85,المشتريات!G:G) -> 0 | H85: =SUMIF(المبيعات!D:D,B85,المبيعات!F:F) -> 0 | I85: 0 | J85: 0 | L85: =SUMIF(المبيعات!D:D,B85,المبيعات!K:K) -> 0 | M85: 79 | O85: 2025-11-01 | P85: 60 | Q85: 2030-11-01 | R85: 19 | S85: 6 | T85: 4 | U85: الصلاحيه ساريه
E86: 92.25 | F86: 0 | G86: =SUMIF(المشتريات!E:E,B86,المشتريات!G:G) -> 0 | H86: =SUMIF(المبيعات!D:D,B86,المبيعات!F:F) -> 0 | I86: 0 | J86: 0 | L86: =SUMIF(المبيعات!D:D,B86,المبيعات!K:K) -> 0 | M86: 100 | O86: 2025-11-01 | P86: 60 | Q86: 2030-11-01 | R86: 19 | S86: 6 | T86: 4 | U86: الصلاحيه ساريه
E87: 1.583333333 | F87: 0 | G87: =SUMIF(المشتريات!E:E,B87,المشتريات!G:G) -> 0 | H87: =SUMIF(المبيعات!D:D,B87,المبيعات!F:F) -> 0 | I87: 0 | J87: 0 | L87: =SUMIF(المبيعات!D:D,B87,المبيعات!K:K) -> 0 | M87: 2 | O87: 2025-11-01 | P87: 60 | Q87: 2030-11-01 | R87: 19 | S87: 6 | T87: 4 | U87: الصلاحيه ساريه
E88: 2.361111111 | F88: 0 | G88: =SUMIF(المشتريات!E:E,B88,المشتريات!G:G) -> 0 | H88: =SUMIF(المبيعات!D:D,B88,المبيعات!F:F) -> 0 | I88: 0 | J88: 0 | L88: =SUMIF(المبيعات!D:D,B88,المبيعات!K:K) -> 0 | M88: 3 | O88: 2025-11-01 | P88: 60 | Q88: 2030-11-01 | R88: 19 | S88: 6 | T88: 4 | U88: الصلاحيه ساريه
E89: 3.756666667 | F89: 0 | G89: =SUMIF(المشتريات!E:E,B89,المشتريات!G:G) -> 0 | H89: =SUMIF(المبيعات!D:D,B89,المبيعات!F:F) -> 0 | I89: 0 | J89: 0 | L89: =SUMIF(المبيعات!D:D,B89,المبيعات!K:K) -> 0 | M89: 5 | O89: 2025-11-01 | P89: 60 | Q89: 2030-11-01 | R89: 19 | S89: 6 | T89: 4 | U89: الصلاحيه ساريه
E90: 7.9625 | F90: 0 | G90: =SUMIF(المشتريات!E:E,B90,المشتريات!G:G) -> 0 | H90: =SUMIF(المبيعات!D:D,B90,المبيعات!F:F) -> 0 | I90: 0 | J90: 0 | L90: =SUMIF(المبيعات!D:D,B90,المبيعات!K:K) -> 0 | M90: 10 | O90: 2025-11-01 | P90: 60 | Q90: 2030-11-01 | R90: 19 | S90: 6 | T90: 4 | U90: الصلاحيه ساريه
G91: =SUMIF(المشتريات!E:E,B91,المشتريات!G:G) -> 0 | H91: =SUMIF(المبيعات!D:D,B91,المبيعات!F:F) -> 0 | I91: 0 | J91: 0 | L91: =SUMIF(المبيعات!D:D,B91,المبيعات!K:K) -> 0 | M91: 2 | O91: 2025-11-01 | P91: 60 | Q91: 2030-11-01 | R91: 19 | S91: 6 | T91: 4 | U91: الصلاحيه ساريه
G92: =SUMIF(المشتريات!E:E,B92,المشتريات!G:G) -> 0 | H92: =SUMIF(المبيعات!D:D,B92,المبيعات!F:F) -> 0 | I92: 0 | J92: 0 | L92: =SUMIF(المبيعات!D:D,B92,المبيعات!K:K) -> 0 | O92: 2025-11-01 | P92: 60 | Q92: =EDATE(O92,P92) -> 2030-11-01 | R92: =IFERROR(DATEDIF($P$4,$Q92,"MD"),0) -> 19 | S92: =IFERROR(DATEDIF($P$4,$Q92,"ym"),0) -> 6 | T92: =IFERROR(DATEDIF($P$4,$Q92,"y"),0) -> 4 | U92: =IF(AND(Q92-TODAY()<=30,Q92-TODAY()>0),$X$5,IF(Q92-TODAY()<=0,$X$4,$X$6)) -> الصلاحيه ساريه | Z92: 90
G93: =SUMIF(المشتريات!E:E,B93,المشتريات!G:G) -> 0 | H93: =SUMIF(المبيعات!D:D,B93,المبيعات!F:F) -> 0 | I93: 0 | J93: 0 | L93: =SUMIF(المبيعات!D:D,B93,المبيعات!K:K) -> 0 | O93: 2025-11-01 | P93: 60 | Q93: 2030-11-01 | R93: 19 | S93: 6 | T93: 4 | U93: الصلاحيه ساريه | Z93: 110
G94: =SUMIF(المشتريات!E:E,B94,المشتريات!G:G) -> 0 | H94: =SUMIF(المبيعات!D:D,B94,المبيعات!F:F) -> 0 | I94: 0 | J94: 0 | L94: =SUMIF(المبيعات!D:D,B94,المبيعات!K:K) -> 0 | O94: 2025-11-01 | P94: 60 | Q94: 2030-11-01 | R94: 19 | S94: 6 | T94: 4 | U94: الصلاحيه ساريه | Z94: 110
G95: =SUMIF(المشتريات!E:E,B95,المشتريات!G:G) -> 0 | H95: =SUMIF(المبيعات!D:D,B95,المبيعات!F:F) -> 0 | I95: 0 | J95: 0 | L95: =SUMIF(المبيعات!D:D,B95,المبيعات!K:K) -> 0 | O95: 2025-11-01 | P95: 60 | Q95: 2030-11-01 | R95: =IFERROR(DATEDIF($P$4,$Q95,"MD"),0) -> 19 | S95: =IFERROR(DATEDIF($P$4,$Q95,"ym"),0) -> 6 | T95: =IFERROR(DATEDIF($P$4,$Q95,"y"),0) -> 4 | U95: الصلاحيه ساريه
G96: =SUMIF(المشتريات!E:E,B96,المشتريات!G:G) -> 0 | H96: =SUMIF(المبيعات!D:D,B96,المبيعات!F:F) -> 0 | I96: 0 | J96: 0 | L96: =SUMIF(المبيعات!D:D,B96,المبيعات!K:K) -> 0 | O96: 2025-11-01 | P96: 60 | Q96: 2030-11-01 | R96: 19 | S96: 6 | T96: 4 | U96: الصلاحيه ساريه
G97: =SUMIF(المشتريات!E:E,B97,المشتريات!G:G) -> 0 | H97: =SUMIF(المبيعات!D:D,B97,المبيعات!F:F) -> 0 | I97: 0 | J97: 0 | L97: =SUMIF(المبيعات!D:D,B97,المبيعات!K:K) -> 0 | O97: 2025-11-01 | P97: 60 | Q97: 2030-11-01 | R97: 19 | S97: 6 | T97: 4 | U97: الصلاحيه ساريه
G98: =SUMIF(المشتريات!E:E,B98,المشتريات!G:G) -> 0 | H98: =SUMIF(المبيعات!D:D,B98,المبيعات!F:F) -> 0 | I98: 0 | J98: 0 | L98: =SUMIF(المبيعات!D:D,B98,المبيعات!K:K) -> 0 | O98: 2025-11-01 | P98: 60 | Q98: 2030-11-01 | R98: 19 | S98: 6 | T98: 4 | U98: الصلاحيه ساريه
G99: =SUMIF(المشتريات!E:E,B99,المشتريات!G:G) -> 0 | H99: =SUMIF(المبيعات!D:D,B99,المبيعات!F:F) -> 0 | I99: 0 | J99: 0 | L99: =SUMIF(المبيعات!D:D,B99,المبيعات!K:K) -> 0 | O99: 2025-11-01 | P99: 60 | Q99: 2030-11-01 | R99: 19 | S99: 6 | T99: 4 | U99: الصلاحيه ساريه
G100: =SUMIF(المشتريات!E:E,B100,المشتريات!G:G) -> 0 | H100: =SUMIF(المبيعات!D:D,B100,المبيعات!F:F) -> 0 | I100: 0 | J100: 0 | L100: =SUMIF(المبيعات!D:D,B100,المبيعات!K:K) -> 0 | O100: 2025-11-01 | P100: 60 | Q100: 2030-11-01 | R100: 19 | S100: 6 | T100: 4 | U100: الصلاحيه ساريه
G101: =SUMIF(المشتريات!E:E,B101,المشتريات!G:G) -> 0 | H101: =SUMIF(المبيعات!D:D,B101,المبيعات!F:F) -> 0 | I101: 0 | J101: 0 | L101: =SUMIF(المبيعات!D:D,B101,المبيعات!K:K) -> 0 | O101: 2025-11-01 | P101: 60 | Q101: =EDATE(O101,P101) -> 2030-11-01 | R101: 19 | S101: 6 | T101: 4 | U101: =IF(AND(Q101-TODAY()<=30,Q101-TODAY()>0),$X$5,IF(Q101-TODAY()<=0,$X$4,$X$6)) -> الصلاحيه ساريه
G102: =SUMIF(المشتريات!E:E,B102,المشتريات!G:G) -> 0 | H102: =SUMIF(المبيعات!D:D,B102,المبيعات!F:F) -> 0 | I102: 0 | J102: 0 | L102: =SUMIF(المبيعات!D:D,B102,المبيعات!K:K) -> 0 | O102: 2025-11-01 | P102: 60 | Q102: =EDATE(O102,P102) -> 2030-11-01 | R102: =IFERROR(DATEDIF($P$4,$Q102,"MD"),0) -> 19 | S102: =IFERROR(DATEDIF($P$4,$Q102,"ym"),0) -> 6 | T102: =IFERROR(DATEDIF($P$4,$Q102,"y"),0) -> 4 | U102: =IF(AND(Q102-TODAY()<=30,Q102-TODAY()>0),$X$5,IF(Q102-TODAY()<=0,$X$4,$X$6)) -> الصلاحيه ساريه | Z102: 100
G103: =SUMIF(المشتريات!E:E,B103,المشتريات!G:G) -> 0 | H103: =SUMIF(المبيعات!D:D,B103,المبيعات!F:F) -> 0 | I103: 0 | J103: 0 | L103: =SUMIF(المبيعات!D:D,B103,المبيعات!K:K) -> 0 | O103: 2025-11-01 | P103: 60 | Q103: 2030-11-01 | R103: 19 | S103: 6 | T103: 4 | U103: الصلاحيه ساريه
G104: =SUMIF(المشتريات!E:E,B104,المشتريات!G:G) -> 0 | H104: =SUMIF(المبيعات!D:D,B104,المبيعات!F:F) -> 0 | I104: 0 | J104: 0 | L104: =SUMIF(المبيعات!D:D,B104,المبيعات!K:K) -> 0 | O104: 2025-11-01 | P104: 60 | Q104: 2030-11-01 | R104: 19 | S104: 6 | T104: 4 | U104: الصلاحيه ساريه
G105: =SUMIF(المشتريات!E:E,B105,المشتريات!G:G) -> 0 | H105: =SUMIF(المبيعات!D:D,B105,المبيعات!F:F) -> 0 | I105: 0 | J105: 0 | L105: =SUMIF(المبيعات!D:D,B105,المبيعات!K:K) -> 0 | O105: 2025-11-01 | P105: 60 | Q105: 2030-11-01 | R105: 19 | S105: 6 | T105: 4 | U105: الصلاحيه ساريه | Z105: 225 | AH105: 225
G106: =SUMIF(المشتريات!E:E,B106,المشتريات!G:G) -> 0 | H106: =SUMIF(المبيعات!D:D,B106,المبيعات!F:F) -> 0 | I106: 0 | J106: 0 | L106: =SUMIF(المبيعات!D:D,B106,المبيعات!K:K) -> 0 | O106: 2025-11-01 | P106: 60 | Q106: 2030-11-01 | R106: 19 | S106: 6 | T106: 4 | U106: الصلاحيه ساريه | Z106: 107 | AH106: 105
G107: =SUMIF(المشتريات!E:E,B107,المشتريات!G:G) -> 0 | H107: =SUMIF(المبيعات!D:D,B107,المبيعات!F:F) -> 0 | I107: 0 | J107: 0 | L107: =SUMIF(المبيعات!D:D,B107,المبيعات!K:K) -> 0 | O107: 2025-11-01 | P107: 60 | Q107: 2030-11-01 | R107: =IFERROR(DATEDIF($P$4,$Q107,"MD"),0) -> 19 | S107: =IFERROR(DATEDIF($P$4,$Q107,"ym"),0) -> 6 | T107: =IFERROR(DATEDIF($P$4,$Q107,"y"),0) -> 4 | U107: الصلاحيه ساريه | Z107: 105
E108: 2.5 | F108: 0 | G108: =SUMIF(المشتريات!E:E,B108,المشتريات!G:G) -> 0 | H108: =SUMIF(المبيعات!D:D,B108,المبيعات!F:F) -> 0 | I108: 0 | J108: 0 | L108: =SUMIF(المبيعات!D:D,B108,المبيعات!K:K) -> 0 | M108: 3 | O108: 2025-11-01 | P108: 60 | Q108: =EDATE(O108,P108) -> 2030-11-01 | R108: 19 | S108: 6 | T108: 4 | U108: =IF(AND(Q108-TODAY()<=30,Q108-TODAY()>0),$X$5,IF(Q108-TODAY()<=0,$X$4,$X$6)) -> الصلاحيه ساريه | Z108: 255
D109: 23 | E109: 3.666666667 | F109: 84.33333333 | G109: =SUMIF(المشتريات!E:E,B109,المشتريات!G:G) -> 0 | H109: =SUMIF(المبيعات!D:D,B109,المبيعات!F:F) -> 0 | I109: 23 | J109: 84.33333333 | K109: =IF(D109<>0,E109/24,"") -> 0.1527777778 | L109: =SUMIF(المبيعات!D:D,B109,المبيعات!K:K) -> 0 | M109: 5 | O109: 2025-11-01 | P109: 60 | Q109: =EDATE(O109,P109) -> 2030-11-01 | R109: 19 | S109: 6 | T109: 4 | U109: =IF(AND(Q109-TODAY()<=30,Q109-TODAY()>0),$X$5,IF(Q109-TODAY()<=0,$X$4,$X$6)) -> الصلاحيه ساريه | AD109: 60 | AH109: 88
D110: 0 | E110: 8.125 | F110: 0 | G110: =SUMIF(المشتريات!E:E,B110,المشتريات!G:G) -> 0 | H110: =SUMIF(المبيعات!D:D,B110,المبيعات!F:F) -> 0 | I110: 0 | J110: 0 | L110: =SUMIF(المبيعات!D:D,B110,المبيعات!K:K) -> 0 | M110: 10 | O110: 2025-11-01 | P110: 60 | Q110: 2030-11-01 | R110: 19 | S110: 6 | T110: 4 | U110: الصلاحيه ساريه
D111: 6 | E111: 12 | F111: 72 | G111: =SUMIF(المشتريات!E:E,B111,المشتريات!G:G) -> 0 | H111: =SUMIF(المبيعات!D:D,B111,المبيعات!F:F) -> 0 | I111: 6 | J111: 72 | K111: =IF(D111<>0,E111/8,"") -> 1.5 | L111: =SUMIF(المبيعات!D:D,B111,المبيعات!K:K) -> 0 | M111: 15 | O111: 2025-11-01 | P111: 60 | Q111: 2030-11-01 | R111: 19 | S111: 6 | T111: 4 | U111: الصلاحيه ساريه | AD111: 92 | AH111: 88
G112: =SUMIF(المشتريات!E:E,B112,المشتريات!G:G) -> 0 | H112: =SUMIF(المبيعات!D:D,B112,المبيعات!F:F) -> 0 | I112: 0 | J112: 0 | L112: =SUMIF(المبيعات!D:D,B112,المبيعات!K:K) -> 0 | O112: 2025-11-01 | P112: 60 | Q112: 2030-11-01 | R112: 19 | S112: 6 | T112: 4 | U112: الصلاحيه ساريه
G113: =SUMIF(المشتريات!E:E,B113,المشتريات!G:G) -> 0 | H113: =SUMIF(المبيعات!D:D,B113,المبيعات!F:F) -> 0 | I113: 0 | J113: 0 | L113: =SUMIF(المبيعات!D:D,B113,المبيعات!K:K) -> 0 | O113: 2025-11-01 | P113: 60 | Q113: =EDATE(O113,P113) -> 2030-11-01 | R113: 19 | S113: 6 | T113: 4 | U113: =IF(AND(Q113-TODAY()<=30,Q113-TODAY()>0),$X$5,IF(Q113-TODAY()<=0,$X$4,$X$6)) -> الصلاحيه ساريه
G114: =SUMIF(المشتريات!E:E,B114,المشتريات!G:G) -> 0 | H114: =SUMIF(المبيعات!D:D,B114,المبيعات!F:F) -> 0 | I114: 0 | J114: 0 | L114: =SUMIF(المبيعات!D:D,B114,المبيعات!K:K) -> 0 | O114: 2025-11-01 | P114: 60 | Q114: =EDATE(O114,P114) -> 2030-11-01 | R114: 19 | S114: 6 | T114: 4 | U114: =IF(AND(Q114-TODAY()<=30,Q114-TODAY()>0),$X$5,IF(Q114-TODAY()<=0,$X$4,$X$6)) -> الصلاحيه ساريه
G115: =SUMIF(المشتريات!E:E,B115,المشتريات!G:G) -> 0 | H115: =SUMIF(المبيعات!D:D,B115,المبيعات!F:F) -> 0 | I115: 0 | J115: 0 | L115: =SUMIF(المبيعات!D:D,B115,المبيعات!K:K) -> 0 | O115: 2025-11-01 | P115: 60 | Q115: =EDATE(O115,P115) -> 2030-11-01 | R115: =IFERROR(DATEDIF($P$4,$Q115,"MD"),0) -> 19 | S115: =IFERROR(DATEDIF($P$4,$Q115,"ym"),0) -> 6 | T115: =IFERROR(DATEDIF($P$4,$Q115,"y"),0) -> 4 | U115: =IF(AND(Q115-TODAY()<=30,Q115-TODAY()>0),$X$5,IF(Q115-TODAY()<=0,$X$4,$X$6)) -> الصلاحيه ساريه
E116: 1.5 | F116: 0 | G116: =SUMIF(المشتريات!E:E,B116,المشتريات!G:G) -> 0 | H116: =SUMIF(المبيعات!D:D,B116,المبيعات!F:F) -> 0 | I116: 0 | J116: 0 | L116: =SUMIF(المبيعات!D:D,B116,المبيعات!K:K) -> 0 | M116: 2 | O116: 2025-11-01 | P116: 60 | Q116: 2030-11-01 | R116: 19 | S116: 6 | T116: 4 | U116: الصلاحيه ساريه
E117: 2.55 | F117: 0 | G117: =SUMIF(المشتريات!E:E,B117,المشتريات!G:G) -> 0 | H117: =SUMIF(المبيعات!D:D,B117,المبيعات!F:F) -> 0 | I117: 0 | J117: 0 | L117: =SUMIF(المبيعات!D:D,B117,المبيعات!K:K) -> 0 | M117: 3 | O117: 2025-11-01 | P117: 60 | Q117: 2030-11-01 | R117: 19 | S117: 6 | T117: 4 | U117: الصلاحيه ساريه
E118: 4.17 | F118: 0 | G118: =SUMIF(المشتريات!E:E,B118,المشتريات!G:G) -> 0 | H118: =SUMIF(المبيعات!D:D,B118,المبيعات!F:F) -> 0 | I118: 0 | J118: 0 | L118: =SUMIF(المبيعات!D:D,B118,المبيعات!K:K) -> 0 | M118: 5 | O118: 2025-11-01 | P118: 60 | Q118: 2030-11-01 | R118: 19 | S118: 6 | T118: 4 | U118: الصلاحيه ساريه
E119: 7.916666667 | F119: 0 | G119: =SUMIF(المشتريات!E:E,B119,المشتريات!G:G) -> 0 | H119: =SUMIF(المبيعات!D:D,B119,المبيعات!F:F) -> 0 | I119: 0 | J119: 0 | L119: =SUMIF(المبيعات!D:D,B119,المبيعات!K:K) -> 0 | M119: 10 | O119: 2025-11-01 | P119: 60 | Q119: 2030-11-01 | R119: 19 | S119: 6 | T119: 4 | U119: الصلاحيه ساريه
G120: =SUMIF(المشتريات!E:E,B120,المشتريات!G:G) -> 0 | H120: =SUMIF(المبيعات!D:D,B120,المبيعات!F:F) -> 0 | I120: 0 | J120: 0 | L120: =SUMIF(المبيعات!D:D,B120,المبيعات!K:K) -> 0 | O120: 2025-11-01 | P120: 60 | Q120: 2030-11-01 | R120: 19 | S120: 6 | T120: 4 | U120: الصلاحيه ساريه
G121: =SUMIF(المشتريات!E:E,B121,المشتريات!G:G) -> 0 | H121: =SUMIF(المبيعات!D:D,B121,المبيعات!F:F) -> 0 | I121: 0 | J121: 0 | L121: =SUMIF(المبيعات!D:D,B121,المبيعات!K:K) -> 0 | O121: 2025-11-01 | P121: 60 | Q121: 2030-11-01 | R121: 19 | S121: 6 | T121: 4 | U121: الصلاحيه ساريه | Z121: 48
G122: =SUMIF(المشتريات!E:E,B122,المشتريات!G:G) -> 0 | H122: =SUMIF(المبيعات!D:D,B122,المبيعات!F:F) -> 0 | I122: 0 | J122: 0 | L122: =SUMIF(المبيعات!D:D,B122,المبيعات!K:K) -> 0 | M122: 10 | O122: 2025-11-01 | P122: 60 | Q122: 2030-11-01 | R122: 19 | S122: 6 | T122: 4 | U122: الصلاحيه ساريه | Z122: 30
G123: =SUMIF(المشتريات!E:E,B123,المشتريات!G:G) -> 0 | H123: =SUMIF(المبيعات!D:D,B123,المبيعات!F:F) -> 0 | I123: 0 | J123: 0 | L123: =SUMIF(المبيعات!D:D,B123,المبيعات!K:K) -> 0 | M123: 10 | O123: 2025-11-01 | P123: 60 | Q123: =EDATE(O123,P123) -> 2030-11-01 | R123: 19 | S123: 6 | T123: 4 | U123: =IF(AND(Q123-TODAY()<=30,Q123-TODAY()>0),$X$5,IF(Q123-TODAY()<=0,$X$4,$X$6)) -> الصلاحيه ساريه
E124: 4.166666667 | F124: 0 | G124: =SUMIF(المشتريات!E:E,B124,المشتريات!G:G) -> 0 | H124: =SUMIF(المبيعات!D:D,B124,المبيعات!F:F) -> 0 | I124: 0 | J124: 0 | L124: =SUMIF(المبيعات!D:D,B124,المبيعات!K:K) -> 0 | M124: 5 | O124: 2025-11-01 | P124: 60 | Q124: 2030-11-01 | R124: 19 | S124: 6 | T124: 4 | U124: الصلاحيه ساريه
E125: 4.166666667 | F125: 0 | G125: =SUMIF(المشتريات!E:E,B125,المشتريات!G:G) -> 0 | H125: =SUMIF(المبيعات!D:D,B125,المبيعات!F:F) -> 0 | I125: 0 | J125: 0 | L125: =SUMIF(المبيعات!D:D,B125,المبيعات!K:K) -> 0 | M125: 5 | O125: 2025-11-01 | P125: 60 | Q125: 2030-11-01 | R125: 19 | S125: 6 | T125: 4 | U125: الصلاحيه ساريه
G126: =SUMIF(المشتريات!E:E,B126,المشتريات!G:G) -> 0 | H126: =SUMIF(المبيعات!D:D,B126,المبيعات!F:F) -> 0 | I126: 0 | J126: 0 | L126: =SUMIF(المبيعات!D:D,B126,المبيعات!K:K) -> 0 | M126: 10 | O126: 2025-11-01 | P126: 60 | Q126: 2030-11-01 | R126: 19 | S126: 6 | T126: 4 | U126: الصلاحيه ساريه | Z126: 175
G127: =SUMIF(المشتريات!E:E,B127,المشتريات!G:G) -> 0 | H127: =SUMIF(المبيعات!D:D,B127,المبيعات!F:F) -> 0 | I127: 0 | J127: 0 | L127: =SUMIF(المبيعات!D:D,B127,المبيعات!K:K) -> 0 | M127: 3 | O127: 2025-11-01 | P127: 60 | Q127: 2030-11-01 | R127: 19 | S127: 6 | T127: 4 | U127: الصلاحيه ساريه
E128: 1.666666667 | F128: 0 | G128: =SUMIF(المشتريات!E:E,B128,المشتريات!G:G) -> 0 | H128: =SUMIF(المبيعات!D:D,B128,المبيعات!F:F) -> 0 | I128: 0 | J128: 0 | L128: =SUMIF(المبيعات!D:D,B128,المبيعات!K:K) -> 0 | M128: 2 | O128: 2025-11-01 | P128: 60 | Q128: 2030-11-01 | R128: 19 | S128: 6 | T128: 4 | U128: الصلاحيه ساريه | Z128: 405
E129: 1.666666667 | F129: 0 | G129: =SUMIF(المشتريات!E:E,B129,المشتريات!G:G) -> 0 | H129: =SUMIF(المبيعات!D:D,B129,المبيعات!F:F) -> 0 | I129: 0 | J129: 0 | L129: =SUMIF(المبيعات!D:D,B129,المبيعات!K:K) -> 0 | M129: 2 | O129: 2025-11-01 | P129: 60 | Q129: 2030-11-01 | R129: =IFERROR(DATEDIF($P$4,$Q129,"MD"),0) -> 19 | S129: =IFERROR(DATEDIF($P$4,$Q129,"ym"),0) -> 6 | T129: =IFERROR(DATEDIF($P$4,$Q129,"y"),0) -> 4 | U129: الصلاحيه ساريه
E130: 0.75 | F130: 0 | G130: =SUMIF(المشتريات!E:E,B130,المشتريات!G:G) -> 0 | H130: =SUMIF(المبيعات!D:D,B130,المبيعات!F:F) -> 0 | I130: 0 | J130: 0 | L130: =SUMIF(المبيعات!D:D,B130,المبيعات!K:K) -> 0 | M130: 1 | O130: 2025-11-01 | P130: 60 | Q130: 2030-11-01 | R130: 19 | S130: 6 | T130: 4 | U130: الصلاحيه ساريه
E131: 13 | F131: 0 | G131: =SUMIF(المشتريات!E:E,B131,المشتريات!G:G) -> 0 | H131: =SUMIF(المبيعات!D:D,B131,المبيعات!F:F) -> 0 | I131: 0 | J131: 0 | L131: =SUMIF(المبيعات!D:D,B131,المبيعات!K:K) -> 0 | M131: 14 | O131: 2025-11-01 | P131: 60 | Q131: =EDATE(O131,P131) -> 2030-11-01 | R131: 19 | S131: 6 | T131: 4 | U131: =IF(AND(Q131-TODAY()<=30,Q131-TODAY()>0),$X$5,IF(Q131-TODAY()<=0,$X$4,$X$6)) -> الصلاحيه ساريه | Z131: 260
D132: 12 | E132: 10 | F132: 120 | G132: =SUMIF(المشتريات!E:E,B132,المشتريات!G:G) -> 0 | H132: =SUMIF(المبيعات!D:D,B132,المبيعات!F:F) -> 0 | I132: 12 | J132: 120 | K132: 10 | L132: =SUMIF(المبيعات!D:D,B132,المبيعات!K:K) -> 0 | M132: 12 | O132: 2025-11-01 | P132: 60 | Q132: 2030-11-01 | R132: 19 | S132: 6 | T132: 4 | U132: الصلاحيه ساريه | Z132: 260
G133: =SUMIF(المشتريات!E:E,B133,المشتريات!G:G) -> 0 | H133: =SUMIF(المبيعات!D:D,B133,المبيعات!F:F) -> 0 | I133: 0 | J133: 0 | L133: =SUMIF(المبيعات!D:D,B133,المبيعات!K:K) -> 0 | O133: 2025-11-01 | P133: 60 | Q133: 2030-11-01 | R133: 19 | S133: 6 | T133: 4 | U133: الصلاحيه ساريه | Z133: 260
G134: =SUMIF(المشتريات!E:E,B134,المشتريات!G:G) -> 0 | H134: =SUMIF(المبيعات!D:D,B134,المبيعات!F:F) -> 0 | I134: 0 | J134: 0 | L134: =SUMIF(المبيعات!D:D,B134,المبيعات!K:K) -> 0 | O134: 2025-11-01 | P134: 60 | Q134: 2030-11-01 | R134: 19 | S134: 6 | T134: 4 | U134: الصلاحيه ساريه | Z134: 260 | AA134: 265 | AD134: 265
F135: =IF(D135+E135>0,E135*D135," ") ->  | G135: =SUMIF(المشتريات!E:E,B135,المشتريات!G:G) -> 0 | H135: =SUMIF(المبيعات!D:D,B135,المبيعات!F:F) -> 0 | I135: =(D135+G135)-(H135) -> 0 | J135: =I135*E135 -> 0 | K135: =IF(D135<>0,E135/1,"") ->  | L135: =SUMIF(المبيعات!D:D,B135,المبيعات!K:K) -> 0 | O135: 2025-11-01 | P135: 60 | Q135: 2030-11-01 | R135: 19 | S135: 6 | T135: 4 | U135: الصلاحيه ساريه | Z135: 260
G136: =SUMIF(المشتريات!E:E,B136,المشتريات!G:G) -> 0 | H136: =SUMIF(المبيعات!D:D,B136,المبيعات!F:F) -> 0 | I136: 0 | J136: 0 | L136: =SUMIF(المبيعات!D:D,B136,المبيعات!K:K) -> 0 | O136: 2025-11-01 | P136: 60 | Q136: 2030-11-01 | R136: 19 | S136: 6 | T136: 4 | U136: الصلاحيه ساريه | Z136: 260
G137: =SUMIF(المشتريات!E:E,B137,المشتريات!G:G) -> 0 | H137: =SUMIF(المبيعات!D:D,B137,المبيعات!F:F) -> 0 | I137: 0 | J137: 0 | L137: =SUMIF(المبيعات!D:D,B137,المبيعات!K:K) -> 0 | O137: 2025-11-01 | P137: 60 | Q137: =EDATE(O137,P137) -> 2030-11-01 | R137: 19 | S137: 6 | T137: 4 | U137: =IF(AND(Q137-TODAY()<=30,Q137-TODAY()>0),$X$5,IF(Q137-TODAY()<=0,$X$4,$X$6)) -> الصلاحيه ساريه
G138: =SUMIF(المشتريات!E:E,B138,المشتريات!G:G) -> 0 | H138: =SUMIF(المبيعات!D:D,B138,المبيعات!F:F) -> 0 | I138: 0 | J138: 0 | L138: =SUMIF(المبيعات!D:D,B138,المبيعات!K:K) -> 0 | O138: 2025-11-01 | P138: 60 | Q138: 2030-11-01 | R138: 19 | S138: 6 | T138: 4 | U138: الصلاحيه ساريه
G139: =SUMIF(المشتريات!E:E,B139,المشتريات!G:G) -> 0 | H139: =SUMIF(المبيعات!D:D,B139,المبيعات!F:F) -> 0 | I139: 0 | J139: 0 | L139: =SUMIF(المبيعات!D:D,B139,المبيعات!K:K) -> 0 | O139: 2025-11-01 | P139: 60 | Q139: 2030-11-01 | R139: 19 | S139: 6 | T139: 4 | U139: الصلاحيه ساريه
G140: =SUMIF(المشتريات!E:E,B140,المشتريات!G:G) -> 0 | H140: =SUMIF(المبيعات!D:D,B140,المبيعات!F:F) -> 0 | I140: 0 | J140: 0 | L140: =SUMIF(المبيعات!D:D,B140,المبيعات!K:K) -> 0 | O140: 2025-11-01 | P140: 60 | Q140: 2030-11-01 | R140: 19 | S140: 6 | T140: 4 | U140: الصلاحيه ساريه
G141: =SUMIF(المشتريات!E:E,B141,المشتريات!G:G) -> 0 | H141: =SUMIF(المبيعات!D:D,B141,المبيعات!F:F) -> 0 | I141: 0 | J141: 0 | L141: =SUMIF(المبيعات!D:D,B141,المبيعات!K:K) -> 0 | M141: 5 | O141: 2025-11-01 | P141: 60 | Q141: 2030-11-01 | R141: 19 | S141: 6 | T141: 4 | U141: الصلاحيه ساريه
G142: =SUMIF(المشتريات!E:E,B142,المشتريات!G:G) -> 0 | H142: =SUMIF(المبيعات!D:D,B142,المبيعات!F:F) -> 0 | I142: 0 | J142: 0 | L142: =SUMIF(المبيعات!D:D,B142,المبيعات!K:K) -> 0 | M142: 5 | O142: 2025-11-01 | P142: 60 | Q142: 2030-11-01 | R142: 19 | S142: 6 | T142: 4 | U142: الصلاحيه ساريه | Z142: 190 | AA142: 175
G143: =SUMIF(المشتريات!E:E,B143,المشتريات!G:G) -> 0 | H143: =SUMIF(المبيعات!D:D,B143,المبيعات!F:F) -> 0 | I143: 0 | J143: 0 | L143: =SUMIF(المبيعات!D:D,B143,المبيعات!K:K) -> 0 | O143: 2025-11-01 | P143: 60 | Q143: 2030-11-01 | R143: 19 | S143: 6 | T143: 4 | U143: الصلاحيه ساريه
E144: 0.8333333333 | F144: 0 | G144: =SUMIF(المشتريات!E:E,B144,المشتريات!G:G) -> 0 | H144: =SUMIF(المبيعات!D:D,B144,المبيعات!F:F) -> 0 | I144: 0 | J144: 0 | L144: =SUMIF(المبيعات!D:D,B144,المبيعات!K:K) -> 0 | M144: 1 | O144: 2025-11-01 | P144: 60 | Q144: 2030-11-01 | R144: 19 | S144: 6 | T144: 4 | U144: الصلاحيه ساريه
G145: =SUMIF(المشتريات!E:E,B145,المشتريات!G:G) -> 0 | H145: =SUMIF(المبيعات!D:D,B145,المبيعات!F:F) -> 0 | I145: 0 | J145: 0 | L145: =SUMIF(المبيعات!D:D,B145,المبيعات!K:K) -> 0 | O145: 2025-11-01 | P145: 60 | Q145: =EDATE(O145,P145) -> 2030-11-01 | R145: 19 | S145: 6 | T145: 4 | U145: =IF(AND(Q145-TODAY()<=30,Q145-TODAY()>0),$X$5,IF(Q145-TODAY()<=0,$X$4,$X$6)) -> الصلاحيه ساريه
E146: 0.75 | F146: 0 | G146: =SUMIF(المشتريات!E:E,B146,المشتريات!G:G) -> 0 | H146: =SUMIF(المبيعات!D:D,B146,المبيعات!F:F) -> 0 | I146: 0 | J146: 0 | L146: =SUMIF(المبيعات!D:D,B146,المبيعات!K:K) -> 0 | M146: 1 | O146: 2025-11-01 | P146: 60 | Q146: 2030-11-01 | R146: 19 | S146: 6 | T146: 4 | U146: الصلاحيه ساريه
D147: 12 | E147: 40 | F147: 480 | G147: =SUMIF(المشتريات!E:E,B147,المشتريات!G:G) -> 0 | H147: =SUMIF(المبيعات!D:D,B147,المبيعات!F:F) -> 0 | I147: 12 | J147: 480 | K147: =IF(D147<>0,E147/12,"") -> 3.333333333 | L147: =SUMIF(المبيعات!D:D,B147,المبيعات!K:K) -> 0 | M147: 45 | O147: 2025-11-01 | P147: 60 | Q147: 2030-11-01 | R147: 19 | S147: 6 | T147: 4 | U147: الصلاحيه ساريه | Z147: 455 | AH147: 480
E148: 3.833333333 | F148: 0 | G148: =SUMIF(المشتريات!E:E,B148,المشتريات!G:G) -> 0 | H148: =SUMIF(المبيعات!D:D,B148,المبيعات!F:F) -> 0 | I148: 0 | J148: 0 | K148: =IF(D148<>0,E148/30,"") ->  | L148: =SUMIF(المبيعات!D:D,B148,المبيعات!K:K) -> 0 | M148: 5 | O148: 2025-11-01 | P148: 60 | Q148: 2030-11-01 | R148: 19 | S148: 6 | T148: 4 | U148: الصلاحيه ساريه | AF148: 111 | AH148: 310
G149: =SUMIF(المشتريات!E:E,B149,المشتريات!G:G) -> 0 | H149: =SUMIF(المبيعات!D:D,B149,المبيعات!F:F) -> 0 | I149: 0 | J149: 0 | K149: =IF(D149<>0,E149/30,"") ->  | L149: =SUMIF(المبيعات!D:D,B149,المبيعات!K:K) -> 0 | M149: 5 | O149: 2025-11-01 | P149: 60 | Q149: 2030-11-01 | R149: 19 | S149: 6 | T149: 4 | U149: الصلاحيه ساريه
G150: =SUMIF(المشتريات!E:E,B150,المشتريات!G:G) -> 0 | H150: =SUMIF(المبيعات!D:D,B150,المبيعات!F:F) -> 0 | I150: 0 | J150: 0 | L150: =SUMIF(المبيعات!D:D,B150,المبيعات!K:K) -> 0 | M150: 5 | O150: 2025-11-01 | P150: 60 | Q150: 2030-11-01 | R150: 19 | S150: 6 | T150: 4 | U150: الصلاحيه ساريه | Z150: 60
D151: 50 | E151: 3.733333333 | F151: 186.6666667 | G151: =SUMIF(المشتريات!E:E,B151,المشتريات!G:G) -> 0 | H151: =SUMIF(المبيعات!D:D,B151,المبيعات!F:F) -> 0 | I151: 50 | J151: 186.6666667 | K151: 0.1244444444 | L151: =SUMIF(المبيعات!D:D,B151,المبيعات!K:K) -> 0 | M151: 5 | O151: 2025-11-01 | P151: 60 | Q151: 2030-11-01 | R151: 19 | S151: 6 | T151: 4 | U151: الصلاحيه ساريه | Z151: 60
E152: 4.17 | F152: 0 | G152: =SUMIF(المشتريات!E:E,B152,المشتريات!G:G) -> 0 | H152: =SUMIF(المبيعات!D:D,B152,المبيعات!F:F) -> 0 | I152: 0 | J152: 0 | L152: =SUMIF(المبيعات!D:D,B152,المبيعات!K:K) -> 0 | M152: 4.67 | O152: 2025-11-01 | P152: 60 | Q152: 2030-11-01 | R152: 19 | S152: 6 | T152: 4 | U152: الصلاحيه ساريه | AM152: 38
E153: 4.166666667 | F153: 0 | G153: =SUMIF(المشتريات!E:E,B153,المشتريات!G:G) -> 0 | H153: =SUMIF(المبيعات!D:D,B153,المبيعات!F:F) -> 0 | I153: 0 | J153: 0 | L153: =SUMIF(المبيعات!D:D,B153,المبيعات!K:K) -> 0 | M153: 5 | O153: 2025-11-01 | P153: 60 | Q153: 2030-11-01 | R153: 19 | S153: 6 | T153: 4 | U153: الصلاحيه ساريه | AL153: 175
G154: =SUMIF(المشتريات!E:E,B154,المشتريات!G:G) -> 0 | H154: =SUMIF(المبيعات!D:D,B154,المبيعات!F:F) -> 0 | I154: 0 | J154: 0 | L154: =SUMIF(المبيعات!D:D,B154,المبيعات!K:K) -> 0 | O154: 2025-11-01 | P154: 60 | Q154: 2030-11-01 | R154: 19 | S154: 6 | T154: 4 | U154: الصلاحيه ساريه | AL154: 190
G155: =SUMIF(المشتريات!E:E,B155,المشتريات!G:G) -> 0 | H155: =SUMIF(المبيعات!D:D,B155,المبيعات!F:F) -> 0 | I155: 0 | J155: 0 | L155: =SUMIF(المبيعات!D:D,B155,المبيعات!K:K) -> 0 | O155: 2025-11-01 | P155: 60 | Q155: 2030-11-01 | R155: 19 | S155: 6 | T155: 4 | U155: الصلاحيه ساريه | AQ155: 50
G156: =SUMIF(المشتريات!E:E,B156,المشتريات!G:G) -> 0 | H156: =SUMIF(المبيعات!D:D,B156,المبيعات!F:F) -> 0 | I156: 0 | J156: 0 | L156: =SUMIF(المبيعات!D:D,B156,المبيعات!K:K) -> 0 | O156: 2025-11-01 | P156: 60 | Q156: 2030-11-01 | R156: 19 | S156: 6 | T156: 4 | U156: الصلاحيه ساريه | AL156: 75
G157: =SUMIF(المشتريات!E:E,B157,المشتريات!G:G) -> 0 | H157: =SUMIF(المبيعات!D:D,B157,المبيعات!F:F) -> 0 | I157: 0 | J157: 0 | L157: =SUMIF(المبيعات!D:D,B157,المبيعات!K:K) -> 0 | O157: 2025-11-01 | P157: 60 | Q157: 2030-11-01 | R157: 19 | S157: 6 | T157: 4 | U157: الصلاحيه ساريه | AL157: 70
G158: =SUMIF(المشتريات!E:E,B158,المشتريات!G:G) -> 0 | H158: =SUMIF(المبيعات!D:D,B158,المبيعات!F:F) -> 0 | I158: 0 | J158: 0 | L158: =SUMIF(المبيعات!D:D,B158,المبيعات!K:K) -> 0 | O158: 2025-11-01 | P158: 60 | Q158: 2030-11-01 | R158: 19 | S158: 6 | T158: 4 | U158: الصلاحيه ساريه
G159: =SUMIF(المشتريات!E:E,B159,المشتريات!G:G) -> 0 | H159: =SUMIF(المبيعات!D:D,B159,المبيعات!F:F) -> 0 | I159: 0 | J159: 0 | L159: =SUMIF(المبيعات!D:D,B159,المبيعات!K:K) -> 0 | O159: 2025-11-01 | P159: 60 | Q159: 2030-11-01 | R159: 19 | S159: 6 | T159: 4 | U159: الصلاحيه ساريه | Z159: 208
G160: =SUMIF(المشتريات!E:E,B160,المشتريات!G:G) -> 0 | H160: =SUMIF(المبيعات!D:D,B160,المبيعات!F:F) -> 0 | I160: 0 | J160: 0 | L160: =SUMIF(المبيعات!D:D,B160,المبيعات!K:K) -> 0 | O160: 2025-11-01 | P160: 60 | Q160: 2030-11-01 | R160: 19 | S160: 6 | T160: 4 | U160: الصلاحيه ساريه | AA160: 272 | AI160: 90
G161: =SUMIF(المشتريات!E:E,B161,المشتريات!G:G) -> 0 | H161: =SUMIF(المبيعات!D:D,B161,المبيعات!F:F) -> 0 | I161: 0 | J161: 0 | L161: =SUMIF(المبيعات!D:D,B161,المبيعات!K:K) -> 0 | O161: 2025-11-01 | P161: 60 | Q161: 2030-11-01 | R161: 19 | S161: 6 | T161: 4 | U161: الصلاحيه ساريه
G162: =SUMIF(المشتريات!E:E,B162,المشتريات!G:G) -> 0 | H162: =SUMIF(المبيعات!D:D,B162,المبيعات!F:F) -> 0 | I162: 0 | J162: 0 | L162: =SUMIF(المبيعات!D:D,B162,المبيعات!K:K) -> 0 | O162: 2025-11-01 | P162: 60 | Q162: 2030-11-01 | R162: 19 | S162: 6 | T162: 4 | U162: الصلاحيه ساريه
G163: =SUMIF(المشتريات!E:E,B163,المشتريات!G:G) -> 0 | H163: =SUMIF(المبيعات!D:D,B163,المبيعات!F:F) -> 0 | I163: 0 | J163: 0 | L163: =SUMIF(المبيعات!D:D,B163,المبيعات!K:K) -> 0 | O163: 2025-11-01 | P163: 60 | Q163: 2030-11-01 | R163: 19 | S163: 6 | T163: 4 | U163: الصلاحيه ساريه
G164: =SUMIF(المشتريات!E:E,B164,المشتريات!G:G) -> 0 | H164: =SUMIF(المبيعات!D:D,B164,المبيعات!F:F) -> 0 | I164: 0 | J164: 0 | L164: =SUMIF(المبيعات!D:D,B164,المبيعات!K:K) -> 0 | O164: 2025-11-01 | P164: 60 | Q164: 2030-11-01 | R164: 19 | S164: 6 | T164: 4 | U164: الصلاحيه ساريه
G165: =SUMIF(المشتريات!E:E,B165,المشتريات!G:G) -> 0 | H165: =SUMIF(المبيعات!D:D,B165,المبيعات!F:F) -> 0 | I165: 0 | J165: 0 | L165: =SUMIF(المبيعات!D:D,B165,المبيعات!K:K) -> 0 | O165: 2025-11-01 | P165: 60 | Q165: 2030-11-01 | R165: 19 | S165: 6 | T165: 4 | U165: الصلاحيه ساريه
G166: =SUMIF(المشتريات!E:E,B166,المشتريات!G:G) -> 0 | H166: =SUMIF(المبيعات!D:D,B166,المبيعات!F:F) -> 0 | I166: 0 | J166: 0 | L166: =SUMIF(المبيعات!D:D,B166,المبيعات!K:K) -> 0 | O166: 2025-11-01 | P166: 60 | Q166: 2030-11-01 | R166: 19 | S166: 6 | T166: 4 | U166: الصلاحيه ساريه
G167: =SUMIF(المشتريات!E:E,B167,المشتريات!G:G) -> 0 | H167: =SUMIF(المبيعات!D:D,B167,المبيعات!F:F) -> 0 | I167: 0 | J167: 0 | L167: =SUMIF(المبيعات!D:D,B167,المبيعات!K:K) -> 0 | O167: 2025-11-01 | P167: 60 | Q167: 2030-11-01 | R167: 19 | S167: 6 | T167: 4 | U167: الصلاحيه ساريه
E168: 4.5 | F168: 0 | G168: =SUMIF(المشتريات!E:E,B168,المشتريات!G:G) -> 0 | H168: =SUMIF(المبيعات!D:D,B168,المبيعات!F:F) -> 0 | I168: 0 | J168: 0 | L168: =SUMIF(المبيعات!D:D,B168,المبيعات!K:K) -> 0 | M168: 5 | O168: 2025-11-01 | P168: 60 | Q168: 2030-11-01 | R168: 19 | S168: 6 | T168: 4 | U168: الصلاحيه ساريه
E169: 4.5 | F169: 0 | G169: =SUMIF(المشتريات!E:E,B169,المشتريات!G:G) -> 0 | H169: =SUMIF(المبيعات!D:D,B169,المبيعات!F:F) -> 0 | I169: 0 | J169: 0 | L169: =SUMIF(المبيعات!D:D,B169,المبيعات!K:K) -> 0 | M169: 10 | O169: 2025-11-01 | P169: 60 | Q169: 2030-11-01 | R169: 19 | S169: 6 | T169: 4 | U169: الصلاحيه ساريه
E170: 8 | F170: 0 | G170: =SUMIF(المشتريات!E:E,B170,المشتريات!G:G) -> 0 | H170: =SUMIF(المبيعات!D:D,B170,المبيعات!F:F) -> 0 | I170: 0 | J170: 0 | L170: =SUMIF(المبيعات!D:D,B170,المبيعات!K:K) -> 0 | M170: 5 | O170: 2025-11-01 | P170: 60 | Q170: 2030-11-01 | R170: 19 | S170: 6 | T170: 4 | U170: الصلاحيه ساريه
E171: 4 | F171: 0 | G171: =SUMIF(المشتريات!E:E,B171,المشتريات!G:G) -> 0 | H171: =SUMIF(المبيعات!D:D,B171,المبيعات!F:F) -> 0 | I171: 0 | J171: 0 | L171: =SUMIF(المبيعات!D:D,B171,المبيعات!K:K) -> 0 | O171: 2025-11-01 | P171: 60 | Q171: 2030-11-01 | R171: 19 | S171: 6 | T171: 4 | U171: الصلاحيه ساريه
G172: =SUMIF(المشتريات!E:E,B172,المشتريات!G:G) -> 0 | H172: =SUMIF(المبيعات!D:D,B172,المبيعات!F:F) -> 0 | I172: 0 | J172: 0 | L172: =SUMIF(المبيعات!D:D,B172,المبيعات!K:K) -> 0 | O172: 2025-11-01 | P172: 60 | Q172: 2030-11-01 | R172: 19 | S172: 6 | T172: 4 | U172: الصلاحيه ساريه
G173: =SUMIF(المشتريات!E:E,B173,المشتريات!G:G) -> 0 | H173: =SUMIF(المبيعات!D:D,B173,المبيعات!F:F) -> 0 | I173: 0 | J173: 0 | L173: =SUMIF(المبيعات!D:D,B173,المبيعات!K:K) -> 0 | O173: 2025-11-01 | P173: 60 | Q173: 2030-11-01 | R173: 19 | S173: 6 | T173: 4 | U173: الصلاحيه ساريه
G174: =SUMIF(المشتريات!E:E,B174,المشتريات!G:G) -> 0 | H174: =SUMIF(المبيعات!D:D,B174,المبيعات!F:F) -> 0 | I174: 0 | J174: 0 | L174: =SUMIF(المبيعات!D:D,B174,المبيعات!K:K) -> 0 | O174: 2025-11-01 | P174: 60 | Q174: 2030-11-01 | R174: 19 | S174: 6 | T174: 4 | U174: الصلاحيه ساريه
G175: =SUMIF(المشتريات!E:E,B175,المشتريات!G:G) -> 0 | H175: =SUMIF(المبيعات!D:D,B175,المبيعات!F:F) -> 0 | I175: 0 | J175: 0 | L175: =SUMIF(المبيعات!D:D,B175,المبيعات!K:K) -> 0 | O175: 2025-11-01 | P175: 60 | Q175: 2030-11-01 | R175: 19 | S175: 6 | T175: 4 | U175: الصلاحيه ساريه
G176: =SUMIF(المشتريات!E:E,B176,المشتريات!G:G) -> 0 | H176: =SUMIF(المبيعات!D:D,B176,المبيعات!F:F) -> 0 | I176: 0 | J176: 0 | L176: =SUMIF(المبيعات!D:D,B176,المبيعات!K:K) -> 0 | O176: 2025-11-01 | P176: 60 | Q176: 2030-11-01 | R176: 19 | S176: 6 | T176: 4 | U176: الصلاحيه ساريه
G177: =SUMIF(المشتريات!E:E,B177,المشتريات!G:G) -> 0 | H177: =SUMIF(المبيعات!D:D,B177,المبيعات!F:F) -> 0 | I177: 0 | J177: 0 | L177: =SUMIF(المبيعات!D:D,B177,المبيعات!K:K) -> 0 | O177: 2025-11-01 | P177: 60 | Q177: 2030-11-01 | R177: 19 | S177: 6 | T177: 4 | U177: الصلاحيه ساريه
G178: =SUMIF(المشتريات!E:E,B178,المشتريات!G:G) -> 0 | H178: =SUMIF(المبيعات!D:D,B178,المبيعات!F:F) -> 0 | I178: 0 | J178: 0 | L178: =SUMIF(المبيعات!D:D,B178,المبيعات!K:K) -> 0 | O178: 2025-11-01 | P178: 60 | Q178: 2030-11-01 | R178: 19 | S178: 6 | T178: 4 | U178: الصلاحيه ساريه
G179: =SUMIF(المشتريات!E:E,B179,المشتريات!G:G) -> 0 | H179: =SUMIF(المبيعات!D:D,B179,المبيعات!F:F) -> 0 | I179: 0 | J179: 0 | L179: =SUMIF(المبيعات!D:D,B179,المبيعات!K:K) -> 0 | O179: 2025-11-01 | P179: 60 | Q179: 2030-11-01 | R179: 19 | S179: 6 | T179: 4 | U179: الصلاحيه ساريه
G180: =SUMIF(المشتريات!E:E,B180,المشتريات!G:G) -> 0 | H180: =SUMIF(المبيعات!D:D,B180,المبيعات!F:F) -> 0 | I180: 0 | J180: 0 | L180: =SUMIF(المبيعات!D:D,B180,المبيعات!K:K) -> 0 | O180: 2025-11-01 | P180: 60 | Q180: 2030-11-01 | R180: 19 | S180: 6 | T180: 4 | U180: الصلاحيه ساريه
G181: =SUMIF(المشتريات!E:E,B181,المشتريات!G:G) -> 0 | H181: =SUMIF(المبيعات!D:D,B181,المبيعات!F:F) -> 0 | I181: 0 | J181: 0 | L181: =SUMIF(المبيعات!D:D,B181,المبيعات!K:K) -> 0 | O181: 2025-11-01 | P181: 60 | Q181: 2030-11-01 | R181: 19 | S181: 6 | T181: 4 | U181: الصلاحيه ساريه
G182: =SUMIF(المشتريات!E:E,B182,المشتريات!G:G) -> 0 | H182: =SUMIF(المبيعات!D:D,B182,المبيعات!F:F) -> 0 | I182: 0 | J182: 0 | L182: =SUMIF(المبيعات!D:D,B182,المبيعات!K:K) -> 0 | O182: 2025-11-01 | P182: 60 | Q182: 2030-11-01 | R182: 19 | S182: 6 | T182: 4 | U182: الصلاحيه ساريه
G183: =SUMIF(المشتريات!E:E,B183,المشتريات!G:G) -> 0 | H183: =SUMIF(المبيعات!D:D,B183,المبيعات!F:F) -> 0 | I183: 0 | J183: 0 | L183: =SUMIF(المبيعات!D:D,B183,المبيعات!K:K) -> 0 | O183: 2025-11-01 | P183: 60 | Q183: 2030-11-01 | R183: 19 | S183: 6 | T183: 4 | U183: الصلاحيه ساريه
G184: =SUMIF(المشتريات!E:E,B184,المشتريات!G:G) -> 0 | H184: =SUMIF(المبيعات!D:D,B184,المبيعات!F:F) -> 0 | I184: 0 | J184: 0 | L184: =SUMIF(المبيعات!D:D,B184,المبيعات!K:K) -> 0 | O184: 2025-11-01 | P184: 60 | Q184: 2030-11-01 | R184: 19 | S184: 6 | T184: 4 | U184: الصلاحيه ساريه
G185: =SUMIF(المشتريات!E:E,B185,المشتريات!G:G) -> 0 | H185: =SUMIF(المبيعات!D:D,B185,المبيعات!F:F) -> 0 | I185: 0 | J185: 0 | L185: =SUMIF(المبيعات!D:D,B185,المبيعات!K:K) -> 0 | O185: 2025-11-01 | P185: 60 | Q185: 2030-11-01 | R185: 19 | S185: 6 | T185: 4 | U185: الصلاحيه ساريه | AI185: 70
G186: =SUMIF(المشتريات!E:E,B186,المشتريات!G:G) -> 0 | H186: =SUMIF(المبيعات!D:D,B186,المبيعات!F:F) -> 0 | I186: 0 | J186: 0 | L186: =SUMIF(المبيعات!D:D,B186,المبيعات!K:K) -> 0 | O186: 2025-11-01 | P186: 60 | Q186: 2030-11-01 | R186: 19 | S186: 6 | T186: 4 | U186: الصلاحيه ساريه
G187: =SUMIF(المشتريات!E:E,B187,المشتريات!G:G) -> 0 | H187: =SUMIF(المبيعات!D:D,B187,المبيعات!F:F) -> 0 | I187: 0 | J187: 0 | L187: =SUMIF(المبيعات!D:D,B187,المبيعات!K:K) -> 0 | O187: 2025-11-01 | P187: 60 | Q187: 2030-11-01 | R187: 19 | S187: 6 | T187: 4 | U187: الصلاحيه ساريه
G188: =SUMIF(المشتريات!E:E,B188,المشتريات!G:G) -> 0 | H188: =SUMIF(المبيعات!D:D,B188,المبيعات!F:F) -> 0 | I188: 0 | J188: 0 | L188: =SUMIF(المبيعات!D:D,B188,المبيعات!K:K) -> 0 | O188: 2025-11-01 | P188: 60 | Q188: 2030-11-01 | R188: 19 | S188: 6 | T188: 4 | U188: الصلاحيه ساريه
G189: =SUMIF(المشتريات!E:E,B189,المشتريات!G:G) -> 0 | H189: =SUMIF(المبيعات!D:D,B189,المبيعات!F:F) -> 0 | I189: 0 | J189: 0 | L189: =SUMIF(المبيعات!D:D,B189,المبيعات!K:K) -> 0 | O189: 2025-11-01 | P189: 60 | Q189: 2030-11-01 | R189: 19 | S189: 6 | T189: 4 | U189: الصلاحيه ساريه
G190: =SUMIF(المشتريات!E:E,B190,المشتريات!G:G) -> 0 | H190: =SUMIF(المبيعات!D:D,B190,المبيعات!F:F) -> 0 | I190: 0 | J190: 0 | L190: =SUMIF(المبيعات!D:D,B190,المبيعات!K:K) -> 0 | O190: 2025-11-01 | P190: 60 | Q190: 2030-11-01 | R190: 19 | S190: 6 | T190: 4 | U190: الصلاحيه ساريه
G191: =SUMIF(المشتريات!E:E,B191,المشتريات!G:G) -> 0 | H191: =SUMIF(المبيعات!D:D,B191,المبيعات!F:F) -> 0 | I191: 0 | J191: 0 | L191: =SUMIF(المبيعات!D:D,B191,المبيعات!K:K) -> 0 | O191: 2025-11-01 | P191: 60 | Q191: 2030-11-01 | R191: 19 | S191: 6 | T191: 4 | U191: الصلاحيه ساريه
G192: =SUMIF(المشتريات!E:E,B192,المشتريات!G:G) -> 0 | H192: =SUMIF(المبيعات!D:D,B192,المبيعات!F:F) -> 0 | I192: 0 | J192: 0 | L192: =SUMIF(المبيعات!D:D,B192,المبيعات!K:K) -> 0 | O192: 2025-11-01 | P192: 60 | Q192: 2030-11-01 | R192: 19 | S192: 6 | T192: 4 | U192: الصلاحيه ساريه
G193: =SUMIF(المشتريات!E:E,B193,المشتريات!G:G) -> 0 | H193: =SUMIF(المبيعات!D:D,B193,المبيعات!F:F) -> 0 | I193: 0 | J193: 0 | L193: =SUMIF(المبيعات!D:D,B193,المبيعات!K:K) -> 0 | O193: 2025-11-01 | P193: 60 | Q193: 2030-11-01 | R193: =IFERROR(DATEDIF($P$4,$Q193,"MD"),0) -> 19 | S193: =IFERROR(DATEDIF($P$4,$Q193,"ym"),0) -> 6 | T193: =IFERROR(DATEDIF($P$4,$Q193,"y"),0) -> 4 | U193: الصلاحيه ساريه
G194: =SUMIF(المشتريات!E:E,B194,المشتريات!G:G) -> 0 | H194: =SUMIF(المبيعات!D:D,B194,المبيعات!F:F) -> 0 | I194: 0 | J194: 0 | L194: =SUMIF(المبيعات!D:D,B194,المبيعات!K:K) -> 0 | O194: 2025-11-01 | P194: 60 | Q194: 2030-11-01 | R194: 19 | S194: 6 | T194: 4 | U194: الصلاحيه ساريه
D195: 8 | E195: 36.33333333 | F195: 290.6666667 | G195: =SUMIF(المشتريات!E:E,B195,المشتريات!G:G) -> 0 | H195: =SUMIF(المبيعات!D:D,B195,المبيعات!F:F) -> 0 | I195: 8 | J195: 290.6666667 | K195: =IF(D195<>0,E195/6,"") -> 6.055555556 | L195: =SUMIF(المبيعات!D:D,B195,المبيعات!K:K) -> 0 | M195: 40 | O195: 2025-11-01 | P195: 60 | Q195: 2030-11-01 | R195: 19 | S195: 6 | T195: 4 | U195: الصلاحيه ساريه | Z195: 215
D196: 8 | E196: 36.33333333 | F196: 290.6666667 | G196: =SUMIF(المشتريات!E:E,B196,المشتريات!G:G) -> 0 | H196: =SUMIF(المبيعات!D:D,B196,المبيعات!F:F) -> 0 | I196: 8 | J196: 290.6666667 | K196: =IF(D196<>0,E196/6,"") -> 6.055555556 | L196: =SUMIF(المبيعات!D:D,B196,المبيعات!K:K) -> 0 | M196: 40 | O196: 2025-11-01 | P196: 60 | Q196: 2030-11-01 | R196: 19 | S196: 6 | T196: 4 | U196: الصلاحيه ساريه | Z196: 215
E197: 36.33333333 | F197: 0 | G197: =SUMIF(المشتريات!E:E,B197,المشتريات!G:G) -> 0 | H197: =SUMIF(المبيعات!D:D,B197,المبيعات!F:F) -> 0 | I197: 0 | J197: 0 | K197: =IF(D197<>0,E197/6,"") ->  | L197: =SUMIF(المبيعات!D:D,B197,المبيعات!K:K) -> 0 | M197: 40 | O197: 2025-11-01 | P197: 60 | Q197: 2030-11-01 | R197: 19 | S197: 6 | T197: 4 | U197: الصلاحيه ساريه | Z197: 218
E198: 36.33333333 | F198: 0 | G198: =SUMIF(المشتريات!E:E,B198,المشتريات!G:G) -> 0 | H198: =SUMIF(المبيعات!D:D,B198,المبيعات!F:F) -> 0 | I198: 0 | J198: 0 | K198: =IF(D198<>0,E198/6,"") ->  | L198: =SUMIF(المبيعات!D:D,B198,المبيعات!K:K) -> 0 | M198: 40 | O198: 2025-11-01 | P198: 60 | Q198: 2030-11-01 | R198: 19 | S198: 6 | T198: 4 | U198: الصلاحيه ساريه | Z198: 218
E199: 36.33333333 | F199: =IF(D199+E199>0,E199*D199," ") -> 0 | G199: =SUMIF(المشتريات!E:E,B199,المشتريات!G:G) -> 0 | H199: =SUMIF(المبيعات!D:D,B199,المبيعات!F:F) -> 0 | I199: =(D199+G199)-(H199) -> 0 | J199: =I199*E199 -> 0 | L199: =SUMIF(المبيعات!D:D,B199,المبيعات!K:K) -> 0 | M199: 40 | O199: 2025-11-01 | P199: 60 | Q199: 2030-11-01 | R199: 19 | S199: 6 | T199: 4 | U199: الصلاحيه ساريه | Z199: 218
E200: 36.33333333 | F200: 0 | G200: =SUMIF(المشتريات!E:E,B200,المشتريات!G:G) -> 0 | H200: =SUMIF(المبيعات!D:D,B200,المبيعات!F:F) -> 0 | I200: 0 | J200: 0 | L200: =SUMIF(المبيعات!D:D,B200,المبيعات!K:K) -> 0 | M200: 40 | O200: 2025-11-01 | P200: 60 | Q200: 2030-11-01 | R200: 19 | S200: 6 | T200: 4 | U200: الصلاحيه ساريه | Z200: 218
... 2141 more rows

Sheet المبيعات
A1: تاريخ | B1: كود العميل | C1: أسم العميل | D1: كود الصنف | E1: أسم الصنف | G1: البيع | H1: قيمة | I1: الشراء | J1: الجملة | K1: الربح | L1: باقي | N1: الإستعلام عن العميل | P1: 300 | W1: =SUM(W5:W1001) -> 0
F2: كمية | H2: =SUM(H3:H1000) -> 0 | K2: =SUM(K3:K1000) -> 0 | L2: الصنف | N2: تاريخ | O2: كود العميل | P2: أسم العميل | Q2: كود الصنف | S2: كمية | T2: سعر البيع | U2: =SUM(U4:U156) -> 0 | W2: =SUM(W73:W1526) -> 0 | X2: =SUM(X4:X2246) -> 0 | Y2: باقي
A3: 2026-04-01 | C3: =IF(B3="","",VLOOKUP(B3,العملاء!A:B,2,0)) ->  | E3: =IF(D3="","",VLOOKUP(D3,المخزن!B:C,2,0)) ->  | G3: =IF(D3="","",VLOOKUP(D3,المخزن!B:M,12,0)) ->  | H3: =IF(E3="","",G3*F3) ->  | I3: =IF(D3="","",VLOOKUP(D3,المخزن!B:E,4,0)) ->  | J3: =IF(D3>0,I3*F3," ") ->  | K3: =IF(E3="","",H3-J3) ->  | L3: =IF(D3="","",VLOOKUP(D3,المخزن!B:L,8,0)) ->  | U3: قيمة المباع | V3: الشراء | W3: الجملة | X3: الربح | Y3: الصنف
A4: 2026-04-01 | C4: =IF(B4="","",VLOOKUP(B4,العملاء!A:B,2,0)) ->  | E4: =IF(D4="","",VLOOKUP(D4,المخزن!B:C,2,0)) ->  | G4: =IF(D4="","",VLOOKUP(D4,المخزن!B:M,12,0)) ->  | H4: =IF(E4="","",G4*F4) ->  | I4: =IF(D4="","",VLOOKUP(D4,المخزن!B:E,4,0)) ->  | J4: =IF(D4>0,I4*F4," ") ->  | K4: =IF(E4="","",H4-J4) ->  | L4: =IF(D4="","",VLOOKUP(D4,المخزن!B:L,8,0)) ->  | N4: =IFERROR(INDEX($A$4:$A$2598,SMALL(IF($B$4:$B$2598=$P$1,ROW($A$4:$A$2598)-ROW($A$4)+1),ROWS($N$4:N4))),"") ->  | O4: =IFERROR(INDEX($B$4:$B$2598,SMALL(IF($B$4:$B$2598=$P$1,ROW($A$4:$A$2598)-ROW($A$4)+1),ROWS($N$4:O4))),"") ->  | P4: =IFERROR(INDEX($C$4:$C$2598,SMALL(IF($B$4:$B$2598=$P$1,ROW($A$4:$A$2598)-ROW($A$4)+1),ROWS($N$4:P4))),"") ->  | Q4: =IFERROR(INDEX($D$4:$D$2598,SMALL(IF($B$4:$B$2598=$P$1,ROW($A$4:$A$2598)-ROW($A$4)+1),ROWS($N$4:Q4))),"") ->  | R4: =IFERROR(INDEX($E$4:$E$2598,SMALL(IF($B$4:$B$2598=$P$1,ROW($A$4:$A$2598)-ROW($A$4)+1),ROWS($N$4:R4))),"") ->  | S4: =IFERROR(INDEX($F$4:$F$2598,SMALL(IF($B$4:$B$2598=$P$1,ROW($A$4:$A$2598)-ROW($A$4)+1),ROWS($N$4:S4))),"") ->  | T4: =IFERROR(INDEX($G$4:$G$2598,SMALL(IF($B$4:$B$2598=$P$1,ROW($A$4:$A$2598)-ROW($A$4)+1),ROWS($N$4:T4))),"") ->  | U4: =IFERROR(INDEX($H$4:$H$2598,SMALL(IF($B$4:$B$2598=$P$1,ROW($A$4:$A$2598)-ROW($A$4)+1),ROWS($N$4:U4))),"") ->  | V4: =IFERROR(INDEX($I$4:$I$2598,SMALL(IF($B$4:$B$2598=$P$1,ROW($A$4:$A$2598)-ROW($A$4)+1),ROWS($N$4:V4))),"") ->  | W4: =IFERROR(INDEX($J$4:$J$2598,SMALL(IF($B$4:$B$2598=$P$1,ROW($A$4:$A$2598)-ROW($A$4)+1),ROWS($N$4:W4))),"") ->  | X4: =IFERROR(INDEX($K$4:$K$2598,SMALL(IF($B$4:$B$2598=$P$1,ROW($A$4:$A$2598)-ROW($A$4)+1),ROWS($N$4:X4))),"") ->  | Y4: =IFERROR(INDEX($L$4:$L$2598,SMALL(IF($B$4:$B$2598=$P$1,ROW($A$4:$A$2598)-ROW($A$4)+1),ROWS($N$4:Y4))),"") -> 
A5: 2026-04-01 | C5: =IF(B5="","",VLOOKUP(B5,العملاء!A:B,2,0)) ->  | E5: =IF(D5="","",VLOOKUP(D5,المخزن!B:C,2,0)) ->  | G5: =IF(D5="","",VLOOKUP(D5,المخزن!B:M,12,0)) ->  | I5: =IF(D5="","",VLOOKUP(D5,المخزن!B:E,4,0)) ->  | K5: =IF(E5="","",H5-J5) ->  | L5: =IF(D5="","",VLOOKUP(D5,المخزن!B:L,8,0)) ->  | N5: =IFERROR(INDEX($A$4:$A$2598,SMALL(IF($B$4:$B$2598=$P$1,ROW($A$4:$A$2598)-ROW($A$4)+1),ROWS($N$4:N5))),"") ->  | O5: =IFERROR(INDEX($B$4:$B$2598,SMALL(IF($B$4:$B$2598=$P$1,ROW($A$4:$A$2598)-ROW($A$4)+1),ROWS($N$4:O5))),"") ->  | P5: =IFERROR(INDEX($C$4:$C$2598,SMALL(IF($B$4:$B$2598=$P$1,ROW($A$4:$A$2598)-ROW($A$4)+1),ROWS($N$4:P5))),"") ->  | Q5: =IFERROR(INDEX($D$4:$D$2598,SMALL(IF($B$4:$B$2598=$P$1,ROW($A$4:$A$2598)-ROW($A$4)+1),ROWS($N$4:Q5))),"") ->  | R5: =IFERROR(INDEX($E$4:$E$2598,SMALL(IF($B$4:$B$2598=$P$1,ROW($A$4:$A$2598)-ROW($A$4)+1),ROWS($N$4:R5))),"") ->  | S5: =IFERROR(INDEX($F$4:$F$2598,SMALL(IF($B$4:$B$2598=$P$1,ROW($A$4:$A$2598)-ROW($A$4)+1),ROWS($N$4:S5))),"") ->  | T5: =IFERROR(INDEX($G$4:$G$2598,SMALL(IF($B$4:$B$2598=$P$1,ROW($A$4:$A$2598)-ROW($A$4)+1),ROWS($N$4:T5))),"") ->  | U5: =IFERROR(INDEX($H$4:$H$2598,SMALL(IF($B$4:$B$2598=$P$1,ROW($A$4:$A$2598)-ROW($A$4)+1),ROWS($N$4:U5))),"") ->  | V5: =IFERROR(INDEX($I$4:$I$2598,SMALL(IF($B$4:$B$2598=$P$1,ROW($A$4:$A$2598)-ROW($A$4)+1),ROWS($N$4:V5))),"") ->  | W5: =IFERROR(INDEX($J$4:$J$2598,SMALL(IF($B$4:$B$2598=$P$1,ROW($A$4:$A$2598)-ROW($A$4)+1),ROWS($N$4:W5))),"") ->  | X5: =IFERROR(INDEX($K$4:$K$2598,SMALL(IF($B$4:$B$2598=$P$1,ROW($A$4:$A$2598)-ROW($A$4)+1),ROWS($N$4:X5))),"") ->  | Y5: =IFERROR(INDEX($L$4:$L$2598,SMALL(IF($B$4:$B$2598=$P$1,ROW($A$4:$A$2598)-ROW($A$4)+1),ROWS($N$4:Y5))),"") -> 
A6: 2026-04-01 | C6: =IF(B6="","",VLOOKUP(B6,العملاء!A:B,2,0)) ->  | E6: =IF(D6="","",VLOOKUP(D6,المخزن!B:C,2,0)) ->  | G6: =IF(D6="","",VLOOKUP(D6,المخزن!B:M,12,0)) ->  | I6: =IF(D6="","",VLOOKUP(D6,المخزن!B:E,4,0)) ->  | L6: =IF(D6="","",VLOOKUP(D6,المخزن!B:L,8,0)) ->  | N6: =IFERROR(INDEX($A$4:$A$2598,SMALL(IF($B$4:$B$2598=$P$1,ROW($A$4:$A$2598)-ROW($A$4)+1),ROWS($N$4:N6))),"") ->  | O6: =IFERROR(INDEX($B$4:$B$2598,SMALL(IF($B$4:$B$2598=$P$1,ROW($A$4:$A$2598)-ROW($A$4)+1),ROWS($N$4:O6))),"") ->  | P6: =IFERROR(INDEX($C$4:$C$2598,SMALL(IF($B$4:$B$2598=$P$1,ROW($A$4:$A$2598)-ROW($A$4)+1),ROWS($N$4:P6))),"") ->  | Q6: =IFERROR(INDEX($D$4:$D$2598,SMALL(IF($B$4:$B$2598=$P$1,ROW($A$4:$A$2598)-ROW($A$4)+1),ROWS($N$4:Q6))),"") ->  | R6: =IFERROR(INDEX($E$4:$E$2598,SMALL(IF($B$4:$B$2598=$P$1,ROW($A$4:$A$2598)-ROW($A$4)+1),ROWS($N$4:R6))),"") ->  | S6: =IFERROR(INDEX($F$4:$F$2598,SMALL(IF($B$4:$B$2598=$P$1,ROW($A$4:$A$2598)-ROW($A$4)+1),ROWS($N$4:S6))),"") ->  | T6: =IFERROR(INDEX($G$4:$G$2598,SMALL(IF($B$4:$B$2598=$P$1,ROW($A$4:$A$2598)-ROW($A$4)+1),ROWS($N$4:T6))),"") ->  | U6: =IFERROR(INDEX($H$4:$H$2598,SMALL(IF($B$4:$B$2598=$P$1,ROW($A$4:$A$2598)-ROW($A$4)+1),ROWS($N$4:U6))),"") ->  | V6: =IFERROR(INDEX($I$4:$I$2598,SMALL(IF($B$4:$B$2598=$P$1,ROW($A$4:$A$2598)-ROW($A$4)+1),ROWS($N$4:V6))),"") ->  | W6: =IFERROR(INDEX($J$4:$J$2598,SMALL(IF($B$4:$B$2598=$P$1,ROW($A$4:$A$2598)-ROW($A$4)+1),ROWS($N$4:W6))),"") ->  | X6: =IFERROR(INDEX($K$4:$K$2598,SMALL(IF($B$4:$B$2598=$P$1,ROW($A$4:$A$2598)-ROW($A$4)+1),ROWS($N$4:X6))),"") ->  | Y6: =IFERROR(INDEX($L$4:$L$2598,SMALL(IF($B$4:$B$2598=$P$1,ROW($A$4:$A$2598)-ROW($A$4)+1),ROWS($N$4:Y6))),"") -> 
A7: 2026-04-01 | C7: =IF(B7="","",VLOOKUP(B7,العملاء!A:B,2,0)) ->  | E7: =IF(D7="","",VLOOKUP(D7,المخزن!B:C,2,0)) ->  | G7: =IF(D7="","",VLOOKUP(D7,المخزن!B:M,12,0)) ->  | I7: =IF(D7="","",VLOOKUP(D7,المخزن!B:E,4,0)) ->  | L7: =IF(D7="","",VLOOKUP(D7,المخزن!B:L,8,0)) ->  | N7: =IFERROR(INDEX($A$4:$A$2598,SMALL(IF($B$4:$B$2598=$P$1,ROW($A$4:$A$2598)-ROW($A$4)+1),ROWS($N$4:N7))),"") ->  | O7: =IFERROR(INDEX($B$4:$B$2598,SMALL(IF($B$4:$B$2598=$P$1,ROW($A$4:$A$2598)-ROW($A$4)+1),ROWS($N$4:O7))),"") ->  | P7: =IFERROR(INDEX($C$4:$C$2598,SMALL(IF($B$4:$B$2598=$P$1,ROW($A$4:$A$2598)-ROW($A$4)+1),ROWS($N$4:P7))),"") ->  | Q7: =IFERROR(INDEX($D$4:$D$2598,SMALL(IF($B$4:$B$2598=$P$1,ROW($A$4:$A$2598)-ROW($A$4)+1),ROWS($N$4:Q7))),"") ->  | R7: =IFERROR(INDEX($E$4:$E$2598,SMALL(IF($B$4:$B$2598=$P$1,ROW($A$4:$A$2598)-ROW($A$4)+1),ROWS($N$4:R7))),"") ->  | S7: =IFERROR(INDEX($F$4:$F$2598,SMALL(IF($B$4:$B$2598=$P$1,ROW($A$4:$A$2598)-ROW($A$4)+1),ROWS($N$4:S7))),"") ->  | T7: =IFERROR(INDEX($G$4:$G$2598,SMALL(IF($B$4:$B$2598=$P$1,ROW($A$4:$A$2598)-ROW($A$4)+1),ROWS($N$4:T7))),"") ->  | U7: =IFERROR(INDEX($H$4:$H$2598,SMALL(IF($B$4:$B$2598=$P$1,ROW($A$4:$A$2598)-ROW($A$4)+1),ROWS($N$4:U7))),"") ->  | V7: =IFERROR(INDEX($I$4:$I$2598,SMALL(IF($B$4:$B$2598=$P$1,ROW($A$4:$A$2598)-ROW($A$4)+1),ROWS($N$4:V7))),"") ->  | W7: =IFERROR(INDEX($J$4:$J$2598,SMALL(IF($B$4:$B$2598=$P$1,ROW($A$4:$A$2598)-ROW($A$4)+1),ROWS($N$4:W7))),"") ->  | X7: =IFERROR(INDEX($K$4:$K$2598,SMALL(IF($B$4:$B$2598=$P$1,ROW($A$4:$A$2598)-ROW($A$4)+1),ROWS($N$4:X7))),"") ->  | Y7: =IFERROR(INDEX($L$4:$L$2598,SMALL(IF($B$4:$B$2598=$P$1,ROW($A$4:$A$2598)-ROW($A$4)+1),ROWS($N$4:Y7))),"") -> 
A8: 2026-04-01 | C8: =IF(B8="","",VLOOKUP(B8,العملاء!A:B,2,0)) ->  | E8: =IF(D8="","",VLOOKUP(D8,المخزن!B:C,2,0)) ->  | G8: =IF(D8="","",VLOOKUP(D8,المخزن!B:M,12,0)) ->  | I8: =IF(D8="","",VLOOKUP(D8,المخزن!B:E,4,0)) ->  | L8: =IF(D8="","",VLOOKUP(D8,المخزن!B:L,8,0)) ->  | N8: =IFERROR(INDEX($A$4:$A$2598,SMALL(IF($B$4:$B$2598=$P$1,ROW($A$4:$A$2598)-ROW($A$4)+1),ROWS($N$4:N8))),"") ->  | O8: =IFERROR(INDEX($B$4:$B$2598,SMALL(IF($B$4:$B$2598=$P$1,ROW($A$4:$A$2598)-ROW($A$4)+1),ROWS($N$4:O8))),"") ->  | P8: =IFERROR(INDEX($C$4:$C$2598,SMALL(IF($B$4:$B$2598=$P$1,ROW($A$4:$A$2598)-ROW($A$4)+1),ROWS($N$4:P8))),"") ->  | Q8: =IFERROR(INDEX($D$4:$D$2598,SMALL(IF($B$4:$B$2598=$P$1,ROW($A$4:$A$2598)-ROW($A$4)+1),ROWS($N$4:Q8))),"") ->  | R8: =IFERROR(INDEX($E$4:$E$2598,SMALL(IF($B$4:$B$2598=$P$1,ROW($A$4:$A$2598)-ROW($A$4)+1),ROWS($N$4:R8))),"") ->  | S8: =IFERROR(INDEX($F$4:$F$2598,SMALL(IF($B$4:$B$2598=$P$1,ROW($A$4:$A$2598)-ROW($A$4)+1),ROWS($N$4:S8))),"") ->  | T8: =IFERROR(INDEX($G$4:$G$2598,SMALL(IF($B$4:$B$2598=$P$1,ROW($A$4:$A$2598)-ROW($A$4)+1),ROWS($N$4:T8))),"") ->  | U8: =IFERROR(INDEX($H$4:$H$2598,SMALL(IF($B$4:$B$2598=$P$1,ROW($A$4:$A$2598)-ROW($A$4)+1),ROWS($N$4:U8))),"") ->  | V8: =IFERROR(INDEX($I$4:$I$2598,SMALL(IF($B$4:$B$2598=$P$1,ROW($A$4:$A$2598)-ROW($A$4)+1),ROWS($N$4:V8))),"") ->  | W8: =IFERROR(INDEX($J$4:$J$2598,SMALL(IF($B$4:$B$2598=$P$1,ROW($A$4:$A$2598)-ROW($A$4)+1),ROWS($N$4:W8))),"") ->  | X8: =IFERROR(INDEX($K$4:$K$2598,SMALL(IF($B$4:$B$2598=$P$1,ROW($A$4:$A$2598)-ROW($A$4)+1),ROWS($N$4:X8))),"") ->  | Y8: =IFERROR(INDEX($L$4:$L$2598,SMALL(IF($B$4:$B$2598=$P$1,ROW($A$4:$A$2598)-ROW($A$4)+1),ROWS($N$4:Y8))),"") -> 
A9: 2026-04-01 | C9: =IF(B9="","",VLOOKUP(B9,العملاء!A:B,2,0)) ->  | E9: =IF(D9="","",VLOOKUP(D9,المخزن!B:C,2,0)) ->  | G9: =IF(D9="","",VLOOKUP(D9,المخزن!B:M,12,0)) ->  | I9: =IF(D9="","",VLOOKUP(D9,المخزن!B:E,4,0)) ->  | L9: =IF(D9="","",VLOOKUP(D9,المخزن!B:L,8,0)) ->  | N9: =IFERROR(INDEX($A$4:$A$2598,SMALL(IF($B$4:$B$2598=$P$1,ROW($A$4:$A$2598)-ROW($A$4)+1),ROWS($N$4:N9))),"") ->  | O9: =IFERROR(INDEX($B$4:$B$2598,SMALL(IF($B$4:$B$2598=$P$1,ROW($A$4:$A$2598)-ROW($A$4)+1),ROWS($N$4:O9))),"") ->  | P9: =IFERROR(INDEX($C$4:$C$2598,SMALL(IF($B$4:$B$2598=$P$1,ROW($A$4:$A$2598)-ROW($A$4)+1),ROWS($N$4:P9))),"") ->  | Q9: =IFERROR(INDEX($D$4:$D$2598,SMALL(IF($B$4:$B$2598=$P$1,ROW($A$4:$A$2598)-ROW($A$4)+1),ROWS($N$4:Q9))),"") ->  | R9: =IFERROR(INDEX($E$4:$E$2598,SMALL(IF($B$4:$B$2598=$P$1,ROW($A$4:$A$2598)-ROW($A$4)+1),ROWS($N$4:R9))),"") ->  | S9: =IFERROR(INDEX($F$4:$F$2598,SMALL(IF($B$4:$B$2598=$P$1,ROW($A$4:$A$2598)-ROW($A$4)+1),ROWS($N$4:S9))),"") ->  | T9: =IFERROR(INDEX($G$4:$G$2598,SMALL(IF($B$4:$B$2598=$P$1,ROW($A$4:$A$2598)-ROW($A$4)+1),ROWS($N$4:T9))),"") ->  | U9: =IFERROR(INDEX($H$4:$H$2598,SMALL(IF($B$4:$B$2598=$P$1,ROW($A$4:$A$2598)-ROW($A$4)+1),ROWS($N$4:U9))),"") ->  | V9: =IFERROR(INDEX($I$4:$I$2598,SMALL(IF($B$4:$B$2598=$P$1,ROW($A$4:$A$2598)-ROW($A$4)+1),ROWS($N$4:V9))),"") ->  | W9: =IFERROR(INDEX($J$4:$J$2598,SMALL(IF($B$4:$B$2598=$P$1,ROW($A$4:$A$2598)-ROW($A$4)+1),ROWS($N$4:W9))),"") ->  | X9: =IFERROR(INDEX($K$4:$K$2598,SMALL(IF($B$4:$B$2598=$P$1,ROW($A$4:$A$2598)-ROW($A$4)+1),ROWS($N$4:X9))),"") ->  | Y9: =IFERROR(INDEX($L$4:$L$2598,SMALL(IF($B$4:$B$2598=$P$1,ROW($A$4:$A$2598)-ROW($A$4)+1),ROWS($N$4:Y9))),"") -> 
A10: 2026-04-01 | C10: =IF(B10="","",VLOOKUP(B10,العملاء!A:B,2,0)) ->  | E10: =IF(D10="","",VLOOKUP(D10,المخزن!B:C,2,0)) ->  | G10: =IF(D10="","",VLOOKUP(D10,المخزن!B:M,12,0)) ->  | I10: =IF(D10="","",VLOOKUP(D10,المخزن!B:E,4,0)) ->  | L10: =IF(D10="","",VLOOKUP(D10,المخزن!B:L,8,0)) ->  | N10: =IFERROR(INDEX($A$4:$A$2598,SMALL(IF($B$4:$B$2598=$P$1,ROW($A$4:$A$2598)-ROW($A$4)+1),ROWS($N$4:N10))),"") ->  | O10: =IFERROR(INDEX($B$4:$B$2598,SMALL(IF($B$4:$B$2598=$P$1,ROW($A$4:$A$2598)-ROW($A$4)+1),ROWS($N$4:O10))),"") ->  | P10: =IFERROR(INDEX($C$4:$C$2598,SMALL(IF($B$4:$B$2598=$P$1,ROW($A$4:$A$2598)-ROW($A$4)+1),ROWS($N$4:P10))),"") ->  | Q10: =IFERROR(INDEX($D$4:$D$2598,SMALL(IF($B$4:$B$2598=$P$1,ROW($A$4:$A$2598)-ROW($A$4)+1),ROWS($N$4:Q10))),"") ->  | R10: =IFERROR(INDEX($E$4:$E$2598,SMALL(IF($B$4:$B$2598=$P$1,ROW($A$4:$A$2598)-ROW($A$4)+1),ROWS($N$4:R10))),"") ->  | S10: =IFERROR(INDEX($F$4:$F$2598,SMALL(IF($B$4:$B$2598=$P$1,ROW($A$4:$A$2598)-ROW($A$4)+1),ROWS($N$4:S10))),"") ->  | T10: =IFERROR(INDEX($G$4:$G$2598,SMALL(IF($B$4:$B$2598=$P$1,ROW($A$4:$A$2598)-ROW($A$4)+1),ROWS($N$4:T10))),"") ->  | U10: =IFERROR(INDEX($H$4:$H$2598,SMALL(IF($B$4:$B$2598=$P$1,ROW($A$4:$A$2598)-ROW($A$4)+1),ROWS($N$4:U10))),"") ->  | V10: =IFERROR(INDEX($I$4:$I$2598,SMALL(IF($B$4:$B$2598=$P$1,ROW($A$4:$A$2598)-ROW($A$4)+1),ROWS($N$4:V10))),"") ->  | W10: =IFERROR(INDEX($J$4:$J$2598,SMALL(IF($B$4:$B$2598=$P$1,ROW($A$4:$A$2598)-ROW($A$4)+1),ROWS($N$4:W10))),"") ->  | X10: =IFERROR(INDEX($K$4:$K$2598,SMALL(IF($B$4:$B$2598=$P$1,ROW($A$4:$A$2598)-ROW($A$4)+1),ROWS($N$4:X10))),"") ->  | Y10: =IFERROR(INDEX($L$4:$L$2598,SMALL(IF($B$4:$B$2598=$P$1,ROW($A$4:$A$2598)-ROW($A$4)+1),ROWS($N$4:Y10))),"") -> 
A11: 2026-04-01 | C11: =IF(B11="","",VLOOKUP(B11,العملاء!A:B,2,0)) ->  | E11: =IF(D11="","",VLOOKUP(D11,المخزن!B:C,2,0)) ->  | G11: =IF(D11="","",VLOOKUP(D11,المخزن!B:M,12,0)) ->  | I11: =IF(D11="","",VLOOKUP(D11,المخزن!B:E,4,0)) ->  | L11: =IF(D11="","",VLOOKUP(D11,المخزن!B:L,8,0)) ->  | N11: =IFERROR(INDEX($A$4:$A$2598,SMALL(IF($B$4:$B$2598=$P$1,ROW($A$4:$A$2598)-ROW($A$4)+1),ROWS($N$4:N11))),"") ->  | O11: =IFERROR(INDEX($B$4:$B$2598,SMALL(IF($B$4:$B$2598=$P$1,ROW($A$4:$A$2598)-ROW($A$4)+1),ROWS($N$4:O11))),"") ->  | P11: =IFERROR(INDEX($C$4:$C$2598,SMALL(IF($B$4:$B$2598=$P$1,ROW($A$4:$A$2598)-ROW($A$4)+1),ROWS($N$4:P11))),"") ->  | Q11: =IFERROR(INDEX($D$4:$D$2598,SMALL(IF($B$4:$B$2598=$P$1,ROW($A$4:$A$2598)-ROW($A$4)+1),ROWS($N$4:Q11))),"") ->  | R11: =IFERROR(INDEX($E$4:$E$2598,SMALL(IF($B$4:$B$2598=$P$1,ROW($A$4:$A$2598)-ROW($A$4)+1),ROWS($N$4:R11))),"") ->  | S11: =IFERROR(INDEX($F$4:$F$2598,SMALL(IF($B$4:$B$2598=$P$1,ROW($A$4:$A$2598)-ROW($A$4)+1),ROWS($N$4:S11))),"") ->  | T11: =IFERROR(INDEX($G$4:$G$2598,SMALL(IF($B$4:$B$2598=$P$1,ROW($A$4:$A$2598)-ROW($A$4)+1),ROWS($N$4:T11))),"") ->  | U11: =IFERROR(INDEX($H$4:$H$2598,SMALL(IF($B$4:$B$2598=$P$1,ROW($A$4:$A$2598)-ROW($A$4)+1),ROWS($N$4:U11))),"") ->  | V11: =IFERROR(INDEX($I$4:$I$2598,SMALL(IF($B$4:$B$2598=$P$1,ROW($A$4:$A$2598)-ROW($A$4)+1),ROWS($N$4:V11))),"") ->  | W11: =IFERROR(INDEX($J$4:$J$2598,SMALL(IF($B$4:$B$2598=$P$1,ROW($A$4:$A$2598)-ROW($A$4)+1),ROWS($N$4:W11))),"") ->  | X11: =IFERROR(INDEX($K$4:$K$2598,SMALL(IF($B$4:$B$2598=$P$1,ROW($A$4:$A$2598)-ROW($A$4)+1),ROWS($N$4:X11))),"") ->  | Y11: =IFERROR(INDEX($L$4:$L$2598,SMALL(IF($B$4:$B$2598=$P$1,ROW($A$4:$A$2598)-ROW($A$4)+1),ROWS($N$4:Y11))),"") -> 
A12: 2026-04-01 | C12: =IF(B12="","",VLOOKUP(B12,العملاء!A:B,2,0)) ->  | E12: =IF(D12="","",VLOOKUP(D12,المخزن!B:C,2,0)) ->  | G12: =IF(D12="","",VLOOKUP(D12,المخزن!B:M,12,0)) ->  | I12: =IF(D12="","",VLOOKUP(D12,المخزن!B:E,4,0)) ->  | L12: =IF(D12="","",VLOOKUP(D12,المخزن!B:L,8,0)) ->  | N12: =IFERROR(INDEX($A$4:$A$2598,SMALL(IF($B$4:$B$2598=$P$1,ROW($A$4:$A$2598)-ROW($A$4)+1),ROWS($N$4:N12))),"") ->  | O12: =IFERROR(INDEX($B$4:$B$2598,SMALL(IF($B$4:$B$2598=$P$1,ROW($A$4:$A$2598)-ROW($A$4)+1),ROWS($N$4:O12))),"") ->  | P12: =IFERROR(INDEX($C$4:$C$2598,SMALL(IF($B$4:$B$2598=$P$1,ROW($A$4:$A$2598)-ROW($A$4)+1),ROWS($N$4:P12))),"") ->  | Q12: =IFERROR(INDEX($D$4:$D$2598,SMALL(IF($B$4:$B$2598=$P$1,ROW($A$4:$A$2598)-ROW($A$4)+1),ROWS($N$4:Q12))),"") ->  | R12: =IFERROR(INDEX($E$4:$E$2598,SMALL(IF($B$4:$B$2598=$P$1,ROW($A$4:$A$2598)-ROW($A$4)+1),ROWS($N$4:R12))),"") ->  | S12: =IFERROR(INDEX($F$4:$F$2598,SMALL(IF($B$4:$B$2598=$P$1,ROW($A$4:$A$2598)-ROW($A$4)+1),ROWS($N$4:S12))),"") ->  | T12: =IFERROR(INDEX($G$4:$G$2598,SMALL(IF($B$4:$B$2598=$P$1,ROW($A$4:$A$2598)-ROW($A$4)+1),ROWS($N$4:T12))),"") ->  | U12: =IFERROR(INDEX($H$4:$H$2598,SMALL(IF($B$4:$B$2598=$P$1,ROW($A$4:$A$2598)-ROW($A$4)+1),ROWS($N$4:U12))),"") ->  | V12: =IFERROR(INDEX($I$4:$I$2598,SMALL(IF($B$4:$B$2598=$P$1,ROW($A$4:$A$2598)-ROW($A$4)+1),ROWS($N$4:V12))),"") ->  | W12: =IFERROR(INDEX($J$4:$J$2598,SMALL(IF($B$4:$B$2598=$P$1,ROW($A$4:$A$2598)-ROW($A$4)+1),ROWS($N$4:W12))),"") ->  | X12: =IFERROR(INDEX($K$4:$K$2598,SMALL(IF($B$4:$B$2598=$P$1,ROW($A$4:$A$2598)-ROW($A$4)+1),ROWS($N$4:X12))),"") ->  | Y12: =IFERROR(INDEX($L$4:$L$2598,SMALL(IF($B$4:$B$2598=$P$1,ROW($A$4:$A$2598)-ROW($A$4)+1),ROWS($N$4:Y12))),"") -> 
A13: 2026-04-01 | C13: =IF(B13="","",VLOOKUP(B13,العملاء!A:B,2,0)) ->  | E13: =IF(D13="","",VLOOKUP(D13,المخزن!B:C,2,0)) ->  | G13: =IF(D13="","",VLOOKUP(D13,المخزن!B:M,12,0)) ->  | I13: =IF(D13="","",VLOOKUP(D13,المخزن!B:E,4,0)) ->  | L13: =IF(D13="","",VLOOKUP(D13,المخزن!B:L,8,0)) ->  | N13: =IFERROR(INDEX($A$4:$A$2598,SMALL(IF($B$4:$B$2598=$P$1,ROW($A$4:$A$2598)-ROW($A$4)+1),ROWS($N$4:N13))),"") ->  | O13: =IFERROR(INDEX($B$4:$B$2598,SMALL(IF($B$4:$B$2598=$P$1,ROW($A$4:$A$2598)-ROW($A$4)+1),ROWS($N$4:O13))),"") ->  | P13: =IFERROR(INDEX($C$4:$C$2598,SMALL(IF($B$4:$B$2598=$P$1,ROW($A$4:$A$2598)-ROW($A$4)+1),ROWS($N$4:P13))),"") ->  | Q13: =IFERROR(INDEX($D$4:$D$2598,SMALL(IF($B$4:$B$2598=$P$1,ROW($A$4:$A$2598)-ROW($A$4)+1),ROWS($N$4:Q13))),"") ->  | R13: =IFERROR(INDEX($E$4:$E$2598,SMALL(IF($B$4:$B$2598=$P$1,ROW($A$4:$A$2598)-ROW($A$4)+1),ROWS($N$4:R13))),"") ->  | S13: =IFERROR(INDEX($F$4:$F$2598,SMALL(IF($B$4:$B$2598=$P$1,ROW($A$4:$A$2598)-ROW($A$4)+1),ROWS($N$4:S13))),"") ->  | T13: =IFERROR(INDEX($G$4:$G$2598,SMALL(IF($B$4:$B$2598=$P$1,ROW($A$4:$A$2598)-ROW($A$4)+1),ROWS($N$4:T13))),"") ->  | U13: =IFERROR(INDEX($H$4:$H$2598,SMALL(IF($B$4:$B$2598=$P$1,ROW($A$4:$A$2598)-ROW($A$4)+1),ROWS($N$4:U13))),"") ->  | V13: =IFERROR(INDEX($I$4:$I$2598,SMALL(IF($B$4:$B$2598=$P$1,ROW($A$4:$A$2598)-ROW($A$4)+1),ROWS($N$4:V13))),"") ->  | W13: =IFERROR(INDEX($J$4:$J$2598,SMALL(IF($B$4:$B$2598=$P$1,ROW($A$4:$A$2598)-ROW($A$4)+1),ROWS($N$4:W13))),"") ->  | X13: =IFERROR(INDEX($K$4:$K$2598,SMALL(IF($B$4:$B$2598=$P$1,ROW($A$4:$A$2598)-ROW($A$4)+1),ROWS($N$4:X13))),"") ->  | Y13: =IFERROR(INDEX($L$4:$L$2598,SMALL(IF($B$4:$B$2598=$P$1,ROW($A$4:$A$2598)-ROW($A$4)+1),ROWS($N$4:Y13))),"") -> 
A14: 2026-04-01 | C14: =IF(B14="","",VLOOKUP(B14,العملاء!A:B,2,0)) ->  | E14: =IF(D14="","",VLOOKUP(D14,المخزن!B:C,2,0)) ->  | G14: =IF(D14="","",VLOOKUP(D14,المخزن!B:M,12,0)) ->  | I14: =IF(D14="","",VLOOKUP(D14,المخزن!B:E,4,0)) ->  | L14: =IF(D14="","",VLOOKUP(D14,المخزن!B:L,8,0)) ->  | N14: =IFERROR(INDEX($A$4:$A$2598,SMALL(IF($B$4:$B$2598=$P$1,ROW($A$4:$A$2598)-ROW($A$4)+1),ROWS($N$4:N14))),"") ->  | O14: =IFERROR(INDEX($B$4:$B$2598,SMALL(IF($B$4:$B$2598=$P$1,ROW($A$4:$A$2598)-ROW($A$4)+1),ROWS($N$4:O14))),"") ->  | P14: =IFERROR(INDEX($C$4:$C$2598,SMALL(IF($B$4:$B$2598=$P$1,ROW($A$4:$A$2598)-ROW($A$4)+1),ROWS($N$4:P14))),"") ->  | Q14: =IFERROR(INDEX($D$4:$D$2598,SMALL(IF($B$4:$B$2598=$P$1,ROW($A$4:$A$2598)-ROW($A$4)+1),ROWS($N$4:Q14))),"") ->  | R14: =IFERROR(INDEX($E$4:$E$2598,SMALL(IF($B$4:$B$2598=$P$1,ROW($A$4:$A$2598)-ROW($A$4)+1),ROWS($N$4:R14))),"") ->  | S14: =IFERROR(INDEX($F$4:$F$2598,SMALL(IF($B$4:$B$2598=$P$1,ROW($A$4:$A$2598)-ROW($A$4)+1),ROWS($N$4:S14))),"") ->  | T14: =IFERROR(INDEX($G$4:$G$2598,SMALL(IF($B$4:$B$2598=$P$1,ROW($A$4:$A$2598)-ROW($A$4)+1),ROWS($N$4:T14))),"") ->  | U14: =IFERROR(INDEX($H$4:$H$2598,SMALL(IF($B$4:$B$2598=$P$1,ROW($A$4:$A$2598)-ROW($A$4)+1),ROWS($N$4:U14))),"") ->  | V14: =IFERROR(INDEX($I$4:$I$2598,SMALL(IF($B$4:$B$2598=$P$1,ROW($A$4:$A$2598)-ROW($A$4)+1),ROWS($N$4:V14))),"") ->  | W14: =IFERROR(INDEX($J$4:$J$2598,SMALL(IF($B$4:$B$2598=$P$1,ROW($A$4:$A$2598)-ROW($A$4)+1),ROWS($N$4:W14))),"") ->  | X14: =IFERROR(INDEX($K$4:$K$2598,SMALL(IF($B$4:$B$2598=$P$1,ROW($A$4:$A$2598)-ROW($A$4)+1),ROWS($N$4:X14))),"") ->  | Y14: =IFERROR(INDEX($L$4:$L$2598,SMALL(IF($B$4:$B$2598=$P$1,ROW($A$4:$A$2598)-ROW($A$4)+1),ROWS($N$4:Y14))),"") -> 
A15: 2026-04-01 | C15: =IF(B15="","",VLOOKUP(B15,العملاء!A:B,2,0)) ->  | E15: =IF(D15="","",VLOOKUP(D15,المخزن!B:C,2,0)) ->  | G15: =IF(D15="","",VLOOKUP(D15,المخزن!B:M,12,0)) ->  | I15: =IF(D15="","",VLOOKUP(D15,المخزن!B:E,4,0)) ->  | L15: =IF(D15="","",VLOOKUP(D15,المخزن!B:L,8,0)) ->  | N15: =IFERROR(INDEX($A$4:$A$2598,SMALL(IF($B$4:$B$2598=$P$1,ROW($A$4:$A$2598)-ROW($A$4)+1),ROWS($N$4:N15))),"") ->  | O15: =IFERROR(INDEX($B$4:$B$2598,SMALL(IF($B$4:$B$2598=$P$1,ROW($A$4:$A$2598)-ROW($A$4)+1),ROWS($N$4:O15))),"") ->  | P15: =IFERROR(INDEX($C$4:$C$2598,SMALL(IF($B$4:$B$2598=$P$1,ROW($A$4:$A$2598)-ROW($A$4)+1),ROWS($N$4:P15))),"") ->  | Q15: =IFERROR(INDEX($D$4:$D$2598,SMALL(IF($B$4:$B$2598=$P$1,ROW($A$4:$A$2598)-ROW($A$4)+1),ROWS($N$4:Q15))),"") ->  | R15: =IFERROR(INDEX($E$4:$E$2598,SMALL(IF($B$4:$B$2598=$P$1,ROW($A$4:$A$2598)-ROW($A$4)+1),ROWS($N$4:R15))),"") ->  | S15: =IFERROR(INDEX($F$4:$F$2598,SMALL(IF($B$4:$B$2598=$P$1,ROW($A$4:$A$2598)-ROW($A$4)+1),ROWS($N$4:S15))),"") ->  | T15: =IFERROR(INDEX($G$4:$G$2598,SMALL(IF($B$4:$B$2598=$P$1,ROW($A$4:$A$2598)-ROW($A$4)+1),ROWS($N$4:T15))),"") ->  | U15: =IFERROR(INDEX($H$4:$H$2598,SMALL(IF($B$4:$B$2598=$P$1,ROW($A$4:$A$2598)-ROW($A$4)+1),ROWS($N$4:U15))),"") ->  | V15: =IFERROR(INDEX($I$4:$I$2598,SMALL(IF($B$4:$B$2598=$P$1,ROW($A$4:$A$2598)-ROW($A$4)+1),ROWS($N$4:V15))),"") ->  | W15: =IFERROR(INDEX($J$4:$J$2598,SMALL(IF($B$4:$B$2598=$P$1,ROW($A$4:$A$2598)-ROW($A$4)+1),ROWS($N$4:W15))),"") ->  | X15: =IFERROR(INDEX($K$4:$K$2598,SMALL(IF($B$4:$B$2598=$P$1,ROW($A$4:$A$2598)-ROW($A$4)+1),ROWS($N$4:X15))),"") ->  | Y15: =IFERROR(INDEX($L$4:$L$2598,SMALL(IF($B$4:$B$2598=$P$1,ROW($A$4:$A$2598)-ROW($A$4)+1),ROWS($N$4:Y15))),"") -> 
A16: 2026-04-01 | C16: =IF(B16="","",VLOOKUP(B16,العملاء!A:B,2,0)) ->  | E16: =IF(D16="","",VLOOKUP(D16,المخزن!B:C,2,0)) ->  | G16: =IF(D16="","",VLOOKUP(D16,المخزن!B:M,12,0)) ->  | I16: =IF(D16="","",VLOOKUP(D16,المخزن!B:E,4,0)) ->  | L16: =IF(D16="","",VLOOKUP(D16,المخزن!B:L,8,0)) ->  | N16: =IFERROR(INDEX($A$4:$A$2598,SMALL(IF($B$4:$B$2598=$P$1,ROW($A$4:$A$2598)-ROW($A$4)+1),ROWS($N$4:N16))),"") ->  | O16: =IFERROR(INDEX($B$4:$B$2598,SMALL(IF($B$4:$B$2598=$P$1,ROW($A$4:$A$2598)-ROW($A$4)+1),ROWS($N$4:O16))),"") ->  | P16: =IFERROR(INDEX($C$4:$C$2598,SMALL(IF($B$4:$B$2598=$P$1,ROW($A$4:$A$2598)-ROW($A$4)+1),ROWS($N$4:P16))),"") ->  | Q16: =IFERROR(INDEX($D$4:$D$2598,SMALL(IF($B$4:$B$2598=$P$1,ROW($A$4:$A$2598)-ROW($A$4)+1),ROWS($N$4:Q16))),"") ->  | R16: =IFERROR(INDEX($E$4:$E$2598,SMALL(IF($B$4:$B$2598=$P$1,ROW($A$4:$A$2598)-ROW($A$4)+1),ROWS($N$4:R16))),"") ->  | S16: =IFERROR(INDEX($F$4:$F$2598,SMALL(IF($B$4:$B$2598=$P$1,ROW($A$4:$A$2598)-ROW($A$4)+1),ROWS($N$4:S16))),"") ->  | T16: =IFERROR(INDEX($G$4:$G$2598,SMALL(IF($B$4:$B$2598=$P$1,ROW($A$4:$A$2598)-ROW($A$4)+1),ROWS($N$4:T16))),"") ->  | U16: =IFERROR(INDEX($H$4:$H$2598,SMALL(IF($B$4:$B$2598=$P$1,ROW($A$4:$A$2598)-ROW($A$4)+1),ROWS($N$4:U16))),"") ->  | V16: =IFERROR(INDEX($I$4:$I$2598,SMALL(IF($B$4:$B$2598=$P$1,ROW($A$4:$A$2598)-ROW($A$4)+1),ROWS($N$4:V16))),"") ->  | W16: =IFERROR(INDEX($J$4:$J$2598,SMALL(IF($B$4:$B$2598=$P$1,ROW($A$4:$A$2598)-ROW($A$4)+1),ROWS($N$4:W16))),"") ->  | X16: =IFERROR(INDEX($K$4:$K$2598,SMALL(IF($B$4:$B$2598=$P$1,ROW($A$4:$A$2598)-ROW($A$4)+1),ROWS($N$4:X16))),"") ->  | Y16: =IFERROR(INDEX($L$4:$L$2598,SMALL(IF($B$4:$B$2598=$P$1,ROW($A$4:$A$2598)-ROW($A$4)+1),ROWS($N$4:Y16))),"") -> 
A17: 2026-04-01 | C17: =IF(B17="","",VLOOKUP(B17,العملاء!A:B,2,0)) ->  | E17: =IF(D17="","",VLOOKUP(D17,المخزن!B:C,2,0)) ->  | G17: =IF(D17="","",VLOOKUP(D17,المخزن!B:M,12,0)) ->  | I17: =IF(D17="","",VLOOKUP(D17,المخزن!B:E,4,0)) ->  | L17: =IF(D17="","",VLOOKUP(D17,المخزن!B:L,8,0)) ->  | N17: =IFERROR(INDEX($A$4:$A$2598,SMALL(IF($B$4:$B$2598=$P$1,ROW($A$4:$A$2598)-ROW($A$4)+1),ROWS($N$4:N17))),"") ->  | O17: =IFERROR(INDEX($B$4:$B$2598,SMALL(IF($B$4:$B$2598=$P$1,ROW($A$4:$A$2598)-ROW($A$4)+1),ROWS($N$4:O17))),"") ->  | P17: =IFERROR(INDEX($C$4:$C$2598,SMALL(IF($B$4:$B$2598=$P$1,ROW($A$4:$A$2598)-ROW($A$4)+1),ROWS($N$4:P17))),"") ->  | Q17: =IFERROR(INDEX($D$4:$D$2598,SMALL(IF($B$4:$B$2598=$P$1,ROW($A$4:$A$2598)-ROW($A$4)+1),ROWS($N$4:Q17))),"") ->  | R17: =IFERROR(INDEX($E$4:$E$2598,SMALL(IF($B$4:$B$2598=$P$1,ROW($A$4:$A$2598)-ROW($A$4)+1),ROWS($N$4:R17))),"") ->  | S17: =IFERROR(INDEX($F$4:$F$2598,SMALL(IF($B$4:$B$2598=$P$1,ROW($A$4:$A$2598)-ROW($A$4)+1),ROWS($N$4:S17))),"") ->  | T17: =IFERROR(INDEX($G$4:$G$2598,SMALL(IF($B$4:$B$2598=$P$1,ROW($A$4:$A$2598)-ROW($A$4)+1),ROWS($N$4:T17))),"") ->  | U17: =IFERROR(INDEX($H$4:$H$2598,SMALL(IF($B$4:$B$2598=$P$1,ROW($A$4:$A$2598)-ROW($A$4)+1),ROWS($N$4:U17))),"") ->  | V17: =IFERROR(INDEX($I$4:$I$2598,SMALL(IF($B$4:$B$2598=$P$1,ROW($A$4:$A$2598)-ROW($A$4)+1),ROWS($N$4:V17))),"") ->  | W17: =IFERROR(INDEX($J$4:$J$2598,SMALL(IF($B$4:$B$2598=$P$1,ROW($A$4:$A$2598)-ROW($A$4)+1),ROWS($N$4:W17))),"") ->  | X17: =IFERROR(INDEX($K$4:$K$2598,SMALL(IF($B$4:$B$2598=$P$1,ROW($A$4:$A$2598)-ROW($A$4)+1),ROWS($N$4:X17))),"") ->  | Y17: =IFERROR(INDEX($L$4:$L$2598,SMALL(IF($B$4:$B$2598=$P$1,ROW($A$4:$A$2598)-ROW($A$4)+1),ROWS($N$4:Y17))),"") -> 
A18: 2026-04-01 | C18: =IF(B18="","",VLOOKUP(B18,العملاء!A:B,2,0)) ->  | E18: =IF(D18="","",VLOOKUP(D18,المخزن!B:C,2,0)) ->  | G18: =IF(D18="","",VLOOKUP(D18,المخزن!B:M,12,0)) ->  | H18: =IF(E18="","",G18*F18) ->  | I18: =IF(D18="","",VLOOKUP(D18,المخزن!B:E,4,0)) ->  | J18: =IF(D18>0,I18*F18," ") ->  | K18: =IF(E18="","",H18-J18) ->  | L18: =IF(D18="","",VLOOKUP(D18,المخزن!B:L,8,0)) ->  | N18: =IFERROR(INDEX($A$4:$A$2598,SMALL(IF($B$4:$B$2598=$P$1,ROW($A$4:$A$2598)-ROW($A$4)+1),ROWS($N$4:N18))),"") ->  | O18: =IFERROR(INDEX($B$4:$B$2598,SMALL(IF($B$4:$B$2598=$P$1,ROW($A$4:$A$2598)-ROW($A$4)+1),ROWS($N$4:O18))),"") ->  | P18: =IFERROR(INDEX($C$4:$C$2598,SMALL(IF($B$4:$B$2598=$P$1,ROW($A$4:$A$2598)-ROW($A$4)+1),ROWS($N$4:P18))),"") ->  | Q18: =IFERROR(INDEX($D$4:$D$2598,SMALL(IF($B$4:$B$2598=$P$1,ROW($A$4:$A$2598)-ROW($A$4)+1),ROWS($N$4:Q18))),"") ->  | R18: =IFERROR(INDEX($E$4:$E$2598,SMALL(IF($B$4:$B$2598=$P$1,ROW($A$4:$A$2598)-ROW($A$4)+1),ROWS($N$4:R18))),"") ->  | S18: =IFERROR(INDEX($F$4:$F$2598,SMALL(IF($B$4:$B$2598=$P$1,ROW($A$4:$A$2598)-ROW($A$4)+1),ROWS($N$4:S18))),"") ->  | T18: =IFERROR(INDEX($G$4:$G$2598,SMALL(IF($B$4:$B$2598=$P$1,ROW($A$4:$A$2598)-ROW($A$4)+1),ROWS($N$4:T18))),"") ->  | U18: =IFERROR(INDEX($H$4:$H$2598,SMALL(IF($B$4:$B$2598=$P$1,ROW($A$4:$A$2598)-ROW($A$4)+1),ROWS($N$4:U18))),"") ->  | V18: =IFERROR(INDEX($I$4:$I$2598,SMALL(IF($B$4:$B$2598=$P$1,ROW($A$4:$A$2598)-ROW($A$4)+1),ROWS($N$4:V18))),"") ->  | W18: =IFERROR(INDEX($J$4:$J$2598,SMALL(IF($B$4:$B$2598=$P$1,ROW($A$4:$A$2598)-ROW($A$4)+1),ROWS($N$4:W18))),"") ->  | X18: =IFERROR(INDEX($K$4:$K$2598,SMALL(IF($B$4:$B$2598=$P$1,ROW($A$4:$A$2598)-ROW($A$4)+1),ROWS($N$4:X18))),"") ->  | Y18: =IFERROR(INDEX($L$4:$L$2598,SMALL(IF($B$4:$B$2598=$P$1,ROW($A$4:$A$2598)-ROW($A$4)+1),ROWS($N$4:Y18))),"") -> 
A19: 2026-04-01 | C19: =IF(B19="","",VLOOKUP(B19,العملاء!A:B,2,0)) ->  | E19: =IF(D19="","",VLOOKUP(D19,المخزن!B:C,2,0)) ->  | G19: =IF(D19="","",VLOOKUP(D19,المخزن!B:M,12,0)) ->  | I19: =IF(D19="","",VLOOKUP(D19,المخزن!B:E,4,0)) ->  | L19: =IF(D19="","",VLOOKUP(D19,المخزن!B:L,8,0)) ->  | N19: =IFERROR(INDEX($A$4:$A$2598,SMALL(IF($B$4:$B$2598=$P$1,ROW($A$4:$A$2598)-ROW($A$4)+1),ROWS($N$4:N19))),"") ->  | O19: =IFERROR(INDEX($B$4:$B$2598,SMALL(IF($B$4:$B$2598=$P$1,ROW($A$4:$A$2598)-ROW($A$4)+1),ROWS($N$4:O19))),"") ->  | P19: =IFERROR(INDEX($C$4:$C$2598,SMALL(IF($B$4:$B$2598=$P$1,ROW($A$4:$A$2598)-ROW($A$4)+1),ROWS($N$4:P19))),"") ->  | Q19: =IFERROR(INDEX($D$4:$D$2598,SMALL(IF($B$4:$B$2598=$P$1,ROW($A$4:$A$2598)-ROW($A$4)+1),ROWS($N$4:Q19))),"") ->  | R19: =IFERROR(INDEX($E$4:$E$2598,SMALL(IF($B$4:$B$2598=$P$1,ROW($A$4:$A$2598)-ROW($A$4)+1),ROWS($N$4:R19))),"") ->  | S19: =IFERROR(INDEX($F$4:$F$2598,SMALL(IF($B$4:$B$2598=$P$1,ROW($A$4:$A$2598)-ROW($A$4)+1),ROWS($N$4:S19))),"") ->  | T19: =IFERROR(INDEX($G$4:$G$2598,SMALL(IF($B$4:$B$2598=$P$1,ROW($A$4:$A$2598)-ROW($A$4)+1),ROWS($N$4:T19))),"") ->  | U19: =IFERROR(INDEX($H$4:$H$2598,SMALL(IF($B$4:$B$2598=$P$1,ROW($A$4:$A$2598)-ROW($A$4)+1),ROWS($N$4:U19))),"") ->  | V19: =IFERROR(INDEX($I$4:$I$2598,SMALL(IF($B$4:$B$2598=$P$1,ROW($A$4:$A$2598)-ROW($A$4)+1),ROWS($N$4:V19))),"") ->  | W19: =IFERROR(INDEX($J$4:$J$2598,SMALL(IF($B$4:$B$2598=$P$1,ROW($A$4:$A$2598)-ROW($A$4)+1),ROWS($N$4:W19))),"") ->  | X19: =IFERROR(INDEX($K$4:$K$2598,SMALL(IF($B$4:$B$2598=$P$1,ROW($A$4:$A$2598)-ROW($A$4)+1),ROWS($N$4:X19))),"") ->  | Y19: =IFERROR(INDEX($L$4:$L$2598,SMALL(IF($B$4:$B$2598=$P$1,ROW($A$4:$A$2598)-ROW($A$4)+1),ROWS($N$4:Y19))),"") -> 
A20: 1900-01-09 | C20: =IF(B20="","",VLOOKUP(B20,العملاء!A:B,2,0)) ->  | E20: =IF(D20="","",VLOOKUP(D20,المخزن!B:C,2,0)) ->  | G20: =IF(D20="","",VLOOKUP(D20,المخزن!B:M,12,0)) ->  | I20: =IF(D20="","",VLOOKUP(D20,المخزن!B:E,4,0)) ->  | L20: =IF(D20="","",VLOOKUP(D20,المخزن!B:L,8,0)) ->  | N20: =IFERROR(INDEX($A$4:$A$2598,SMALL(IF($B$4:$B$2598=$P$1,ROW($A$4:$A$2598)-ROW($A$4)+1),ROWS($N$4:N20))),"") ->  | O20: =IFERROR(INDEX($B$4:$B$2598,SMALL(IF($B$4:$B$2598=$P$1,ROW($A$4:$A$2598)-ROW($A$4)+1),ROWS($N$4:O20))),"") ->  | P20: =IFERROR(INDEX($C$4:$C$2598,SMALL(IF($B$4:$B$2598=$P$1,ROW($A$4:$A$2598)-ROW($A$4)+1),ROWS($N$4:P20))),"") ->  | Q20: =IFERROR(INDEX($D$4:$D$2598,SMALL(IF($B$4:$B$2598=$P$1,ROW($A$4:$A$2598)-ROW($A$4)+1),ROWS($N$4:Q20))),"") ->  | R20: =IFERROR(INDEX($E$4:$E$2598,SMALL(IF($B$4:$B$2598=$P$1,ROW($A$4:$A$2598)-ROW($A$4)+1),ROWS($N$4:R20))),"") ->  | S20: =IFERROR(INDEX($F$4:$F$2598,SMALL(IF($B$4:$B$2598=$P$1,ROW($A$4:$A$2598)-ROW($A$4)+1),ROWS($N$4:S20))),"") ->  | T20: =IFERROR(INDEX($G$4:$G$2598,SMALL(IF($B$4:$B$2598=$P$1,ROW($A$4:$A$2598)-ROW($A$4)+1),ROWS($N$4:T20))),"") ->  | U20: =IFERROR(INDEX($H$4:$H$2598,SMALL(IF($B$4:$B$2598=$P$1,ROW($A$4:$A$2598)-ROW($A$4)+1),ROWS($N$4:U20))),"") ->  | V20: =IFERROR(INDEX($I$4:$I$2598,SMALL(IF($B$4:$B$2598=$P$1,ROW($A$4:$A$2598)-ROW($A$4)+1),ROWS($N$4:V20))),"") ->  | W20: =IFERROR(INDEX($J$4:$J$2598,SMALL(IF($B$4:$B$2598=$P$1,ROW($A$4:$A$2598)-ROW($A$4)+1),ROWS($N$4:W20))),"") ->  | X20: =IFERROR(INDEX($K$4:$K$2598,SMALL(IF($B$4:$B$2598=$P$1,ROW($A$4:$A$2598)-ROW($A$4)+1),ROWS($N$4:X20))),"") ->  | Y20: =IFERROR(INDEX($L$4:$L$2598,SMALL(IF($B$4:$B$2598=$P$1,ROW($A$4:$A$2598)-ROW($A$4)+1),ROWS($N$4:Y20))),"") -> 
A21: 2026-04-01 | C21: =IF(B21="","",VLOOKUP(B21,العملاء!A:B,2,0)) ->  | E21: =IF(D21="","",VLOOKUP(D21,المخزن!B:C,2,0)) ->  | G21: =IF(D21="","",VLOOKUP(D21,المخزن!B:M,12,0)) ->  | I21: =IF(D21="","",VLOOKUP(D21,المخزن!B:E,4,0)) ->  | L21: =IF(D21="","",VLOOKUP(D21,المخزن!B:L,8,0)) ->  | N21: =IFERROR(INDEX($A$4:$A$2598,SMALL(IF($B$4:$B$2598=$P$1,ROW($A$4:$A$2598)-ROW($A$4)+1),ROWS($N$4:N21))),"") ->  | O21: =IFERROR(INDEX($B$4:$B$2598,SMALL(IF($B$4:$B$2598=$P$1,ROW($A$4:$A$2598)-ROW($A$4)+1),ROWS($N$4:O21))),"") ->  | P21: =IFERROR(INDEX($C$4:$C$2598,SMALL(IF($B$4:$B$2598=$P$1,ROW($A$4:$A$2598)-ROW($A$4)+1),ROWS($N$4:P21))),"") ->  | Q21: =IFERROR(INDEX($D$4:$D$2598,SMALL(IF($B$4:$B$2598=$P$1,ROW($A$4:$A$2598)-ROW($A$4)+1),ROWS($N$4:Q21))),"") ->  | R21: =IFERROR(INDEX($E$4:$E$2598,SMALL(IF($B$4:$B$2598=$P$1,ROW($A$4:$A$2598)-ROW($A$4)+1),ROWS($N$4:R21))),"") ->  | S21: =IFERROR(INDEX($F$4:$F$2598,SMALL(IF($B$4:$B$2598=$P$1,ROW($A$4:$A$2598)-ROW($A$4)+1),ROWS($N$4:S21))),"") ->  | T21: =IFERROR(INDEX($G$4:$G$2598,SMALL(IF($B$4:$B$2598=$P$1,ROW($A$4:$A$2598)-ROW($A$4)+1),ROWS($N$4:T21))),"") ->  | U21: =IFERROR(INDEX($H$4:$H$2598,SMALL(IF($B$4:$B$2598=$P$1,ROW($A$4:$A$2598)-ROW($A$4)+1),ROWS($N$4:U21))),"") ->  | V21: =IFERROR(INDEX($I$4:$I$2598,SMALL(IF($B$4:$B$2598=$P$1,ROW($A$4:$A$2598)-ROW($A$4)+1),ROWS($N$4:V21))),"") ->  | W21: =IFERROR(INDEX($J$4:$J$2598,SMALL(IF($B$4:$B$2598=$P$1,ROW($A$4:$A$2598)-ROW($A$4)+1),ROWS($N$4:W21))),"") ->  | X21: =IFERROR(INDEX($K$4:$K$2598,SMALL(IF($B$4:$B$2598=$P$1,ROW($A$4:$A$2598)-ROW($A$4)+1),ROWS($N$4:X21))),"") ->  | Y21: =IFERROR(INDEX($L$4:$L$2598,SMALL(IF($B$4:$B$2598=$P$1,ROW($A$4:$A$2598)-ROW($A$4)+1),ROWS($N$4:Y21))),"") -> 
A22: 2026-04-01 | C22: =IF(B22="","",VLOOKUP(B22,العملاء!A:B,2,0)) ->  | E22: =IF(D22="","",VLOOKUP(D22,المخزن!B:C,2,0)) ->  | G22: =IF(D22="","",VLOOKUP(D22,المخزن!B:M,12,0)) ->  | I22: =IF(D22="","",VLOOKUP(D22,المخزن!B:E,4,0)) ->  | L22: =IF(D22="","",VLOOKUP(D22,المخزن!B:L,8,0)) ->  | N22: =IFERROR(INDEX($A$4:$A$2598,SMALL(IF($B$4:$B$2598=$P$1,ROW($A$4:$A$2598)-ROW($A$4)+1),ROWS($N$4:N22))),"") ->  | O22: =IFERROR(INDEX($B$4:$B$2598,SMALL(IF($B$4:$B$2598=$P$1,ROW($A$4:$A$2598)-ROW($A$4)+1),ROWS($N$4:O22))),"") ->  | P22: =IFERROR(INDEX($C$4:$C$2598,SMALL(IF($B$4:$B$2598=$P$1,ROW($A$4:$A$2598)-ROW($A$4)+1),ROWS($N$4:P22))),"") ->  | Q22: =IFERROR(INDEX($D$4:$D$2598,SMALL(IF($B$4:$B$2598=$P$1,ROW($A$4:$A$2598)-ROW($A$4)+1),ROWS($N$4:Q22))),"") ->  | R22: =IFERROR(INDEX($E$4:$E$2598,SMALL(IF($B$4:$B$2598=$P$1,ROW($A$4:$A$2598)-ROW($A$4)+1),ROWS($N$4:R22))),"") ->  | S22: =IFERROR(INDEX($F$4:$F$2598,SMALL(IF($B$4:$B$2598=$P$1,ROW($A$4:$A$2598)-ROW($A$4)+1),ROWS($N$4:S22))),"") ->  | T22: =IFERROR(INDEX($G$4:$G$2598,SMALL(IF($B$4:$B$2598=$P$1,ROW($A$4:$A$2598)-ROW($A$4)+1),ROWS($N$4:T22))),"") ->  | U22: =IFERROR(INDEX($H$4:$H$2598,SMALL(IF($B$4:$B$2598=$P$1,ROW($A$4:$A$2598)-ROW($A$4)+1),ROWS($N$4:U22))),"") ->  | V22: =IFERROR(INDEX($I$4:$I$2598,SMALL(IF($B$4:$B$2598=$P$1,ROW($A$4:$A$2598)-ROW($A$4)+1),ROWS($N$4:V22))),"") ->  | W22: =IFERROR(INDEX($J$4:$J$2598,SMALL(IF($B$4:$B$2598=$P$1,ROW($A$4:$A$2598)-ROW($A$4)+1),ROWS($N$4:W22))),"") ->  | X22: =IFERROR(INDEX($K$4:$K$2598,SMALL(IF($B$4:$B$2598=$P$1,ROW($A$4:$A$2598)-ROW($A$4)+1),ROWS($N$4:X22))),"") ->  | Y22: =IFERROR(INDEX($L$4:$L$2598,SMALL(IF($B$4:$B$2598=$P$1,ROW($A$4:$A$2598)-ROW($A$4)+1),ROWS($N$4:Y22))),"") -> 
A23: 2026-04-01 | C23: =IF(B23="","",VLOOKUP(B23,العملاء!A:B,2,0)) ->  | E23: =IF(D23="","",VLOOKUP(D23,المخزن!B:C,2,0)) ->  | G23: =IF(D23="","",VLOOKUP(D23,المخزن!B:M,12,0)) ->  | I23: =IF(D23="","",VLOOKUP(D23,المخزن!B:E,4,0)) ->  | L23: =IF(D23="","",VLOOKUP(D23,المخزن!B:L,8,0)) ->  | N23: =IFERROR(INDEX($A$4:$A$2598,SMALL(IF($B$4:$B$2598=$P$1,ROW($A$4:$A$2598)-ROW($A$4)+1),ROWS($N$4:N23))),"") ->  | O23: =IFERROR(INDEX($B$4:$B$2598,SMALL(IF($B$4:$B$2598=$P$1,ROW($A$4:$A$2598)-ROW($A$4)+1),ROWS($N$4:O23))),"") ->  | P23: =IFERROR(INDEX($C$4:$C$2598,SMALL(IF($B$4:$B$2598=$P$1,ROW($A$4:$A$2598)-ROW($A$4)+1),ROWS($N$4:P23))),"") ->  | Q23: =IFERROR(INDEX($D$4:$D$2598,SMALL(IF($B$4:$B$2598=$P$1,ROW($A$4:$A$2598)-ROW($A$4)+1),ROWS($N$4:Q23))),"") ->  | R23: =IFERROR(INDEX($E$4:$E$2598,SMALL(IF($B$4:$B$2598=$P$1,ROW($A$4:$A$2598)-ROW($A$4)+1),ROWS($N$4:R23))),"") ->  | S23: =IFERROR(INDEX($F$4:$F$2598,SMALL(IF($B$4:$B$2598=$P$1,ROW($A$4:$A$2598)-ROW($A$4)+1),ROWS($N$4:S23))),"") ->  | T23: =IFERROR(INDEX($G$4:$G$2598,SMALL(IF($B$4:$B$2598=$P$1,ROW($A$4:$A$2598)-ROW($A$4)+1),ROWS($N$4:T23))),"") ->  | U23: =IFERROR(INDEX($H$4:$H$2598,SMALL(IF($B$4:$B$2598=$P$1,ROW($A$4:$A$2598)-ROW($A$4)+1),ROWS($N$4:U23))),"") ->  | V23: =IFERROR(INDEX($I$4:$I$2598,SMALL(IF($B$4:$B$2598=$P$1,ROW($A$4:$A$2598)-ROW($A$4)+1),ROWS($N$4:V23))),"") ->  | W23: =IFERROR(INDEX($J$4:$J$2598,SMALL(IF($B$4:$B$2598=$P$1,ROW($A$4:$A$2598)-ROW($A$4)+1),ROWS($N$4:W23))),"") ->  | X23: =IFERROR(INDEX($K$4:$K$2598,SMALL(IF($B$4:$B$2598=$P$1,ROW($A$4:$A$2598)-ROW($A$4)+1),ROWS($N$4:X23))),"") ->  | Y23: =IFERROR(INDEX($L$4:$L$2598,SMALL(IF($B$4:$B$2598=$P$1,ROW($A$4:$A$2598)-ROW($A$4)+1),ROWS($N$4:Y23))),"") -> 
A24: 2026-04-01 | C24: =IF(B24="","",VLOOKUP(B24,العملاء!A:B,2,0)) ->  | E24: =IF(D24="","",VLOOKUP(D24,المخزن!B:C,2,0)) ->  | G24: =IF(D24="","",VLOOKUP(D24,المخزن!B:M,12,0)) ->  | I24: =IF(D24="","",VLOOKUP(D24,المخزن!B:E,4,0)) ->  | L24: =IF(D24="","",VLOOKUP(D24,المخزن!B:L,8,0)) ->  | N24: =IFERROR(INDEX($A$4:$A$2598,SMALL(IF($B$4:$B$2598=$P$1,ROW($A$4:$A$2598)-ROW($A$4)+1),ROWS($N$4:N24))),"") ->  | O24: =IFERROR(INDEX($B$4:$B$2598,SMALL(IF($B$4:$B$2598=$P$1,ROW($A$4:$A$2598)-ROW($A$4)+1),ROWS($N$4:O24))),"") ->  | P24: =IFERROR(INDEX($C$4:$C$2598,SMALL(IF($B$4:$B$2598=$P$1,ROW($A$4:$A$2598)-ROW($A$4)+1),ROWS($N$4:P24))),"") ->  | Q24: =IFERROR(INDEX($D$4:$D$2598,SMALL(IF($B$4:$B$2598=$P$1,ROW($A$4:$A$2598)-ROW($A$4)+1),ROWS($N$4:Q24))),"") ->  | R24: =IFERROR(INDEX($E$4:$E$2598,SMALL(IF($B$4:$B$2598=$P$1,ROW($A$4:$A$2598)-ROW($A$4)+1),ROWS($N$4:R24))),"") ->  | S24: =IFERROR(INDEX($F$4:$F$2598,SMALL(IF($B$4:$B$2598=$P$1,ROW($A$4:$A$2598)-ROW($A$4)+1),ROWS($N$4:S24))),"") ->  | T24: =IFERROR(INDEX($G$4:$G$2598,SMALL(IF($B$4:$B$2598=$P$1,ROW($A$4:$A$2598)-ROW($A$4)+1),ROWS($N$4:T24))),"") ->  | U24: =IFERROR(INDEX($H$4:$H$2598,SMALL(IF($B$4:$B$2598=$P$1,ROW($A$4:$A$2598)-ROW($A$4)+1),ROWS($N$4:U24))),"") ->  | V24: =IFERROR(INDEX($I$4:$I$2598,SMALL(IF($B$4:$B$2598=$P$1,ROW($A$4:$A$2598)-ROW($A$4)+1),ROWS($N$4:V24))),"") ->  | W24: =IFERROR(INDEX($J$4:$J$2598,SMALL(IF($B$4:$B$2598=$P$1,ROW($A$4:$A$2598)-ROW($A$4)+1),ROWS($N$4:W24))),"") ->  | X24: =IFERROR(INDEX($K$4:$K$2598,SMALL(IF($B$4:$B$2598=$P$1,ROW($A$4:$A$2598)-ROW($A$4)+1),ROWS($N$4:X24))),"") ->  | Y24: =IFERROR(INDEX($L$4:$L$2598,SMALL(IF($B$4:$B$2598=$P$1,ROW($A$4:$A$2598)-ROW($A$4)+1),ROWS($N$4:Y24))),"") -> 
A25: 2026-04-01 | C25: =IF(B25="","",VLOOKUP(B25,العملاء!A:B,2,0)) ->  | E25: =IF(D25="","",VLOOKUP(D25,المخزن!B:C,2,0)) ->  | G25: =IF(D25="","",VLOOKUP(D25,المخزن!B:M,12,0)) ->  | I25: =IF(D25="","",VLOOKUP(D25,المخزن!B:E,4,0)) ->  | L25: =IF(D25="","",VLOOKUP(D25,المخزن!B:L,8,0)) ->  | N25: =IFERROR(INDEX($A$4:$A$2598,SMALL(IF($B$4:$B$2598=$P$1,ROW($A$4:$A$2598)-ROW($A$4)+1),ROWS($N$4:N25))),"") ->  | O25: =IFERROR(INDEX($B$4:$B$2598,SMALL(IF($B$4:$B$2598=$P$1,ROW($A$4:$A$2598)-ROW($A$4)+1),ROWS($N$4:O25))),"") ->  | P25: =IFERROR(INDEX($C$4:$C$2598,SMALL(IF($B$4:$B$2598=$P$1,ROW($A$4:$A$2598)-ROW($A$4)+1),ROWS($N$4:P25))),"") ->  | Q25: =IFERROR(INDEX($D$4:$D$2598,SMALL(IF($B$4:$B$2598=$P$1,ROW($A$4:$A$2598)-ROW($A$4)+1),ROWS($N$4:Q25))),"") ->  | R25: =IFERROR(INDEX($E$4:$E$2598,SMALL(IF($B$4:$B$2598=$P$1,ROW($A$4:$A$2598)-ROW($A$4)+1),ROWS($N$4:R25))),"") ->  | S25: =IFERROR(INDEX($F$4:$F$2598,SMALL(IF($B$4:$B$2598=$P$1,ROW($A$4:$A$2598)-ROW($A$4)+1),ROWS($N$4:S25))),"") ->  | T25: =IFERROR(INDEX($G$4:$G$2598,SMALL(IF($B$4:$B$2598=$P$1,ROW($A$4:$A$2598)-ROW($A$4)+1),ROWS($N$4:T25))),"") ->  | U25: =IFERROR(INDEX($H$4:$H$2598,SMALL(IF($B$4:$B$2598=$P$1,ROW($A$4:$A$2598)-ROW($A$4)+1),ROWS($N$4:U25))),"") ->  | V25: =IFERROR(INDEX($I$4:$I$2598,SMALL(IF($B$4:$B$2598=$P$1,ROW($A$4:$A$2598)-ROW($A$4)+1),ROWS($N$4:V25))),"") ->  | W25: =IFERROR(INDEX($J$4:$J$2598,SMALL(IF($B$4:$B$2598=$P$1,ROW($A$4:$A$2598)-ROW($A$4)+1),ROWS($N$4:W25))),"") ->  | X25: =IFERROR(INDEX($K$4:$K$2598,SMALL(IF($B$4:$B$2598=$P$1,ROW($A$4:$A$2598)-ROW($A$4)+1),ROWS($N$4:X25))),"") ->  | Y25: =IFERROR(INDEX($L$4:$L$2598,SMALL(IF($B$4:$B$2598=$P$1,ROW($A$4:$A$2598)-ROW($A$4)+1),ROWS($N$4:Y25))),"") -> 
A26: 2026-04-01 | C26: =IF(B26="","",VLOOKUP(B26,العملاء!A:B,2,0)) ->  | E26: =IF(D26="","",VLOOKUP(D26,المخزن!B:C,2,0)) ->  | G26: =IF(D26="","",VLOOKUP(D26,المخزن!B:M,12,0)) ->  | I26: =IF(D26="","",VLOOKUP(D26,المخزن!B:E,4,0)) ->  | L26: =IF(D26="","",VLOOKUP(D26,المخزن!B:L,8,0)) ->  | N26: =IFERROR(INDEX($A$4:$A$2598,SMALL(IF($B$4:$B$2598=$P$1,ROW($A$4:$A$2598)-ROW($A$4)+1),ROWS($N$4:N26))),"") ->  | O26: =IFERROR(INDEX($B$4:$B$2598,SMALL(IF($B$4:$B$2598=$P$1,ROW($A$4:$A$2598)-ROW($A$4)+1),ROWS($N$4:O26))),"") ->  | P26: =IFERROR(INDEX($C$4:$C$2598,SMALL(IF($B$4:$B$2598=$P$1,ROW($A$4:$A$2598)-ROW($A$4)+1),ROWS($N$4:P26))),"") ->  | Q26: =IFERROR(INDEX($D$4:$D$2598,SMALL(IF($B$4:$B$2598=$P$1,ROW($A$4:$A$2598)-ROW($A$4)+1),ROWS($N$4:Q26))),"") ->  | R26: =IFERROR(INDEX($E$4:$E$2598,SMALL(IF($B$4:$B$2598=$P$1,ROW($A$4:$A$2598)-ROW($A$4)+1),ROWS($N$4:R26))),"") ->  | S26: =IFERROR(INDEX($F$4:$F$2598,SMALL(IF($B$4:$B$2598=$P$1,ROW($A$4:$A$2598)-ROW($A$4)+1),ROWS($N$4:S26))),"") ->  | T26: =IFERROR(INDEX($G$4:$G$2598,SMALL(IF($B$4:$B$2598=$P$1,ROW($A$4:$A$2598)-ROW($A$4)+1),ROWS($N$4:T26))),"") ->  | U26: =IFERROR(INDEX($H$4:$H$2598,SMALL(IF($B$4:$B$2598=$P$1,ROW($A$4:$A$2598)-ROW($A$4)+1),ROWS($N$4:U26))),"") ->  | V26: =IFERROR(INDEX($I$4:$I$2598,SMALL(IF($B$4:$B$2598=$P$1,ROW($A$4:$A$2598)-ROW($A$4)+1),ROWS($N$4:V26))),"") ->  | W26: =IFERROR(INDEX($J$4:$J$2598,SMALL(IF($B$4:$B$2598=$P$1,ROW($A$4:$A$2598)-ROW($A$4)+1),ROWS($N$4:W26))),"") ->  | X26: =IFERROR(INDEX($K$4:$K$2598,SMALL(IF($B$4:$B$2598=$P$1,ROW($A$4:$A$2598)-ROW($A$4)+1),ROWS($N$4:X26))),"") ->  | Y26: =IFERROR(INDEX($L$4:$L$2598,SMALL(IF($B$4:$B$2598=$P$1,ROW($A$4:$A$2598)-ROW($A$4)+1),ROWS($N$4:Y26))),"") -> 
A27: 2026-04-01 | C27: =IF(B27="","",VLOOKUP(B27,العملاء!A:B,2,0)) ->  | E27: =IF(D27="","",VLOOKUP(D27,المخزن!B:C,2,0)) ->  | G27: =IF(D27="","",VLOOKUP(D27,المخزن!B:M,12,0)) ->  | I27: =IF(D27="","",VLOOKUP(D27,المخزن!B:E,4,0)) ->  | L27: =IF(D27="","",VLOOKUP(D27,المخزن!B:L,8,0)) ->  | N27: =IFERROR(INDEX($A$4:$A$2598,SMALL(IF($B$4:$B$2598=$P$1,ROW($A$4:$A$2598)-ROW($A$4)+1),ROWS($N$4:N27))),"") ->  | O27: =IFERROR(INDEX($B$4:$B$2598,SMALL(IF($B$4:$B$2598=$P$1,ROW($A$4:$A$2598)-ROW($A$4)+1),ROWS($N$4:O27))),"") ->  | P27: =IFERROR(INDEX($C$4:$C$2598,SMALL(IF($B$4:$B$2598=$P$1,ROW($A$4:$A$2598)-ROW($A$4)+1),ROWS($N$4:P27))),"") ->  | Q27: =IFERROR(INDEX($D$4:$D$2598,SMALL(IF($B$4:$B$2598=$P$1,ROW($A$4:$A$2598)-ROW($A$4)+1),ROWS($N$4:Q27))),"") ->  | R27: =IFERROR(INDEX($E$4:$E$2598,SMALL(IF($B$4:$B$2598=$P$1,ROW($A$4:$A$2598)-ROW($A$4)+1),ROWS($N$4:R27))),"") ->  | S27: =IFERROR(INDEX($F$4:$F$2598,SMALL(IF($B$4:$B$2598=$P$1,ROW($A$4:$A$2598)-ROW($A$4)+1),ROWS($N$4:S27))),"") ->  | T27: =IFERROR(INDEX($G$4:$G$2598,SMALL(IF($B$4:$B$2598=$P$1,ROW($A$4:$A$2598)-ROW($A$4)+1),ROWS($N$4:T27))),"") ->  | U27: =IFERROR(INDEX($H$4:$H$2598,SMALL(IF($B$4:$B$2598=$P$1,ROW($A$4:$A$2598)-ROW($A$4)+1),ROWS($N$4:U27))),"") ->  | V27: =IFERROR(INDEX($I$4:$I$2598,SMALL(IF($B$4:$B$2598=$P$1,ROW($A$4:$A$2598)-ROW($A$4)+1),ROWS($N$4:V27))),"") ->  | W27: =IFERROR(INDEX($J$4:$J$2598,SMALL(IF($B$4:$B$2598=$P$1,ROW($A$4:$A$2598)-ROW($A$4)+1),ROWS($N$4:W27))),"") ->  | X27: =IFERROR(INDEX($K$4:$K$2598,SMALL(IF($B$4:$B$2598=$P$1,ROW($A$4:$A$2598)-ROW($A$4)+1),ROWS($N$4:X27))),"") ->  | Y27: =IFERROR(INDEX($L$4:$L$2598,SMALL(IF($B$4:$B$2598=$P$1,ROW($A$4:$A$2598)-ROW($A$4)+1),ROWS($N$4:Y27))),"") -> 
A28: 2026-04-01 | C28: =IF(B28="","",VLOOKUP(B28,العملاء!A:B,2,0)) ->  | E28: =IF(D28="","",VLOOKUP(D28,المخزن!B:C,2,0)) ->  | G28: =IF(D28="","",VLOOKUP(D28,المخزن!B:M,12,0)) ->  | I28: =IF(D28="","",VLOOKUP(D28,المخزن!B:E,4,0)) ->  | L28: =IF(D28="","",VLOOKUP(D28,المخزن!B:L,8,0)) ->  | N28: =IFERROR(INDEX($A$4:$A$2598,SMALL(IF($B$4:$B$2598=$P$1,ROW($A$4:$A$2598)-ROW($A$4)+1),ROWS($N$4:N28))),"") ->  | O28: =IFERROR(INDEX($B$4:$B$2598,SMALL(IF($B$4:$B$2598=$P$1,ROW($A$4:$A$2598)-ROW($A$4)+1),ROWS($N$4:O28))),"") ->  | P28: =IFERROR(INDEX($C$4:$C$2598,SMALL(IF($B$4:$B$2598=$P$1,ROW($A$4:$A$2598)-ROW($A$4)+1),ROWS($N$4:P28))),"") ->  | Q28: =IFERROR(INDEX($D$4:$D$2598,SMALL(IF($B$4:$B$2598=$P$1,ROW($A$4:$A$2598)-ROW($A$4)+1),ROWS($N$4:Q28))),"") ->  | R28: =IFERROR(INDEX($E$4:$E$2598,SMALL(IF($B$4:$B$2598=$P$1,ROW($A$4:$A$2598)-ROW($A$4)+1),ROWS($N$4:R28))),"") ->  | S28: =IFERROR(INDEX($F$4:$F$2598,SMALL(IF($B$4:$B$2598=$P$1,ROW($A$4:$A$2598)-ROW($A$4)+1),ROWS($N$4:S28))),"") ->  | T28: =IFERROR(INDEX($G$4:$G$2598,SMALL(IF($B$4:$B$2598=$P$1,ROW($A$4:$A$2598)-ROW($A$4)+1),ROWS($N$4:T28))),"") ->  | U28: =IFERROR(INDEX($H$4:$H$2598,SMALL(IF($B$4:$B$2598=$P$1,ROW($A$4:$A$2598)-ROW($A$4)+1),ROWS($N$4:U28))),"") ->  | V28: =IFERROR(INDEX($I$4:$I$2598,SMALL(IF($B$4:$B$2598=$P$1,ROW($A$4:$A$2598)-ROW($A$4)+1),ROWS($N$4:V28))),"") ->  | W28: =IFERROR(INDEX($J$4:$J$2598,SMALL(IF($B$4:$B$2598=$P$1,ROW($A$4:$A$2598)-ROW($A$4)+1),ROWS($N$4:W28))),"") ->  | X28: =IFERROR(INDEX($K$4:$K$2598,SMALL(IF($B$4:$B$2598=$P$1,ROW($A$4:$A$2598)-ROW($A$4)+1),ROWS($N$4:X28))),"") ->  | Y28: =IFERROR(INDEX($L$4:$L$2598,SMALL(IF($B$4:$B$2598=$P$1,ROW($A$4:$A$2598)-ROW($A$4)+1),ROWS($N$4:Y28))),"") -> 
A29: 2026-04-01 | C29: =IF(B29="","",VLOOKUP(B29,العملاء!A:B,2,0)) ->  | E29: =IF(D29="","",VLOOKUP(D29,المخزن!B:C,2,0)) ->  | G29: =IF(D29="","",VLOOKUP(D29,المخزن!B:M,12,0)) ->  | I29: =IF(D29="","",VLOOKUP(D29,المخزن!B:E,4,0)) ->  | L29: =IF(D29="","",VLOOKUP(D29,المخزن!B:L,8,0)) ->  | N29: =IFERROR(INDEX($A$4:$A$2598,SMALL(IF($B$4:$B$2598=$P$1,ROW($A$4:$A$2598)-ROW($A$4)+1),ROWS($N$4:N29))),"") ->  | O29: =IFERROR(INDEX($B$4:$B$2598,SMALL(IF($B$4:$B$2598=$P$1,ROW($A$4:$A$2598)-ROW($A$4)+1),ROWS($N$4:O29))),"") ->  | P29: =IFERROR(INDEX($C$4:$C$2598,SMALL(IF($B$4:$B$2598=$P$1,ROW($A$4:$A$2598)-ROW($A$4)+1),ROWS($N$4:P29))),"") ->  | Q29: =IFERROR(INDEX($D$4:$D$2598,SMALL(IF($B$4:$B$2598=$P$1,ROW($A$4:$A$2598)-ROW($A$4)+1),ROWS($N$4:Q29))),"") ->  | R29: =IFERROR(INDEX($E$4:$E$2598,SMALL(IF($B$4:$B$2598=$P$1,ROW($A$4:$A$2598)-ROW($A$4)+1),ROWS($N$4:R29))),"") ->  | S29: =IFERROR(INDEX($F$4:$F$2598,SMALL(IF($B$4:$B$2598=$P$1,ROW($A$4:$A$2598)-ROW($A$4)+1),ROWS($N$4:S29))),"") ->  | T29: =IFERROR(INDEX($G$4:$G$2598,SMALL(IF($B$4:$B$2598=$P$1,ROW($A$4:$A$2598)-ROW($A$4)+1),ROWS($N$4:T29))),"") ->  | U29: =IFERROR(INDEX($H$4:$H$2598,SMALL(IF($B$4:$B$2598=$P$1,ROW($A$4:$A$2598)-ROW($A$4)+1),ROWS($N$4:U29))),"") ->  | V29: =IFERROR(INDEX($I$4:$I$2598,SMALL(IF($B$4:$B$2598=$P$1,ROW($A$4:$A$2598)-ROW($A$4)+1),ROWS($N$4:V29))),"") ->  | W29: =IFERROR(INDEX($J$4:$J$2598,SMALL(IF($B$4:$B$2598=$P$1,ROW($A$4:$A$2598)-ROW($A$4)+1),ROWS($N$4:W29))),"") ->  | X29: =IFERROR(INDEX($K$4:$K$2598,SMALL(IF($B$4:$B$2598=$P$1,ROW($A$4:$A$2598)-ROW($A$4)+1),ROWS($N$4:X29))),"") ->  | Y29: =IFERROR(INDEX($L$4:$L$2598,SMALL(IF($B$4:$B$2598=$P$1,ROW($A$4:$A$2598)-ROW($A$4)+1),ROWS($N$4:Y29))),"") -> 
A30: 2026-04-02 | C30: =IF(B30="","",VLOOKUP(B30,العملاء!A:B,2,0)) ->  | E30: =IF(D30="","",VLOOKUP(D30,المخزن!B:C,2,0)) ->  | G30: =IF(D30="","",VLOOKUP(D30,المخزن!B:M,12,0)) ->  | I30: =IF(D30="","",VLOOKUP(D30,المخزن!B:E,4,0)) ->  | L30: =IF(D30="","",VLOOKUP(D30,المخزن!B:L,8,0)) ->  | N30: =IFERROR(INDEX($A$4:$A$2598,SMALL(IF($B$4:$B$2598=$P$1,ROW($A$4:$A$2598)-ROW($A$4)+1),ROWS($N$4:N30))),"") ->  | O30: =IFERROR(INDEX($B$4:$B$2598,SMALL(IF($B$4:$B$2598=$P$1,ROW($A$4:$A$2598)-ROW($A$4)+1),ROWS($N$4:O30))),"") ->  | P30: =IFERROR(INDEX($C$4:$C$2598,SMALL(IF($B$4:$B$2598=$P$1,ROW($A$4:$A$2598)-ROW($A$4)+1),ROWS($N$4:P30))),"") ->  | Q30: =IFERROR(INDEX($D$4:$D$2598,SMALL(IF($B$4:$B$2598=$P$1,ROW($A$4:$A$2598)-ROW($A$4)+1),ROWS($N$4:Q30))),"") ->  | R30: =IFERROR(INDEX($E$4:$E$2598,SMALL(IF($B$4:$B$2598=$P$1,ROW($A$4:$A$2598)-ROW($A$4)+1),ROWS($N$4:R30))),"") ->  | S30: =IFERROR(INDEX($F$4:$F$2598,SMALL(IF($B$4:$B$2598=$P$1,ROW($A$4:$A$2598)-ROW($A$4)+1),ROWS($N$4:S30))),"") ->  | T30: =IFERROR(INDEX($G$4:$G$2598,SMALL(IF($B$4:$B$2598=$P$1,ROW($A$4:$A$2598)-ROW($A$4)+1),ROWS($N$4:T30))),"") ->  | U30: =IFERROR(INDEX($H$4:$H$2598,SMALL(IF($B$4:$B$2598=$P$1,ROW($A$4:$A$2598)-ROW($A$4)+1),ROWS($N$4:U30))),"") ->  | V30: =IFERROR(INDEX($I$4:$I$2598,SMALL(IF($B$4:$B$2598=$P$1,ROW($A$4:$A$2598)-ROW($A$4)+1),ROWS($N$4:V30))),"") ->  | W30: =IFERROR(INDEX($J$4:$J$2598,SMALL(IF($B$4:$B$2598=$P$1,ROW($A$4:$A$2598)-ROW($A$4)+1),ROWS($N$4:W30))),"") ->  | X30: =IFERROR(INDEX($K$4:$K$2598,SMALL(IF($B$4:$B$2598=$P$1,ROW($A$4:$A$2598)-ROW($A$4)+1),ROWS($N$4:X30))),"") ->  | Y30: =IFERROR(INDEX($L$4:$L$2598,SMALL(IF($B$4:$B$2598=$P$1,ROW($A$4:$A$2598)-ROW($A$4)+1),ROWS($N$4:Y30))),"") -> 
A31: 2026-04-02 | C31: =IF(B31="","",VLOOKUP(B31,العملاء!A:B,2,0)) ->  | E31: =IF(D31="","",VLOOKUP(D31,المخزن!B:C,2,0)) ->  | G31: =IF(D31="","",VLOOKUP(D31,المخزن!B:M,12,0)) ->  | I31: =IF(D31="","",VLOOKUP(D31,المخزن!B:E,4,0)) ->  | L31: =IF(D31="","",VLOOKUP(D31,المخزن!B:L,8,0)) ->  | N31: =IFERROR(INDEX($A$4:$A$2598,SMALL(IF($B$4:$B$2598=$P$1,ROW($A$4:$A$2598)-ROW($A$4)+1),ROWS($N$4:N31))),"") ->  | O31: =IFERROR(INDEX($B$4:$B$2598,SMALL(IF($B$4:$B$2598=$P$1,ROW($A$4:$A$2598)-ROW($A$4)+1),ROWS($N$4:O31))),"") ->  | P31: =IFERROR(INDEX($C$4:$C$2598,SMALL(IF($B$4:$B$2598=$P$1,ROW($A$4:$A$2598)-ROW($A$4)+1),ROWS($N$4:P31))),"") ->  | Q31: =IFERROR(INDEX($D$4:$D$2598,SMALL(IF($B$4:$B$2598=$P$1,ROW($A$4:$A$2598)-ROW($A$4)+1),ROWS($N$4:Q31))),"") ->  | R31: =IFERROR(INDEX($E$4:$E$2598,SMALL(IF($B$4:$B$2598=$P$1,ROW($A$4:$A$2598)-ROW($A$4)+1),ROWS($N$4:R31))),"") ->  | S31: =IFERROR(INDEX($F$4:$F$2598,SMALL(IF($B$4:$B$2598=$P$1,ROW($A$4:$A$2598)-ROW($A$4)+1),ROWS($N$4:S31))),"") ->  | T31: =IFERROR(INDEX($G$4:$G$2598,SMALL(IF($B$4:$B$2598=$P$1,ROW($A$4:$A$2598)-ROW($A$4)+1),ROWS($N$4:T31))),"") ->  | U31: =IFERROR(INDEX($H$4:$H$2598,SMALL(IF($B$4:$B$2598=$P$1,ROW($A$4:$A$2598)-ROW($A$4)+1),ROWS($N$4:U31))),"") ->  | V31: =IFERROR(INDEX($I$4:$I$2598,SMALL(IF($B$4:$B$2598=$P$1,ROW($A$4:$A$2598)-ROW($A$4)+1),ROWS($N$4:V31))),"") ->  | W31: =IFERROR(INDEX($J$4:$J$2598,SMALL(IF($B$4:$B$2598=$P$1,ROW($A$4:$A$2598)-ROW($A$4)+1),ROWS($N$4:W31))),"") ->  | X31: =IFERROR(INDEX($K$4:$K$2598,SMALL(IF($B$4:$B$2598=$P$1,ROW($A$4:$A$2598)-ROW($A$4)+1),ROWS($N$4:X31))),"") ->  | Y31: =IFERROR(INDEX($L$4:$L$2598,SMALL(IF($B$4:$B$2598=$P$1,ROW($A$4:$A$2598)-ROW($A$4)+1),ROWS($N$4:Y31))),"") -> 
A32: 2026-04-02 | C32: =IF(B32="","",VLOOKUP(B32,العملاء!A:B,2,0)) ->  | E32: =IF(D32="","",VLOOKUP(D32,المخزن!B:C,2,0)) ->  | G32: =IF(D32="","",VLOOKUP(D32,المخزن!B:M,12,0)) ->  | H32: =IF(E32="","",G32*F32) ->  | I32: =IF(D32="","",VLOOKUP(D32,المخزن!B:E,4,0)) ->  | J32: =IF(D32>0,I32*F32," ") ->  | K32: =IF(E32="","",H32-J32) ->  | L32: =IF(D32="","",VLOOKUP(D32,المخزن!B:L,8,0)) ->  | N32: =IFERROR(INDEX($A$4:$A$2598,SMALL(IF($B$4:$B$2598=$P$1,ROW($A$4:$A$2598)-ROW($A$4)+1),ROWS($N$4:N32))),"") ->  | O32: =IFERROR(INDEX($B$4:$B$2598,SMALL(IF($B$4:$B$2598=$P$1,ROW($A$4:$A$2598)-ROW($A$4)+1),ROWS($N$4:O32))),"") ->  | P32: =IFERROR(INDEX($C$4:$C$2598,SMALL(IF($B$4:$B$2598=$P$1,ROW($A$4:$A$2598)-ROW($A$4)+1),ROWS($N$4:P32))),"") ->  | Q32: =IFERROR(INDEX($D$4:$D$2598,SMALL(IF($B$4:$B$2598=$P$1,ROW($A$4:$A$2598)-ROW($A$4)+1),ROWS($N$4:Q32))),"") ->  | R32: =IFERROR(INDEX($E$4:$E$2598,SMALL(IF($B$4:$B$2598=$P$1,ROW($A$4:$A$2598)-ROW($A$4)+1),ROWS($N$4:R32))),"") ->  | S32: =IFERROR(INDEX($F$4:$F$2598,SMALL(IF($B$4:$B$2598=$P$1,ROW($A$4:$A$2598)-ROW($A$4)+1),ROWS($N$4:S32))),"") ->  | T32: =IFERROR(INDEX($G$4:$G$2598,SMALL(IF($B$4:$B$2598=$P$1,ROW($A$4:$A$2598)-ROW($A$4)+1),ROWS($N$4:T32))),"") ->  | U32: =IFERROR(INDEX($H$4:$H$2598,SMALL(IF($B$4:$B$2598=$P$1,ROW($A$4:$A$2598)-ROW($A$4)+1),ROWS($N$4:U32))),"") ->  | V32: =IFERROR(INDEX($I$4:$I$2598,SMALL(IF($B$4:$B$2598=$P$1,ROW($A$4:$A$2598)-ROW($A$4)+1),ROWS($N$4:V32))),"") ->  | W32: =IFERROR(INDEX($J$4:$J$2598,SMALL(IF($B$4:$B$2598=$P$1,ROW($A$4:$A$2598)-ROW($A$4)+1),ROWS($N$4:W32))),"") ->  | X32: =IFERROR(INDEX($K$4:$K$2598,SMALL(IF($B$4:$B$2598=$P$1,ROW($A$4:$A$2598)-ROW($A$4)+1),ROWS($N$4:X32))),"") ->  | Y32: =IFERROR(INDEX($L$4:$L$2598,SMALL(IF($B$4:$B$2598=$P$1,ROW($A$4:$A$2598)-ROW($A$4)+1),ROWS($N$4:Y32))),"") -> 
A33: 2026-04-02 | C33: =IF(B33="","",VLOOKUP(B33,العملاء!A:B,2,0)) ->  | E33: =IF(D33="","",VLOOKUP(D33,المخزن!B:C,2,0)) ->  | G33: =IF(D33="","",VLOOKUP(D33,المخزن!B:M,12,0)) ->  | I33: =IF(D33="","",VLOOKUP(D33,المخزن!B:E,4,0)) ->  | L33: =IF(D33="","",VLOOKUP(D33,المخزن!B:L,8,0)) ->  | N33: =IFERROR(INDEX($A$4:$A$2598,SMALL(IF($B$4:$B$2598=$P$1,ROW($A$4:$A$2598)-ROW($A$4)+1),ROWS($N$4:N33))),"") ->  | O33: =IFERROR(INDEX($B$4:$B$2598,SMALL(IF($B$4:$B$2598=$P$1,ROW($A$4:$A$2598)-ROW($A$4)+1),ROWS($N$4:O33))),"") ->  | P33: =IFERROR(INDEX($C$4:$C$2598,SMALL(IF($B$4:$B$2598=$P$1,ROW($A$4:$A$2598)-ROW($A$4)+1),ROWS($N$4:P33))),"") ->  | Q33: =IFERROR(INDEX($D$4:$D$2598,SMALL(IF($B$4:$B$2598=$P$1,ROW($A$4:$A$2598)-ROW($A$4)+1),ROWS($N$4:Q33))),"") ->  | R33: =IFERROR(INDEX($E$4:$E$2598,SMALL(IF($B$4:$B$2598=$P$1,ROW($A$4:$A$2598)-ROW($A$4)+1),ROWS($N$4:R33))),"") ->  | S33: =IFERROR(INDEX($F$4:$F$2598,SMALL(IF($B$4:$B$2598=$P$1,ROW($A$4:$A$2598)-ROW($A$4)+1),ROWS($N$4:S33))),"") ->  | T33: =IFERROR(INDEX($G$4:$G$2598,SMALL(IF($B$4:$B$2598=$P$1,ROW($A$4:$A$2598)-ROW($A$4)+1),ROWS($N$4:T33))),"") ->  | U33: =IFERROR(INDEX($H$4:$H$2598,SMALL(IF($B$4:$B$2598=$P$1,ROW($A$4:$A$2598)-ROW($A$4)+1),ROWS($N$4:U33))),"") ->  | V33: =IFERROR(INDEX($I$4:$I$2598,SMALL(IF($B$4:$B$2598=$P$1,ROW($A$4:$A$2598)-ROW($A$4)+1),ROWS($N$4:V33))),"") ->  | W33: =IFERROR(INDEX($J$4:$J$2598,SMALL(IF($B$4:$B$2598=$P$1,ROW($A$4:$A$2598)-ROW($A$4)+1),ROWS($N$4:W33))),"") ->  | X33: =IFERROR(INDEX($K$4:$K$2598,SMALL(IF($B$4:$B$2598=$P$1,ROW($A$4:$A$2598)-ROW($A$4)+1),ROWS($N$4:X33))),"") ->  | Y33: =IFERROR(INDEX($L$4:$L$2598,SMALL(IF($B$4:$B$2598=$P$1,ROW($A$4:$A$2598)-ROW($A$4)+1),ROWS($N$4:Y33))),"") -> 
A34: 2026-04-02 | C34: =IF(B34="","",VLOOKUP(B34,العملاء!A:B,2,0)) ->  | E34: =IF(D34="","",VLOOKUP(D34,المخزن!B:C,2,0)) ->  | G34: =IF(D34="","",VLOOKUP(D34,المخزن!B:M,12,0)) ->  | I34: =IF(D34="","",VLOOKUP(D34,المخزن!B:E,4,0)) ->  | L34: =IF(D34="","",VLOOKUP(D34,المخزن!B:L,8,0)) ->  | N34: =IFERROR(INDEX($A$4:$A$2598,SMALL(IF($B$4:$B$2598=$P$1,ROW($A$4:$A$2598)-ROW($A$4)+1),ROWS($N$4:N34))),"") ->  | O34: =IFERROR(INDEX($B$4:$B$2598,SMALL(IF($B$4:$B$2598=$P$1,ROW($A$4:$A$2598)-ROW($A$4)+1),ROWS($N$4:O34))),"") ->  | P34: =IFERROR(INDEX($C$4:$C$2598,SMALL(IF($B$4:$B$2598=$P$1,ROW($A$4:$A$2598)-ROW($A$4)+1),ROWS($N$4:P34))),"") ->  | Q34: =IFERROR(INDEX($D$4:$D$2598,SMALL(IF($B$4:$B$2598=$P$1,ROW($A$4:$A$2598)-ROW($A$4)+1),ROWS($N$4:Q34))),"") ->  | R34: =IFERROR(INDEX($E$4:$E$2598,SMALL(IF($B$4:$B$2598=$P$1,ROW($A$4:$A$2598)-ROW($A$4)+1),ROWS($N$4:R34))),"") ->  | S34: =IFERROR(INDEX($F$4:$F$2598,SMALL(IF($B$4:$B$2598=$P$1,ROW($A$4:$A$2598)-ROW($A$4)+1),ROWS($N$4:S34))),"") ->  | T34: =IFERROR(INDEX($G$4:$G$2598,SMALL(IF($B$4:$B$2598=$P$1,ROW($A$4:$A$2598)-ROW($A$4)+1),ROWS($N$4:T34))),"") ->  | U34: =IFERROR(INDEX($H$4:$H$2598,SMALL(IF($B$4:$B$2598=$P$1,ROW($A$4:$A$2598)-ROW($A$4)+1),ROWS($N$4:U34))),"") ->  | V34: =IFERROR(INDEX($I$4:$I$2598,SMALL(IF($B$4:$B$2598=$P$1,ROW($A$4:$A$2598)-ROW($A$4)+1),ROWS($N$4:V34))),"") ->  | W34: =IFERROR(INDEX($J$4:$J$2598,SMALL(IF($B$4:$B$2598=$P$1,ROW($A$4:$A$2598)-ROW($A$4)+1),ROWS($N$4:W34))),"") ->  | X34: =IFERROR(INDEX($K$4:$K$2598,SMALL(IF($B$4:$B$2598=$P$1,ROW($A$4:$A$2598)-ROW($A$4)+1),ROWS($N$4:X34))),"") ->  | Y34: =IFERROR(INDEX($L$4:$L$2598,SMALL(IF($B$4:$B$2598=$P$1,ROW($A$4:$A$2598)-ROW($A$4)+1),ROWS($N$4:Y34))),"") -> 
A35: 2026-04-02 | C35: =IF(B35="","",VLOOKUP(B35,العملاء!A:B,2,0)) ->  | E35: =IF(D35="","",VLOOKUP(D35,المخزن!B:C,2,0)) ->  | G35: =IF(D35="","",VLOOKUP(D35,المخزن!B:M,12,0)) ->  | I35: =IF(D35="","",VLOOKUP(D35,المخزن!B:E,4,0)) ->  | L35: =IF(D35="","",VLOOKUP(D35,المخزن!B:L,8,0)) ->  | N35: =IFERROR(INDEX($A$4:$A$2598,SMALL(IF($B$4:$B$2598=$P$1,ROW($A$4:$A$2598)-ROW($A$4)+1),ROWS($N$4:N35))),"") ->  | O35: =IFERROR(INDEX($B$4:$B$2598,SMALL(IF($B$4:$B$2598=$P$1,ROW($A$4:$A$2598)-ROW($A$4)+1),ROWS($N$4:O35))),"") ->  | P35: =IFERROR(INDEX($C$4:$C$2598,SMALL(IF($B$4:$B$2598=$P$1,ROW($A$4:$A$2598)-ROW($A$4)+1),ROWS($N$4:P35))),"") ->  | Q35: =IFERROR(INDEX($D$4:$D$2598,SMALL(IF($B$4:$B$2598=$P$1,ROW($A$4:$A$2598)-ROW($A$4)+1),ROWS($N$4:Q35))),"") ->  | R35: =IFERROR(INDEX($E$4:$E$2598,SMALL(IF($B$4:$B$2598=$P$1,ROW($A$4:$A$2598)-ROW($A$4)+1),ROWS($N$4:R35))),"") ->  | S35: =IFERROR(INDEX($F$4:$F$2598,SMALL(IF($B$4:$B$2598=$P$1,ROW($A$4:$A$2598)-ROW($A$4)+1),ROWS($N$4:S35))),"") ->  | T35: =IFERROR(INDEX($G$4:$G$2598,SMALL(IF($B$4:$B$2598=$P$1,ROW($A$4:$A$2598)-ROW($A$4)+1),ROWS($N$4:T35))),"") ->  | U35: =IFERROR(INDEX($H$4:$H$2598,SMALL(IF($B$4:$B$2598=$P$1,ROW($A$4:$A$2598)-ROW($A$4)+1),ROWS($N$4:U35))),"") ->  | V35: =IFERROR(INDEX($I$4:$I$2598,SMALL(IF($B$4:$B$2598=$P$1,ROW($A$4:$A$2598)-ROW($A$4)+1),ROWS($N$4:V35))),"") ->  | W35: =IFERROR(INDEX($J$4:$J$2598,SMALL(IF($B$4:$B$2598=$P$1,ROW($A$4:$A$2598)-ROW($A$4)+1),ROWS($N$4:W35))),"") ->  | X35: =IFERROR(INDEX($K$4:$K$2598,SMALL(IF($B$4:$B$2598=$P$1,ROW($A$4:$A$2598)-ROW($A$4)+1),ROWS($N$4:X35))),"") ->  | Y35: =IFERROR(INDEX($L$4:$L$2598,SMALL(IF($B$4:$B$2598=$P$1,ROW($A$4:$A$2598)-ROW($A$4)+1),ROWS($N$4:Y35))),"") -> 
A36: 2026-04-02 | C36: =IF(B36="","",VLOOKUP(B36,العملاء!A:B,2,0)) ->  | E36: =IF(D36="","",VLOOKUP(D36,المخزن!B:C,2,0)) ->  | G36: =IF(D36="","",VLOOKUP(D36,المخزن!B:M,12,0)) ->  | I36: =IF(D36="","",VLOOKUP(D36,المخزن!B:E,4,0)) ->  | L36: =IF(D36="","",VLOOKUP(D36,المخزن!B:L,8,0)) ->  | N36: =IFERROR(INDEX($A$4:$A$2598,SMALL(IF($B$4:$B$2598=$P$1,ROW($A$4:$A$2598)-ROW($A$4)+1),ROWS($N$4:N36))),"") ->  | O36: =IFERROR(INDEX($B$4:$B$2598,SMALL(IF($B$4:$B$2598=$P$1,ROW($A$4:$A$2598)-ROW($A$4)+1),ROWS($N$4:O36))),"") ->  | P36: =IFERROR(INDEX($C$4:$C$2598,SMALL(IF($B$4:$B$2598=$P$1,ROW($A$4:$A$2598)-ROW($A$4)+1),ROWS($N$4:P36))),"") ->  | Q36: =IFERROR(INDEX($D$4:$D$2598,SMALL(IF($B$4:$B$2598=$P$1,ROW($A$4:$A$2598)-ROW($A$4)+1),ROWS($N$4:Q36))),"") ->  | R36: =IFERROR(INDEX($E$4:$E$2598,SMALL(IF($B$4:$B$2598=$P$1,ROW($A$4:$A$2598)-ROW($A$4)+1),ROWS($N$4:R36))),"") ->  | S36: =IFERROR(INDEX($F$4:$F$2598,SMALL(IF($B$4:$B$2598=$P$1,ROW($A$4:$A$2598)-ROW($A$4)+1),ROWS($N$4:S36))),"") ->  | T36: =IFERROR(INDEX($G$4:$G$2598,SMALL(IF($B$4:$B$2598=$P$1,ROW($A$4:$A$2598)-ROW($A$4)+1),ROWS($N$4:T36))),"") ->  | U36: =IFERROR(INDEX($H$4:$H$2598,SMALL(IF($B$4:$B$2598=$P$1,ROW($A$4:$A$2598)-ROW($A$4)+1),ROWS($N$4:U36))),"") ->  | V36: =IFERROR(INDEX($I$4:$I$2598,SMALL(IF($B$4:$B$2598=$P$1,ROW($A$4:$A$2598)-ROW($A$4)+1),ROWS($N$4:V36))),"") ->  | W36: =IFERROR(INDEX($J$4:$J$2598,SMALL(IF($B$4:$B$2598=$P$1,ROW($A$4:$A$2598)-ROW($A$4)+1),ROWS($N$4:W36))),"") ->  | X36: =IFERROR(INDEX($K$4:$K$2598,SMALL(IF($B$4:$B$2598=$P$1,ROW($A$4:$A$2598)-ROW($A$4)+1),ROWS($N$4:X36))),"") ->  | Y36: =IFERROR(INDEX($L$4:$L$2598,SMALL(IF($B$4:$B$2598=$P$1,ROW($A$4:$A$2598)-ROW($A$4)+1),ROWS($N$4:Y36))),"") -> 
A37: 2026-04-02 | C37: =IF(B37="","",VLOOKUP(B37,العملاء!A:B,2,0)) ->  | E37: =IF(D37="","",VLOOKUP(D37,المخزن!B:C,2,0)) ->  | G37: =IF(D37="","",VLOOKUP(D37,المخزن!B:M,12,0)) ->  | I37: =IF(D37="","",VLOOKUP(D37,المخزن!B:E,4,0)) ->  | L37: =IF(D37="","",VLOOKUP(D37,المخزن!B:L,8,0)) ->  | N37: =IFERROR(INDEX($A$4:$A$2598,SMALL(IF($B$4:$B$2598=$P$1,ROW($A$4:$A$2598)-ROW($A$4)+1),ROWS($N$4:N37))),"") ->  | O37: =IFERROR(INDEX($B$4:$B$2598,SMALL(IF($B$4:$B$2598=$P$1,ROW($A$4:$A$2598)-ROW($A$4)+1),ROWS($N$4:O37))),"") ->  | P37: =IFERROR(INDEX($C$4:$C$2598,SMALL(IF($B$4:$B$2598=$P$1,ROW($A$4:$A$2598)-ROW($A$4)+1),ROWS($N$4:P37))),"") ->  | Q37: =IFERROR(INDEX($D$4:$D$2598,SMALL(IF($B$4:$B$2598=$P$1,ROW($A$4:$A$2598)-ROW($A$4)+1),ROWS($N$4:Q37))),"") ->  | R37: =IFERROR(INDEX($E$4:$E$2598,SMALL(IF($B$4:$B$2598=$P$1,ROW($A$4:$A$2598)-ROW($A$4)+1),ROWS($N$4:R37))),"") ->  | S37: =IFERROR(INDEX($F$4:$F$2598,SMALL(IF($B$4:$B$2598=$P$1,ROW($A$4:$A$2598)-ROW($A$4)+1),ROWS($N$4:S37))),"") ->  | T37: =IFERROR(INDEX($G$4:$G$2598,SMALL(IF($B$4:$B$2598=$P$1,ROW($A$4:$A$2598)-ROW($A$4)+1),ROWS($N$4:T37))),"") ->  | U37: =IFERROR(INDEX($H$4:$H$2598,SMALL(IF($B$4:$B$2598=$P$1,ROW($A$4:$A$2598)-ROW($A$4)+1),ROWS($N$4:U37))),"") ->  | V37: =IFERROR(INDEX($I$4:$I$2598,SMALL(IF($B$4:$B$2598=$P$1,ROW($A$4:$A$2598)-ROW($A$4)+1),ROWS($N$4:V37))),"") ->  | W37: =IFERROR(INDEX($J$4:$J$2598,SMALL(IF($B$4:$B$2598=$P$1,ROW($A$4:$A$2598)-ROW($A$4)+1),ROWS($N$4:W37))),"") ->  | X37: =IFERROR(INDEX($K$4:$K$2598,SMALL(IF($B$4:$B$2598=$P$1,ROW($A$4:$A$2598)-ROW($A$4)+1),ROWS($N$4:X37))),"") ->  | Y37: =IFERROR(INDEX($L$4:$L$2598,SMALL(IF($B$4:$B$2598=$P$1,ROW($A$4:$A$2598)-ROW($A$4)+1),ROWS($N$4:Y37))),"") -> 
A38: 2026-04-02 | C38: =IF(B38="","",VLOOKUP(B38,العملاء!A:B,2,0)) ->  | E38: =IF(D38="","",VLOOKUP(D38,المخزن!B:C,2,0)) ->  | G38: =IF(D38="","",VLOOKUP(D38,المخزن!B:M,12,0)) ->  | I38: =IF(D38="","",VLOOKUP(D38,المخزن!B:E,4,0)) ->  | L38: =IF(D38="","",VLOOKUP(D38,المخزن!B:L,8,0)) ->  | N38: =IFERROR(INDEX($A$4:$A$2598,SMALL(IF($B$4:$B$2598=$P$1,ROW($A$4:$A$2598)-ROW($A$4)+1),ROWS($N$4:N38))),"") ->  | O38: =IFERROR(INDEX($B$4:$B$2598,SMALL(IF($B$4:$B$2598=$P$1,ROW($A$4:$A$2598)-ROW($A$4)+1),ROWS($N$4:O38))),"") ->  | P38: =IFERROR(INDEX($C$4:$C$2598,SMALL(IF($B$4:$B$2598=$P$1,ROW($A$4:$A$2598)-ROW($A$4)+1),ROWS($N$4:P38))),"") ->  | Q38: =IFERROR(INDEX($D$4:$D$2598,SMALL(IF($B$4:$B$2598=$P$1,ROW($A$4:$A$2598)-ROW($A$4)+1),ROWS($N$4:Q38))),"") ->  | R38: =IFERROR(INDEX($E$4:$E$2598,SMALL(IF($B$4:$B$2598=$P$1,ROW($A$4:$A$2598)-ROW($A$4)+1),ROWS($N$4:R38))),"") ->  | S38: =IFERROR(INDEX($F$4:$F$2598,SMALL(IF($B$4:$B$2598=$P$1,ROW($A$4:$A$2598)-ROW($A$4)+1),ROWS($N$4:S38))),"") ->  | T38: =IFERROR(INDEX($G$4:$G$2598,SMALL(IF($B$4:$B$2598=$P$1,ROW($A$4:$A$2598)-ROW($A$4)+1),ROWS($N$4:T38))),"") ->  | U38: =IFERROR(INDEX($H$4:$H$2598,SMALL(IF($B$4:$B$2598=$P$1,ROW($A$4:$A$2598)-ROW($A$4)+1),ROWS($N$4:U38))),"") ->  | V38: =IFERROR(INDEX($I$4:$I$2598,SMALL(IF($B$4:$B$2598=$P$1,ROW($A$4:$A$2598)-ROW($A$4)+1),ROWS($N$4:V38))),"") ->  | W38: =IFERROR(INDEX($J$4:$J$2598,SMALL(IF($B$4:$B$2598=$P$1,ROW($A$4:$A$2598)-ROW($A$4)+1),ROWS($N$4:W38))),"") ->  | X38: =IFERROR(INDEX($K$4:$K$2598,SMALL(IF($B$4:$B$2598=$P$1,ROW($A$4:$A$2598)-ROW($A$4)+1),ROWS($N$4:X38))),"") ->  | Y38: =IFERROR(INDEX($L$4:$L$2598,SMALL(IF($B$4:$B$2598=$P$1,ROW($A$4:$A$2598)-ROW($A$4)+1),ROWS($N$4:Y38))),"") -> 
A39: 2026-04-02 | C39: =IF(B39="","",VLOOKUP(B39,العملاء!A:B,2,0)) ->  | E39: =IF(D39="","",VLOOKUP(D39,المخزن!B:C,2,0)) ->  | G39: =IF(D39="","",VLOOKUP(D39,المخزن!B:M,12,0)) ->  | I39: =IF(D39="","",VLOOKUP(D39,المخزن!B:E,4,0)) ->  | L39: =IF(D39="","",VLOOKUP(D39,المخزن!B:L,8,0)) ->  | N39: =IFERROR(INDEX($A$4:$A$2598,SMALL(IF($B$4:$B$2598=$P$1,ROW($A$4:$A$2598)-ROW($A$4)+1),ROWS($N$4:N39))),"") ->  | O39: =IFERROR(INDEX($B$4:$B$2598,SMALL(IF($B$4:$B$2598=$P$1,ROW($A$4:$A$2598)-ROW($A$4)+1),ROWS($N$4:O39))),"") ->  | P39: =IFERROR(INDEX($C$4:$C$2598,SMALL(IF($B$4:$B$2598=$P$1,ROW($A$4:$A$2598)-ROW($A$4)+1),ROWS($N$4:P39))),"") ->  | Q39: =IFERROR(INDEX($D$4:$D$2598,SMALL(IF($B$4:$B$2598=$P$1,ROW($A$4:$A$2598)-ROW($A$4)+1),ROWS($N$4:Q39))),"") ->  | R39: =IFERROR(INDEX($E$4:$E$2598,SMALL(IF($B$4:$B$2598=$P$1,ROW($A$4:$A$2598)-ROW($A$4)+1),ROWS($N$4:R39))),"") ->  | S39: =IFERROR(INDEX($F$4:$F$2598,SMALL(IF($B$4:$B$2598=$P$1,ROW($A$4:$A$2598)-ROW($A$4)+1),ROWS($N$4:S39))),"") ->  | T39: =IFERROR(INDEX($G$4:$G$2598,SMALL(IF($B$4:$B$2598=$P$1,ROW($A$4:$A$2598)-ROW($A$4)+1),ROWS($N$4:T39))),"") ->  | U39: =IFERROR(INDEX($H$4:$H$2598,SMALL(IF($B$4:$B$2598=$P$1,ROW($A$4:$A$2598)-ROW($A$4)+1),ROWS($N$4:U39))),"") ->  | V39: =IFERROR(INDEX($I$4:$I$2598,SMALL(IF($B$4:$B$2598=$P$1,ROW($A$4:$A$2598)-ROW($A$4)+1),ROWS($N$4:V39))),"") ->  | W39: =IFERROR(INDEX($J$4:$J$2598,SMALL(IF($B$4:$B$2598=$P$1,ROW($A$4:$A$2598)-ROW($A$4)+1),ROWS($N$4:W39))),"") ->  | X39: =IFERROR(INDEX($K$4:$K$2598,SMALL(IF($B$4:$B$2598=$P$1,ROW($A$4:$A$2598)-ROW($A$4)+1),ROWS($N$4:X39))),"") ->  | Y39: =IFERROR(INDEX($L$4:$L$2598,SMALL(IF($B$4:$B$2598=$P$1,ROW($A$4:$A$2598)-ROW($A$4)+1),ROWS($N$4:Y39))),"") -> 
A40: 2026-04-02 | C40: =IF(B40="","",VLOOKUP(B40,العملاء!A:B,2,0)) ->  | E40: =IF(D40="","",VLOOKUP(D40,المخزن!B:C,2,0)) ->  | G40: =IF(D40="","",VLOOKUP(D40,المخزن!B:M,12,0)) ->  | I40: =IF(D40="","",VLOOKUP(D40,المخزن!B:E,4,0)) ->  | L40: =IF(D40="","",VLOOKUP(D40,المخزن!B:L,8,0)) ->  | N40: =IFERROR(INDEX($A$4:$A$2598,SMALL(IF($B$4:$B$2598=$P$1,ROW($A$4:$A$2598)-ROW($A$4)+1),ROWS($N$4:N40))),"") ->  | O40: =IFERROR(INDEX($B$4:$B$2598,SMALL(IF($B$4:$B$2598=$P$1,ROW($A$4:$A$2598)-ROW($A$4)+1),ROWS($N$4:O40))),"") ->  | P40: =IFERROR(INDEX($C$4:$C$2598,SMALL(IF($B$4:$B$2598=$P$1,ROW($A$4:$A$2598)-ROW($A$4)+1),ROWS($N$4:P40))),"") ->  | Q40: =IFERROR(INDEX($D$4:$D$2598,SMALL(IF($B$4:$B$2598=$P$1,ROW($A$4:$A$2598)-ROW($A$4)+1),ROWS($N$4:Q40))),"") ->  | R40: =IFERROR(INDEX($E$4:$E$2598,SMALL(IF($B$4:$B$2598=$P$1,ROW($A$4:$A$2598)-ROW($A$4)+1),ROWS($N$4:R40))),"") ->  | S40: =IFERROR(INDEX($F$4:$F$2598,SMALL(IF($B$4:$B$2598=$P$1,ROW($A$4:$A$2598)-ROW($A$4)+1),ROWS($N$4:S40))),"") ->  | T40: =IFERROR(INDEX($G$4:$G$2598,SMALL(IF($B$4:$B$2598=$P$1,ROW($A$4:$A$2598)-ROW($A$4)+1),ROWS($N$4:T40))),"") ->  | U40: =IFERROR(INDEX($H$4:$H$2598,SMALL(IF($B$4:$B$2598=$P$1,ROW($A$4:$A$2598)-ROW($A$4)+1),ROWS($N$4:U40))),"") ->  | V40: =IFERROR(INDEX($I$4:$I$2598,SMALL(IF($B$4:$B$2598=$P$1,ROW($A$4:$A$2598)-ROW($A$4)+1),ROWS($N$4:V40))),"") ->  | W40: =IFERROR(INDEX($J$4:$J$2598,SMALL(IF($B$4:$B$2598=$P$1,ROW($A$4:$A$2598)-ROW($A$4)+1),ROWS($N$4:W40))),"") ->  | X40: =IFERROR(INDEX($K$4:$K$2598,SMALL(IF($B$4:$B$2598=$P$1,ROW($A$4:$A$2598)-ROW($A$4)+1),ROWS($N$4:X40))),"") ->  | Y40: =IFERROR(INDEX($L$4:$L$2598,SMALL(IF($B$4:$B$2598=$P$1,ROW($A$4:$A$2598)-ROW($A$4)+1),ROWS($N$4:Y40))),"") -> 
A41: 2026-04-03 | C41: =IF(B41="","",VLOOKUP(B41,العملاء!A:B,2,0)) ->  | E41: =IF(D41="","",VLOOKUP(D41,المخزن!B:C,2,0)) ->  | G41: =IF(D41="","",VLOOKUP(D41,المخزن!B:M,12,0)) ->  | I41: =IF(D41="","",VLOOKUP(D41,المخزن!B:E,4,0)) ->  | L41: =IF(D41="","",VLOOKUP(D41,المخزن!B:L,8,0)) ->  | N41: =IFERROR(INDEX($A$4:$A$2598,SMALL(IF($B$4:$B$2598=$P$1,ROW($A$4:$A$2598)-ROW($A$4)+1),ROWS($N$4:N41))),"") ->  | O41: =IFERROR(INDEX($B$4:$B$2598,SMALL(IF($B$4:$B$2598=$P$1,ROW($A$4:$A$2598)-ROW($A$4)+1),ROWS($N$4:O41))),"") ->  | P41: =IFERROR(INDEX($C$4:$C$2598,SMALL(IF($B$4:$B$2598=$P$1,ROW($A$4:$A$2598)-ROW($A$4)+1),ROWS($N$4:P41))),"") ->  | Q41: =IFERROR(INDEX($D$4:$D$2598,SMALL(IF($B$4:$B$2598=$P$1,ROW($A$4:$A$2598)-ROW($A$4)+1),ROWS($N$4:Q41))),"") ->  | R41: =IFERROR(INDEX($E$4:$E$2598,SMALL(IF($B$4:$B$2598=$P$1,ROW($A$4:$A$2598)-ROW($A$4)+1),ROWS($N$4:R41))),"") ->  | S41: =IFERROR(INDEX($F$4:$F$2598,SMALL(IF($B$4:$B$2598=$P$1,ROW($A$4:$A$2598)-ROW($A$4)+1),ROWS($N$4:S41))),"") ->  | T41: =IFERROR(INDEX($G$4:$G$2598,SMALL(IF($B$4:$B$2598=$P$1,ROW($A$4:$A$2598)-ROW($A$4)+1),ROWS($N$4:T41))),"") ->  | U41: =IFERROR(INDEX($H$4:$H$2598,SMALL(IF($B$4:$B$2598=$P$1,ROW($A$4:$A$2598)-ROW($A$4)+1),ROWS($N$4:U41))),"") ->  | V41: =IFERROR(INDEX($I$4:$I$2598,SMALL(IF($B$4:$B$2598=$P$1,ROW($A$4:$A$2598)-ROW($A$4)+1),ROWS($N$4:V41))),"") ->  | W41: =IFERROR(INDEX($J$4:$J$2598,SMALL(IF($B$4:$B$2598=$P$1,ROW($A$4:$A$2598)-ROW($A$4)+1),ROWS($N$4:W41))),"") ->  | X41: =IFERROR(INDEX($K$4:$K$2598,SMALL(IF($B$4:$B$2598=$P$1,ROW($A$4:$A$2598)-ROW($A$4)+1),ROWS($N$4:X41))),"") ->  | Y41: =IFERROR(INDEX($L$4:$L$2598,SMALL(IF($B$4:$B$2598=$P$1,ROW($A$4:$A$2598)-ROW($A$4)+1),ROWS($N$4:Y41))),"") -> 
A42: 2026-04-03 | C42: =IF(B42="","",VLOOKUP(B42,العملاء!A:B,2,0)) ->  | E42: =IF(D42="","",VLOOKUP(D42,المخزن!B:C,2,0)) ->  | G42: =IF(D42="","",VLOOKUP(D42,المخزن!B:M,12,0)) ->  | I42: =IF(D42="","",VLOOKUP(D42,المخزن!B:E,4,0)) ->  | L42: =IF(D42="","",VLOOKUP(D42,المخزن!B:L,8,0)) ->  | N42: =IFERROR(INDEX($A$4:$A$2598,SMALL(IF($B$4:$B$2598=$P$1,ROW($A$4:$A$2598)-ROW($A$4)+1),ROWS($N$4:N42))),"") ->  | O42: =IFERROR(INDEX($B$4:$B$2598,SMALL(IF($B$4:$B$2598=$P$1,ROW($A$4:$A$2598)-ROW($A$4)+1),ROWS($N$4:O42))),"") ->  | P42: =IFERROR(INDEX($C$4:$C$2598,SMALL(IF($B$4:$B$2598=$P$1,ROW($A$4:$A$2598)-ROW($A$4)+1),ROWS($N$4:P42))),"") ->  | Q42: =IFERROR(INDEX($D$4:$D$2598,SMALL(IF($B$4:$B$2598=$P$1,ROW($A$4:$A$2598)-ROW($A$4)+1),ROWS($N$4:Q42))),"") ->  | R42: =IFERROR(INDEX($E$4:$E$2598,SMALL(IF($B$4:$B$2598=$P$1,ROW($A$4:$A$2598)-ROW($A$4)+1),ROWS($N$4:R42))),"") ->  | S42: =IFERROR(INDEX($F$4:$F$2598,SMALL(IF($B$4:$B$2598=$P$1,ROW($A$4:$A$2598)-ROW($A$4)+1),ROWS($N$4:S42))),"") ->  | T42: =IFERROR(INDEX($G$4:$G$2598,SMALL(IF($B$4:$B$2598=$P$1,ROW($A$4:$A$2598)-ROW($A$4)+1),ROWS($N$4:T42))),"") ->  | U42: =IFERROR(INDEX($H$4:$H$2598,SMALL(IF($B$4:$B$2598=$P$1,ROW($A$4:$A$2598)-ROW($A$4)+1),ROWS($N$4:U42))),"") ->  | V42: =IFERROR(INDEX($I$4:$I$2598,SMALL(IF($B$4:$B$2598=$P$1,ROW($A$4:$A$2598)-ROW($A$4)+1),ROWS($N$4:V42))),"") ->  | W42: =IFERROR(INDEX($J$4:$J$2598,SMALL(IF($B$4:$B$2598=$P$1,ROW($A$4:$A$2598)-ROW($A$4)+1),ROWS($N$4:W42))),"") ->  | X42: =IFERROR(INDEX($K$4:$K$2598,SMALL(IF($B$4:$B$2598=$P$1,ROW($A$4:$A$2598)-ROW($A$4)+1),ROWS($N$4:X42))),"") ->  | Y42: =IFERROR(INDEX($L$4:$L$2598,SMALL(IF($B$4:$B$2598=$P$1,ROW($A$4:$A$2598)-ROW($A$4)+1),ROWS($N$4:Y42))),"") -> 
A43: 2026-04-03 | C43: =IF(B43="","",VLOOKUP(B43,العملاء!A:B,2,0)) ->  | E43: =IF(D43="","",VLOOKUP(D43,المخزن!B:C,2,0)) ->  | G43: =IF(D43="","",VLOOKUP(D43,المخزن!B:M,12,0)) ->  | I43: =IF(D43="","",VLOOKUP(D43,المخزن!B:E,4,0)) ->  | L43: =IF(D43="","",VLOOKUP(D43,المخزن!B:L,8,0)) ->  | N43: =IFERROR(INDEX($A$4:$A$2598,SMALL(IF($B$4:$B$2598=$P$1,ROW($A$4:$A$2598)-ROW($A$4)+1),ROWS($N$4:N43))),"") ->  | O43: =IFERROR(INDEX($B$4:$B$2598,SMALL(IF($B$4:$B$2598=$P$1,ROW($A$4:$A$2598)-ROW($A$4)+1),ROWS($N$4:O43))),"") ->  | P43: =IFERROR(INDEX($C$4:$C$2598,SMALL(IF($B$4:$B$2598=$P$1,ROW($A$4:$A$2598)-ROW($A$4)+1),ROWS($N$4:P43))),"") ->  | Q43: =IFERROR(INDEX($D$4:$D$2598,SMALL(IF($B$4:$B$2598=$P$1,ROW($A$4:$A$2598)-ROW($A$4)+1),ROWS($N$4:Q43))),"") ->  | R43: =IFERROR(INDEX($E$4:$E$2598,SMALL(IF($B$4:$B$2598=$P$1,ROW($A$4:$A$2598)-ROW($A$4)+1),ROWS($N$4:R43))),"") ->  | S43: =IFERROR(INDEX($F$4:$F$2598,SMALL(IF($B$4:$B$2598=$P$1,ROW($A$4:$A$2598)-ROW($A$4)+1),ROWS($N$4:S43))),"") ->  | T43: =IFERROR(INDEX($G$4:$G$2598,SMALL(IF($B$4:$B$2598=$P$1,ROW($A$4:$A$2598)-ROW($A$4)+1),ROWS($N$4:T43))),"") ->  | U43: =IFERROR(INDEX($H$4:$H$2598,SMALL(IF($B$4:$B$2598=$P$1,ROW($A$4:$A$2598)-ROW($A$4)+1),ROWS($N$4:U43))),"") ->  | V43: =IFERROR(INDEX($I$4:$I$2598,SMALL(IF($B$4:$B$2598=$P$1,ROW($A$4:$A$2598)-ROW($A$4)+1),ROWS($N$4:V43))),"") ->  | W43: =IFERROR(INDEX($J$4:$J$2598,SMALL(IF($B$4:$B$2598=$P$1,ROW($A$4:$A$2598)-ROW($A$4)+1),ROWS($N$4:W43))),"") ->  | X43: =IFERROR(INDEX($K$4:$K$2598,SMALL(IF($B$4:$B$2598=$P$1,ROW($A$4:$A$2598)-ROW($A$4)+1),ROWS($N$4:X43))),"") ->  | Y43: =IFERROR(INDEX($L$4:$L$2598,SMALL(IF($B$4:$B$2598=$P$1,ROW($A$4:$A$2598)-ROW($A$4)+1),ROWS($N$4:Y43))),"") -> 
A44: 2026-04-03 | C44: =IF(B44="","",VLOOKUP(B44,العملاء!A:B,2,0)) ->  | E44: =IF(D44="","",VLOOKUP(D44,المخزن!B:C,2,0)) ->  | G44: =IF(D44="","",VLOOKUP(D44,المخزن!B:M,12,0)) ->  | I44: =IF(D44="","",VLOOKUP(D44,المخزن!B:E,4,0)) ->  | L44: =IF(D44="","",VLOOKUP(D44,المخزن!B:L,8,0)) ->  | N44: =IFERROR(INDEX($A$4:$A$2598,SMALL(IF($B$4:$B$2598=$P$1,ROW($A$4:$A$2598)-ROW($A$4)+1),ROWS($N$4:N44))),"") ->  | O44: =IFERROR(INDEX($B$4:$B$2598,SMALL(IF($B$4:$B$2598=$P$1,ROW($A$4:$A$2598)-ROW($A$4)+1),ROWS($N$4:O44))),"") ->  | P44: =IFERROR(INDEX($C$4:$C$2598,SMALL(IF($B$4:$B$2598=$P$1,ROW($A$4:$A$2598)-ROW($A$4)+1),ROWS($N$4:P44))),"") ->  | Q44: =IFERROR(INDEX($D$4:$D$2598,SMALL(IF($B$4:$B$2598=$P$1,ROW($A$4:$A$2598)-ROW($A$4)+1),ROWS($N$4:Q44))),"") ->  | R44: =IFERROR(INDEX($E$4:$E$2598,SMALL(IF($B$4:$B$2598=$P$1,ROW($A$4:$A$2598)-ROW($A$4)+1),ROWS($N$4:R44))),"") ->  | S44: =IFERROR(INDEX($F$4:$F$2598,SMALL(IF($B$4:$B$2598=$P$1,ROW($A$4:$A$2598)-ROW($A$4)+1),ROWS($N$4:S44))),"") ->  | T44: =IFERROR(INDEX($G$4:$G$2598,SMALL(IF($B$4:$B$2598=$P$1,ROW($A$4:$A$2598)-ROW($A$4)+1),ROWS($N$4:T44))),"") ->  | U44: =IFERROR(INDEX($H$4:$H$2598,SMALL(IF($B$4:$B$2598=$P$1,ROW($A$4:$A$2598)-ROW($A$4)+1),ROWS($N$4:U44))),"") ->  | V44: =IFERROR(INDEX($I$4:$I$2598,SMALL(IF($B$4:$B$2598=$P$1,ROW($A$4:$A$2598)-ROW($A$4)+1),ROWS($N$4:V44))),"") ->  | W44: =IFERROR(INDEX($J$4:$J$2598,SMALL(IF($B$4:$B$2598=$P$1,ROW($A$4:$A$2598)-ROW($A$4)+1),ROWS($N$4:W44))),"") ->  | X44: =IFERROR(INDEX($K$4:$K$2598,SMALL(IF($B$4:$B$2598=$P$1,ROW($A$4:$A$2598)-ROW($A$4)+1),ROWS($N$4:X44))),"") ->  | Y44: =IFERROR(INDEX($L$4:$L$2598,SMALL(IF($B$4:$B$2598=$P$1,ROW($A$4:$A$2598)-ROW($A$4)+1),ROWS($N$4:Y44))),"") -> 
A45: 2026-04-03 | C45: =IF(B45="","",VLOOKUP(B45,العملاء!A:B,2,0)) ->  | E45: =IF(D45="","",VLOOKUP(D45,المخزن!B:C,2,0)) ->  | G45: =IF(D45="","",VLOOKUP(D45,المخزن!B:M,12,0)) ->  | I45: =IF(D45="","",VLOOKUP(D45,المخزن!B:E,4,0)) ->  | L45: =IF(D45="","",VLOOKUP(D45,المخزن!B:L,8,0)) ->  | N45: =IFERROR(INDEX($A$4:$A$2598,SMALL(IF($B$4:$B$2598=$P$1,ROW($A$4:$A$2598)-ROW($A$4)+1),ROWS($N$4:N45))),"") ->  | O45: =IFERROR(INDEX($B$4:$B$2598,SMALL(IF($B$4:$B$2598=$P$1,ROW($A$4:$A$2598)-ROW($A$4)+1),ROWS($N$4:O45))),"") ->  | P45: =IFERROR(INDEX($C$4:$C$2598,SMALL(IF($B$4:$B$2598=$P$1,ROW($A$4:$A$2598)-ROW($A$4)+1),ROWS($N$4:P45))),"") ->  | Q45: =IFERROR(INDEX($D$4:$D$2598,SMALL(IF($B$4:$B$2598=$P$1,ROW($A$4:$A$2598)-ROW($A$4)+1),ROWS($N$4:Q45))),"") ->  | R45: =IFERROR(INDEX($E$4:$E$2598,SMALL(IF($B$4:$B$2598=$P$1,ROW($A$4:$A$2598)-ROW($A$4)+1),ROWS($N$4:R45))),"") ->  | S45: =IFERROR(INDEX($F$4:$F$2598,SMALL(IF($B$4:$B$2598=$P$1,ROW($A$4:$A$2598)-ROW($A$4)+1),ROWS($N$4:S45))),"") ->  | T45: =IFERROR(INDEX($G$4:$G$2598,SMALL(IF($B$4:$B$2598=$P$1,ROW($A$4:$A$2598)-ROW($A$4)+1),ROWS($N$4:T45))),"") ->  | U45: =IFERROR(INDEX($H$4:$H$2598,SMALL(IF($B$4:$B$2598=$P$1,ROW($A$4:$A$2598)-ROW($A$4)+1),ROWS($N$4:U45))),"") ->  | V45: =IFERROR(INDEX($I$4:$I$2598,SMALL(IF($B$4:$B$2598=$P$1,ROW($A$4:$A$2598)-ROW($A$4)+1),ROWS($N$4:V45))),"") ->  | W45: =IFERROR(INDEX($J$4:$J$2598,SMALL(IF($B$4:$B$2598=$P$1,ROW($A$4:$A$2598)-ROW($A$4)+1),ROWS($N$4:W45))),"") ->  | X45: =IFERROR(INDEX($K$4:$K$2598,SMALL(IF($B$4:$B$2598=$P$1,ROW($A$4:$A$2598)-ROW($A$4)+1),ROWS($N$4:X45))),"") ->  | Y45: =IFERROR(INDEX($L$4:$L$2598,SMALL(IF($B$4:$B$2598=$P$1,ROW($A$4:$A$2598)-ROW($A$4)+1),ROWS($N$4:Y45))),"") -> 
A46: 2026-04-03 | C46: =IF(B46="","",VLOOKUP(B46,العملاء!A:B,2,0)) ->  | E46: =IF(D46="","",VLOOKUP(D46,المخزن!B:C,2,0)) ->  | G46: =IF(D46="","",VLOOKUP(D46,المخزن!B:M,12,0)) ->  | I46: =IF(D46="","",VLOOKUP(D46,المخزن!B:E,4,0)) ->  | L46: =IF(D46="","",VLOOKUP(D46,المخزن!B:L,8,0)) ->  | N46: =IFERROR(INDEX($A$4:$A$2598,SMALL(IF($B$4:$B$2598=$P$1,ROW($A$4:$A$2598)-ROW($A$4)+1),ROWS($N$4:N46))),"") ->  | O46: =IFERROR(INDEX($B$4:$B$2598,SMALL(IF($B$4:$B$2598=$P$1,ROW($A$4:$A$2598)-ROW($A$4)+1),ROWS($N$4:O46))),"") ->  | P46: =IFERROR(INDEX($C$4:$C$2598,SMALL(IF($B$4:$B$2598=$P$1,ROW($A$4:$A$2598)-ROW($A$4)+1),ROWS($N$4:P46))),"") ->  | Q46: =IFERROR(INDEX($D$4:$D$2598,SMALL(IF($B$4:$B$2598=$P$1,ROW($A$4:$A$2598)-ROW($A$4)+1),ROWS($N$4:Q46))),"") ->  | R46: =IFERROR(INDEX($E$4:$E$2598,SMALL(IF($B$4:$B$2598=$P$1,ROW($A$4:$A$2598)-ROW($A$4)+1),ROWS($N$4:R46))),"") ->  | S46: =IFERROR(INDEX($F$4:$F$2598,SMALL(IF($B$4:$B$2598=$P$1,ROW($A$4:$A$2598)-ROW($A$4)+1),ROWS($N$4:S46))),"") ->  | T46: =IFERROR(INDEX($G$4:$G$2598,SMALL(IF($B$4:$B$2598=$P$1,ROW($A$4:$A$2598)-ROW($A$4)+1),ROWS($N$4:T46))),"") ->  | U46: =IFERROR(INDEX($H$4:$H$2598,SMALL(IF($B$4:$B$2598=$P$1,ROW($A$4:$A$2598)-ROW($A$4)+1),ROWS($N$4:U46))),"") ->  | V46: =IFERROR(INDEX($I$4:$I$2598,SMALL(IF($B$4:$B$2598=$P$1,ROW($A$4:$A$2598)-ROW($A$4)+1),ROWS($N$4:V46))),"") ->  | W46: =IFERROR(INDEX($J$4:$J$2598,SMALL(IF($B$4:$B$2598=$P$1,ROW($A$4:$A$2598)-ROW($A$4)+1),ROWS($N$4:W46))),"") ->  | X46: =IFERROR(INDEX($K$4:$K$2598,SMALL(IF($B$4:$B$2598=$P$1,ROW($A$4:$A$2598)-ROW($A$4)+1),ROWS($N$4:X46))),"") ->  | Y46: =IFERROR(INDEX($L$4:$L$2598,SMALL(IF($B$4:$B$2598=$P$1,ROW($A$4:$A$2598)-ROW($A$4)+1),ROWS($N$4:Y46))),"") -> 
A47: 2026-04-03 | C47: =IF(B47="","",VLOOKUP(B47,العملاء!A:B,2,0)) ->  | E47: =IF(D47="","",VLOOKUP(D47,المخزن!B:C,2,0)) ->  | G47: =IF(D47="","",VLOOKUP(D47,المخزن!B:M,12,0)) ->  | I47: =IF(D47="","",VLOOKUP(D47,المخزن!B:E,4,0)) ->  | L47: =IF(D47="","",VLOOKUP(D47,المخزن!B:L,8,0)) ->  | N47: =IFERROR(INDEX($A$4:$A$2598,SMALL(IF($B$4:$B$2598=$P$1,ROW($A$4:$A$2598)-ROW($A$4)+1),ROWS($N$4:N47))),"") ->  | O47: =IFERROR(INDEX($B$4:$B$2598,SMALL(IF($B$4:$B$2598=$P$1,ROW($A$4:$A$2598)-ROW($A$4)+1),ROWS($N$4:O47))),"") ->  | P47: =IFERROR(INDEX($C$4:$C$2598,SMALL(IF($B$4:$B$2598=$P$1,ROW($A$4:$A$2598)-ROW($A$4)+1),ROWS($N$4:P47))),"") ->  | Q47: =IFERROR(INDEX($D$4:$D$2598,SMALL(IF($B$4:$B$2598=$P$1,ROW($A$4:$A$2598)-ROW($A$4)+1),ROWS($N$4:Q47))),"") ->  | R47: =IFERROR(INDEX($E$4:$E$2598,SMALL(IF($B$4:$B$2598=$P$1,ROW($A$4:$A$2598)-ROW($A$4)+1),ROWS($N$4:R47))),"") ->  | S47: =IFERROR(INDEX($F$4:$F$2598,SMALL(IF($B$4:$B$2598=$P$1,ROW($A$4:$A$2598)-ROW($A$4)+1),ROWS($N$4:S47))),"") ->  | T47: =IFERROR(INDEX($G$4:$G$2598,SMALL(IF($B$4:$B$2598=$P$1,ROW($A$4:$A$2598)-ROW($A$4)+1),ROWS($N$4:T47))),"") ->  | U47: =IFERROR(INDEX($H$4:$H$2598,SMALL(IF($B$4:$B$2598=$P$1,ROW($A$4:$A$2598)-ROW($A$4)+1),ROWS($N$4:U47))),"") ->  | V47: =IFERROR(INDEX($I$4:$I$2598,SMALL(IF($B$4:$B$2598=$P$1,ROW($A$4:$A$2598)-ROW($A$4)+1),ROWS($N$4:V47))),"") ->  | W47: =IFERROR(INDEX($J$4:$J$2598,SMALL(IF($B$4:$B$2598=$P$1,ROW($A$4:$A$2598)-ROW($A$4)+1),ROWS($N$4:W47))),"") ->  | X47: =IFERROR(INDEX($K$4:$K$2598,SMALL(IF($B$4:$B$2598=$P$1,ROW($A$4:$A$2598)-ROW($A$4)+1),ROWS($N$4:X47))),"") ->  | Y47: =IFERROR(INDEX($L$4:$L$2598,SMALL(IF($B$4:$B$2598=$P$1,ROW($A$4:$A$2598)-ROW($A$4)+1),ROWS($N$4:Y47))),"") -> 
A48: 2026-04-03 | C48: =IF(B48="","",VLOOKUP(B48,العملاء!A:B,2,0)) ->  | E48: =IF(D48="","",VLOOKUP(D48,المخزن!B:C,2,0)) ->  | G48: =IF(D48="","",VLOOKUP(D48,المخزن!B:M,12,0)) ->  | I48: =IF(D48="","",VLOOKUP(D48,المخزن!B:E,4,0)) ->  | L48: =IF(D48="","",VLOOKUP(D48,المخزن!B:L,8,0)) ->  | N48: =IFERROR(INDEX($A$4:$A$2598,SMALL(IF($B$4:$B$2598=$P$1,ROW($A$4:$A$2598)-ROW($A$4)+1),ROWS($N$4:N48))),"") ->  | O48: =IFERROR(INDEX($B$4:$B$2598,SMALL(IF($B$4:$B$2598=$P$1,ROW($A$4:$A$2598)-ROW($A$4)+1),ROWS($N$4:O48))),"") ->  | P48: =IFERROR(INDEX($C$4:$C$2598,SMALL(IF($B$4:$B$2598=$P$1,ROW($A$4:$A$2598)-ROW($A$4)+1),ROWS($N$4:P48))),"") ->  | Q48: =IFERROR(INDEX($D$4:$D$2598,SMALL(IF($B$4:$B$2598=$P$1,ROW($A$4:$A$2598)-ROW($A$4)+1),ROWS($N$4:Q48))),"") ->  | R48: =IFERROR(INDEX($E$4:$E$2598,SMALL(IF($B$4:$B$2598=$P$1,ROW($A$4:$A$2598)-ROW($A$4)+1),ROWS($N$4:R48))),"") ->  | S48: =IFERROR(INDEX($F$4:$F$2598,SMALL(IF($B$4:$B$2598=$P$1,ROW($A$4:$A$2598)-ROW($A$4)+1),ROWS($N$4:S48))),"") ->  | T48: =IFERROR(INDEX($G$4:$G$2598,SMALL(IF($B$4:$B$2598=$P$1,ROW($A$4:$A$2598)-ROW($A$4)+1),ROWS($N$4:T48))),"") ->  | U48: =IFERROR(INDEX($H$4:$H$2598,SMALL(IF($B$4:$B$2598=$P$1,ROW($A$4:$A$2598)-ROW($A$4)+1),ROWS($N$4:U48))),"") ->  | V48: =IFERROR(INDEX($I$4:$I$2598,SMALL(IF($B$4:$B$2598=$P$1,ROW($A$4:$A$2598)-ROW($A$4)+1),ROWS($N$4:V48))),"") ->  | W48: =IFERROR(INDEX($J$4:$J$2598,SMALL(IF($B$4:$B$2598=$P$1,ROW($A$4:$A$2598)-ROW($A$4)+1),ROWS($N$4:W48))),"") ->  | X48: =IFERROR(INDEX($K$4:$K$2598,SMALL(IF($B$4:$B$2598=$P$1,ROW($A$4:$A$2598)-ROW($A$4)+1),ROWS($N$4:X48))),"") ->  | Y48: =IFERROR(INDEX($L$4:$L$2598,SMALL(IF($B$4:$B$2598=$P$1,ROW($A$4:$A$2598)-ROW($A$4)+1),ROWS($N$4:Y48))),"") -> 
A49: 2026-04-03 | C49: =IF(B49="","",VLOOKUP(B49,العملاء!A:B,2,0)) ->  | E49: =IF(D49="","",VLOOKUP(D49,المخزن!B:C,2,0)) ->  | G49: =IF(D49="","",VLOOKUP(D49,المخزن!B:M,12,0)) ->  | I49: =IF(D49="","",VLOOKUP(D49,المخزن!B:E,4,0)) ->  | L49: =IF(D49="","",VLOOKUP(D49,المخزن!B:L,8,0)) ->  | N49: =IFERROR(INDEX($A$4:$A$2598,SMALL(IF($B$4:$B$2598=$P$1,ROW($A$4:$A$2598)-ROW($A$4)+1),ROWS($N$4:N49))),"") ->  | O49: =IFERROR(INDEX($B$4:$B$2598,SMALL(IF($B$4:$B$2598=$P$1,ROW($A$4:$A$2598)-ROW($A$4)+1),ROWS($N$4:O49))),"") ->  | P49: =IFERROR(INDEX($C$4:$C$2598,SMALL(IF($B$4:$B$2598=$P$1,ROW($A$4:$A$2598)-ROW($A$4)+1),ROWS($N$4:P49))),"") ->  | Q49: =IFERROR(INDEX($D$4:$D$2598,SMALL(IF($B$4:$B$2598=$P$1,ROW($A$4:$A$2598)-ROW($A$4)+1),ROWS($N$4:Q49))),"") ->  | R49: =IFERROR(INDEX($E$4:$E$2598,SMALL(IF($B$4:$B$2598=$P$1,ROW($A$4:$A$2598)-ROW($A$4)+1),ROWS($N$4:R49))),"") ->  | S49: =IFERROR(INDEX($F$4:$F$2598,SMALL(IF($B$4:$B$2598=$P$1,ROW($A$4:$A$2598)-ROW($A$4)+1),ROWS($N$4:S49))),"") ->  | T49: =IFERROR(INDEX($G$4:$G$2598,SMALL(IF($B$4:$B$2598=$P$1,ROW($A$4:$A$2598)-ROW($A$4)+1),ROWS($N$4:T49))),"") ->  | U49: =IFERROR(INDEX($H$4:$H$2598,SMALL(IF($B$4:$B$2598=$P$1,ROW($A$4:$A$2598)-ROW($A$4)+1),ROWS($N$4:U49))),"") ->  | V49: =IFERROR(INDEX($I$4:$I$2598,SMALL(IF($B$4:$B$2598=$P$1,ROW($A$4:$A$2598)-ROW($A$4)+1),ROWS($N$4:V49))),"") ->  | W49: =IFERROR(INDEX($J$4:$J$2598,SMALL(IF($B$4:$B$2598=$P$1,ROW($A$4:$A$2598)-ROW($A$4)+1),ROWS($N$4:W49))),"") ->  | X49: =IFERROR(INDEX($K$4:$K$2598,SMALL(IF($B$4:$B$2598=$P$1,ROW($A$4:$A$2598)-ROW($A$4)+1),ROWS($N$4:X49))),"") ->  | Y49: =IFERROR(INDEX($L$4:$L$2598,SMALL(IF($B$4:$B$2598=$P$1,ROW($A$4:$A$2598)-ROW($A$4)+1),ROWS($N$4:Y49))),"") -> 
A50: 2026-04-04 | C50: =IF(B50="","",VLOOKUP(B50,العملاء!A:B,2,0)) ->  | E50: =IF(D50="","",VLOOKUP(D50,المخزن!B:C,2,0)) ->  | G50: =IF(D50="","",VLOOKUP(D50,المخزن!B:M,12,0)) ->  | I50: =IF(D50="","",VLOOKUP(D50,المخزن!B:E,4,0)) ->  | L50: =IF(D50="","",VLOOKUP(D50,المخزن!B:L,8,0)) ->  | N50: =IFERROR(INDEX($A$4:$A$2598,SMALL(IF($B$4:$B$2598=$P$1,ROW($A$4:$A$2598)-ROW($A$4)+1),ROWS($N$4:N50))),"") ->  | O50: =IFERROR(INDEX($B$4:$B$2598,SMALL(IF($B$4:$B$2598=$P$1,ROW($A$4:$A$2598)-ROW($A$4)+1),ROWS($N$4:O50))),"") ->  | P50: =IFERROR(INDEX($C$4:$C$2598,SMALL(IF($B$4:$B$2598=$P$1,ROW($A$4:$A$2598)-ROW($A$4)+1),ROWS($N$4:P50))),"") ->  | Q50: =IFERROR(INDEX($D$4:$D$2598,SMALL(IF($B$4:$B$2598=$P$1,ROW($A$4:$A$2598)-ROW($A$4)+1),ROWS($N$4:Q50))),"") ->  | R50: =IFERROR(INDEX($E$4:$E$2598,SMALL(IF($B$4:$B$2598=$P$1,ROW($A$4:$A$2598)-ROW($A$4)+1),ROWS($N$4:R50))),"") ->  | S50: =IFERROR(INDEX($F$4:$F$2598,SMALL(IF($B$4:$B$2598=$P$1,ROW($A$4:$A$2598)-ROW($A$4)+1),ROWS($N$4:S50))),"") ->  | T50: =IFERROR(INDEX($G$4:$G$2598,SMALL(IF($B$4:$B$2598=$P$1,ROW($A$4:$A$2598)-ROW($A$4)+1),ROWS($N$4:T50))),"") ->  | U50: =IFERROR(INDEX($H$4:$H$2598,SMALL(IF($B$4:$B$2598=$P$1,ROW($A$4:$A$2598)-ROW($A$4)+1),ROWS($N$4:U50))),"") ->  | V50: =IFERROR(INDEX($I$4:$I$2598,SMALL(IF($B$4:$B$2598=$P$1,ROW($A$4:$A$2598)-ROW($A$4)+1),ROWS($N$4:V50))),"") ->  | W50: =IFERROR(INDEX($J$4:$J$2598,SMALL(IF($B$4:$B$2598=$P$1,ROW($A$4:$A$2598)-ROW($A$4)+1),ROWS($N$4:W50))),"") ->  | X50: =IFERROR(INDEX($K$4:$K$2598,SMALL(IF($B$4:$B$2598=$P$1,ROW($A$4:$A$2598)-ROW($A$4)+1),ROWS($N$4:X50))),"") ->  | Y50: =IFERROR(INDEX($L$4:$L$2598,SMALL(IF($B$4:$B$2598=$P$1,ROW($A$4:$A$2598)-ROW($A$4)+1),ROWS($N$4:Y50))),"") -> 
A51: 2026-04-04 | C51: =IF(B51="","",VLOOKUP(B51,العملاء!A:B,2,0)) ->  | E51: =IF(D51="","",VLOOKUP(D51,المخزن!B:C,2,0)) ->  | G51: =IF(D51="","",VLOOKUP(D51,المخزن!B:M,12,0)) ->  | I51: =IF(D51="","",VLOOKUP(D51,المخزن!B:E,4,0)) ->  | L51: =IF(D51="","",VLOOKUP(D51,المخزن!B:L,8,0)) ->  | N51: =IFERROR(INDEX($A$4:$A$2598,SMALL(IF($B$4:$B$2598=$P$1,ROW($A$4:$A$2598)-ROW($A$4)+1),ROWS($N$4:N51))),"") ->  | O51: =IFERROR(INDEX($B$4:$B$2598,SMALL(IF($B$4:$B$2598=$P$1,ROW($A$4:$A$2598)-ROW($A$4)+1),ROWS($N$4:O51))),"") ->  | P51: =IFERROR(INDEX($C$4:$C$2598,SMALL(IF($B$4:$B$2598=$P$1,ROW($A$4:$A$2598)-ROW($A$4)+1),ROWS($N$4:P51))),"") ->  | Q51: =IFERROR(INDEX($D$4:$D$2598,SMALL(IF($B$4:$B$2598=$P$1,ROW($A$4:$A$2598)-ROW($A$4)+1),ROWS($N$4:Q51))),"") ->  | R51: =IFERROR(INDEX($E$4:$E$2598,SMALL(IF($B$4:$B$2598=$P$1,ROW($A$4:$A$2598)-ROW($A$4)+1),ROWS($N$4:R51))),"") ->  | S51: =IFERROR(INDEX($F$4:$F$2598,SMALL(IF($B$4:$B$2598=$P$1,ROW($A$4:$A$2598)-ROW($A$4)+1),ROWS($N$4:S51))),"") ->  | T51: =IFERROR(INDEX($G$4:$G$2598,SMALL(IF($B$4:$B$2598=$P$1,ROW($A$4:$A$2598)-ROW($A$4)+1),ROWS($N$4:T51))),"") ->  | U51: =IFERROR(INDEX($H$4:$H$2598,SMALL(IF($B$4:$B$2598=$P$1,ROW($A$4:$A$2598)-ROW($A$4)+1),ROWS($N$4:U51))),"") ->  | V51: =IFERROR(INDEX($I$4:$I$2598,SMALL(IF($B$4:$B$2598=$P$1,ROW($A$4:$A$2598)-ROW($A$4)+1),ROWS($N$4:V51))),"") ->  | W51: =IFERROR(INDEX($J$4:$J$2598,SMALL(IF($B$4:$B$2598=$P$1,ROW($A$4:$A$2598)-ROW($A$4)+1),ROWS($N$4:W51))),"") ->  | X51: =IFERROR(INDEX($K$4:$K$2598,SMALL(IF($B$4:$B$2598=$P$1,ROW($A$4:$A$2598)-ROW($A$4)+1),ROWS($N$4:X51))),"") ->  | Y51: =IFERROR(INDEX($L$4:$L$2598,SMALL(IF($B$4:$B$2598=$P$1,ROW($A$4:$A$2598)-ROW($A$4)+1),ROWS($N$4:Y51))),"") -> 
A52: 2026-04-04 | C52: =IF(B52="","",VLOOKUP(B52,العملاء!A:B,2,0)) ->  | E52: =IF(D52="","",VLOOKUP(D52,المخزن!B:C,2,0)) ->  | G52: =IF(D52="","",VLOOKUP(D52,المخزن!B:M,12,0)) ->  | I52: =IF(D52="","",VLOOKUP(D52,المخزن!B:E,4,0)) ->  | L52: =IF(D52="","",VLOOKUP(D52,المخزن!B:L,8,0)) ->  | N52: =IFERROR(INDEX($A$4:$A$2598,SMALL(IF($B$4:$B$2598=$P$1,ROW($A$4:$A$2598)-ROW($A$4)+1),ROWS($N$4:N52))),"") ->  | O52: =IFERROR(INDEX($B$4:$B$2598,SMALL(IF($B$4:$B$2598=$P$1,ROW($A$4:$A$2598)-ROW($A$4)+1),ROWS($N$4:O52))),"") ->  | P52: =IFERROR(INDEX($C$4:$C$2598,SMALL(IF($B$4:$B$2598=$P$1,ROW($A$4:$A$2598)-ROW($A$4)+1),ROWS($N$4:P52))),"") ->  | Q52: =IFERROR(INDEX($D$4:$D$2598,SMALL(IF($B$4:$B$2598=$P$1,ROW($A$4:$A$2598)-ROW($A$4)+1),ROWS($N$4:Q52))),"") ->  | R52: =IFERROR(INDEX($E$4:$E$2598,SMALL(IF($B$4:$B$2598=$P$1,ROW($A$4:$A$2598)-ROW($A$4)+1),ROWS($N$4:R52))),"") ->  | S52: =IFERROR(INDEX($F$4:$F$2598,SMALL(IF($B$4:$B$2598=$P$1,ROW($A$4:$A$2598)-ROW($A$4)+1),ROWS($N$4:S52))),"") ->  | T52: =IFERROR(INDEX($G$4:$G$2598,SMALL(IF($B$4:$B$2598=$P$1,ROW($A$4:$A$2598)-ROW($A$4)+1),ROWS($N$4:T52))),"") ->  | U52: =IFERROR(INDEX($H$4:$H$2598,SMALL(IF($B$4:$B$2598=$P$1,ROW($A$4:$A$2598)-ROW($A$4)+1),ROWS($N$4:U52))),"") ->  | V52: =IFERROR(INDEX($I$4:$I$2598,SMALL(IF($B$4:$B$2598=$P$1,ROW($A$4:$A$2598)-ROW($A$4)+1),ROWS($N$4:V52))),"") ->  | W52: =IFERROR(INDEX($J$4:$J$2598,SMALL(IF($B$4:$B$2598=$P$1,ROW($A$4:$A$2598)-ROW($A$4)+1),ROWS($N$4:W52))),"") ->  | X52: =IFERROR(INDEX($K$4:$K$2598,SMALL(IF($B$4:$B$2598=$P$1,ROW($A$4:$A$2598)-ROW($A$4)+1),ROWS($N$4:X52))),"") ->  | Y52: =IFERROR(INDEX($L$4:$L$2598,SMALL(IF($B$4:$B$2598=$P$1,ROW($A$4:$A$2598)-ROW($A$4)+1),ROWS($N$4:Y52))),"") -> 
A53: 2026-04-04 | C53: =IF(B53="","",VLOOKUP(B53,العملاء!A:B,2,0)) ->  | E53: =IF(D53="","",VLOOKUP(D53,المخزن!B:C,2,0)) ->  | G53: =IF(D53="","",VLOOKUP(D53,المخزن!B:M,12,0)) ->  | I53: =IF(D53="","",VLOOKUP(D53,المخزن!B:E,4,0)) ->  | L53: =IF(D53="","",VLOOKUP(D53,المخزن!B:L,8,0)) ->  | N53: =IFERROR(INDEX($A$4:$A$2598,SMALL(IF($B$4:$B$2598=$P$1,ROW($A$4:$A$2598)-ROW($A$4)+1),ROWS($N$4:N53))),"") ->  | O53: =IFERROR(INDEX($B$4:$B$2598,SMALL(IF($B$4:$B$2598=$P$1,ROW($A$4:$A$2598)-ROW($A$4)+1),ROWS($N$4:O53))),"") ->  | P53: =IFERROR(INDEX($C$4:$C$2598,SMALL(IF($B$4:$B$2598=$P$1,ROW($A$4:$A$2598)-ROW($A$4)+1),ROWS($N$4:P53))),"") ->  | Q53: =IFERROR(INDEX($D$4:$D$2598,SMALL(IF($B$4:$B$2598=$P$1,ROW($A$4:$A$2598)-ROW($A$4)+1),ROWS($N$4:Q53))),"") ->  | R53: =IFERROR(INDEX($E$4:$E$2598,SMALL(IF($B$4:$B$2598=$P$1,ROW($A$4:$A$2598)-ROW($A$4)+1),ROWS($N$4:R53))),"") ->  | S53: =IFERROR(INDEX($F$4:$F$2598,SMALL(IF($B$4:$B$2598=$P$1,ROW($A$4:$A$2598)-ROW($A$4)+1),ROWS($N$4:S53))),"") ->  | T53: =IFERROR(INDEX($G$4:$G$2598,SMALL(IF($B$4:$B$2598=$P$1,ROW($A$4:$A$2598)-ROW($A$4)+1),ROWS($N$4:T53))),"") ->  | U53: =IFERROR(INDEX($H$4:$H$2598,SMALL(IF($B$4:$B$2598=$P$1,ROW($A$4:$A$2598)-ROW($A$4)+1),ROWS($N$4:U53))),"") ->  | V53: =IFERROR(INDEX($I$4:$I$2598,SMALL(IF($B$4:$B$2598=$P$1,ROW($A$4:$A$2598)-ROW($A$4)+1),ROWS($N$4:V53))),"") ->  | W53: =IFERROR(INDEX($J$4:$J$2598,SMALL(IF($B$4:$B$2598=$P$1,ROW($A$4:$A$2598)-ROW($A$4)+1),ROWS($N$4:W53))),"") ->  | X53: =IFERROR(INDEX($K$4:$K$2598,SMALL(IF($B$4:$B$2598=$P$1,ROW($A$4:$A$2598)-ROW($A$4)+1),ROWS($N$4:X53))),"") ->  | Y53: =IFERROR(INDEX($L$4:$L$2598,SMALL(IF($B$4:$B$2598=$P$1,ROW($A$4:$A$2598)-ROW($A$4)+1),ROWS($N$4:Y53))),"") -> 
A54: 2026-04-05 | C54: =IF(B54="","",VLOOKUP(B54,العملاء!A:B,2,0)) ->  | E54: =IF(D54="","",VLOOKUP(D54,المخزن!B:C,2,0)) ->  | G54: =IF(D54="","",VLOOKUP(D54,المخزن!B:M,12,0)) ->  | I54: =IF(D54="","",VLOOKUP(D54,المخزن!B:E,4,0)) ->  | L54: =IF(D54="","",VLOOKUP(D54,المخزن!B:L,8,0)) ->  | N54: =IFERROR(INDEX($A$4:$A$2598,SMALL(IF($B$4:$B$2598=$P$1,ROW($A$4:$A$2598)-ROW($A$4)+1),ROWS($N$4:N54))),"") ->  | O54: =IFERROR(INDEX($B$4:$B$2598,SMALL(IF($B$4:$B$2598=$P$1,ROW($A$4:$A$2598)-ROW($A$4)+1),ROWS($N$4:O54))),"") ->  | P54: =IFERROR(INDEX($C$4:$C$2598,SMALL(IF($B$4:$B$2598=$P$1,ROW($A$4:$A$2598)-ROW($A$4)+1),ROWS($N$4:P54))),"") ->  | Q54: =IFERROR(INDEX($D$4:$D$2598,SMALL(IF($B$4:$B$2598=$P$1,ROW($A$4:$A$2598)-ROW($A$4)+1),ROWS($N$4:Q54))),"") ->  | R54: =IFERROR(INDEX($E$4:$E$2598,SMALL(IF($B$4:$B$2598=$P$1,ROW($A$4:$A$2598)-ROW($A$4)+1),ROWS($N$4:R54))),"") ->  | S54: =IFERROR(INDEX($F$4:$F$2598,SMALL(IF($B$4:$B$2598=$P$1,ROW($A$4:$A$2598)-ROW($A$4)+1),ROWS($N$4:S54))),"") ->  | T54: =IFERROR(INDEX($G$4:$G$2598,SMALL(IF($B$4:$B$2598=$P$1,ROW($A$4:$A$2598)-ROW($A$4)+1),ROWS($N$4:T54))),"") ->  | U54: =IFERROR(INDEX($H$4:$H$2598,SMALL(IF($B$4:$B$2598=$P$1,ROW($A$4:$A$2598)-ROW($A$4)+1),ROWS($N$4:U54))),"") ->  | V54: =IFERROR(INDEX($I$4:$I$2598,SMALL(IF($B$4:$B$2598=$P$1,ROW($A$4:$A$2598)-ROW($A$4)+1),ROWS($N$4:V54))),"") ->  | W54: =IFERROR(INDEX($J$4:$J$2598,SMALL(IF($B$4:$B$2598=$P$1,ROW($A$4:$A$2598)-ROW($A$4)+1),ROWS($N$4:W54))),"") ->  | X54: =IFERROR(INDEX($K$4:$K$2598,SMALL(IF($B$4:$B$2598=$P$1,ROW($A$4:$A$2598)-ROW($A$4)+1),ROWS($N$4:X54))),"") ->  | Y54: =IFERROR(INDEX($L$4:$L$2598,SMALL(IF($B$4:$B$2598=$P$1,ROW($A$4:$A$2598)-ROW($A$4)+1),ROWS($N$4:Y54))),"") -> 
A55: 2026-04-05 | C55: =IF(B55="","",VLOOKUP(B55,العملاء!A:B,2,0)) ->  | E55: =IF(D55="","",VLOOKUP(D55,المخزن!B:C,2,0)) ->  | G55: =IF(D55="","",VLOOKUP(D55,المخزن!B:M,12,0)) ->  | I55: =IF(D55="","",VLOOKUP(D55,المخزن!B:E,4,0)) ->  | L55: =IF(D55="","",VLOOKUP(D55,المخزن!B:L,8,0)) ->  | N55: =IFERROR(INDEX($A$4:$A$2598,SMALL(IF($B$4:$B$2598=$P$1,ROW($A$4:$A$2598)-ROW($A$4)+1),ROWS($N$4:N55))),"") ->  | O55: =IFERROR(INDEX($B$4:$B$2598,SMALL(IF($B$4:$B$2598=$P$1,ROW($A$4:$A$2598)-ROW($A$4)+1),ROWS($N$4:O55))),"") ->  | P55: =IFERROR(INDEX($C$4:$C$2598,SMALL(IF($B$4:$B$2598=$P$1,ROW($A$4:$A$2598)-ROW($A$4)+1),ROWS($N$4:P55))),"") ->  | Q55: =IFERROR(INDEX($D$4:$D$2598,SMALL(IF($B$4:$B$2598=$P$1,ROW($A$4:$A$2598)-ROW($A$4)+1),ROWS($N$4:Q55))),"") ->  | R55: =IFERROR(INDEX($E$4:$E$2598,SMALL(IF($B$4:$B$2598=$P$1,ROW($A$4:$A$2598)-ROW($A$4)+1),ROWS($N$4:R55))),"") ->  | S55: =IFERROR(INDEX($F$4:$F$2598,SMALL(IF($B$4:$B$2598=$P$1,ROW($A$4:$A$2598)-ROW($A$4)+1),ROWS($N$4:S55))),"") ->  | T55: =IFERROR(INDEX($G$4:$G$2598,SMALL(IF($B$4:$B$2598=$P$1,ROW($A$4:$A$2598)-ROW($A$4)+1),ROWS($N$4:T55))),"") ->  | U55: =IFERROR(INDEX($H$4:$H$2598,SMALL(IF($B$4:$B$2598=$P$1,ROW($A$4:$A$2598)-ROW($A$4)+1),ROWS($N$4:U55))),"") ->  | V55: =IFERROR(INDEX($I$4:$I$2598,SMALL(IF($B$4:$B$2598=$P$1,ROW($A$4:$A$2598)-ROW($A$4)+1),ROWS($N$4:V55))),"") ->  | W55: =IFERROR(INDEX($J$4:$J$2598,SMALL(IF($B$4:$B$2598=$P$1,ROW($A$4:$A$2598)-ROW($A$4)+1),ROWS($N$4:W55))),"") ->  | X55: =IFERROR(INDEX($K$4:$K$2598,SMALL(IF($B$4:$B$2598=$P$1,ROW($A$4:$A$2598)-ROW($A$4)+1),ROWS($N$4:X55))),"") ->  | Y55: =IFERROR(INDEX($L$4:$L$2598,SMALL(IF($B$4:$B$2598=$P$1,ROW($A$4:$A$2598)-ROW($A$4)+1),ROWS($N$4:Y55))),"") -> 
A56: 2026-04-05 | C56: =IF(B56="","",VLOOKUP(B56,العملاء!A:B,2,0)) ->  | E56: =IF(D56="","",VLOOKUP(D56,المخزن!B:C,2,0)) ->  | G56: =IF(D56="","",VLOOKUP(D56,المخزن!B:M,12,0)) ->  | I56: =IF(D56="","",VLOOKUP(D56,المخزن!B:E,4,0)) ->  | L56: =IF(D56="","",VLOOKUP(D56,المخزن!B:L,8,0)) ->  | N56: =IFERROR(INDEX($A$4:$A$2598,SMALL(IF($B$4:$B$2598=$P$1,ROW($A$4:$A$2598)-ROW($A$4)+1),ROWS($N$4:N56))),"") ->  | O56: =IFERROR(INDEX($B$4:$B$2598,SMALL(IF($B$4:$B$2598=$P$1,ROW($A$4:$A$2598)-ROW($A$4)+1),ROWS($N$4:O56))),"") ->  | P56: =IFERROR(INDEX($C$4:$C$2598,SMALL(IF($B$4:$B$2598=$P$1,ROW($A$4:$A$2598)-ROW($A$4)+1),ROWS($N$4:P56))),"") ->  | Q56: =IFERROR(INDEX($D$4:$D$2598,SMALL(IF($B$4:$B$2598=$P$1,ROW($A$4:$A$2598)-ROW($A$4)+1),ROWS($N$4:Q56))),"") ->  | R56: =IFERROR(INDEX($E$4:$E$2598,SMALL(IF($B$4:$B$2598=$P$1,ROW($A$4:$A$2598)-ROW($A$4)+1),ROWS($N$4:R56))),"") ->  | S56: =IFERROR(INDEX($F$4:$F$2598,SMALL(IF($B$4:$B$2598=$P$1,ROW($A$4:$A$2598)-ROW($A$4)+1),ROWS($N$4:S56))),"") ->  | T56: =IFERROR(INDEX($G$4:$G$2598,SMALL(IF($B$4:$B$2598=$P$1,ROW($A$4:$A$2598)-ROW($A$4)+1),ROWS($N$4:T56))),"") ->  | U56: =IFERROR(INDEX($H$4:$H$2598,SMALL(IF($B$4:$B$2598=$P$1,ROW($A$4:$A$2598)-ROW($A$4)+1),ROWS($N$4:U56))),"") ->  | V56: =IFERROR(INDEX($I$4:$I$2598,SMALL(IF($B$4:$B$2598=$P$1,ROW($A$4:$A$2598)-ROW($A$4)+1),ROWS($N$4:V56))),"") ->  | W56: =IFERROR(INDEX($J$4:$J$2598,SMALL(IF($B$4:$B$2598=$P$1,ROW($A$4:$A$2598)-ROW($A$4)+1),ROWS($N$4:W56))),"") ->  | X56: =IFERROR(INDEX($K$4:$K$2598,SMALL(IF($B$4:$B$2598=$P$1,ROW($A$4:$A$2598)-ROW($A$4)+1),ROWS($N$4:X56))),"") ->  | Y56: =IFERROR(INDEX($L$4:$L$2598,SMALL(IF($B$4:$B$2598=$P$1,ROW($A$4:$A$2598)-ROW($A$4)+1),ROWS($N$4:Y56))),"") -> 
A57: 2026-04-05 | C57: =IF(B57="","",VLOOKUP(B57,العملاء!A:B,2,0)) ->  | E57: =IF(D57="","",VLOOKUP(D57,المخزن!B:C,2,0)) ->  | G57: =IF(D57="","",VLOOKUP(D57,المخزن!B:M,12,0)) ->  | I57: =IF(D57="","",VLOOKUP(D57,المخزن!B:E,4,0)) ->  | L57: =IF(D57="","",VLOOKUP(D57,المخزن!B:L,8,0)) ->  | N57: =IFERROR(INDEX($A$4:$A$2598,SMALL(IF($B$4:$B$2598=$P$1,ROW($A$4:$A$2598)-ROW($A$4)+1),ROWS($N$4:N57))),"") ->  | O57: =IFERROR(INDEX($B$4:$B$2598,SMALL(IF($B$4:$B$2598=$P$1,ROW($A$4:$A$2598)-ROW($A$4)+1),ROWS($N$4:O57))),"") ->  | P57: =IFERROR(INDEX($C$4:$C$2598,SMALL(IF($B$4:$B$2598=$P$1,ROW($A$4:$A$2598)-ROW($A$4)+1),ROWS($N$4:P57))),"") ->  | Q57: =IFERROR(INDEX($D$4:$D$2598,SMALL(IF($B$4:$B$2598=$P$1,ROW($A$4:$A$2598)-ROW($A$4)+1),ROWS($N$4:Q57))),"") ->  | R57: =IFERROR(INDEX($E$4:$E$2598,SMALL(IF($B$4:$B$2598=$P$1,ROW($A$4:$A$2598)-ROW($A$4)+1),ROWS($N$4:R57))),"") ->  | S57: =IFERROR(INDEX($F$4:$F$2598,SMALL(IF($B$4:$B$2598=$P$1,ROW($A$4:$A$2598)-ROW($A$4)+1),ROWS($N$4:S57))),"") ->  | T57: =IFERROR(INDEX($G$4:$G$2598,SMALL(IF($B$4:$B$2598=$P$1,ROW($A$4:$A$2598)-ROW($A$4)+1),ROWS($N$4:T57))),"") ->  | U57: =IFERROR(INDEX($H$4:$H$2598,SMALL(IF($B$4:$B$2598=$P$1,ROW($A$4:$A$2598)-ROW($A$4)+1),ROWS($N$4:U57))),"") ->  | V57: =IFERROR(INDEX($I$4:$I$2598,SMALL(IF($B$4:$B$2598=$P$1,ROW($A$4:$A$2598)-ROW($A$4)+1),ROWS($N$4:V57))),"") ->  | W57: =IFERROR(INDEX($J$4:$J$2598,SMALL(IF($B$4:$B$2598=$P$1,ROW($A$4:$A$2598)-ROW($A$4)+1),ROWS($N$4:W57))),"") ->  | X57: =IFERROR(INDEX($K$4:$K$2598,SMALL(IF($B$4:$B$2598=$P$1,ROW($A$4:$A$2598)-ROW($A$4)+1),ROWS($N$4:X57))),"") ->  | Y57: =IFERROR(INDEX($L$4:$L$2598,SMALL(IF($B$4:$B$2598=$P$1,ROW($A$4:$A$2598)-ROW($A$4)+1),ROWS($N$4:Y57))),"") -> 
A58: 2026-04-05 | C58: =IF(B58="","",VLOOKUP(B58,العملاء!A:B,2,0)) ->  | E58: =IF(D58="","",VLOOKUP(D58,المخزن!B:C,2,0)) ->  | G58: =IF(D58="","",VLOOKUP(D58,المخزن!B:M,12,0)) ->  | I58: =IF(D58="","",VLOOKUP(D58,المخزن!B:E,4,0)) ->  | L58: =IF(D58="","",VLOOKUP(D58,المخزن!B:L,8,0)) ->  | N58: =IFERROR(INDEX($A$4:$A$2598,SMALL(IF($B$4:$B$2598=$P$1,ROW($A$4:$A$2598)-ROW($A$4)+1),ROWS($N$4:N58))),"") ->  | O58: =IFERROR(INDEX($B$4:$B$2598,SMALL(IF($B$4:$B$2598=$P$1,ROW($A$4:$A$2598)-ROW($A$4)+1),ROWS($N$4:O58))),"") ->  | P58: =IFERROR(INDEX($C$4:$C$2598,SMALL(IF($B$4:$B$2598=$P$1,ROW($A$4:$A$2598)-ROW($A$4)+1),ROWS($N$4:P58))),"") ->  | Q58: =IFERROR(INDEX($D$4:$D$2598,SMALL(IF($B$4:$B$2598=$P$1,ROW($A$4:$A$2598)-ROW($A$4)+1),ROWS($N$4:Q58))),"") ->  | R58: =IFERROR(INDEX($E$4:$E$2598,SMALL(IF($B$4:$B$2598=$P$1,ROW($A$4:$A$2598)-ROW($A$4)+1),ROWS($N$4:R58))),"") ->  | S58: =IFERROR(INDEX($F$4:$F$2598,SMALL(IF($B$4:$B$2598=$P$1,ROW($A$4:$A$2598)-ROW($A$4)+1),ROWS($N$4:S58))),"") ->  | T58: =IFERROR(INDEX($G$4:$G$2598,SMALL(IF($B$4:$B$2598=$P$1,ROW($A$4:$A$2598)-ROW($A$4)+1),ROWS($N$4:T58))),"") ->  | U58: =IFERROR(INDEX($H$4:$H$2598,SMALL(IF($B$4:$B$2598=$P$1,ROW($A$4:$A$2598)-ROW($A$4)+1),ROWS($N$4:U58))),"") ->  | V58: =IFERROR(INDEX($I$4:$I$2598,SMALL(IF($B$4:$B$2598=$P$1,ROW($A$4:$A$2598)-ROW($A$4)+1),ROWS($N$4:V58))),"") ->  | W58: =IFERROR(INDEX($J$4:$J$2598,SMALL(IF($B$4:$B$2598=$P$1,ROW($A$4:$A$2598)-ROW($A$4)+1),ROWS($N$4:W58))),"") ->  | X58: =IFERROR(INDEX($K$4:$K$2598,SMALL(IF($B$4:$B$2598=$P$1,ROW($A$4:$A$2598)-ROW($A$4)+1),ROWS($N$4:X58))),"") ->  | Y58: =IFERROR(INDEX($L$4:$L$2598,SMALL(IF($B$4:$B$2598=$P$1,ROW($A$4:$A$2598)-ROW($A$4)+1),ROWS($N$4:Y58))),"") -> 
A59: 2026-04-05 | C59: =IF(B59="","",VLOOKUP(B59,العملاء!A:B,2,0)) ->  | E59: =IF(D59="","",VLOOKUP(D59,المخزن!B:C,2,0)) ->  | G59: =IF(D59="","",VLOOKUP(D59,المخزن!B:M,12,0)) ->  | I59: =IF(D59="","",VLOOKUP(D59,المخزن!B:E,4,0)) ->  | L59: =IF(D59="","",VLOOKUP(D59,المخزن!B:L,8,0)) ->  | N59: =IFERROR(INDEX($A$4:$A$2598,SMALL(IF($B$4:$B$2598=$P$1,ROW($A$4:$A$2598)-ROW($A$4)+1),ROWS($N$4:N59))),"") ->  | O59: =IFERROR(INDEX($B$4:$B$2598,SMALL(IF($B$4:$B$2598=$P$1,ROW($A$4:$A$2598)-ROW($A$4)+1),ROWS($N$4:O59))),"") ->  | P59: =IFERROR(INDEX($C$4:$C$2598,SMALL(IF($B$4:$B$2598=$P$1,ROW($A$4:$A$2598)-ROW($A$4)+1),ROWS($N$4:P59))),"") ->  | Q59: =IFERROR(INDEX($D$4:$D$2598,SMALL(IF($B$4:$B$2598=$P$1,ROW($A$4:$A$2598)-ROW($A$4)+1),ROWS($N$4:Q59))),"") ->  | R59: =IFERROR(INDEX($E$4:$E$2598,SMALL(IF($B$4:$B$2598=$P$1,ROW($A$4:$A$2598)-ROW($A$4)+1),ROWS($N$4:R59))),"") ->  | S59: =IFERROR(INDEX($F$4:$F$2598,SMALL(IF($B$4:$B$2598=$P$1,ROW($A$4:$A$2598)-ROW($A$4)+1),ROWS($N$4:S59))),"") ->  | T59: =IFERROR(INDEX($G$4:$G$2598,SMALL(IF($B$4:$B$2598=$P$1,ROW($A$4:$A$2598)-ROW($A$4)+1),ROWS($N$4:T59))),"") ->  | U59: =IFERROR(INDEX($H$4:$H$2598,SMALL(IF($B$4:$B$2598=$P$1,ROW($A$4:$A$2598)-ROW($A$4)+1),ROWS($N$4:U59))),"") ->  | V59: =IFERROR(INDEX($I$4:$I$2598,SMALL(IF($B$4:$B$2598=$P$1,ROW($A$4:$A$2598)-ROW($A$4)+1),ROWS($N$4:V59))),"") ->  | W59: =IFERROR(INDEX($J$4:$J$2598,SMALL(IF($B$4:$B$2598=$P$1,ROW($A$4:$A$2598)-ROW($A$4)+1),ROWS($N$4:W59))),"") ->  | X59: =IFERROR(INDEX($K$4:$K$2598,SMALL(IF($B$4:$B$2598=$P$1,ROW($A$4:$A$2598)-ROW($A$4)+1),ROWS($N$4:X59))),"") ->  | Y59: =IFERROR(INDEX($L$4:$L$2598,SMALL(IF($B$4:$B$2598=$P$1,ROW($A$4:$A$2598)-ROW($A$4)+1),ROWS($N$4:Y59))),"") -> 
A60: 2026-04-05 | C60: =IF(B60="","",VLOOKUP(B60,العملاء!A:B,2,0)) ->  | E60: =IF(D60="","",VLOOKUP(D60,المخزن!B:C,2,0)) ->  | G60: =IF(D60="","",VLOOKUP(D60,المخزن!B:M,12,0)) ->  | I60: =IF(D60="","",VLOOKUP(D60,المخزن!B:E,4,0)) ->  | L60: =IF(D60="","",VLOOKUP(D60,المخزن!B:L,8,0)) ->  | N60: =IFERROR(INDEX($A$4:$A$2598,SMALL(IF($B$4:$B$2598=$P$1,ROW($A$4:$A$2598)-ROW($A$4)+1),ROWS($N$4:N60))),"") ->  | O60: =IFERROR(INDEX($B$4:$B$2598,SMALL(IF($B$4:$B$2598=$P$1,ROW($A$4:$A$2598)-ROW($A$4)+1),ROWS($N$4:O60))),"") ->  | P60: =IFERROR(INDEX($C$4:$C$2598,SMALL(IF($B$4:$B$2598=$P$1,ROW($A$4:$A$2598)-ROW($A$4)+1),ROWS($N$4:P60))),"") ->  | Q60: =IFERROR(INDEX($D$4:$D$2598,SMALL(IF($B$4:$B$2598=$P$1,ROW($A$4:$A$2598)-ROW($A$4)+1),ROWS($N$4:Q60))),"") ->  | R60: =IFERROR(INDEX($E$4:$E$2598,SMALL(IF($B$4:$B$2598=$P$1,ROW($A$4:$A$2598)-ROW($A$4)+1),ROWS($N$4:R60))),"") ->  | S60: =IFERROR(INDEX($F$4:$F$2598,SMALL(IF($B$4:$B$2598=$P$1,ROW($A$4:$A$2598)-ROW($A$4)+1),ROWS($N$4:S60))),"") ->  | T60: =IFERROR(INDEX($G$4:$G$2598,SMALL(IF($B$4:$B$2598=$P$1,ROW($A$4:$A$2598)-ROW($A$4)+1),ROWS($N$4:T60))),"") ->  | U60: =IFERROR(INDEX($H$4:$H$2598,SMALL(IF($B$4:$B$2598=$P$1,ROW($A$4:$A$2598)-ROW($A$4)+1),ROWS($N$4:U60))),"") ->  | V60: =IFERROR(INDEX($I$4:$I$2598,SMALL(IF($B$4:$B$2598=$P$1,ROW($A$4:$A$2598)-ROW($A$4)+1),ROWS($N$4:V60))),"") ->  | W60: =IFERROR(INDEX($J$4:$J$2598,SMALL(IF($B$4:$B$2598=$P$1,ROW($A$4:$A$2598)-ROW($A$4)+1),ROWS($N$4:W60))),"") ->  | X60: =IFERROR(INDEX($K$4:$K$2598,SMALL(IF($B$4:$B$2598=$P$1,ROW($A$4:$A$2598)-ROW($A$4)+1),ROWS($N$4:X60))),"") ->  | Y60: =IFERROR(INDEX($L$4:$L$2598,SMALL(IF($B$4:$B$2598=$P$1,ROW($A$4:$A$2598)-ROW($A$4)+1),ROWS($N$4:Y60))),"") -> 
A61: 2026-04-05 | C61: =IF(B61="","",VLOOKUP(B61,العملاء!A:B,2,0)) ->  | E61: =IF(D61="","",VLOOKUP(D61,المخزن!B:C,2,0)) ->  | G61: =IF(D61="","",VLOOKUP(D61,المخزن!B:M,12,0)) ->  | I61: =IF(D61="","",VLOOKUP(D61,المخزن!B:E,4,0)) ->  | L61: =IF(D61="","",VLOOKUP(D61,المخزن!B:L,8,0)) ->  | N61: =IFERROR(INDEX($A$4:$A$2598,SMALL(IF($B$4:$B$2598=$P$1,ROW($A$4:$A$2598)-ROW($A$4)+1),ROWS($N$4:N61))),"") ->  | O61: =IFERROR(INDEX($B$4:$B$2598,SMALL(IF($B$4:$B$2598=$P$1,ROW($A$4:$A$2598)-ROW($A$4)+1),ROWS($N$4:O61))),"") ->  | P61: =IFERROR(INDEX($C$4:$C$2598,SMALL(IF($B$4:$B$2598=$P$1,ROW($A$4:$A$2598)-ROW($A$4)+1),ROWS($N$4:P61))),"") ->  | Q61: =IFERROR(INDEX($D$4:$D$2598,SMALL(IF($B$4:$B$2598=$P$1,ROW($A$4:$A$2598)-ROW($A$4)+1),ROWS($N$4:Q61))),"") ->  | R61: =IFERROR(INDEX($E$4:$E$2598,SMALL(IF($B$4:$B$2598=$P$1,ROW($A$4:$A$2598)-ROW($A$4)+1),ROWS($N$4:R61))),"") ->  | S61: =IFERROR(INDEX($F$4:$F$2598,SMALL(IF($B$4:$B$2598=$P$1,ROW($A$4:$A$2598)-ROW($A$4)+1),ROWS($N$4:S61))),"") ->  | T61: =IFERROR(INDEX($G$4:$G$2598,SMALL(IF($B$4:$B$2598=$P$1,ROW($A$4:$A$2598)-ROW($A$4)+1),ROWS($N$4:T61))),"") ->  | U61: =IFERROR(INDEX($H$4:$H$2598,SMALL(IF($B$4:$B$2598=$P$1,ROW($A$4:$A$2598)-ROW($A$4)+1),ROWS($N$4:U61))),"") ->  | V61: =IFERROR(INDEX($I$4:$I$2598,SMALL(IF($B$4:$B$2598=$P$1,ROW($A$4:$A$2598)-ROW($A$4)+1),ROWS($N$4:V61))),"") ->  | W61: =IFERROR(INDEX($J$4:$J$2598,SMALL(IF($B$4:$B$2598=$P$1,ROW($A$4:$A$2598)-ROW($A$4)+1),ROWS($N$4:W61))),"") ->  | X61: =IFERROR(INDEX($K$4:$K$2598,SMALL(IF($B$4:$B$2598=$P$1,ROW($A$4:$A$2598)-ROW($A$4)+1),ROWS($N$4:X61))),"") ->  | Y61: =IFERROR(INDEX($L$4:$L$2598,SMALL(IF($B$4:$B$2598=$P$1,ROW($A$4:$A$2598)-ROW($A$4)+1),ROWS($N$4:Y61))),"") -> 
A62: 2026-04-05 | C62: =IF(B62="","",VLOOKUP(B62,العملاء!A:B,2,0)) ->  | E62: =IF(D62="","",VLOOKUP(D62,المخزن!B:C,2,0)) ->  | G62: =IF(D62="","",VLOOKUP(D62,المخزن!B:M,12,0)) ->  | I62: =IF(D62="","",VLOOKUP(D62,المخزن!B:E,4,0)) ->  | L62: =IF(D62="","",VLOOKUP(D62,المخزن!B:L,8,0)) ->  | N62: =IFERROR(INDEX($A$4:$A$2598,SMALL(IF($B$4:$B$2598=$P$1,ROW($A$4:$A$2598)-ROW($A$4)+1),ROWS($N$4:N62))),"") ->  | O62: =IFERROR(INDEX($B$4:$B$2598,SMALL(IF($B$4:$B$2598=$P$1,ROW($A$4:$A$2598)-ROW($A$4)+1),ROWS($N$4:O62))),"") ->  | P62: =IFERROR(INDEX($C$4:$C$2598,SMALL(IF($B$4:$B$2598=$P$1,ROW($A$4:$A$2598)-ROW($A$4)+1),ROWS($N$4:P62))),"") ->  | Q62: =IFERROR(INDEX($D$4:$D$2598,SMALL(IF($B$4:$B$2598=$P$1,ROW($A$4:$A$2598)-ROW($A$4)+1),ROWS($N$4:Q62))),"") ->  | R62: =IFERROR(INDEX($E$4:$E$2598,SMALL(IF($B$4:$B$2598=$P$1,ROW($A$4:$A$2598)-ROW($A$4)+1),ROWS($N$4:R62))),"") ->  | S62: =IFERROR(INDEX($F$4:$F$2598,SMALL(IF($B$4:$B$2598=$P$1,ROW($A$4:$A$2598)-ROW($A$4)+1),ROWS($N$4:S62))),"") ->  | T62: =IFERROR(INDEX($G$4:$G$2598,SMALL(IF($B$4:$B$2598=$P$1,ROW($A$4:$A$2598)-ROW($A$4)+1),ROWS($N$4:T62))),"") ->  | U62: =IFERROR(INDEX($H$4:$H$2598,SMALL(IF($B$4:$B$2598=$P$1,ROW($A$4:$A$2598)-ROW($A$4)+1),ROWS($N$4:U62))),"") ->  | V62: =IFERROR(INDEX($I$4:$I$2598,SMALL(IF($B$4:$B$2598=$P$1,ROW($A$4:$A$2598)-ROW($A$4)+1),ROWS($N$4:V62))),"") ->  | W62: =IFERROR(INDEX($J$4:$J$2598,SMALL(IF($B$4:$B$2598=$P$1,ROW($A$4:$A$2598)-ROW($A$4)+1),ROWS($N$4:W62))),"") ->  | X62: =IFERROR(INDEX($K$4:$K$2598,SMALL(IF($B$4:$B$2598=$P$1,ROW($A$4:$A$2598)-ROW($A$4)+1),ROWS($N$4:X62))),"") ->  | Y62: =IFERROR(INDEX($L$4:$L$2598,SMALL(IF($B$4:$B$2598=$P$1,ROW($A$4:$A$2598)-ROW($A$4)+1),ROWS($N$4:Y62))),"") -> 
A63: 2026-04-05 | C63: =IF(B63="","",VLOOKUP(B63,العملاء!A:B,2,0)) ->  | E63: =IF(D63="","",VLOOKUP(D63,المخزن!B:C,2,0)) ->  | G63: =IF(D63="","",VLOOKUP(D63,المخزن!B:M,12,0)) ->  | I63: =IF(D63="","",VLOOKUP(D63,المخزن!B:E,4,0)) ->  | L63: =IF(D63="","",VLOOKUP(D63,المخزن!B:L,8,0)) ->  | N63: =IFERROR(INDEX($A$4:$A$2598,SMALL(IF($B$4:$B$2598=$P$1,ROW($A$4:$A$2598)-ROW($A$4)+1),ROWS($N$4:N63))),"") ->  | O63: =IFERROR(INDEX($B$4:$B$2598,SMALL(IF($B$4:$B$2598=$P$1,ROW($A$4:$A$2598)-ROW($A$4)+1),ROWS($N$4:O63))),"") ->  | P63: =IFERROR(INDEX($C$4:$C$2598,SMALL(IF($B$4:$B$2598=$P$1,ROW($A$4:$A$2598)-ROW($A$4)+1),ROWS($N$4:P63))),"") ->  | Q63: =IFERROR(INDEX($D$4:$D$2598,SMALL(IF($B$4:$B$2598=$P$1,ROW($A$4:$A$2598)-ROW($A$4)+1),ROWS($N$4:Q63))),"") ->  | R63: =IFERROR(INDEX($E$4:$E$2598,SMALL(IF($B$4:$B$2598=$P$1,ROW($A$4:$A$2598)-ROW($A$4)+1),ROWS($N$4:R63))),"") ->  | S63: =IFERROR(INDEX($F$4:$F$2598,SMALL(IF($B$4:$B$2598=$P$1,ROW($A$4:$A$2598)-ROW($A$4)+1),ROWS($N$4:S63))),"") ->  | T63: =IFERROR(INDEX($G$4:$G$2598,SMALL(IF($B$4:$B$2598=$P$1,ROW($A$4:$A$2598)-ROW($A$4)+1),ROWS($N$4:T63))),"") ->  | U63: =IFERROR(INDEX($H$4:$H$2598,SMALL(IF($B$4:$B$2598=$P$1,ROW($A$4:$A$2598)-ROW($A$4)+1),ROWS($N$4:U63))),"") ->  | V63: =IFERROR(INDEX($I$4:$I$2598,SMALL(IF($B$4:$B$2598=$P$1,ROW($A$4:$A$2598)-ROW($A$4)+1),ROWS($N$4:V63))),"") ->  | W63: =IFERROR(INDEX($J$4:$J$2598,SMALL(IF($B$4:$B$2598=$P$1,ROW($A$4:$A$2598)-ROW($A$4)+1),ROWS($N$4:W63))),"") ->  | X63: =IFERROR(INDEX($K$4:$K$2598,SMALL(IF($B$4:$B$2598=$P$1,ROW($A$4:$A$2598)-ROW($A$4)+1),ROWS($N$4:X63))),"") ->  | Y63: =IFERROR(INDEX($L$4:$L$2598,SMALL(IF($B$4:$B$2598=$P$1,ROW($A$4:$A$2598)-ROW($A$4)+1),ROWS($N$4:Y63))),"") -> 
A64: 2026-04-05 | C64: =IF(B64="","",VLOOKUP(B64,العملاء!A:B,2,0)) ->  | E64: =IF(D64="","",VLOOKUP(D64,المخزن!B:C,2,0)) ->  | G64: =IF(D64="","",VLOOKUP(D64,المخزن!B:M,12,0)) ->  | I64: =IF(D64="","",VLOOKUP(D64,المخزن!B:E,4,0)) ->  | L64: =IF(D64="","",VLOOKUP(D64,المخزن!B:L,8,0)) ->  | N64: =IFERROR(INDEX($A$4:$A$2598,SMALL(IF($B$4:$B$2598=$P$1,ROW($A$4:$A$2598)-ROW($A$4)+1),ROWS($N$4:N64))),"") ->  | O64: =IFERROR(INDEX($B$4:$B$2598,SMALL(IF($B$4:$B$2598=$P$1,ROW($A$4:$A$2598)-ROW($A$4)+1),ROWS($N$4:O64))),"") ->  | P64: =IFERROR(INDEX($C$4:$C$2598,SMALL(IF($B$4:$B$2598=$P$1,ROW($A$4:$A$2598)-ROW($A$4)+1),ROWS($N$4:P64))),"") ->  | Q64: =IFERROR(INDEX($D$4:$D$2598,SMALL(IF($B$4:$B$2598=$P$1,ROW($A$4:$A$2598)-ROW($A$4)+1),ROWS($N$4:Q64))),"") ->  | R64: =IFERROR(INDEX($E$4:$E$2598,SMALL(IF($B$4:$B$2598=$P$1,ROW($A$4:$A$2598)-ROW($A$4)+1),ROWS($N$4:R64))),"") ->  | S64: =IFERROR(INDEX($F$4:$F$2598,SMALL(IF($B$4:$B$2598=$P$1,ROW($A$4:$A$2598)-ROW($A$4)+1),ROWS($N$4:S64))),"") ->  | T64: =IFERROR(INDEX($G$4:$G$2598,SMALL(IF($B$4:$B$2598=$P$1,ROW($A$4:$A$2598)-ROW($A$4)+1),ROWS($N$4:T64))),"") ->  | U64: =IFERROR(INDEX($H$4:$H$2598,SMALL(IF($B$4:$B$2598=$P$1,ROW($A$4:$A$2598)-ROW($A$4)+1),ROWS($N$4:U64))),"") ->  | V64: =IFERROR(INDEX($I$4:$I$2598,SMALL(IF($B$4:$B$2598=$P$1,ROW($A$4:$A$2598)-ROW($A$4)+1),ROWS($N$4:V64))),"") ->  | W64: =IFERROR(INDEX($J$4:$J$2598,SMALL(IF($B$4:$B$2598=$P$1,ROW($A$4:$A$2598)-ROW($A$4)+1),ROWS($N$4:W64))),"") ->  | X64: =IFERROR(INDEX($K$4:$K$2598,SMALL(IF($B$4:$B$2598=$P$1,ROW($A$4:$A$2598)-ROW($A$4)+1),ROWS($N$4:X64))),"") ->  | Y64: =IFERROR(INDEX($L$4:$L$2598,SMALL(IF($B$4:$B$2598=$P$1,ROW($A$4:$A$2598)-ROW($A$4)+1),ROWS($N$4:Y64))),"") -> 
A65: 2026-04-05 | C65: =IF(B65="","",VLOOKUP(B65,العملاء!A:B,2,0)) ->  | E65: =IF(D65="","",VLOOKUP(D65,المخزن!B:C,2,0)) ->  | G65: =IF(D65="","",VLOOKUP(D65,المخزن!B:M,12,0)) ->  | I65: =IF(D65="","",VLOOKUP(D65,المخزن!B:E,4,0)) ->  | L65: =IF(D65="","",VLOOKUP(D65,المخزن!B:L,8,0)) ->  | N65: =IFERROR(INDEX($A$4:$A$2598,SMALL(IF($B$4:$B$2598=$P$1,ROW($A$4:$A$2598)-ROW($A$4)+1),ROWS($N$4:N65))),"") ->  | O65: =IFERROR(INDEX($B$4:$B$2598,SMALL(IF($B$4:$B$2598=$P$1,ROW($A$4:$A$2598)-ROW($A$4)+1),ROWS($N$4:O65))),"") ->  | P65: =IFERROR(INDEX($C$4:$C$2598,SMALL(IF($B$4:$B$2598=$P$1,ROW($A$4:$A$2598)-ROW($A$4)+1),ROWS($N$4:P65))),"") ->  | Q65: =IFERROR(INDEX($D$4:$D$2598,SMALL(IF($B$4:$B$2598=$P$1,ROW($A$4:$A$2598)-ROW($A$4)+1),ROWS($N$4:Q65))),"") ->  | R65: =IFERROR(INDEX($E$4:$E$2598,SMALL(IF($B$4:$B$2598=$P$1,ROW($A$4:$A$2598)-ROW($A$4)+1),ROWS($N$4:R65))),"") ->  | S65: =IFERROR(INDEX($F$4:$F$2598,SMALL(IF($B$4:$B$2598=$P$1,ROW($A$4:$A$2598)-ROW($A$4)+1),ROWS($N$4:S65))),"") ->  | T65: =IFERROR(INDEX($G$4:$G$2598,SMALL(IF($B$4:$B$2598=$P$1,ROW($A$4:$A$2598)-ROW($A$4)+1),ROWS($N$4:T65))),"") ->  | U65: =IFERROR(INDEX($H$4:$H$2598,SMALL(IF($B$4:$B$2598=$P$1,ROW($A$4:$A$2598)-ROW($A$4)+1),ROWS($N$4:U65))),"") ->  | V65: =IFERROR(INDEX($I$4:$I$2598,SMALL(IF($B$4:$B$2598=$P$1,ROW($A$4:$A$2598)-ROW($A$4)+1),ROWS($N$4:V65))),"") ->  | W65: =IFERROR(INDEX($J$4:$J$2598,SMALL(IF($B$4:$B$2598=$P$1,ROW($A$4:$A$2598)-ROW($A$4)+1),ROWS($N$4:W65))),"") ->  | X65: =IFERROR(INDEX($K$4:$K$2598,SMALL(IF($B$4:$B$2598=$P$1,ROW($A$4:$A$2598)-ROW($A$4)+1),ROWS($N$4:X65))),"") ->  | Y65: =IFERROR(INDEX($L$4:$L$2598,SMALL(IF($B$4:$B$2598=$P$1,ROW($A$4:$A$2598)-ROW($A$4)+1),ROWS($N$4:Y65))),"") -> 
A66: 2026-04-05 | C66: =IF(B66="","",VLOOKUP(B66,العملاء!A:B,2,0)) ->  | E66: =IF(D66="","",VLOOKUP(D66,المخزن!B:C,2,0)) ->  | G66: =IF(D66="","",VLOOKUP(D66,المخزن!B:M,12,0)) ->  | I66: =IF(D66="","",VLOOKUP(D66,المخزن!B:E,4,0)) ->  | L66: =IF(D66="","",VLOOKUP(D66,المخزن!B:L,8,0)) ->  | N66: =IFERROR(INDEX($A$4:$A$2598,SMALL(IF($B$4:$B$2598=$P$1,ROW($A$4:$A$2598)-ROW($A$4)+1),ROWS($N$4:N66))),"") ->  | O66: =IFERROR(INDEX($B$4:$B$2598,SMALL(IF($B$4:$B$2598=$P$1,ROW($A$4:$A$2598)-ROW($A$4)+1),ROWS($N$4:O66))),"") ->  | P66: =IFERROR(INDEX($C$4:$C$2598,SMALL(IF($B$4:$B$2598=$P$1,ROW($A$4:$A$2598)-ROW($A$4)+1),ROWS($N$4:P66))),"") ->  | Q66: =IFERROR(INDEX($D$4:$D$2598,SMALL(IF($B$4:$B$2598=$P$1,ROW($A$4:$A$2598)-ROW($A$4)+1),ROWS($N$4:Q66))),"") ->  | R66: =IFERROR(INDEX($E$4:$E$2598,SMALL(IF($B$4:$B$2598=$P$1,ROW($A$4:$A$2598)-ROW($A$4)+1),ROWS($N$4:R66))),"") ->  | S66: =IFERROR(INDEX($F$4:$F$2598,SMALL(IF($B$4:$B$2598=$P$1,ROW($A$4:$A$2598)-ROW($A$4)+1),ROWS($N$4:S66))),"") ->  | T66: =IFERROR(INDEX($G$4:$G$2598,SMALL(IF($B$4:$B$2598=$P$1,ROW($A$4:$A$2598)-ROW($A$4)+1),ROWS($N$4:T66))),"") ->  | U66: =IFERROR(INDEX($H$4:$H$2598,SMALL(IF($B$4:$B$2598=$P$1,ROW($A$4:$A$2598)-ROW($A$4)+1),ROWS($N$4:U66))),"") ->  | V66: =IFERROR(INDEX($I$4:$I$2598,SMALL(IF($B$4:$B$2598=$P$1,ROW($A$4:$A$2598)-ROW($A$4)+1),ROWS($N$4:V66))),"") ->  | W66: =IFERROR(INDEX($J$4:$J$2598,SMALL(IF($B$4:$B$2598=$P$1,ROW($A$4:$A$2598)-ROW($A$4)+1),ROWS($N$4:W66))),"") ->  | X66: =IFERROR(INDEX($K$4:$K$2598,SMALL(IF($B$4:$B$2598=$P$1,ROW($A$4:$A$2598)-ROW($A$4)+1),ROWS($N$4:X66))),"") ->  | Y66: =IFERROR(INDEX($L$4:$L$2598,SMALL(IF($B$4:$B$2598=$P$1,ROW($A$4:$A$2598)-ROW($A$4)+1),ROWS($N$4:Y66))),"") -> 
A67: 2026-04-05 | C67: =IF(B67="","",VLOOKUP(B67,العملاء!A:B,2,0)) ->  | E67: =IF(D67="","",VLOOKUP(D67,المخزن!B:C,2,0)) ->  | G67: =IF(D67="","",VLOOKUP(D67,المخزن!B:M,12,0)) ->  | I67: =IF(D67="","",VLOOKUP(D67,المخزن!B:E,4,0)) ->  | L67: =IF(D67="","",VLOOKUP(D67,المخزن!B:L,8,0)) ->  | N67: =IFERROR(INDEX($A$4:$A$2598,SMALL(IF($B$4:$B$2598=$P$1,ROW($A$4:$A$2598)-ROW($A$4)+1),ROWS($N$4:N67))),"") ->  | O67: =IFERROR(INDEX($B$4:$B$2598,SMALL(IF($B$4:$B$2598=$P$1,ROW($A$4:$A$2598)-ROW($A$4)+1),ROWS($N$4:O67))),"") ->  | P67: =IFERROR(INDEX($C$4:$C$2598,SMALL(IF($B$4:$B$2598=$P$1,ROW($A$4:$A$2598)-ROW($A$4)+1),ROWS($N$4:P67))),"") ->  | Q67: =IFERROR(INDEX($D$4:$D$2598,SMALL(IF($B$4:$B$2598=$P$1,ROW($A$4:$A$2598)-ROW($A$4)+1),ROWS($N$4:Q67))),"") ->  | R67: =IFERROR(INDEX($E$4:$E$2598,SMALL(IF($B$4:$B$2598=$P$1,ROW($A$4:$A$2598)-ROW($A$4)+1),ROWS($N$4:R67))),"") ->  | S67: =IFERROR(INDEX($F$4:$F$2598,SMALL(IF($B$4:$B$2598=$P$1,ROW($A$4:$A$2598)-ROW($A$4)+1),ROWS($N$4:S67))),"") ->  | T67: =IFERROR(INDEX($G$4:$G$2598,SMALL(IF($B$4:$B$2598=$P$1,ROW($A$4:$A$2598)-ROW($A$4)+1),ROWS($N$4:T67))),"") ->  | U67: =IFERROR(INDEX($H$4:$H$2598,SMALL(IF($B$4:$B$2598=$P$1,ROW($A$4:$A$2598)-ROW($A$4)+1),ROWS($N$4:U67))),"") ->  | V67: =IFERROR(INDEX($I$4:$I$2598,SMALL(IF($B$4:$B$2598=$P$1,ROW($A$4:$A$2598)-ROW($A$4)+1),ROWS($N$4:V67))),"") ->  | W67: =IFERROR(INDEX($J$4:$J$2598,SMALL(IF($B$4:$B$2598=$P$1,ROW($A$4:$A$2598)-ROW($A$4)+1),ROWS($N$4:W67))),"") ->  | X67: =IFERROR(INDEX($K$4:$K$2598,SMALL(IF($B$4:$B$2598=$P$1,ROW($A$4:$A$2598)-ROW($A$4)+1),ROWS($N$4:X67))),"") ->  | Y67: =IFERROR(INDEX($L$4:$L$2598,SMALL(IF($B$4:$B$2598=$P$1,ROW($A$4:$A$2598)-ROW($A$4)+1),ROWS($N$4:Y67))),"") -> 
A68: 2026-04-05 | C68: =IF(B68="","",VLOOKUP(B68,العملاء!A:B,2,0)) ->  | E68: =IF(D68="","",VLOOKUP(D68,المخزن!B:C,2,0)) ->  | G68: =IF(D68="","",VLOOKUP(D68,المخزن!B:M,12,0)) ->  | I68: =IF(D68="","",VLOOKUP(D68,المخزن!B:E,4,0)) ->  | L68: =IF(D68="","",VLOOKUP(D68,المخزن!B:L,8,0)) ->  | N68: =IFERROR(INDEX($A$4:$A$2598,SMALL(IF($B$4:$B$2598=$P$1,ROW($A$4:$A$2598)-ROW($A$4)+1),ROWS($N$4:N68))),"") ->  | O68: =IFERROR(INDEX($B$4:$B$2598,SMALL(IF($B$4:$B$2598=$P$1,ROW($A$4:$A$2598)-ROW($A$4)+1),ROWS($N$4:O68))),"") ->  | P68: =IFERROR(INDEX($C$4:$C$2598,SMALL(IF($B$4:$B$2598=$P$1,ROW($A$4:$A$2598)-ROW($A$4)+1),ROWS($N$4:P68))),"") ->  | Q68: =IFERROR(INDEX($D$4:$D$2598,SMALL(IF($B$4:$B$2598=$P$1,ROW($A$4:$A$2598)-ROW($A$4)+1),ROWS($N$4:Q68))),"") ->  | R68: =IFERROR(INDEX($E$4:$E$2598,SMALL(IF($B$4:$B$2598=$P$1,ROW($A$4:$A$2598)-ROW($A$4)+1),ROWS($N$4:R68))),"") ->  | S68: =IFERROR(INDEX($F$4:$F$2598,SMALL(IF($B$4:$B$2598=$P$1,ROW($A$4:$A$2598)-ROW($A$4)+1),ROWS($N$4:S68))),"") ->  | T68: =IFERROR(INDEX($G$4:$G$2598,SMALL(IF($B$4:$B$2598=$P$1,ROW($A$4:$A$2598)-ROW($A$4)+1),ROWS($N$4:T68))),"") ->  | U68: =IFERROR(INDEX($H$4:$H$2598,SMALL(IF($B$4:$B$2598=$P$1,ROW($A$4:$A$2598)-ROW($A$4)+1),ROWS($N$4:U68))),"") ->  | V68: =IFERROR(INDEX($I$4:$I$2598,SMALL(IF($B$4:$B$2598=$P$1,ROW($A$4:$A$2598)-ROW($A$4)+1),ROWS($N$4:V68))),"") ->  | W68: =IFERROR(INDEX($J$4:$J$2598,SMALL(IF($B$4:$B$2598=$P$1,ROW($A$4:$A$2598)-ROW($A$4)+1),ROWS($N$4:W68))),"") ->  | X68: =IFERROR(INDEX($K$4:$K$2598,SMALL(IF($B$4:$B$2598=$P$1,ROW($A$4:$A$2598)-ROW($A$4)+1),ROWS($N$4:X68))),"") ->  | Y68: =IFERROR(INDEX($L$4:$L$2598,SMALL(IF($B$4:$B$2598=$P$1,ROW($A$4:$A$2598)-ROW($A$4)+1),ROWS($N$4:Y68))),"") -> 
A69: 2026-04-05 | C69: =IF(B69="","",VLOOKUP(B69,العملاء!A:B,2,0)) ->  | E69: =IF(D69="","",VLOOKUP(D69,المخزن!B:C,2,0)) ->  | G69: =IF(D69="","",VLOOKUP(D69,المخزن!B:M,12,0)) ->  | I69: =IF(D69="","",VLOOKUP(D69,المخزن!B:E,4,0)) ->  | L69: =IF(D69="","",VLOOKUP(D69,المخزن!B:L,8,0)) ->  | N69: =IFERROR(INDEX($A$4:$A$2598,SMALL(IF($B$4:$B$2598=$P$1,ROW($A$4:$A$2598)-ROW($A$4)+1),ROWS($N$4:N69))),"") ->  | O69: =IFERROR(INDEX($B$4:$B$2598,SMALL(IF($B$4:$B$2598=$P$1,ROW($A$4:$A$2598)-ROW($A$4)+1),ROWS($N$4:O69))),"") ->  | P69: =IFERROR(INDEX($C$4:$C$2598,SMALL(IF($B$4:$B$2598=$P$1,ROW($A$4:$A$2598)-ROW($A$4)+1),ROWS($N$4:P69))),"") ->  | Q69: =IFERROR(INDEX($D$4:$D$2598,SMALL(IF($B$4:$B$2598=$P$1,ROW($A$4:$A$2598)-ROW($A$4)+1),ROWS($N$4:Q69))),"") ->  | R69: =IFERROR(INDEX($E$4:$E$2598,SMALL(IF($B$4:$B$2598=$P$1,ROW($A$4:$A$2598)-ROW($A$4)+1),ROWS($N$4:R69))),"") ->  | S69: =IFERROR(INDEX($F$4:$F$2598,SMALL(IF($B$4:$B$2598=$P$1,ROW($A$4:$A$2598)-ROW($A$4)+1),ROWS($N$4:S69))),"") ->  | T69: =IFERROR(INDEX($G$4:$G$2598,SMALL(IF($B$4:$B$2598=$P$1,ROW($A$4:$A$2598)-ROW($A$4)+1),ROWS($N$4:T69))),"") ->  | U69: =IFERROR(INDEX($H$4:$H$2598,SMALL(IF($B$4:$B$2598=$P$1,ROW($A$4:$A$2598)-ROW($A$4)+1),ROWS($N$4:U69))),"") ->  | V69: =IFERROR(INDEX($I$4:$I$2598,SMALL(IF($B$4:$B$2598=$P$1,ROW($A$4:$A$2598)-ROW($A$4)+1),ROWS($N$4:V69))),"") ->  | W69: =IFERROR(INDEX($J$4:$J$2598,SMALL(IF($B$4:$B$2598=$P$1,ROW($A$4:$A$2598)-ROW($A$4)+1),ROWS($N$4:W69))),"") ->  | X69: =IFERROR(INDEX($K$4:$K$2598,SMALL(IF($B$4:$B$2598=$P$1,ROW($A$4:$A$2598)-ROW($A$4)+1),ROWS($N$4:X69))),"") ->  | Y69: =IFERROR(INDEX($L$4:$L$2598,SMALL(IF($B$4:$B$2598=$P$1,ROW($A$4:$A$2598)-ROW($A$4)+1),ROWS($N$4:Y69))),"") -> 
A70: 2026-04-05 | C70: =IF(B70="","",VLOOKUP(B70,العملاء!A:B,2,0)) ->  | E70: =IF(D70="","",VLOOKUP(D70,المخزن!B:C,2,0)) ->  | G70: =IF(D70="","",VLOOKUP(D70,المخزن!B:M,12,0)) ->  | I70: =IF(D70="","",VLOOKUP(D70,المخزن!B:E,4,0)) ->  | L70: =IF(D70="","",VLOOKUP(D70,المخزن!B:L,8,0)) ->  | N70: =IFERROR(INDEX($A$4:$A$2598,SMALL(IF($B$4:$B$2598=$P$1,ROW($A$4:$A$2598)-ROW($A$4)+1),ROWS($N$4:N70))),"") ->  | O70: =IFERROR(INDEX($B$4:$B$2598,SMALL(IF($B$4:$B$2598=$P$1,ROW($A$4:$A$2598)-ROW($A$4)+1),ROWS($N$4:O70))),"") ->  | P70: =IFERROR(INDEX($C$4:$C$2598,SMALL(IF($B$4:$B$2598=$P$1,ROW($A$4:$A$2598)-ROW($A$4)+1),ROWS($N$4:P70))),"") ->  | Q70: =IFERROR(INDEX($D$4:$D$2598,SMALL(IF($B$4:$B$2598=$P$1,ROW($A$4:$A$2598)-ROW($A$4)+1),ROWS($N$4:Q70))),"") ->  | R70: =IFERROR(INDEX($E$4:$E$2598,SMALL(IF($B$4:$B$2598=$P$1,ROW($A$4:$A$2598)-ROW($A$4)+1),ROWS($N$4:R70))),"") ->  | S70: =IFERROR(INDEX($F$4:$F$2598,SMALL(IF($B$4:$B$2598=$P$1,ROW($A$4:$A$2598)-ROW($A$4)+1),ROWS($N$4:S70))),"") ->  | T70: =IFERROR(INDEX($G$4:$G$2598,SMALL(IF($B$4:$B$2598=$P$1,ROW($A$4:$A$2598)-ROW($A$4)+1),ROWS($N$4:T70))),"") ->  | U70: =IFERROR(INDEX($H$4:$H$2598,SMALL(IF($B$4:$B$2598=$P$1,ROW($A$4:$A$2598)-ROW($A$4)+1),ROWS($N$4:U70))),"") ->  | V70: =IFERROR(INDEX($I$4:$I$2598,SMALL(IF($B$4:$B$2598=$P$1,ROW($A$4:$A$2598)-ROW($A$4)+1),ROWS($N$4:V70))),"") ->  | W70: =IFERROR(INDEX($J$4:$J$2598,SMALL(IF($B$4:$B$2598=$P$1,ROW($A$4:$A$2598)-ROW($A$4)+1),ROWS($N$4:W70))),"") ->  | X70: =IFERROR(INDEX($K$4:$K$2598,SMALL(IF($B$4:$B$2598=$P$1,ROW($A$4:$A$2598)-ROW($A$4)+1),ROWS($N$4:X70))),"") ->  | Y70: =IFERROR(INDEX($L$4:$L$2598,SMALL(IF($B$4:$B$2598=$P$1,ROW($A$4:$A$2598)-ROW($A$4)+1),ROWS($N$4:Y70))),"") -> 
A71: 2026-04-05 | C71: =IF(B71="","",VLOOKUP(B71,العملاء!A:B,2,0)) ->  | E71: =IF(D71="","",VLOOKUP(D71,المخزن!B:C,2,0)) ->  | G71: =IF(D71="","",VLOOKUP(D71,المخزن!B:M,12,0)) ->  | I71: =IF(D71="","",VLOOKUP(D71,المخزن!B:E,4,0)) ->  | L71: =IF(D71="","",VLOOKUP(D71,المخزن!B:L,8,0)) ->  | N71: =IFERROR(INDEX($A$4:$A$2598,SMALL(IF($B$4:$B$2598=$P$1,ROW($A$4:$A$2598)-ROW($A$4)+1),ROWS($N$4:N71))),"") ->  | O71: =IFERROR(INDEX($B$4:$B$2598,SMALL(IF($B$4:$B$2598=$P$1,ROW($A$4:$A$2598)-ROW($A$4)+1),ROWS($N$4:O71))),"") ->  | P71: =IFERROR(INDEX($C$4:$C$2598,SMALL(IF($B$4:$B$2598=$P$1,ROW($A$4:$A$2598)-ROW($A$4)+1),ROWS($N$4:P71))),"") ->  | Q71: =IFERROR(INDEX($D$4:$D$2598,SMALL(IF($B$4:$B$2598=$P$1,ROW($A$4:$A$2598)-ROW($A$4)+1),ROWS($N$4:Q71))),"") ->  | R71: =IFERROR(INDEX($E$4:$E$2598,SMALL(IF($B$4:$B$2598=$P$1,ROW($A$4:$A$2598)-ROW($A$4)+1),ROWS($N$4:R71))),"") ->  | S71: =IFERROR(INDEX($F$4:$F$2598,SMALL(IF($B$4:$B$2598=$P$1,ROW($A$4:$A$2598)-ROW($A$4)+1),ROWS($N$4:S71))),"") ->  | T71: =IFERROR(INDEX($G$4:$G$2598,SMALL(IF($B$4:$B$2598=$P$1,ROW($A$4:$A$2598)-ROW($A$4)+1),ROWS($N$4:T71))),"") ->  | U71: =IFERROR(INDEX($H$4:$H$2598,SMALL(IF($B$4:$B$2598=$P$1,ROW($A$4:$A$2598)-ROW($A$4)+1),ROWS($N$4:U71))),"") ->  | V71: =IFERROR(INDEX($I$4:$I$2598,SMALL(IF($B$4:$B$2598=$P$1,ROW($A$4:$A$2598)-ROW($A$4)+1),ROWS($N$4:V71))),"") ->  | W71: =IFERROR(INDEX($J$4:$J$2598,SMALL(IF($B$4:$B$2598=$P$1,ROW($A$4:$A$2598)-ROW($A$4)+1),ROWS($N$4:W71))),"") ->  | X71: =IFERROR(INDEX($K$4:$K$2598,SMALL(IF($B$4:$B$2598=$P$1,ROW($A$4:$A$2598)-ROW($A$4)+1),ROWS($N$4:X71))),"") ->  | Y71: =IFERROR(INDEX($L$4:$L$2598,SMALL(IF($B$4:$B$2598=$P$1,ROW($A$4:$A$2598)-ROW($A$4)+1),ROWS($N$4:Y71))),"") -> 
A72: 2026-04-05 | C72: =IF(B72="","",VLOOKUP(B72,العملاء!A:B,2,0)) ->  | E72: =IF(D72="","",VLOOKUP(D72,المخزن!B:C,2,0)) ->  | G72: =IF(D72="","",VLOOKUP(D72,المخزن!B:M,12,0)) ->  | I72: =IF(D72="","",VLOOKUP(D72,المخزن!B:E,4,0)) ->  | L72: =IF(D72="","",VLOOKUP(D72,المخزن!B:L,8,0)) ->  | N72: =IFERROR(INDEX($A$4:$A$2598,SMALL(IF($B$4:$B$2598=$P$1,ROW($A$4:$A$2598)-ROW($A$4)+1),ROWS($N$4:N72))),"") ->  | O72: =IFERROR(INDEX($B$4:$B$2598,SMALL(IF($B$4:$B$2598=$P$1,ROW($A$4:$A$2598)-ROW($A$4)+1),ROWS($N$4:O72))),"") ->  | P72: =IFERROR(INDEX($C$4:$C$2598,SMALL(IF($B$4:$B$2598=$P$1,ROW($A$4:$A$2598)-ROW($A$4)+1),ROWS($N$4:P72))),"") ->  | Q72: =IFERROR(INDEX($D$4:$D$2598,SMALL(IF($B$4:$B$2598=$P$1,ROW($A$4:$A$2598)-ROW($A$4)+1),ROWS($N$4:Q72))),"") ->  | R72: =IFERROR(INDEX($E$4:$E$2598,SMALL(IF($B$4:$B$2598=$P$1,ROW($A$4:$A$2598)-ROW($A$4)+1),ROWS($N$4:R72))),"") ->  | S72: =IFERROR(INDEX($F$4:$F$2598,SMALL(IF($B$4:$B$2598=$P$1,ROW($A$4:$A$2598)-ROW($A$4)+1),ROWS($N$4:S72))),"") ->  | T72: =IFERROR(INDEX($G$4:$G$2598,SMALL(IF($B$4:$B$2598=$P$1,ROW($A$4:$A$2598)-ROW($A$4)+1),ROWS($N$4:T72))),"") ->  | U72: =IFERROR(INDEX($H$4:$H$2598,SMALL(IF($B$4:$B$2598=$P$1,ROW($A$4:$A$2598)-ROW($A$4)+1),ROWS($N$4:U72))),"") ->  | V72: =IFERROR(INDEX($I$4:$I$2598,SMALL(IF($B$4:$B$2598=$P$1,ROW($A$4:$A$2598)-ROW($A$4)+1),ROWS($N$4:V72))),"") ->  | W72: =IFERROR(INDEX($J$4:$J$2598,SMALL(IF($B$4:$B$2598=$P$1,ROW($A$4:$A$2598)-ROW($A$4)+1),ROWS($N$4:W72))),"") ->  | X72: =IFERROR(INDEX($K$4:$K$2598,SMALL(IF($B$4:$B$2598=$P$1,ROW($A$4:$A$2598)-ROW($A$4)+1),ROWS($N$4:X72))),"") ->  | Y72: =IFERROR(INDEX($L$4:$L$2598,SMALL(IF($B$4:$B$2598=$P$1,ROW($A$4:$A$2598)-ROW($A$4)+1),ROWS($N$4:Y72))),"") -> 
A73: 2026-04-05 | C73: =IF(B73="","",VLOOKUP(B73,العملاء!A:B,2,0)) ->  | E73: =IF(D73="","",VLOOKUP(D73,المخزن!B:C,2,0)) ->  | G73: =IF(D73="","",VLOOKUP(D73,المخزن!B:M,12,0)) ->  | I73: =IF(D73="","",VLOOKUP(D73,المخزن!B:E,4,0)) ->  | L73: =IF(D73="","",VLOOKUP(D73,المخزن!B:L,8,0)) ->  | N73: =IFERROR(INDEX($A$4:$A$2598,SMALL(IF($B$4:$B$2598=$P$1,ROW($A$4:$A$2598)-ROW($A$4)+1),ROWS($N$4:N73))),"") ->  | O73: =IFERROR(INDEX($B$4:$B$2598,SMALL(IF($B$4:$B$2598=$P$1,ROW($A$4:$A$2598)-ROW($A$4)+1),ROWS($N$4:O73))),"") ->  | P73: =IFERROR(INDEX($C$4:$C$2598,SMALL(IF($B$4:$B$2598=$P$1,ROW($A$4:$A$2598)-ROW($A$4)+1),ROWS($N$4:P73))),"") ->  | Q73: =IFERROR(INDEX($D$4:$D$2598,SMALL(IF($B$4:$B$2598=$P$1,ROW($A$4:$A$2598)-ROW($A$4)+1),ROWS($N$4:Q73))),"") ->  | R73: =IFERROR(INDEX($E$4:$E$2598,SMALL(IF($B$4:$B$2598=$P$1,ROW($A$4:$A$2598)-ROW($A$4)+1),ROWS($N$4:R73))),"") ->  | S73: =IFERROR(INDEX($F$4:$F$2598,SMALL(IF($B$4:$B$2598=$P$1,ROW($A$4:$A$2598)-ROW($A$4)+1),ROWS($N$4:S73))),"") ->  | T73: =IFERROR(INDEX($G$4:$G$2598,SMALL(IF($B$4:$B$2598=$P$1,ROW($A$4:$A$2598)-ROW($A$4)+1),ROWS($N$4:T73))),"") ->  | U73: =IFERROR(INDEX($H$4:$H$2598,SMALL(IF($B$4:$B$2598=$P$1,ROW($A$4:$A$2598)-ROW($A$4)+1),ROWS($N$4:U73))),"") ->  | V73: =IFERROR(INDEX($I$4:$I$2598,SMALL(IF($B$4:$B$2598=$P$1,ROW($A$4:$A$2598)-ROW($A$4)+1),ROWS($N$4:V73))),"") ->  | W73: =IFERROR(INDEX($J$4:$J$2598,SMALL(IF($B$4:$B$2598=$P$1,ROW($A$4:$A$2598)-ROW($A$4)+1),ROWS($N$4:W73))),"") ->  | X73: =IFERROR(INDEX($K$4:$K$2598,SMALL(IF($B$4:$B$2598=$P$1,ROW($A$4:$A$2598)-ROW($A$4)+1),ROWS($N$4:X73))),"") ->  | Y73: =IFERROR(INDEX($L$4:$L$2598,SMALL(IF($B$4:$B$2598=$P$1,ROW($A$4:$A$2598)-ROW($A$4)+1),ROWS($N$4:Y73))),"") -> 
A74: 2026-04-06 | C74: =IF(B74="","",VLOOKUP(B74,العملاء!A:B,2,0)) ->  | E74: =IF(D74="","",VLOOKUP(D74,المخزن!B:C,2,0)) ->  | G74: =IF(D74="","",VLOOKUP(D74,المخزن!B:M,12,0)) ->  | I74: =IF(D74="","",VLOOKUP(D74,المخزن!B:E,4,0)) ->  | L74: =IF(D74="","",VLOOKUP(D74,المخزن!B:L,8,0)) ->  | N74: =IFERROR(INDEX($A$4:$A$2598,SMALL(IF($B$4:$B$2598=$P$1,ROW($A$4:$A$2598)-ROW($A$4)+1),ROWS($N$4:N74))),"") ->  | O74: =IFERROR(INDEX($B$4:$B$2598,SMALL(IF($B$4:$B$2598=$P$1,ROW($A$4:$A$2598)-ROW($A$4)+1),ROWS($N$4:O74))),"") ->  | P74: =IFERROR(INDEX($C$4:$C$2598,SMALL(IF($B$4:$B$2598=$P$1,ROW($A$4:$A$2598)-ROW($A$4)+1),ROWS($N$4:P74))),"") ->  | Q74: =IFERROR(INDEX($D$4:$D$2598,SMALL(IF($B$4:$B$2598=$P$1,ROW($A$4:$A$2598)-ROW($A$4)+1),ROWS($N$4:Q74))),"") ->  | R74: =IFERROR(INDEX($E$4:$E$2598,SMALL(IF($B$4:$B$2598=$P$1,ROW($A$4:$A$2598)-ROW($A$4)+1),ROWS($N$4:R74))),"") ->  | S74: =IFERROR(INDEX($F$4:$F$2598,SMALL(IF($B$4:$B$2598=$P$1,ROW($A$4:$A$2598)-ROW($A$4)+1),ROWS($N$4:S74))),"") ->  | T74: =IFERROR(INDEX($G$4:$G$2598,SMALL(IF($B$4:$B$2598=$P$1,ROW($A$4:$A$2598)-ROW($A$4)+1),ROWS($N$4:T74))),"") ->  | U74: =IFERROR(INDEX($H$4:$H$2598,SMALL(IF($B$4:$B$2598=$P$1,ROW($A$4:$A$2598)-ROW($A$4)+1),ROWS($N$4:U74))),"") ->  | V74: =IFERROR(INDEX($I$4:$I$2598,SMALL(IF($B$4:$B$2598=$P$1,ROW($A$4:$A$2598)-ROW($A$4)+1),ROWS($N$4:V74))),"") ->  | W74: =IFERROR(INDEX($J$4:$J$2598,SMALL(IF($B$4:$B$2598=$P$1,ROW($A$4:$A$2598)-ROW($A$4)+1),ROWS($N$4:W74))),"") ->  | X74: =IFERROR(INDEX($K$4:$K$2598,SMALL(IF($B$4:$B$2598=$P$1,ROW($A$4:$A$2598)-ROW($A$4)+1),ROWS($N$4:X74))),"") ->  | Y74: =IFERROR(INDEX($L$4:$L$2598,SMALL(IF($B$4:$B$2598=$P$1,ROW($A$4:$A$2598)-ROW($A$4)+1),ROWS($N$4:Y74))),"") -> 
A75: 2026-04-06 | C75: =IF(B75="","",VLOOKUP(B75,العملاء!A:B,2,0)) ->  | E75: =IF(D75="","",VLOOKUP(D75,المخزن!B:C,2,0)) ->  | G75: =IF(D75="","",VLOOKUP(D75,المخزن!B:M,12,0)) ->  | I75: =IF(D75="","",VLOOKUP(D75,المخزن!B:E,4,0)) ->  | L75: =IF(D75="","",VLOOKUP(D75,المخزن!B:L,8,0)) ->  | N75: =IFERROR(INDEX($A$4:$A$2598,SMALL(IF($B$4:$B$2598=$P$1,ROW($A$4:$A$2598)-ROW($A$4)+1),ROWS($N$4:N75))),"") ->  | O75: =IFERROR(INDEX($B$4:$B$2598,SMALL(IF($B$4:$B$2598=$P$1,ROW($A$4:$A$2598)-ROW($A$4)+1),ROWS($N$4:O75))),"") ->  | P75: =IFERROR(INDEX($C$4:$C$2598,SMALL(IF($B$4:$B$2598=$P$1,ROW($A$4:$A$2598)-ROW($A$4)+1),ROWS($N$4:P75))),"") ->  | Q75: =IFERROR(INDEX($D$4:$D$2598,SMALL(IF($B$4:$B$2598=$P$1,ROW($A$4:$A$2598)-ROW($A$4)+1),ROWS($N$4:Q75))),"") ->  | R75: =IFERROR(INDEX($E$4:$E$2598,SMALL(IF($B$4:$B$2598=$P$1,ROW($A$4:$A$2598)-ROW($A$4)+1),ROWS($N$4:R75))),"") ->  | S75: =IFERROR(INDEX($F$4:$F$2598,SMALL(IF($B$4:$B$2598=$P$1,ROW($A$4:$A$2598)-ROW($A$4)+1),ROWS($N$4:S75))),"") ->  | T75: =IFERROR(INDEX($G$4:$G$2598,SMALL(IF($B$4:$B$2598=$P$1,ROW($A$4:$A$2598)-ROW($A$4)+1),ROWS($N$4:T75))),"") ->  | U75: =IFERROR(INDEX($H$4:$H$2598,SMALL(IF($B$4:$B$2598=$P$1,ROW($A$4:$A$2598)-ROW($A$4)+1),ROWS($N$4:U75))),"") ->  | V75: =IFERROR(INDEX($I$4:$I$2598,SMALL(IF($B$4:$B$2598=$P$1,ROW($A$4:$A$2598)-ROW($A$4)+1),ROWS($N$4:V75))),"") ->  | W75: =IFERROR(INDEX($J$4:$J$2598,SMALL(IF($B$4:$B$2598=$P$1,ROW($A$4:$A$2598)-ROW($A$4)+1),ROWS($N$4:W75))),"") ->  | X75: =IFERROR(INDEX($K$4:$K$2598,SMALL(IF($B$4:$B$2598=$P$1,ROW($A$4:$A$2598)-ROW($A$4)+1),ROWS($N$4:X75))),"") ->  | Y75: =IFERROR(INDEX($L$4:$L$2598,SMALL(IF($B$4:$B$2598=$P$1,ROW($A$4:$A$2598)-ROW($A$4)+1),ROWS($N$4:Y75))),"") -> 
A76: 2026-04-06 | C76: =IF(B76="","",VLOOKUP(B76,العملاء!A:B,2,0)) ->  | E76: =IF(D76="","",VLOOKUP(D76,المخزن!B:C,2,0)) ->  | G76: =IF(D76="","",VLOOKUP(D76,المخزن!B:M,12,0)) ->  | H76: =IF(E76="","",G76*F76) ->  | I76: =IF(D76="","",VLOOKUP(D76,المخزن!B:E,4,0)) ->  | J76: =IF(D76>0,I76*F76," ") ->  | K76: =IF(E76="","",H76-J76) ->  | L76: =IF(D76="","",VLOOKUP(D76,المخزن!B:L,8,0)) ->  | N76: =IFERROR(INDEX($A$4:$A$2598,SMALL(IF($B$4:$B$2598=$P$1,ROW($A$4:$A$2598)-ROW($A$4)+1),ROWS($N$4:N76))),"") ->  | O76: =IFERROR(INDEX($B$4:$B$2598,SMALL(IF($B$4:$B$2598=$P$1,ROW($A$4:$A$2598)-ROW($A$4)+1),ROWS($N$4:O76))),"") ->  | P76: =IFERROR(INDEX($C$4:$C$2598,SMALL(IF($B$4:$B$2598=$P$1,ROW($A$4:$A$2598)-ROW($A$4)+1),ROWS($N$4:P76))),"") ->  | Q76: =IFERROR(INDEX($D$4:$D$2598,SMALL(IF($B$4:$B$2598=$P$1,ROW($A$4:$A$2598)-ROW($A$4)+1),ROWS($N$4:Q76))),"") ->  | R76: =IFERROR(INDEX($E$4:$E$2598,SMALL(IF($B$4:$B$2598=$P$1,ROW($A$4:$A$2598)-ROW($A$4)+1),ROWS($N$4:R76))),"") ->  | S76: =IFERROR(INDEX($F$4:$F$2598,SMALL(IF($B$4:$B$2598=$P$1,ROW($A$4:$A$2598)-ROW($A$4)+1),ROWS($N$4:S76))),"") ->  | T76: =IFERROR(INDEX($G$4:$G$2598,SMALL(IF($B$4:$B$2598=$P$1,ROW($A$4:$A$2598)-ROW($A$4)+1),ROWS($N$4:T76))),"") ->  | U76: =IFERROR(INDEX($H$4:$H$2598,SMALL(IF($B$4:$B$2598=$P$1,ROW($A$4:$A$2598)-ROW($A$4)+1),ROWS($N$4:U76))),"") ->  | V76: =IFERROR(INDEX($I$4:$I$2598,SMALL(IF($B$4:$B$2598=$P$1,ROW($A$4:$A$2598)-ROW($A$4)+1),ROWS($N$4:V76))),"") ->  | W76: =IFERROR(INDEX($J$4:$J$2598,SMALL(IF($B$4:$B$2598=$P$1,ROW($A$4:$A$2598)-ROW($A$4)+1),ROWS($N$4:W76))),"") ->  | X76: =IFERROR(INDEX($K$4:$K$2598,SMALL(IF($B$4:$B$2598=$P$1,ROW($A$4:$A$2598)-ROW($A$4)+1),ROWS($N$4:X76))),"") ->  | Y76: =IFERROR(INDEX($L$4:$L$2598,SMALL(IF($B$4:$B$2598=$P$1,ROW($A$4:$A$2598)-ROW($A$4)+1),ROWS($N$4:Y76))),"") -> 
A77: 2026-04-06 | C77: =IF(B77="","",VLOOKUP(B77,العملاء!A:B,2,0)) ->  | E77: =IF(D77="","",VLOOKUP(D77,المخزن!B:C,2,0)) ->  | G77: =IF(D77="","",VLOOKUP(D77,المخزن!B:M,12,0)) ->  | I77: =IF(D77="","",VLOOKUP(D77,المخزن!B:E,4,0)) ->  | L77: =IF(D77="","",VLOOKUP(D77,المخزن!B:L,8,0)) ->  | N77: =IFERROR(INDEX($A$4:$A$2598,SMALL(IF($B$4:$B$2598=$P$1,ROW($A$4:$A$2598)-ROW($A$4)+1),ROWS($N$4:N77))),"") ->  | O77: =IFERROR(INDEX($B$4:$B$2598,SMALL(IF($B$4:$B$2598=$P$1,ROW($A$4:$A$2598)-ROW($A$4)+1),ROWS($N$4:O77))),"") ->  | P77: =IFERROR(INDEX($C$4:$C$2598,SMALL(IF($B$4:$B$2598=$P$1,ROW($A$4:$A$2598)-ROW($A$4)+1),ROWS($N$4:P77))),"") ->  | Q77: =IFERROR(INDEX($D$4:$D$2598,SMALL(IF($B$4:$B$2598=$P$1,ROW($A$4:$A$2598)-ROW($A$4)+1),ROWS($N$4:Q77))),"") ->  | R77: =IFERROR(INDEX($E$4:$E$2598,SMALL(IF($B$4:$B$2598=$P$1,ROW($A$4:$A$2598)-ROW($A$4)+1),ROWS($N$4:R77))),"") ->  | S77: =IFERROR(INDEX($F$4:$F$2598,SMALL(IF($B$4:$B$2598=$P$1,ROW($A$4:$A$2598)-ROW($A$4)+1),ROWS($N$4:S77))),"") ->  | T77: =IFERROR(INDEX($G$4:$G$2598,SMALL(IF($B$4:$B$2598=$P$1,ROW($A$4:$A$2598)-ROW($A$4)+1),ROWS($N$4:T77))),"") ->  | U77: =IFERROR(INDEX($H$4:$H$2598,SMALL(IF($B$4:$B$2598=$P$1,ROW($A$4:$A$2598)-ROW($A$4)+1),ROWS($N$4:U77))),"") ->  | V77: =IFERROR(INDEX($I$4:$I$2598,SMALL(IF($B$4:$B$2598=$P$1,ROW($A$4:$A$2598)-ROW($A$4)+1),ROWS($N$4:V77))),"") ->  | W77: =IFERROR(INDEX($J$4:$J$2598,SMALL(IF($B$4:$B$2598=$P$1,ROW($A$4:$A$2598)-ROW($A$4)+1),ROWS($N$4:W77))),"") ->  | X77: =IFERROR(INDEX($K$4:$K$2598,SMALL(IF($B$4:$B$2598=$P$1,ROW($A$4:$A$2598)-ROW($A$4)+1),ROWS($N$4:X77))),"") ->  | Y77: =IFERROR(INDEX($L$4:$L$2598,SMALL(IF($B$4:$B$2598=$P$1,ROW($A$4:$A$2598)-ROW($A$4)+1),ROWS($N$4:Y77))),"") -> 
A78: 2026-04-06 | C78: =IF(B78="","",VLOOKUP(B78,العملاء!A:B,2,0)) ->  | E78: =IF(D78="","",VLOOKUP(D78,المخزن!B:C,2,0)) ->  | G78: =IF(D78="","",VLOOKUP(D78,المخزن!B:M,12,0)) ->  | I78: =IF(D78="","",VLOOKUP(D78,المخزن!B:E,4,0)) ->  | L78: =IF(D78="","",VLOOKUP(D78,المخزن!B:L,8,0)) ->  | N78: =IFERROR(INDEX($A$4:$A$2598,SMALL(IF($B$4:$B$2598=$P$1,ROW($A$4:$A$2598)-ROW($A$4)+1),ROWS($N$4:N78))),"") ->  | O78: =IFERROR(INDEX($B$4:$B$2598,SMALL(IF($B$4:$B$2598=$P$1,ROW($A$4:$A$2598)-ROW($A$4)+1),ROWS($N$4:O78))),"") ->  | P78: =IFERROR(INDEX($C$4:$C$2598,SMALL(IF($B$4:$B$2598=$P$1,ROW($A$4:$A$2598)-ROW($A$4)+1),ROWS($N$4:P78))),"") ->  | Q78: =IFERROR(INDEX($D$4:$D$2598,SMALL(IF($B$4:$B$2598=$P$1,ROW($A$4:$A$2598)-ROW($A$4)+1),ROWS($N$4:Q78))),"") ->  | R78: =IFERROR(INDEX($E$4:$E$2598,SMALL(IF($B$4:$B$2598=$P$1,ROW($A$4:$A$2598)-ROW($A$4)+1),ROWS($N$4:R78))),"") ->  | S78: =IFERROR(INDEX($F$4:$F$2598,SMALL(IF($B$4:$B$2598=$P$1,ROW($A$4:$A$2598)-ROW($A$4)+1),ROWS($N$4:S78))),"") ->  | T78: =IFERROR(INDEX($G$4:$G$2598,SMALL(IF($B$4:$B$2598=$P$1,ROW($A$4:$A$2598)-ROW($A$4)+1),ROWS($N$4:T78))),"") ->  | U78: =IFERROR(INDEX($H$4:$H$2598,SMALL(IF($B$4:$B$2598=$P$1,ROW($A$4:$A$2598)-ROW($A$4)+1),ROWS($N$4:U78))),"") ->  | V78: =IFERROR(INDEX($I$4:$I$2598,SMALL(IF($B$4:$B$2598=$P$1,ROW($A$4:$A$2598)-ROW($A$4)+1),ROWS($N$4:V78))),"") ->  | W78: =IFERROR(INDEX($J$4:$J$2598,SMALL(IF($B$4:$B$2598=$P$1,ROW($A$4:$A$2598)-ROW($A$4)+1),ROWS($N$4:W78))),"") ->  | X78: =IFERROR(INDEX($K$4:$K$2598,SMALL(IF($B$4:$B$2598=$P$1,ROW($A$4:$A$2598)-ROW($A$4)+1),ROWS($N$4:X78))),"") ->  | Y78: =IFERROR(INDEX($L$4:$L$2598,SMALL(IF($B$4:$B$2598=$P$1,ROW($A$4:$A$2598)-ROW($A$4)+1),ROWS($N$4:Y78))),"") -> 
A79: 2026-04-06 | C79: =IF(B79="","",VLOOKUP(B79,العملاء!A:B,2,0)) ->  | E79: =IF(D79="","",VLOOKUP(D79,المخزن!B:C,2,0)) ->  | G79: =IF(D79="","",VLOOKUP(D79,المخزن!B:M,12,0)) ->  | I79: =IF(D79="","",VLOOKUP(D79,المخزن!B:E,4,0)) ->  | L79: =IF(D79="","",VLOOKUP(D79,المخزن!B:L,8,0)) ->  | N79: =IFERROR(INDEX($A$4:$A$2598,SMALL(IF($B$4:$B$2598=$P$1,ROW($A$4:$A$2598)-ROW($A$4)+1),ROWS($N$4:N79))),"") ->  | O79: =IFERROR(INDEX($B$4:$B$2598,SMALL(IF($B$4:$B$2598=$P$1,ROW($A$4:$A$2598)-ROW($A$4)+1),ROWS($N$4:O79))),"") ->  | P79: =IFERROR(INDEX($C$4:$C$2598,SMALL(IF($B$4:$B$2598=$P$1,ROW($A$4:$A$2598)-ROW($A$4)+1),ROWS($N$4:P79))),"") ->  | Q79: =IFERROR(INDEX($D$4:$D$2598,SMALL(IF($B$4:$B$2598=$P$1,ROW($A$4:$A$2598)-ROW($A$4)+1),ROWS($N$4:Q79))),"") ->  | R79: =IFERROR(INDEX($E$4:$E$2598,SMALL(IF($B$4:$B$2598=$P$1,ROW($A$4:$A$2598)-ROW($A$4)+1),ROWS($N$4:R79))),"") ->  | S79: =IFERROR(INDEX($F$4:$F$2598,SMALL(IF($B$4:$B$2598=$P$1,ROW($A$4:$A$2598)-ROW($A$4)+1),ROWS($N$4:S79))),"") ->  | T79: =IFERROR(INDEX($G$4:$G$2598,SMALL(IF($B$4:$B$2598=$P$1,ROW($A$4:$A$2598)-ROW($A$4)+1),ROWS($N$4:T79))),"") ->  | U79: =IFERROR(INDEX($H$4:$H$2598,SMALL(IF($B$4:$B$2598=$P$1,ROW($A$4:$A$2598)-ROW($A$4)+1),ROWS($N$4:U79))),"") ->  | V79: =IFERROR(INDEX($I$4:$I$2598,SMALL(IF($B$4:$B$2598=$P$1,ROW($A$4:$A$2598)-ROW($A$4)+1),ROWS($N$4:V79))),"") ->  | W79: =IFERROR(INDEX($J$4:$J$2598,SMALL(IF($B$4:$B$2598=$P$1,ROW($A$4:$A$2598)-ROW($A$4)+1),ROWS($N$4:W79))),"") ->  | X79: =IFERROR(INDEX($K$4:$K$2598,SMALL(IF($B$4:$B$2598=$P$1,ROW($A$4:$A$2598)-ROW($A$4)+1),ROWS($N$4:X79))),"") ->  | Y79: =IFERROR(INDEX($L$4:$L$2598,SMALL(IF($B$4:$B$2598=$P$1,ROW($A$4:$A$2598)-ROW($A$4)+1),ROWS($N$4:Y79))),"") -> 
A80: 2026-04-07 | C80: =IF(B80="","",VLOOKUP(B80,العملاء!A:B,2,0)) ->  | E80: =IF(D80="","",VLOOKUP(D80,المخزن!B:C,2,0)) ->  | G80: =IF(D80="","",VLOOKUP(D80,المخزن!B:M,12,0)) ->  | I80: =IF(D80="","",VLOOKUP(D80,المخزن!B:E,4,0)) ->  | L80: =IF(D80="","",VLOOKUP(D80,المخزن!B:L,8,0)) ->  | N80: =IFERROR(INDEX($A$4:$A$2598,SMALL(IF($B$4:$B$2598=$P$1,ROW($A$4:$A$2598)-ROW($A$4)+1),ROWS($N$4:N80))),"") ->  | O80: =IFERROR(INDEX($B$4:$B$2598,SMALL(IF($B$4:$B$2598=$P$1,ROW($A$4:$A$2598)-ROW($A$4)+1),ROWS($N$4:O80))),"") ->  | P80: =IFERROR(INDEX($C$4:$C$2598,SMALL(IF($B$4:$B$2598=$P$1,ROW($A$4:$A$2598)-ROW($A$4)+1),ROWS($N$4:P80))),"") ->  | Q80: =IFERROR(INDEX($D$4:$D$2598,SMALL(IF($B$4:$B$2598=$P$1,ROW($A$4:$A$2598)-ROW($A$4)+1),ROWS($N$4:Q80))),"") ->  | R80: =IFERROR(INDEX($E$4:$E$2598,SMALL(IF($B$4:$B$2598=$P$1,ROW($A$4:$A$2598)-ROW($A$4)+1),ROWS($N$4:R80))),"") ->  | S80: =IFERROR(INDEX($F$4:$F$2598,SMALL(IF($B$4:$B$2598=$P$1,ROW($A$4:$A$2598)-ROW($A$4)+1),ROWS($N$4:S80))),"") ->  | T80: =IFERROR(INDEX($G$4:$G$2598,SMALL(IF($B$4:$B$2598=$P$1,ROW($A$4:$A$2598)-ROW($A$4)+1),ROWS($N$4:T80))),"") ->  | U80: =IFERROR(INDEX($H$4:$H$2598,SMALL(IF($B$4:$B$2598=$P$1,ROW($A$4:$A$2598)-ROW($A$4)+1),ROWS($N$4:U80))),"") ->  | V80: =IFERROR(INDEX($I$4:$I$2598,SMALL(IF($B$4:$B$2598=$P$1,ROW($A$4:$A$2598)-ROW($A$4)+1),ROWS($N$4:V80))),"") ->  | W80: =IFERROR(INDEX($J$4:$J$2598,SMALL(IF($B$4:$B$2598=$P$1,ROW($A$4:$A$2598)-ROW($A$4)+1),ROWS($N$4:W80))),"") ->  | X80: =IFERROR(INDEX($K$4:$K$2598,SMALL(IF($B$4:$B$2598=$P$1,ROW($A$4:$A$2598)-ROW($A$4)+1),ROWS($N$4:X80))),"") ->  | Y80: =IFERROR(INDEX($L$4:$L$2598,SMALL(IF($B$4:$B$2598=$P$1,ROW($A$4:$A$2598)-ROW($A$4)+1),ROWS($N$4:Y80))),"") -> 
A81: 2026-04-07 | C81: =IF(B81="","",VLOOKUP(B81,العملاء!A:B,2,0)) ->  | E81: =IF(D81="","",VLOOKUP(D81,المخزن!B:C,2,0)) ->  | G81: =IF(D81="","",VLOOKUP(D81,المخزن!B:M,12,0)) ->  | I81: =IF(D81="","",VLOOKUP(D81,المخزن!B:E,4,0)) ->  | L81: =IF(D81="","",VLOOKUP(D81,المخزن!B:L,8,0)) ->  | N81: =IFERROR(INDEX($A$4:$A$2598,SMALL(IF($B$4:$B$2598=$P$1,ROW($A$4:$A$2598)-ROW($A$4)+1),ROWS($N$4:N81))),"") ->  | O81: =IFERROR(INDEX($B$4:$B$2598,SMALL(IF($B$4:$B$2598=$P$1,ROW($A$4:$A$2598)-ROW($A$4)+1),ROWS($N$4:O81))),"") ->  | P81: =IFERROR(INDEX($C$4:$C$2598,SMALL(IF($B$4:$B$2598=$P$1,ROW($A$4:$A$2598)-ROW($A$4)+1),ROWS($N$4:P81))),"") ->  | Q81: =IFERROR(INDEX($D$4:$D$2598,SMALL(IF($B$4:$B$2598=$P$1,ROW($A$4:$A$2598)-ROW($A$4)+1),ROWS($N$4:Q81))),"") ->  | R81: =IFERROR(INDEX($E$4:$E$2598,SMALL(IF($B$4:$B$2598=$P$1,ROW($A$4:$A$2598)-ROW($A$4)+1),ROWS($N$4:R81))),"") ->  | S81: =IFERROR(INDEX($F$4:$F$2598,SMALL(IF($B$4:$B$2598=$P$1,ROW($A$4:$A$2598)-ROW($A$4)+1),ROWS($N$4:S81))),"") ->  | T81: =IFERROR(INDEX($G$4:$G$2598,SMALL(IF($B$4:$B$2598=$P$1,ROW($A$4:$A$2598)-ROW($A$4)+1),ROWS($N$4:T81))),"") ->  | U81: =IFERROR(INDEX($H$4:$H$2598,SMALL(IF($B$4:$B$2598=$P$1,ROW($A$4:$A$2598)-ROW($A$4)+1),ROWS($N$4:U81))),"") ->  | V81: =IFERROR(INDEX($I$4:$I$2598,SMALL(IF($B$4:$B$2598=$P$1,ROW($A$4:$A$2598)-ROW($A$4)+1),ROWS($N$4:V81))),"") ->  | W81: =IFERROR(INDEX($J$4:$J$2598,SMALL(IF($B$4:$B$2598=$P$1,ROW($A$4:$A$2598)-ROW($A$4)+1),ROWS($N$4:W81))),"") ->  | X81: =IFERROR(INDEX($K$4:$K$2598,SMALL(IF($B$4:$B$2598=$P$1,ROW($A$4:$A$2598)-ROW($A$4)+1),ROWS($N$4:X81))),"") ->  | Y81: =IFERROR(INDEX($L$4:$L$2598,SMALL(IF($B$4:$B$2598=$P$1,ROW($A$4:$A$2598)-ROW($A$4)+1),ROWS($N$4:Y81))),"") -> 
A82: 2026-04-07 | C82: =IF(B82="","",VLOOKUP(B82,العملاء!A:B,2,0)) ->  | E82: =IF(D82="","",VLOOKUP(D82,المخزن!B:C,2,0)) ->  | G82: =IF(D82="","",VLOOKUP(D82,المخزن!B:M,12,0)) ->  | I82: =IF(D82="","",VLOOKUP(D82,المخزن!B:E,4,0)) ->  | L82: =IF(D82="","",VLOOKUP(D82,المخزن!B:L,8,0)) ->  | N82: =IFERROR(INDEX($A$4:$A$2598,SMALL(IF($B$4:$B$2598=$P$1,ROW($A$4:$A$2598)-ROW($A$4)+1),ROWS($N$4:N82))),"") ->  | O82: =IFERROR(INDEX($B$4:$B$2598,SMALL(IF($B$4:$B$2598=$P$1,ROW($A$4:$A$2598)-ROW($A$4)+1),ROWS($N$4:O82))),"") ->  | P82: =IFERROR(INDEX($C$4:$C$2598,SMALL(IF($B$4:$B$2598=$P$1,ROW($A$4:$A$2598)-ROW($A$4)+1),ROWS($N$4:P82))),"") ->  | Q82: =IFERROR(INDEX($D$4:$D$2598,SMALL(IF($B$4:$B$2598=$P$1,ROW($A$4:$A$2598)-ROW($A$4)+1),ROWS($N$4:Q82))),"") ->  | R82: =IFERROR(INDEX($E$4:$E$2598,SMALL(IF($B$4:$B$2598=$P$1,ROW($A$4:$A$2598)-ROW($A$4)+1),ROWS($N$4:R82))),"") ->  | S82: =IFERROR(INDEX($F$4:$F$2598,SMALL(IF($B$4:$B$2598=$P$1,ROW($A$4:$A$2598)-ROW($A$4)+1),ROWS($N$4:S82))),"") ->  | T82: =IFERROR(INDEX($G$4:$G$2598,SMALL(IF($B$4:$B$2598=$P$1,ROW($A$4:$A$2598)-ROW($A$4)+1),ROWS($N$4:T82))),"") ->  | U82: =IFERROR(INDEX($H$4:$H$2598,SMALL(IF($B$4:$B$2598=$P$1,ROW($A$4:$A$2598)-ROW($A$4)+1),ROWS($N$4:U82))),"") ->  | V82: =IFERROR(INDEX($I$4:$I$2598,SMALL(IF($B$4:$B$2598=$P$1,ROW($A$4:$A$2598)-ROW($A$4)+1),ROWS($N$4:V82))),"") ->  | W82: =IFERROR(INDEX($J$4:$J$2598,SMALL(IF($B$4:$B$2598=$P$1,ROW($A$4:$A$2598)-ROW($A$4)+1),ROWS($N$4:W82))),"") ->  | X82: =IFERROR(INDEX($K$4:$K$2598,SMALL(IF($B$4:$B$2598=$P$1,ROW($A$4:$A$2598)-ROW($A$4)+1),ROWS($N$4:X82))),"") ->  | Y82: =IFERROR(INDEX($L$4:$L$2598,SMALL(IF($B$4:$B$2598=$P$1,ROW($A$4:$A$2598)-ROW($A$4)+1),ROWS($N$4:Y82))),"") -> 
A83: 2026-04-07 | C83: =IF(B83="","",VLOOKUP(B83,العملاء!A:B,2,0)) ->  | E83: =IF(D83="","",VLOOKUP(D83,المخزن!B:C,2,0)) ->  | G83: =IF(D83="","",VLOOKUP(D83,المخزن!B:M,12,0)) ->  | I83: =IF(D83="","",VLOOKUP(D83,المخزن!B:E,4,0)) ->  | L83: =IF(D83="","",VLOOKUP(D83,المخزن!B:L,8,0)) ->  | N83: =IFERROR(INDEX($A$4:$A$2598,SMALL(IF($B$4:$B$2598=$P$1,ROW($A$4:$A$2598)-ROW($A$4)+1),ROWS($N$4:N83))),"") ->  | O83: =IFERROR(INDEX($B$4:$B$2598,SMALL(IF($B$4:$B$2598=$P$1,ROW($A$4:$A$2598)-ROW($A$4)+1),ROWS($N$4:O83))),"") ->  | P83: =IFERROR(INDEX($C$4:$C$2598,SMALL(IF($B$4:$B$2598=$P$1,ROW($A$4:$A$2598)-ROW($A$4)+1),ROWS($N$4:P83))),"") ->  | Q83: =IFERROR(INDEX($D$4:$D$2598,SMALL(IF($B$4:$B$2598=$P$1,ROW($A$4:$A$2598)-ROW($A$4)+1),ROWS($N$4:Q83))),"") ->  | R83: =IFERROR(INDEX($E$4:$E$2598,SMALL(IF($B$4:$B$2598=$P$1,ROW($A$4:$A$2598)-ROW($A$4)+1),ROWS($N$4:R83))),"") ->  | S83: =IFERROR(INDEX($F$4:$F$2598,SMALL(IF($B$4:$B$2598=$P$1,ROW($A$4:$A$2598)-ROW($A$4)+1),ROWS($N$4:S83))),"") ->  | T83: =IFERROR(INDEX($G$4:$G$2598,SMALL(IF($B$4:$B$2598=$P$1,ROW($A$4:$A$2598)-ROW($A$4)+1),ROWS($N$4:T83))),"") ->  | U83: =IFERROR(INDEX($H$4:$H$2598,SMALL(IF($B$4:$B$2598=$P$1,ROW($A$4:$A$2598)-ROW($A$4)+1),ROWS($N$4:U83))),"") ->  | V83: =IFERROR(INDEX($I$4:$I$2598,SMALL(IF($B$4:$B$2598=$P$1,ROW($A$4:$A$2598)-ROW($A$4)+1),ROWS($N$4:V83))),"") ->  | W83: =IFERROR(INDEX($J$4:$J$2598,SMALL(IF($B$4:$B$2598=$P$1,ROW($A$4:$A$2598)-ROW($A$4)+1),ROWS($N$4:W83))),"") ->  | X83: =IFERROR(INDEX($K$4:$K$2598,SMALL(IF($B$4:$B$2598=$P$1,ROW($A$4:$A$2598)-ROW($A$4)+1),ROWS($N$4:X83))),"") ->  | Y83: =IFERROR(INDEX($L$4:$L$2598,SMALL(IF($B$4:$B$2598=$P$1,ROW($A$4:$A$2598)-ROW($A$4)+1),ROWS($N$4:Y83))),"") -> 
A84: 2026-04-07 | C84: =IF(B84="","",VLOOKUP(B84,العملاء!A:B,2,0)) ->  | E84: =IF(D84="","",VLOOKUP(D84,المخزن!B:C,2,0)) ->  | G84: =IF(D84="","",VLOOKUP(D84,المخزن!B:M,12,0)) ->  | I84: =IF(D84="","",VLOOKUP(D84,المخزن!B:E,4,0)) ->  | L84: =IF(D84="","",VLOOKUP(D84,المخزن!B:L,8,0)) ->  | N84: =IFERROR(INDEX($A$4:$A$2598,SMALL(IF($B$4:$B$2598=$P$1,ROW($A$4:$A$2598)-ROW($A$4)+1),ROWS($N$4:N84))),"") ->  | O84: =IFERROR(INDEX($B$4:$B$2598,SMALL(IF($B$4:$B$2598=$P$1,ROW($A$4:$A$2598)-ROW($A$4)+1),ROWS($N$4:O84))),"") ->  | P84: =IFERROR(INDEX($C$4:$C$2598,SMALL(IF($B$4:$B$2598=$P$1,ROW($A$4:$A$2598)-ROW($A$4)+1),ROWS($N$4:P84))),"") ->  | Q84: =IFERROR(INDEX($D$4:$D$2598,SMALL(IF($B$4:$B$2598=$P$1,ROW($A$4:$A$2598)-ROW($A$4)+1),ROWS($N$4:Q84))),"") ->  | R84: =IFERROR(INDEX($E$4:$E$2598,SMALL(IF($B$4:$B$2598=$P$1,ROW($A$4:$A$2598)-ROW($A$4)+1),ROWS($N$4:R84))),"") ->  | S84: =IFERROR(INDEX($F$4:$F$2598,SMALL(IF($B$4:$B$2598=$P$1,ROW($A$4:$A$2598)-ROW($A$4)+1),ROWS($N$4:S84))),"") ->  | T84: =IFERROR(INDEX($G$4:$G$2598,SMALL(IF($B$4:$B$2598=$P$1,ROW($A$4:$A$2598)-ROW($A$4)+1),ROWS($N$4:T84))),"") ->  | U84: =IFERROR(INDEX($H$4:$H$2598,SMALL(IF($B$4:$B$2598=$P$1,ROW($A$4:$A$2598)-ROW($A$4)+1),ROWS($N$4:U84))),"") ->  | V84: =IFERROR(INDEX($I$4:$I$2598,SMALL(IF($B$4:$B$2598=$P$1,ROW($A$4:$A$2598)-ROW($A$4)+1),ROWS($N$4:V84))),"") ->  | W84: =IFERROR(INDEX($J$4:$J$2598,SMALL(IF($B$4:$B$2598=$P$1,ROW($A$4:$A$2598)-ROW($A$4)+1),ROWS($N$4:W84))),"") ->  | X84: =IFERROR(INDEX($K$4:$K$2598,SMALL(IF($B$4:$B$2598=$P$1,ROW($A$4:$A$2598)-ROW($A$4)+1),ROWS($N$4:X84))),"") ->  | Y84: =IFERROR(INDEX($L$4:$L$2598,SMALL(IF($B$4:$B$2598=$P$1,ROW($A$4:$A$2598)-ROW($A$4)+1),ROWS($N$4:Y84))),"") -> 
A85: 2026-04-07 | C85: =IF(B85="","",VLOOKUP(B85,العملاء!A:B,2,0)) ->  | E85: =IF(D85="","",VLOOKUP(D85,المخزن!B:C,2,0)) ->  | G85: =IF(D85="","",VLOOKUP(D85,المخزن!B:M,12,0)) ->  | I85: =IF(D85="","",VLOOKUP(D85,المخزن!B:E,4,0)) ->  | L85: =IF(D85="","",VLOOKUP(D85,المخزن!B:L,8,0)) ->  | N85: =IFERROR(INDEX($A$4:$A$2598,SMALL(IF($B$4:$B$2598=$P$1,ROW($A$4:$A$2598)-ROW($A$4)+1),ROWS($N$4:N85))),"") ->  | O85: =IFERROR(INDEX($B$4:$B$2598,SMALL(IF($B$4:$B$2598=$P$1,ROW($A$4:$A$2598)-ROW($A$4)+1),ROWS($N$4:O85))),"") ->  | P85: =IFERROR(INDEX($C$4:$C$2598,SMALL(IF($B$4:$B$2598=$P$1,ROW($A$4:$A$2598)-ROW($A$4)+1),ROWS($N$4:P85))),"") ->  | Q85: =IFERROR(INDEX($D$4:$D$2598,SMALL(IF($B$4:$B$2598=$P$1,ROW($A$4:$A$2598)-ROW($A$4)+1),ROWS($N$4:Q85))),"") ->  | R85: =IFERROR(INDEX($E$4:$E$2598,SMALL(IF($B$4:$B$2598=$P$1,ROW($A$4:$A$2598)-ROW($A$4)+1),ROWS($N$4:R85))),"") ->  | S85: =IFERROR(INDEX($F$4:$F$2598,SMALL(IF($B$4:$B$2598=$P$1,ROW($A$4:$A$2598)-ROW($A$4)+1),ROWS($N$4:S85))),"") ->  | T85: =IFERROR(INDEX($G$4:$G$2598,SMALL(IF($B$4:$B$2598=$P$1,ROW($A$4:$A$2598)-ROW($A$4)+1),ROWS($N$4:T85))),"") ->  | U85: =IFERROR(INDEX($H$4:$H$2598,SMALL(IF($B$4:$B$2598=$P$1,ROW($A$4:$A$2598)-ROW($A$4)+1),ROWS($N$4:U85))),"") ->  | V85: =IFERROR(INDEX($I$4:$I$2598,SMALL(IF($B$4:$B$2598=$P$1,ROW($A$4:$A$2598)-ROW($A$4)+1),ROWS($N$4:V85))),"") ->  | W85: =IFERROR(INDEX($J$4:$J$2598,SMALL(IF($B$4:$B$2598=$P$1,ROW($A$4:$A$2598)-ROW($A$4)+1),ROWS($N$4:W85))),"") ->  | X85: =IFERROR(INDEX($K$4:$K$2598,SMALL(IF($B$4:$B$2598=$P$1,ROW($A$4:$A$2598)-ROW($A$4)+1),ROWS($N$4:X85))),"") ->  | Y85: =IFERROR(INDEX($L$4:$L$2598,SMALL(IF($B$4:$B$2598=$P$1,ROW($A$4:$A$2598)-ROW($A$4)+1),ROWS($N$4:Y85))),"") -> 
A86: 2026-04-07 | C86: =IF(B86="","",VLOOKUP(B86,العملاء!A:B,2,0)) ->  | E86: =IF(D86="","",VLOOKUP(D86,المخزن!B:C,2,0)) ->  | G86: =IF(D86="","",VLOOKUP(D86,المخزن!B:M,12,0)) ->  | I86: =IF(D86="","",VLOOKUP(D86,المخزن!B:E,4,0)) ->  | L86: =IF(D86="","",VLOOKUP(D86,المخزن!B:L,8,0)) ->  | N86: =IFERROR(INDEX($A$4:$A$2598,SMALL(IF($B$4:$B$2598=$P$1,ROW($A$4:$A$2598)-ROW($A$4)+1),ROWS($N$4:N86))),"") ->  | O86: =IFERROR(INDEX($B$4:$B$2598,SMALL(IF($B$4:$B$2598=$P$1,ROW($A$4:$A$2598)-ROW($A$4)+1),ROWS($N$4:O86))),"") ->  | P86: =IFERROR(INDEX($C$4:$C$2598,SMALL(IF($B$4:$B$2598=$P$1,ROW($A$4:$A$2598)-ROW($A$4)+1),ROWS($N$4:P86))),"") ->  | Q86: =IFERROR(INDEX($D$4:$D$2598,SMALL(IF($B$4:$B$2598=$P$1,ROW($A$4:$A$2598)-ROW($A$4)+1),ROWS($N$4:Q86))),"") ->  | R86: =IFERROR(INDEX($E$4:$E$2598,SMALL(IF($B$4:$B$2598=$P$1,ROW($A$4:$A$2598)-ROW($A$4)+1),ROWS($N$4:R86))),"") ->  | S86: =IFERROR(INDEX($F$4:$F$2598,SMALL(IF($B$4:$B$2598=$P$1,ROW($A$4:$A$2598)-ROW($A$4)+1),ROWS($N$4:S86))),"") ->  | T86: =IFERROR(INDEX($G$4:$G$2598,SMALL(IF($B$4:$B$2598=$P$1,ROW($A$4:$A$2598)-ROW($A$4)+1),ROWS($N$4:T86))),"") ->  | U86: =IFERROR(INDEX($H$4:$H$2598,SMALL(IF($B$4:$B$2598=$P$1,ROW($A$4:$A$2598)-ROW($A$4)+1),ROWS($N$4:U86))),"") ->  | V86: =IFERROR(INDEX($I$4:$I$2598,SMALL(IF($B$4:$B$2598=$P$1,ROW($A$4:$A$2598)-ROW($A$4)+1),ROWS($N$4:V86))),"") ->  | W86: =IFERROR(INDEX($J$4:$J$2598,SMALL(IF($B$4:$B$2598=$P$1,ROW($A$4:$A$2598)-ROW($A$4)+1),ROWS($N$4:W86))),"") ->  | X86: =IFERROR(INDEX($K$4:$K$2598,SMALL(IF($B$4:$B$2598=$P$1,ROW($A$4:$A$2598)-ROW($A$4)+1),ROWS($N$4:X86))),"") ->  | Y86: =IFERROR(INDEX($L$4:$L$2598,SMALL(IF($B$4:$B$2598=$P$1,ROW($A$4:$A$2598)-ROW($A$4)+1),ROWS($N$4:Y86))),"") -> 
A87: 2026-04-07 | C87: =IF(B87="","",VLOOKUP(B87,العملاء!A:B,2,0)) ->  | E87: =IF(D87="","",VLOOKUP(D87,المخزن!B:C,2,0)) ->  | G87: =IF(D87="","",VLOOKUP(D87,المخزن!B:M,12,0)) ->  | I87: =IF(D87="","",VLOOKUP(D87,المخزن!B:E,4,0)) ->  | L87: =IF(D87="","",VLOOKUP(D87,المخزن!B:L,8,0)) ->  | N87: =IFERROR(INDEX($A$4:$A$2598,SMALL(IF($B$4:$B$2598=$P$1,ROW($A$4:$A$2598)-ROW($A$4)+1),ROWS($N$4:N87))),"") ->  | O87: =IFERROR(INDEX($B$4:$B$2598,SMALL(IF($B$4:$B$2598=$P$1,ROW($A$4:$A$2598)-ROW($A$4)+1),ROWS($N$4:O87))),"") ->  | P87: =IFERROR(INDEX($C$4:$C$2598,SMALL(IF($B$4:$B$2598=$P$1,ROW($A$4:$A$2598)-ROW($A$4)+1),ROWS($N$4:P87))),"") ->  | Q87: =IFERROR(INDEX($D$4:$D$2598,SMALL(IF($B$4:$B$2598=$P$1,ROW($A$4:$A$2598)-ROW($A$4)+1),ROWS($N$4:Q87))),"") ->  | R87: =IFERROR(INDEX($E$4:$E$2598,SMALL(IF($B$4:$B$2598=$P$1,ROW($A$4:$A$2598)-ROW($A$4)+1),ROWS($N$4:R87))),"") ->  | S87: =IFERROR(INDEX($F$4:$F$2598,SMALL(IF($B$4:$B$2598=$P$1,ROW($A$4:$A$2598)-ROW($A$4)+1),ROWS($N$4:S87))),"") ->  | T87: =IFERROR(INDEX($G$4:$G$2598,SMALL(IF($B$4:$B$2598=$P$1,ROW($A$4:$A$2598)-ROW($A$4)+1),ROWS($N$4:T87))),"") ->  | U87: =IFERROR(INDEX($H$4:$H$2598,SMALL(IF($B$4:$B$2598=$P$1,ROW($A$4:$A$2598)-ROW($A$4)+1),ROWS($N$4:U87))),"") ->  | V87: =IFERROR(INDEX($I$4:$I$2598,SMALL(IF($B$4:$B$2598=$P$1,ROW($A$4:$A$2598)-ROW($A$4)+1),ROWS($N$4:V87))),"") ->  | W87: =IFERROR(INDEX($J$4:$J$2598,SMALL(IF($B$4:$B$2598=$P$1,ROW($A$4:$A$2598)-ROW($A$4)+1),ROWS($N$4:W87))),"") ->  | X87: =IFERROR(INDEX($K$4:$K$2598,SMALL(IF($B$4:$B$2598=$P$1,ROW($A$4:$A$2598)-ROW($A$4)+1),ROWS($N$4:X87))),"") ->  | Y87: =IFERROR(INDEX($L$4:$L$2598,SMALL(IF($B$4:$B$2598=$P$1,ROW($A$4:$A$2598)-ROW($A$4)+1),ROWS($N$4:Y87))),"") -> 
A88: 2026-04-07 | C88: =IF(B88="","",VLOOKUP(B88,العملاء!A:B,2,0)) ->  | E88: =IF(D88="","",VLOOKUP(D88,المخزن!B:C,2,0)) ->  | G88: =IF(D88="","",VLOOKUP(D88,المخزن!B:M,12,0)) ->  | I88: =IF(D88="","",VLOOKUP(D88,المخزن!B:E,4,0)) ->  | L88: =IF(D88="","",VLOOKUP(D88,المخزن!B:L,8,0)) ->  | N88: =IFERROR(INDEX($A$4:$A$2598,SMALL(IF($B$4:$B$2598=$P$1,ROW($A$4:$A$2598)-ROW($A$4)+1),ROWS($N$4:N88))),"") ->  | O88: =IFERROR(INDEX($B$4:$B$2598,SMALL(IF($B$4:$B$2598=$P$1,ROW($A$4:$A$2598)-ROW($A$4)+1),ROWS($N$4:O88))),"") ->  | P88: =IFERROR(INDEX($C$4:$C$2598,SMALL(IF($B$4:$B$2598=$P$1,ROW($A$4:$A$2598)-ROW($A$4)+1),ROWS($N$4:P88))),"") ->  | Q88: =IFERROR(INDEX($D$4:$D$2598,SMALL(IF($B$4:$B$2598=$P$1,ROW($A$4:$A$2598)-ROW($A$4)+1),ROWS($N$4:Q88))),"") ->  | R88: =IFERROR(INDEX($E$4:$E$2598,SMALL(IF($B$4:$B$2598=$P$1,ROW($A$4:$A$2598)-ROW($A$4)+1),ROWS($N$4:R88))),"") ->  | S88: =IFERROR(INDEX($F$4:$F$2598,SMALL(IF($B$4:$B$2598=$P$1,ROW($A$4:$A$2598)-ROW($A$4)+1),ROWS($N$4:S88))),"") ->  | T88: =IFERROR(INDEX($G$4:$G$2598,SMALL(IF($B$4:$B$2598=$P$1,ROW($A$4:$A$2598)-ROW($A$4)+1),ROWS($N$4:T88))),"") ->  | U88: =IFERROR(INDEX($H$4:$H$2598,SMALL(IF($B$4:$B$2598=$P$1,ROW($A$4:$A$2598)-ROW($A$4)+1),ROWS($N$4:U88))),"") ->  | V88: =IFERROR(INDEX($I$4:$I$2598,SMALL(IF($B$4:$B$2598=$P$1,ROW($A$4:$A$2598)-ROW($A$4)+1),ROWS($N$4:V88))),"") ->  | W88: =IFERROR(INDEX($J$4:$J$2598,SMALL(IF($B$4:$B$2598=$P$1,ROW($A$4:$A$2598)-ROW($A$4)+1),ROWS($N$4:W88))),"") ->  | X88: =IFERROR(INDEX($K$4:$K$2598,SMALL(IF($B$4:$B$2598=$P$1,ROW($A$4:$A$2598)-ROW($A$4)+1),ROWS($N$4:X88))),"") ->  | Y88: =IFERROR(INDEX($L$4:$L$2598,SMALL(IF($B$4:$B$2598=$P$1,ROW($A$4:$A$2598)-ROW($A$4)+1),ROWS($N$4:Y88))),"") -> 
A89: 2026-04-07 | C89: =IF(B89="","",VLOOKUP(B89,العملاء!A:B,2,0)) ->  | E89: =IF(D89="","",VLOOKUP(D89,المخزن!B:C,2,0)) ->  | G89: =IF(D89="","",VLOOKUP(D89,المخزن!B:M,12,0)) ->  | I89: =IF(D89="","",VLOOKUP(D89,المخزن!B:E,4,0)) ->  | L89: =IF(D89="","",VLOOKUP(D89,المخزن!B:L,8,0)) ->  | N89: =IFERROR(INDEX($A$4:$A$2598,SMALL(IF($B$4:$B$2598=$P$1,ROW($A$4:$A$2598)-ROW($A$4)+1),ROWS($N$4:N89))),"") ->  | O89: =IFERROR(INDEX($B$4:$B$2598,SMALL(IF($B$4:$B$2598=$P$1,ROW($A$4:$A$2598)-ROW($A$4)+1),ROWS($N$4:O89))),"") ->  | P89: =IFERROR(INDEX($C$4:$C$2598,SMALL(IF($B$4:$B$2598=$P$1,ROW($A$4:$A$2598)-ROW($A$4)+1),ROWS($N$4:P89))),"") ->  | Q89: =IFERROR(INDEX($D$4:$D$2598,SMALL(IF($B$4:$B$2598=$P$1,ROW($A$4:$A$2598)-ROW($A$4)+1),ROWS($N$4:Q89))),"") ->  | R89: =IFERROR(INDEX($E$4:$E$2598,SMALL(IF($B$4:$B$2598=$P$1,ROW($A$4:$A$2598)-ROW($A$4)+1),ROWS($N$4:R89))),"") ->  | S89: =IFERROR(INDEX($F$4:$F$2598,SMALL(IF($B$4:$B$2598=$P$1,ROW($A$4:$A$2598)-ROW($A$4)+1),ROWS($N$4:S89))),"") ->  | T89: =IFERROR(INDEX($G$4:$G$2598,SMALL(IF($B$4:$B$2598=$P$1,ROW($A$4:$A$2598)-ROW($A$4)+1),ROWS($N$4:T89))),"") ->  | U89: =IFERROR(INDEX($H$4:$H$2598,SMALL(IF($B$4:$B$2598=$P$1,ROW($A$4:$A$2598)-ROW($A$4)+1),ROWS($N$4:U89))),"") ->  | V89: =IFERROR(INDEX($I$4:$I$2598,SMALL(IF($B$4:$B$2598=$P$1,ROW($A$4:$A$2598)-ROW($A$4)+1),ROWS($N$4:V89))),"") ->  | W89: =IFERROR(INDEX($J$4:$J$2598,SMALL(IF($B$4:$B$2598=$P$1,ROW($A$4:$A$2598)-ROW($A$4)+1),ROWS($N$4:W89))),"") ->  | X89: =IFERROR(INDEX($K$4:$K$2598,SMALL(IF($B$4:$B$2598=$P$1,ROW($A$4:$A$2598)-ROW($A$4)+1),ROWS($N$4:X89))),"") ->  | Y89: =IFERROR(INDEX($L$4:$L$2598,SMALL(IF($B$4:$B$2598=$P$1,ROW($A$4:$A$2598)-ROW($A$4)+1),ROWS($N$4:Y89))),"") -> 
A90: 2026-04-07 | C90: =IF(B90="","",VLOOKUP(B90,العملاء!A:B,2,0)) ->  | E90: =IF(D90="","",VLOOKUP(D90,المخزن!B:C,2,0)) ->  | G90: =IF(D90="","",VLOOKUP(D90,المخزن!B:M,12,0)) ->  | I90: =IF(D90="","",VLOOKUP(D90,المخزن!B:E,4,0)) ->  | L90: =IF(D90="","",VLOOKUP(D90,المخزن!B:L,8,0)) ->  | N90: =IFERROR(INDEX($A$4:$A$2598,SMALL(IF($B$4:$B$2598=$P$1,ROW($A$4:$A$2598)-ROW($A$4)+1),ROWS($N$4:N90))),"") ->  | O90: =IFERROR(INDEX($B$4:$B$2598,SMALL(IF($B$4:$B$2598=$P$1,ROW($A$4:$A$2598)-ROW($A$4)+1),ROWS($N$4:O90))),"") ->  | P90: =IFERROR(INDEX($C$4:$C$2598,SMALL(IF($B$4:$B$2598=$P$1,ROW($A$4:$A$2598)-ROW($A$4)+1),ROWS($N$4:P90))),"") ->  | Q90: =IFERROR(INDEX($D$4:$D$2598,SMALL(IF($B$4:$B$2598=$P$1,ROW($A$4:$A$2598)-ROW($A$4)+1),ROWS($N$4:Q90))),"") ->  | R90: =IFERROR(INDEX($E$4:$E$2598,SMALL(IF($B$4:$B$2598=$P$1,ROW($A$4:$A$2598)-ROW($A$4)+1),ROWS($N$4:R90))),"") ->  | S90: =IFERROR(INDEX($F$4:$F$2598,SMALL(IF($B$4:$B$2598=$P$1,ROW($A$4:$A$2598)-ROW($A$4)+1),ROWS($N$4:S90))),"") ->  | T90: =IFERROR(INDEX($G$4:$G$2598,SMALL(IF($B$4:$B$2598=$P$1,ROW($A$4:$A$2598)-ROW($A$4)+1),ROWS($N$4:T90))),"") ->  | U90: =IFERROR(INDEX($H$4:$H$2598,SMALL(IF($B$4:$B$2598=$P$1,ROW($A$4:$A$2598)-ROW($A$4)+1),ROWS($N$4:U90))),"") ->  | V90: =IFERROR(INDEX($I$4:$I$2598,SMALL(IF($B$4:$B$2598=$P$1,ROW($A$4:$A$2598)-ROW($A$4)+1),ROWS($N$4:V90))),"") ->  | W90: =IFERROR(INDEX($J$4:$J$2598,SMALL(IF($B$4:$B$2598=$P$1,ROW($A$4:$A$2598)-ROW($A$4)+1),ROWS($N$4:W90))),"") ->  | X90: =IFERROR(INDEX($K$4:$K$2598,SMALL(IF($B$4:$B$2598=$P$1,ROW($A$4:$A$2598)-ROW($A$4)+1),ROWS($N$4:X90))),"") ->  | Y90: =IFERROR(INDEX($L$4:$L$2598,SMALL(IF($B$4:$B$2598=$P$1,ROW($A$4:$A$2598)-ROW($A$4)+1),ROWS($N$4:Y90))),"") -> 
A91: 2026-04-08 | C91: =IF(B91="","",VLOOKUP(B91,العملاء!A:B,2,0)) ->  | E91: =IF(D91="","",VLOOKUP(D91,المخزن!B:C,2,0)) ->  | G91: =IF(D91="","",VLOOKUP(D91,المخزن!B:M,12,0)) ->  | I91: =IF(D91="","",VLOOKUP(D91,المخزن!B:E,4,0)) ->  | L91: =IF(D91="","",VLOOKUP(D91,المخزن!B:L,8,0)) ->  | N91: =IFERROR(INDEX($A$4:$A$2598,SMALL(IF($B$4:$B$2598=$P$1,ROW($A$4:$A$2598)-ROW($A$4)+1),ROWS($N$4:N91))),"") ->  | O91: =IFERROR(INDEX($B$4:$B$2598,SMALL(IF($B$4:$B$2598=$P$1,ROW($A$4:$A$2598)-ROW($A$4)+1),ROWS($N$4:O91))),"") ->  | P91: =IFERROR(INDEX($C$4:$C$2598,SMALL(IF($B$4:$B$2598=$P$1,ROW($A$4:$A$2598)-ROW($A$4)+1),ROWS($N$4:P91))),"") ->  | Q91: =IFERROR(INDEX($D$4:$D$2598,SMALL(IF($B$4:$B$2598=$P$1,ROW($A$4:$A$2598)-ROW($A$4)+1),ROWS($N$4:Q91))),"") ->  | R91: =IFERROR(INDEX($E$4:$E$2598,SMALL(IF($B$4:$B$2598=$P$1,ROW($A$4:$A$2598)-ROW($A$4)+1),ROWS($N$4:R91))),"") ->  | S91: =IFERROR(INDEX($F$4:$F$2598,SMALL(IF($B$4:$B$2598=$P$1,ROW($A$4:$A$2598)-ROW($A$4)+1),ROWS($N$4:S91))),"") ->  | T91: =IFERROR(INDEX($G$4:$G$2598,SMALL(IF($B$4:$B$2598=$P$1,ROW($A$4:$A$2598)-ROW($A$4)+1),ROWS($N$4:T91))),"") ->  | U91: =IFERROR(INDEX($H$4:$H$2598,SMALL(IF($B$4:$B$2598=$P$1,ROW($A$4:$A$2598)-ROW($A$4)+1),ROWS($N$4:U91))),"") ->  | V91: =IFERROR(INDEX($I$4:$I$2598,SMALL(IF($B$4:$B$2598=$P$1,ROW($A$4:$A$2598)-ROW($A$4)+1),ROWS($N$4:V91))),"") ->  | W91: =IFERROR(INDEX($J$4:$J$2598,SMALL(IF($B$4:$B$2598=$P$1,ROW($A$4:$A$2598)-ROW($A$4)+1),ROWS($N$4:W91))),"") ->  | X91: =IFERROR(INDEX($K$4:$K$2598,SMALL(IF($B$4:$B$2598=$P$1,ROW($A$4:$A$2598)-ROW($A$4)+1),ROWS($N$4:X91))),"") ->  | Y91: =IFERROR(INDEX($L$4:$L$2598,SMALL(IF($B$4:$B$2598=$P$1,ROW($A$4:$A$2598)-ROW($A$4)+1),ROWS($N$4:Y91))),"") -> 
A92: 2026-04-08 | C92: =IF(B92="","",VLOOKUP(B92,العملاء!A:B,2,0)) ->  | E92: =IF(D92="","",VLOOKUP(D92,المخزن!B:C,2,0)) ->  | G92: =IF(D92="","",VLOOKUP(D92,المخزن!B:M,12,0)) ->  | I92: =IF(D92="","",VLOOKUP(D92,المخزن!B:E,4,0)) ->  | L92: =IF(D92="","",VLOOKUP(D92,المخزن!B:L,8,0)) ->  | N92: =IFERROR(INDEX($A$4:$A$2598,SMALL(IF($B$4:$B$2598=$P$1,ROW($A$4:$A$2598)-ROW($A$4)+1),ROWS($N$4:N92))),"") ->  | O92: =IFERROR(INDEX($B$4:$B$2598,SMALL(IF($B$4:$B$2598=$P$1,ROW($A$4:$A$2598)-ROW($A$4)+1),ROWS($N$4:O92))),"") ->  | P92: =IFERROR(INDEX($C$4:$C$2598,SMALL(IF($B$4:$B$2598=$P$1,ROW($A$4:$A$2598)-ROW($A$4)+1),ROWS($N$4:P92))),"") ->  | Q92: =IFERROR(INDEX($D$4:$D$2598,SMALL(IF($B$4:$B$2598=$P$1,ROW($A$4:$A$2598)-ROW($A$4)+1),ROWS($N$4:Q92))),"") ->  | R92: =IFERROR(INDEX($E$4:$E$2598,SMALL(IF($B$4:$B$2598=$P$1,ROW($A$4:$A$2598)-ROW($A$4)+1),ROWS($N$4:R92))),"") ->  | S92: =IFERROR(INDEX($F$4:$F$2598,SMALL(IF($B$4:$B$2598=$P$1,ROW($A$4:$A$2598)-ROW($A$4)+1),ROWS($N$4:S92))),"") ->  | T92: =IFERROR(INDEX($G$4:$G$2598,SMALL(IF($B$4:$B$2598=$P$1,ROW($A$4:$A$2598)-ROW($A$4)+1),ROWS($N$4:T92))),"") ->  | U92: =IFERROR(INDEX($H$4:$H$2598,SMALL(IF($B$4:$B$2598=$P$1,ROW($A$4:$A$2598)-ROW($A$4)+1),ROWS($N$4:U92))),"") ->  | V92: =IFERROR(INDEX($I$4:$I$2598,SMALL(IF($B$4:$B$2598=$P$1,ROW($A$4:$A$2598)-ROW($A$4)+1),ROWS($N$4:V92))),"") ->  | W92: =IFERROR(INDEX($J$4:$J$2598,SMALL(IF($B$4:$B$2598=$P$1,ROW($A$4:$A$2598)-ROW($A$4)+1),ROWS($N$4:W92))),"") ->  | X92: =IFERROR(INDEX($K$4:$K$2598,SMALL(IF($B$4:$B$2598=$P$1,ROW($A$4:$A$2598)-ROW($A$4)+1),ROWS($N$4:X92))),"") ->  | Y92: =IFERROR(INDEX($L$4:$L$2598,SMALL(IF($B$4:$B$2598=$P$1,ROW($A$4:$A$2598)-ROW($A$4)+1),ROWS($N$4:Y92))),"") -> 
A93: 2026-04-08 | C93: =IF(B93="","",VLOOKUP(B93,العملاء!A:B,2,0)) ->  | E93: =IF(D93="","",VLOOKUP(D93,المخزن!B:C,2,0)) ->  | G93: =IF(D93="","",VLOOKUP(D93,المخزن!B:M,12,0)) ->  | I93: =IF(D93="","",VLOOKUP(D93,المخزن!B:E,4,0)) ->  | L93: =IF(D93="","",VLOOKUP(D93,المخزن!B:L,8,0)) ->  | N93: =IFERROR(INDEX($A$4:$A$2598,SMALL(IF($B$4:$B$2598=$P$1,ROW($A$4:$A$2598)-ROW($A$4)+1),ROWS($N$4:N93))),"") ->  | O93: =IFERROR(INDEX($B$4:$B$2598,SMALL(IF($B$4:$B$2598=$P$1,ROW($A$4:$A$2598)-ROW($A$4)+1),ROWS($N$4:O93))),"") ->  | P93: =IFERROR(INDEX($C$4:$C$2598,SMALL(IF($B$4:$B$2598=$P$1,ROW($A$4:$A$2598)-ROW($A$4)+1),ROWS($N$4:P93))),"") ->  | Q93: =IFERROR(INDEX($D$4:$D$2598,SMALL(IF($B$4:$B$2598=$P$1,ROW($A$4:$A$2598)-ROW($A$4)+1),ROWS($N$4:Q93))),"") ->  | R93: =IFERROR(INDEX($E$4:$E$2598,SMALL(IF($B$4:$B$2598=$P$1,ROW($A$4:$A$2598)-ROW($A$4)+1),ROWS($N$4:R93))),"") ->  | S93: =IFERROR(INDEX($F$4:$F$2598,SMALL(IF($B$4:$B$2598=$P$1,ROW($A$4:$A$2598)-ROW($A$4)+1),ROWS($N$4:S93))),"") ->  | T93: =IFERROR(INDEX($G$4:$G$2598,SMALL(IF($B$4:$B$2598=$P$1,ROW($A$4:$A$2598)-ROW($A$4)+1),ROWS($N$4:T93))),"") ->  | U93: =IFERROR(INDEX($H$4:$H$2598,SMALL(IF($B$4:$B$2598=$P$1,ROW($A$4:$A$2598)-ROW($A$4)+1),ROWS($N$4:U93))),"") ->  | V93: =IFERROR(INDEX($I$4:$I$2598,SMALL(IF($B$4:$B$2598=$P$1,ROW($A$4:$A$2598)-ROW($A$4)+1),ROWS($N$4:V93))),"") ->  | W93: =IFERROR(INDEX($J$4:$J$2598,SMALL(IF($B$4:$B$2598=$P$1,ROW($A$4:$A$2598)-ROW($A$4)+1),ROWS($N$4:W93))),"") ->  | X93: =IFERROR(INDEX($K$4:$K$2598,SMALL(IF($B$4:$B$2598=$P$1,ROW($A$4:$A$2598)-ROW($A$4)+1),ROWS($N$4:X93))),"") ->  | Y93: =IFERROR(INDEX($L$4:$L$2598,SMALL(IF($B$4:$B$2598=$P$1,ROW($A$4:$A$2598)-ROW($A$4)+1),ROWS($N$4:Y93))),"") -> 
A94: 2026-04-08 | C94: =IF(B94="","",VLOOKUP(B94,العملاء!A:B,2,0)) ->  | E94: =IF(D94="","",VLOOKUP(D94,المخزن!B:C,2,0)) ->  | G94: =IF(D94="","",VLOOKUP(D94,المخزن!B:M,12,0)) ->  | I94: =IF(D94="","",VLOOKUP(D94,المخزن!B:E,4,0)) ->  | L94: =IF(D94="","",VLOOKUP(D94,المخزن!B:L,8,0)) ->  | N94: =IFERROR(INDEX($A$4:$A$2598,SMALL(IF($B$4:$B$2598=$P$1,ROW($A$4:$A$2598)-ROW($A$4)+1),ROWS($N$4:N94))),"") ->  | O94: =IFERROR(INDEX($B$4:$B$2598,SMALL(IF($B$4:$B$2598=$P$1,ROW($A$4:$A$2598)-ROW($A$4)+1),ROWS($N$4:O94))),"") ->  | P94: =IFERROR(INDEX($C$4:$C$2598,SMALL(IF($B$4:$B$2598=$P$1,ROW($A$4:$A$2598)-ROW($A$4)+1),ROWS($N$4:P94))),"") ->  | Q94: =IFERROR(INDEX($D$4:$D$2598,SMALL(IF($B$4:$B$2598=$P$1,ROW($A$4:$A$2598)-ROW($A$4)+1),ROWS($N$4:Q94))),"") ->  | R94: =IFERROR(INDEX($E$4:$E$2598,SMALL(IF($B$4:$B$2598=$P$1,ROW($A$4:$A$2598)-ROW($A$4)+1),ROWS($N$4:R94))),"") ->  | S94: =IFERROR(INDEX($F$4:$F$2598,SMALL(IF($B$4:$B$2598=$P$1,ROW($A$4:$A$2598)-ROW($A$4)+1),ROWS($N$4:S94))),"") ->  | T94: =IFERROR(INDEX($G$4:$G$2598,SMALL(IF($B$4:$B$2598=$P$1,ROW($A$4:$A$2598)-ROW($A$4)+1),ROWS($N$4:T94))),"") ->  | U94: =IFERROR(INDEX($H$4:$H$2598,SMALL(IF($B$4:$B$2598=$P$1,ROW($A$4:$A$2598)-ROW($A$4)+1),ROWS($N$4:U94))),"") ->  | V94: =IFERROR(INDEX($I$4:$I$2598,SMALL(IF($B$4:$B$2598=$P$1,ROW($A$4:$A$2598)-ROW($A$4)+1),ROWS($N$4:V94))),"") ->  | W94: =IFERROR(INDEX($J$4:$J$2598,SMALL(IF($B$4:$B$2598=$P$1,ROW($A$4:$A$2598)-ROW($A$4)+1),ROWS($N$4:W94))),"") ->  | X94: =IFERROR(INDEX($K$4:$K$2598,SMALL(IF($B$4:$B$2598=$P$1,ROW($A$4:$A$2598)-ROW($A$4)+1),ROWS($N$4:X94))),"") ->  | Y94: =IFERROR(INDEX($L$4:$L$2598,SMALL(IF($B$4:$B$2598=$P$1,ROW($A$4:$A$2598)-ROW($A$4)+1),ROWS($N$4:Y94))),"") -> 
A95: 2026-04-08 | C95: =IF(B95="","",VLOOKUP(B95,العملاء!A:B,2,0)) ->  | E95: =IF(D95="","",VLOOKUP(D95,المخزن!B:C,2,0)) ->  | G95: =IF(D95="","",VLOOKUP(D95,المخزن!B:M,12,0)) ->  | I95: =IF(D95="","",VLOOKUP(D95,المخزن!B:E,4,0)) ->  | L95: =IF(D95="","",VLOOKUP(D95,المخزن!B:L,8,0)) ->  | N95: =IFERROR(INDEX($A$4:$A$2598,SMALL(IF($B$4:$B$2598=$P$1,ROW($A$4:$A$2598)-ROW($A$4)+1),ROWS($N$4:N95))),"") ->  | O95: =IFERROR(INDEX($B$4:$B$2598,SMALL(IF($B$4:$B$2598=$P$1,ROW($A$4:$A$2598)-ROW($A$4)+1),ROWS($N$4:O95))),"") ->  | P95: =IFERROR(INDEX($C$4:$C$2598,SMALL(IF($B$4:$B$2598=$P$1,ROW($A$4:$A$2598)-ROW($A$4)+1),ROWS($N$4:P95))),"") ->  | Q95: =IFERROR(INDEX($D$4:$D$2598,SMALL(IF($B$4:$B$2598=$P$1,ROW($A$4:$A$2598)-ROW($A$4)+1),ROWS($N$4:Q95))),"") ->  | R95: =IFERROR(INDEX($E$4:$E$2598,SMALL(IF($B$4:$B$2598=$P$1,ROW($A$4:$A$2598)-ROW($A$4)+1),ROWS($N$4:R95))),"") ->  | S95: =IFERROR(INDEX($F$4:$F$2598,SMALL(IF($B$4:$B$2598=$P$1,ROW($A$4:$A$2598)-ROW($A$4)+1),ROWS($N$4:S95))),"") ->  | T95: =IFERROR(INDEX($G$4:$G$2598,SMALL(IF($B$4:$B$2598=$P$1,ROW($A$4:$A$2598)-ROW($A$4)+1),ROWS($N$4:T95))),"") ->  | U95: =IFERROR(INDEX($H$4:$H$2598,SMALL(IF($B$4:$B$2598=$P$1,ROW($A$4:$A$2598)-ROW($A$4)+1),ROWS($N$4:U95))),"") ->  | V95: =IFERROR(INDEX($I$4:$I$2598,SMALL(IF($B$4:$B$2598=$P$1,ROW($A$4:$A$2598)-ROW($A$4)+1),ROWS($N$4:V95))),"") ->  | W95: =IFERROR(INDEX($J$4:$J$2598,SMALL(IF($B$4:$B$2598=$P$1,ROW($A$4:$A$2598)-ROW($A$4)+1),ROWS($N$4:W95))),"") ->  | X95: =IFERROR(INDEX($K$4:$K$2598,SMALL(IF($B$4:$B$2598=$P$1,ROW($A$4:$A$2598)-ROW($A$4)+1),ROWS($N$4:X95))),"") ->  | Y95: =IFERROR(INDEX($L$4:$L$2598,SMALL(IF($B$4:$B$2598=$P$1,ROW($A$4:$A$2598)-ROW($A$4)+1),ROWS($N$4:Y95))),"") -> 
A96: 2026-04-08 | C96: =IF(B96="","",VLOOKUP(B96,العملاء!A:B,2,0)) ->  | E96: =IF(D96="","",VLOOKUP(D96,المخزن!B:C,2,0)) ->  | G96: =IF(D96="","",VLOOKUP(D96,المخزن!B:M,12,0)) ->  | H96: =IF(E96="","",G96*F96) ->  | I96: =IF(D96="","",VLOOKUP(D96,المخزن!B:E,4,0)) ->  | J96: =IF(D96>0,I96*F96," ") ->  | K96: =IF(E96="","",H96-J96) ->  | L96: =IF(D96="","",VLOOKUP(D96,المخزن!B:L,8,0)) ->  | N96: =IFERROR(INDEX($A$4:$A$2598,SMALL(IF($B$4:$B$2598=$P$1,ROW($A$4:$A$2598)-ROW($A$4)+1),ROWS($N$4:N96))),"") ->  | O96: =IFERROR(INDEX($B$4:$B$2598,SMALL(IF($B$4:$B$2598=$P$1,ROW($A$4:$A$2598)-ROW($A$4)+1),ROWS($N$4:O96))),"") ->  | P96: =IFERROR(INDEX($C$4:$C$2598,SMALL(IF($B$4:$B$2598=$P$1,ROW($A$4:$A$2598)-ROW($A$4)+1),ROWS($N$4:P96))),"") ->  | Q96: =IFERROR(INDEX($D$4:$D$2598,SMALL(IF($B$4:$B$2598=$P$1,ROW($A$4:$A$2598)-ROW($A$4)+1),ROWS($N$4:Q96))),"") ->  | R96: =IFERROR(INDEX($E$4:$E$2598,SMALL(IF($B$4:$B$2598=$P$1,ROW($A$4:$A$2598)-ROW($A$4)+1),ROWS($N$4:R96))),"") ->  | S96: =IFERROR(INDEX($F$4:$F$2598,SMALL(IF($B$4:$B$2598=$P$1,ROW($A$4:$A$2598)-ROW($A$4)+1),ROWS($N$4:S96))),"") ->  | T96: =IFERROR(INDEX($G$4:$G$2598,SMALL(IF($B$4:$B$2598=$P$1,ROW($A$4:$A$2598)-ROW($A$4)+1),ROWS($N$4:T96))),"") ->  | U96: =IFERROR(INDEX($H$4:$H$2598,SMALL(IF($B$4:$B$2598=$P$1,ROW($A$4:$A$2598)-ROW($A$4)+1),ROWS($N$4:U96))),"") ->  | V96: =IFERROR(INDEX($I$4:$I$2598,SMALL(IF($B$4:$B$2598=$P$1,ROW($A$4:$A$2598)-ROW($A$4)+1),ROWS($N$4:V96))),"") ->  | W96: =IFERROR(INDEX($J$4:$J$2598,SMALL(IF($B$4:$B$2598=$P$1,ROW($A$4:$A$2598)-ROW($A$4)+1),ROWS($N$4:W96))),"") ->  | X96: =IFERROR(INDEX($K$4:$K$2598,SMALL(IF($B$4:$B$2598=$P$1,ROW($A$4:$A$2598)-ROW($A$4)+1),ROWS($N$4:X96))),"") ->  | Y96: =IFERROR(INDEX($L$4:$L$2598,SMALL(IF($B$4:$B$2598=$P$1,ROW($A$4:$A$2598)-ROW($A$4)+1),ROWS($N$4:Y96))),"") -> 
A97: 2026-04-08 | C97: =IF(B97="","",VLOOKUP(B97,العملاء!A:B,2,0)) ->  | E97: =IF(D97="","",VLOOKUP(D97,المخزن!B:C,2,0)) ->  | G97: =IF(D97="","",VLOOKUP(D97,المخزن!B:M,12,0)) ->  | I97: =IF(D97="","",VLOOKUP(D97,المخزن!B:E,4,0)) ->  | L97: =IF(D97="","",VLOOKUP(D97,المخزن!B:L,8,0)) ->  | N97: =IFERROR(INDEX($A$4:$A$2598,SMALL(IF($B$4:$B$2598=$P$1,ROW($A$4:$A$2598)-ROW($A$4)+1),ROWS($N$4:N97))),"") ->  | O97: =IFERROR(INDEX($B$4:$B$2598,SMALL(IF($B$4:$B$2598=$P$1,ROW($A$4:$A$2598)-ROW($A$4)+1),ROWS($N$4:O97))),"") ->  | P97: =IFERROR(INDEX($C$4:$C$2598,SMALL(IF($B$4:$B$2598=$P$1,ROW($A$4:$A$2598)-ROW($A$4)+1),ROWS($N$4:P97))),"") ->  | Q97: =IFERROR(INDEX($D$4:$D$2598,SMALL(IF($B$4:$B$2598=$P$1,ROW($A$4:$A$2598)-ROW($A$4)+1),ROWS($N$4:Q97))),"") ->  | R97: =IFERROR(INDEX($E$4:$E$2598,SMALL(IF($B$4:$B$2598=$P$1,ROW($A$4:$A$2598)-ROW($A$4)+1),ROWS($N$4:R97))),"") ->  | S97: =IFERROR(INDEX($F$4:$F$2598,SMALL(IF($B$4:$B$2598=$P$1,ROW($A$4:$A$2598)-ROW($A$4)+1),ROWS($N$4:S97))),"") ->  | T97: =IFERROR(INDEX($G$4:$G$2598,SMALL(IF($B$4:$B$2598=$P$1,ROW($A$4:$A$2598)-ROW($A$4)+1),ROWS($N$4:T97))),"") ->  | U97: =IFERROR(INDEX($H$4:$H$2598,SMALL(IF($B$4:$B$2598=$P$1,ROW($A$4:$A$2598)-ROW($A$4)+1),ROWS($N$4:U97))),"") ->  | V97: =IFERROR(INDEX($I$4:$I$2598,SMALL(IF($B$4:$B$2598=$P$1,ROW($A$4:$A$2598)-ROW($A$4)+1),ROWS($N$4:V97))),"") ->  | W97: =IFERROR(INDEX($J$4:$J$2598,SMALL(IF($B$4:$B$2598=$P$1,ROW($A$4:$A$2598)-ROW($A$4)+1),ROWS($N$4:W97))),"") ->  | X97: =IFERROR(INDEX($K$4:$K$2598,SMALL(IF($B$4:$B$2598=$P$1,ROW($A$4:$A$2598)-ROW($A$4)+1),ROWS($N$4:X97))),"") ->  | Y97: =IFERROR(INDEX($L$4:$L$2598,SMALL(IF($B$4:$B$2598=$P$1,ROW($A$4:$A$2598)-ROW($A$4)+1),ROWS($N$4:Y97))),"") -> 
A98: 2026-04-08 | C98: =IF(B98="","",VLOOKUP(B98,العملاء!A:B,2,0)) ->  | E98: =IF(D98="","",VLOOKUP(D98,المخزن!B:C,2,0)) ->  | G98: =IF(D98="","",VLOOKUP(D98,المخزن!B:M,12,0)) ->  | I98: =IF(D98="","",VLOOKUP(D98,المخزن!B:E,4,0)) ->  | L98: =IF(D98="","",VLOOKUP(D98,المخزن!B:L,8,0)) ->  | N98: =IFERROR(INDEX($A$4:$A$2598,SMALL(IF($B$4:$B$2598=$P$1,ROW($A$4:$A$2598)-ROW($A$4)+1),ROWS($N$4:N98))),"") ->  | O98: =IFERROR(INDEX($B$4:$B$2598,SMALL(IF($B$4:$B$2598=$P$1,ROW($A$4:$A$2598)-ROW($A$4)+1),ROWS($N$4:O98))),"") ->  | P98: =IFERROR(INDEX($C$4:$C$2598,SMALL(IF($B$4:$B$2598=$P$1,ROW($A$4:$A$2598)-ROW($A$4)+1),ROWS($N$4:P98))),"") ->  | Q98: =IFERROR(INDEX($D$4:$D$2598,SMALL(IF($B$4:$B$2598=$P$1,ROW($A$4:$A$2598)-ROW($A$4)+1),ROWS($N$4:Q98))),"") ->  | R98: =IFERROR(INDEX($E$4:$E$2598,SMALL(IF($B$4:$B$2598=$P$1,ROW($A$4:$A$2598)-ROW($A$4)+1),ROWS($N$4:R98))),"") ->  | S98: =IFERROR(INDEX($F$4:$F$2598,SMALL(IF($B$4:$B$2598=$P$1,ROW($A$4:$A$2598)-ROW($A$4)+1),ROWS($N$4:S98))),"") ->  | T98: =IFERROR(INDEX($G$4:$G$2598,SMALL(IF($B$4:$B$2598=$P$1,ROW($A$4:$A$2598)-ROW($A$4)+1),ROWS($N$4:T98))),"") ->  | U98: =IFERROR(INDEX($H$4:$H$2598,SMALL(IF($B$4:$B$2598=$P$1,ROW($A$4:$A$2598)-ROW($A$4)+1),ROWS($N$4:U98))),"") ->  | V98: =IFERROR(INDEX($I$4:$I$2598,SMALL(IF($B$4:$B$2598=$P$1,ROW($A$4:$A$2598)-ROW($A$4)+1),ROWS($N$4:V98))),"") ->  | W98: =IFERROR(INDEX($J$4:$J$2598,SMALL(IF($B$4:$B$2598=$P$1,ROW($A$4:$A$2598)-ROW($A$4)+1),ROWS($N$4:W98))),"") ->  | X98: =IFERROR(INDEX($K$4:$K$2598,SMALL(IF($B$4:$B$2598=$P$1,ROW($A$4:$A$2598)-ROW($A$4)+1),ROWS($N$4:X98))),"") ->  | Y98: =IFERROR(INDEX($L$4:$L$2598,SMALL(IF($B$4:$B$2598=$P$1,ROW($A$4:$A$2598)-ROW($A$4)+1),ROWS($N$4:Y98))),"") -> 
A99: 2026-04-08 | C99: =IF(B99="","",VLOOKUP(B99,العملاء!A:B,2,0)) ->  | E99: =IF(D99="","",VLOOKUP(D99,المخزن!B:C,2,0)) ->  | G99: =IF(D99="","",VLOOKUP(D99,المخزن!B:M,12,0)) ->  | I99: =IF(D99="","",VLOOKUP(D99,المخزن!B:E,4,0)) ->  | L99: =IF(D99="","",VLOOKUP(D99,المخزن!B:L,8,0)) ->  | N99: =IFERROR(INDEX($A$4:$A$2598,SMALL(IF($B$4:$B$2598=$P$1,ROW($A$4:$A$2598)-ROW($A$4)+1),ROWS($N$4:N99))),"") ->  | O99: =IFERROR(INDEX($B$4:$B$2598,SMALL(IF($B$4:$B$2598=$P$1,ROW($A$4:$A$2598)-ROW($A$4)+1),ROWS($N$4:O99))),"") ->  | P99: =IFERROR(INDEX($C$4:$C$2598,SMALL(IF($B$4:$B$2598=$P$1,ROW($A$4:$A$2598)-ROW($A$4)+1),ROWS($N$4:P99))),"") ->  | Q99: =IFERROR(INDEX($D$4:$D$2598,SMALL(IF($B$4:$B$2598=$P$1,ROW($A$4:$A$2598)-ROW($A$4)+1),ROWS($N$4:Q99))),"") ->  | R99: =IFERROR(INDEX($E$4:$E$2598,SMALL(IF($B$4:$B$2598=$P$1,ROW($A$4:$A$2598)-ROW($A$4)+1),ROWS($N$4:R99))),"") ->  | S99: =IFERROR(INDEX($F$4:$F$2598,SMALL(IF($B$4:$B$2598=$P$1,ROW($A$4:$A$2598)-ROW($A$4)+1),ROWS($N$4:S99))),"") ->  | T99: =IFERROR(INDEX($G$4:$G$2598,SMALL(IF($B$4:$B$2598=$P$1,ROW($A$4:$A$2598)-ROW($A$4)+1),ROWS($N$4:T99))),"") ->  | U99: =IFERROR(INDEX($H$4:$H$2598,SMALL(IF($B$4:$B$2598=$P$1,ROW($A$4:$A$2598)-ROW($A$4)+1),ROWS($N$4:U99))),"") ->  | V99: =IFERROR(INDEX($I$4:$I$2598,SMALL(IF($B$4:$B$2598=$P$1,ROW($A$4:$A$2598)-ROW($A$4)+1),ROWS($N$4:V99))),"") ->  | W99: =IFERROR(INDEX($J$4:$J$2598,SMALL(IF($B$4:$B$2598=$P$1,ROW($A$4:$A$2598)-ROW($A$4)+1),ROWS($N$4:W99))),"") ->  | X99: =IFERROR(INDEX($K$4:$K$2598,SMALL(IF($B$4:$B$2598=$P$1,ROW($A$4:$A$2598)-ROW($A$4)+1),ROWS($N$4:X99))),"") ->  | Y99: =IFERROR(INDEX($L$4:$L$2598,SMALL(IF($B$4:$B$2598=$P$1,ROW($A$4:$A$2598)-ROW($A$4)+1),ROWS($N$4:Y99))),"") -> 
A100: 2026-04-08 | C100: =IF(B100="","",VLOOKUP(B100,العملاء!A:B,2,0)) ->  | E100: =IF(D100="","",VLOOKUP(D100,المخزن!B:C,2,0)) ->  | G100: =IF(D100="","",VLOOKUP(D100,المخزن!B:M,12,0)) ->  | I100: =IF(D100="","",VLOOKUP(D100,المخزن!B:E,4,0)) ->  | L100: =IF(D100="","",VLOOKUP(D100,المخزن!B:L,8,0)) ->  | N100: =IFERROR(INDEX($A$4:$A$2598,SMALL(IF($B$4:$B$2598=$P$1,ROW($A$4:$A$2598)-ROW($A$4)+1),ROWS($N$4:N100))),"") ->  | O100: =IFERROR(INDEX($B$4:$B$2598,SMALL(IF($B$4:$B$2598=$P$1,ROW($A$4:$A$2598)-ROW($A$4)+1),ROWS($N$4:O100))),"") ->  | P100: =IFERROR(INDEX($C$4:$C$2598,SMALL(IF($B$4:$B$2598=$P$1,ROW($A$4:$A$2598)-ROW($A$4)+1),ROWS($N$4:P100))),"") ->  | Q100: =IFERROR(INDEX($D$4:$D$2598,SMALL(IF($B$4:$B$2598=$P$1,ROW($A$4:$A$2598)-ROW($A$4)+1),ROWS($N$4:Q100))),"") ->  | R100: =IFERROR(INDEX($E$4:$E$2598,SMALL(IF($B$4:$B$2598=$P$1,ROW($A$4:$A$2598)-ROW($A$4)+1),ROWS($N$4:R100))),"") ->  | S100: =IFERROR(INDEX($F$4:$F$2598,SMALL(IF($B$4:$B$2598=$P$1,ROW($A$4:$A$2598)-ROW($A$4)+1),ROWS($N$4:S100))),"") ->  | T100: =IFERROR(INDEX($G$4:$G$2598,SMALL(IF($B$4:$B$2598=$P$1,ROW($A$4:$A$2598)-ROW($A$4)+1),ROWS($N$4:T100))),"") ->  | U100: =IFERROR(INDEX($H$4:$H$2598,SMALL(IF($B$4:$B$2598=$P$1,ROW($A$4:$A$2598)-ROW($A$4)+1),ROWS($N$4:U100))),"") ->  | V100: =IFERROR(INDEX($I$4:$I$2598,SMALL(IF($B$4:$B$2598=$P$1,ROW($A$4:$A$2598)-ROW($A$4)+1),ROWS($N$4:V100))),"") ->  | W100: =IFERROR(INDEX($J$4:$J$2598,SMALL(IF($B$4:$B$2598=$P$1,ROW($A$4:$A$2598)-ROW($A$4)+1),ROWS($N$4:W100))),"") ->  | X100: =IFERROR(INDEX($K$4:$K$2598,SMALL(IF($B$4:$B$2598=$P$1,ROW($A$4:$A$2598)-ROW($A$4)+1),ROWS($N$4:X100))),"") ->  | Y100: =IFERROR(INDEX($L$4:$L$2598,SMALL(IF($B$4:$B$2598=$P$1,ROW($A$4:$A$2598)-ROW($A$4)+1),ROWS($N$4:Y100))),"") -> 
A101: 2026-04-08 | C101: =IF(B101="","",VLOOKUP(B101,العملاء!A:B,2,0)) ->  | E101: =IF(D101="","",VLOOKUP(D101,المخزن!B:C,2,0)) ->  | G101: =IF(D101="","",VLOOKUP(D101,المخزن!B:M,12,0)) ->  | I101: =IF(D101="","",VLOOKUP(D101,المخزن!B:E,4,0)) ->  | L101: =IF(D101="","",VLOOKUP(D101,المخزن!B:L,8,0)) ->  | N101: =IFERROR(INDEX($A$4:$A$2598,SMALL(IF($B$4:$B$2598=$P$1,ROW($A$4:$A$2598)-ROW($A$4)+1),ROWS($N$4:N101))),"") ->  | O101: =IFERROR(INDEX($B$4:$B$2598,SMALL(IF($B$4:$B$2598=$P$1,ROW($A$4:$A$2598)-ROW($A$4)+1),ROWS($N$4:O101))),"") ->  | P101: =IFERROR(INDEX($C$4:$C$2598,SMALL(IF($B$4:$B$2598=$P$1,ROW($A$4:$A$2598)-ROW($A$4)+1),ROWS($N$4:P101))),"") ->  | Q101: =IFERROR(INDEX($D$4:$D$2598,SMALL(IF($B$4:$B$2598=$P$1,ROW($A$4:$A$2598)-ROW($A$4)+1),ROWS($N$4:Q101))),"") ->  | R101: =IFERROR(INDEX($E$4:$E$2598,SMALL(IF($B$4:$B$2598=$P$1,ROW($A$4:$A$2598)-ROW($A$4)+1),ROWS($N$4:R101))),"") ->  | S101: =IFERROR(INDEX($F$4:$F$2598,SMALL(IF($B$4:$B$2598=$P$1,ROW($A$4:$A$2598)-ROW($A$4)+1),ROWS($N$4:S101))),"") ->  | T101: =IFERROR(INDEX($G$4:$G$2598,SMALL(IF($B$4:$B$2598=$P$1,ROW($A$4:$A$2598)-ROW($A$4)+1),ROWS($N$4:T101))),"") ->  | U101: =IFERROR(INDEX($H$4:$H$2598,SMALL(IF($B$4:$B$2598=$P$1,ROW($A$4:$A$2598)-ROW($A$4)+1),ROWS($N$4:U101))),"") ->  | V101: =IFERROR(INDEX($I$4:$I$2598,SMALL(IF($B$4:$B$2598=$P$1,ROW($A$4:$A$2598)-ROW($A$4)+1),ROWS($N$4:V101))),"") ->  | W101: =IFERROR(INDEX($J$4:$J$2598,SMALL(IF($B$4:$B$2598=$P$1,ROW($A$4:$A$2598)-ROW($A$4)+1),ROWS($N$4:W101))),"") ->  | X101: =IFERROR(INDEX($K$4:$K$2598,SMALL(IF($B$4:$B$2598=$P$1,ROW($A$4:$A$2598)-ROW($A$4)+1),ROWS($N$4:X101))),"") ->  | Y101: =IFERROR(INDEX($L$4:$L$2598,SMALL(IF($B$4:$B$2598=$P$1,ROW($A$4:$A$2598)-ROW($A$4)+1),ROWS($N$4:Y101))),"") -> 
A102: 2026-04-08 | C102: =IF(B102="","",VLOOKUP(B102,العملاء!A:B,2,0)) ->  | E102: =IF(D102="","",VLOOKUP(D102,المخزن!B:C,2,0)) ->  | G102: =IF(D102="","",VLOOKUP(D102,المخزن!B:M,12,0)) ->  | I102: =IF(D102="","",VLOOKUP(D102,المخزن!B:E,4,0)) ->  | L102: =IF(D102="","",VLOOKUP(D102,المخزن!B:L,8,0)) ->  | N102: =IFERROR(INDEX($A$4:$A$2598,SMALL(IF($B$4:$B$2598=$P$1,ROW($A$4:$A$2598)-ROW($A$4)+1),ROWS($N$4:N102))),"") ->  | O102: =IFERROR(INDEX($B$4:$B$2598,SMALL(IF($B$4:$B$2598=$P$1,ROW($A$4:$A$2598)-ROW($A$4)+1),ROWS($N$4:O102))),"") ->  | P102: =IFERROR(INDEX($C$4:$C$2598,SMALL(IF($B$4:$B$2598=$P$1,ROW($A$4:$A$2598)-ROW($A$4)+1),ROWS($N$4:P102))),"") ->  | Q102: =IFERROR(INDEX($D$4:$D$2598,SMALL(IF($B$4:$B$2598=$P$1,ROW($A$4:$A$2598)-ROW($A$4)+1),ROWS($N$4:Q102))),"") ->  | R102: =IFERROR(INDEX($E$4:$E$2598,SMALL(IF($B$4:$B$2598=$P$1,ROW($A$4:$A$2598)-ROW($A$4)+1),ROWS($N$4:R102))),"") ->  | S102: =IFERROR(INDEX($F$4:$F$2598,SMALL(IF($B$4:$B$2598=$P$1,ROW($A$4:$A$2598)-ROW($A$4)+1),ROWS($N$4:S102))),"") ->  | T102: =IFERROR(INDEX($G$4:$G$2598,SMALL(IF($B$4:$B$2598=$P$1,ROW($A$4:$A$2598)-ROW($A$4)+1),ROWS($N$4:T102))),"") ->  | U102: =IFERROR(INDEX($H$4:$H$2598,SMALL(IF($B$4:$B$2598=$P$1,ROW($A$4:$A$2598)-ROW($A$4)+1),ROWS($N$4:U102))),"") ->  | V102: =IFERROR(INDEX($I$4:$I$2598,SMALL(IF($B$4:$B$2598=$P$1,ROW($A$4:$A$2598)-ROW($A$4)+1),ROWS($N$4:V102))),"") ->  | W102: =IFERROR(INDEX($J$4:$J$2598,SMALL(IF($B$4:$B$2598=$P$1,ROW($A$4:$A$2598)-ROW($A$4)+1),ROWS($N$4:W102))),"") ->  | X102: =IFERROR(INDEX($K$4:$K$2598,SMALL(IF($B$4:$B$2598=$P$1,ROW($A$4:$A$2598)-ROW($A$4)+1),ROWS($N$4:X102))),"") ->  | Y102: =IFERROR(INDEX($L$4:$L$2598,SMALL(IF($B$4:$B$2598=$P$1,ROW($A$4:$A$2598)-ROW($A$4)+1),ROWS($N$4:Y102))),"") -> 
A103: 2026-04-08 | C103: =IF(B103="","",VLOOKUP(B103,العملاء!A:B,2,0)) ->  | E103: =IF(D103="","",VLOOKUP(D103,المخزن!B:C,2,0)) ->  | G103: =IF(D103="","",VLOOKUP(D103,المخزن!B:M,12,0)) ->  | I103: =IF(D103="","",VLOOKUP(D103,المخزن!B:E,4,0)) ->  | L103: =IF(D103="","",VLOOKUP(D103,المخزن!B:L,8,0)) ->  | N103: =IFERROR(INDEX($A$4:$A$2598,SMALL(IF($B$4:$B$2598=$P$1,ROW($A$4:$A$2598)-ROW($A$4)+1),ROWS($N$4:N103))),"") ->  | O103: =IFERROR(INDEX($B$4:$B$2598,SMALL(IF($B$4:$B$2598=$P$1,ROW($A$4:$A$2598)-ROW($A$4)+1),ROWS($N$4:O103))),"") ->  | P103: =IFERROR(INDEX($C$4:$C$2598,SMALL(IF($B$4:$B$2598=$P$1,ROW($A$4:$A$2598)-ROW($A$4)+1),ROWS($N$4:P103))),"") ->  | Q103: =IFERROR(INDEX($D$4:$D$2598,SMALL(IF($B$4:$B$2598=$P$1,ROW($A$4:$A$2598)-ROW($A$4)+1),ROWS($N$4:Q103))),"") ->  | R103: =IFERROR(INDEX($E$4:$E$2598,SMALL(IF($B$4:$B$2598=$P$1,ROW($A$4:$A$2598)-ROW($A$4)+1),ROWS($N$4:R103))),"") ->  | S103: =IFERROR(INDEX($F$4:$F$2598,SMALL(IF($B$4:$B$2598=$P$1,ROW($A$4:$A$2598)-ROW($A$4)+1),ROWS($N$4:S103))),"") ->  | T103: =IFERROR(INDEX($G$4:$G$2598,SMALL(IF($B$4:$B$2598=$P$1,ROW($A$4:$A$2598)-ROW($A$4)+1),ROWS($N$4:T103))),"") ->  | U103: =IFERROR(INDEX($H$4:$H$2598,SMALL(IF($B$4:$B$2598=$P$1,ROW($A$4:$A$2598)-ROW($A$4)+1),ROWS($N$4:U103))),"") ->  | V103: =IFERROR(INDEX($I$4:$I$2598,SMALL(IF($B$4:$B$2598=$P$1,ROW($A$4:$A$2598)-ROW($A$4)+1),ROWS($N$4:V103))),"") ->  | W103: =IFERROR(INDEX($J$4:$J$2598,SMALL(IF($B$4:$B$2598=$P$1,ROW($A$4:$A$2598)-ROW($A$4)+1),ROWS($N$4:W103))),"") ->  | X103: =IFERROR(INDEX($K$4:$K$2598,SMALL(IF($B$4:$B$2598=$P$1,ROW($A$4:$A$2598)-ROW($A$4)+1),ROWS($N$4:X103))),"") ->  | Y103: =IFERROR(INDEX($L$4:$L$2598,SMALL(IF($B$4:$B$2598=$P$1,ROW($A$4:$A$2598)-ROW($A$4)+1),ROWS($N$4:Y103))),"") -> 
A104: 2026-04-08 | C104: =IF(B104="","",VLOOKUP(B104,العملاء!A:B,2,0)) ->  | E104: =IF(D104="","",VLOOKUP(D104,المخزن!B:C,2,0)) ->  | G104: =IF(D104="","",VLOOKUP(D104,المخزن!B:M,12,0)) ->  | I104: =IF(D104="","",VLOOKUP(D104,المخزن!B:E,4,0)) ->  | L104: =IF(D104="","",VLOOKUP(D104,المخزن!B:L,8,0)) ->  | N104: =IFERROR(INDEX($A$4:$A$2598,SMALL(IF($B$4:$B$2598=$P$1,ROW($A$4:$A$2598)-ROW($A$4)+1),ROWS($N$4:N104))),"") ->  | O104: =IFERROR(INDEX($B$4:$B$2598,SMALL(IF($B$4:$B$2598=$P$1,ROW($A$4:$A$2598)-ROW($A$4)+1),ROWS($N$4:O104))),"") ->  | P104: =IFERROR(INDEX($C$4:$C$2598,SMALL(IF($B$4:$B$2598=$P$1,ROW($A$4:$A$2598)-ROW($A$4)+1),ROWS($N$4:P104))),"") ->  | Q104: =IFERROR(INDEX($D$4:$D$2598,SMALL(IF($B$4:$B$2598=$P$1,ROW($A$4:$A$2598)-ROW($A$4)+1),ROWS($N$4:Q104))),"") ->  | R104: =IFERROR(INDEX($E$4:$E$2598,SMALL(IF($B$4:$B$2598=$P$1,ROW($A$4:$A$2598)-ROW($A$4)+1),ROWS($N$4:R104))),"") ->  | S104: =IFERROR(INDEX($F$4:$F$2598,SMALL(IF($B$4:$B$2598=$P$1,ROW($A$4:$A$2598)-ROW($A$4)+1),ROWS($N$4:S104))),"") ->  | T104: =IFERROR(INDEX($G$4:$G$2598,SMALL(IF($B$4:$B$2598=$P$1,ROW($A$4:$A$2598)-ROW($A$4)+1),ROWS($N$4:T104))),"") ->  | U104: =IFERROR(INDEX($H$4:$H$2598,SMALL(IF($B$4:$B$2598=$P$1,ROW($A$4:$A$2598)-ROW($A$4)+1),ROWS($N$4:U104))),"") ->  | V104: =IFERROR(INDEX($I$4:$I$2598,SMALL(IF($B$4:$B$2598=$P$1,ROW($A$4:$A$2598)-ROW($A$4)+1),ROWS($N$4:V104))),"") ->  | W104: =IFERROR(INDEX($J$4:$J$2598,SMALL(IF($B$4:$B$2598=$P$1,ROW($A$4:$A$2598)-ROW($A$4)+1),ROWS($N$4:W104))),"") ->  | X104: =IFERROR(INDEX($K$4:$K$2598,SMALL(IF($B$4:$B$2598=$P$1,ROW($A$4:$A$2598)-ROW($A$4)+1),ROWS($N$4:X104))),"") ->  | Y104: =IFERROR(INDEX($L$4:$L$2598,SMALL(IF($B$4:$B$2598=$P$1,ROW($A$4:$A$2598)-ROW($A$4)+1),ROWS($N$4:Y104))),"") -> 
A105: 2026-04-08 | C105: =IF(B105="","",VLOOKUP(B105,العملاء!A:B,2,0)) ->  | E105: =IF(D105="","",VLOOKUP(D105,المخزن!B:C,2,0)) ->  | G105: =IF(D105="","",VLOOKUP(D105,المخزن!B:M,12,0)) ->  | I105: =IF(D105="","",VLOOKUP(D105,المخزن!B:E,4,0)) ->  | L105: =IF(D105="","",VLOOKUP(D105,المخزن!B:L,8,0)) ->  | N105: =IFERROR(INDEX($A$4:$A$2598,SMALL(IF($B$4:$B$2598=$P$1,ROW($A$4:$A$2598)-ROW($A$4)+1),ROWS($N$4:N105))),"") ->  | O105: =IFERROR(INDEX($B$4:$B$2598,SMALL(IF($B$4:$B$2598=$P$1,ROW($A$4:$A$2598)-ROW($A$4)+1),ROWS($N$4:O105))),"") ->  | P105: =IFERROR(INDEX($C$4:$C$2598,SMALL(IF($B$4:$B$2598=$P$1,ROW($A$4:$A$2598)-ROW($A$4)+1),ROWS($N$4:P105))),"") ->  | Q105: =IFERROR(INDEX($D$4:$D$2598,SMALL(IF($B$4:$B$2598=$P$1,ROW($A$4:$A$2598)-ROW($A$4)+1),ROWS($N$4:Q105))),"") ->  | R105: =IFERROR(INDEX($E$4:$E$2598,SMALL(IF($B$4:$B$2598=$P$1,ROW($A$4:$A$2598)-ROW($A$4)+1),ROWS($N$4:R105))),"") ->  | S105: =IFERROR(INDEX($F$4:$F$2598,SMALL(IF($B$4:$B$2598=$P$1,ROW($A$4:$A$2598)-ROW($A$4)+1),ROWS($N$4:S105))),"") ->  | T105: =IFERROR(INDEX($G$4:$G$2598,SMALL(IF($B$4:$B$2598=$P$1,ROW($A$4:$A$2598)-ROW($A$4)+1),ROWS($N$4:T105))),"") ->  | U105: =IFERROR(INDEX($H$4:$H$2598,SMALL(IF($B$4:$B$2598=$P$1,ROW($A$4:$A$2598)-ROW($A$4)+1),ROWS($N$4:U105))),"") ->  | V105: =IFERROR(INDEX($I$4:$I$2598,SMALL(IF($B$4:$B$2598=$P$1,ROW($A$4:$A$2598)-ROW($A$4)+1),ROWS($N$4:V105))),"") ->  | W105: =IFERROR(INDEX($J$4:$J$2598,SMALL(IF($B$4:$B$2598=$P$1,ROW($A$4:$A$2598)-ROW($A$4)+1),ROWS($N$4:W105))),"") ->  | X105: =IFERROR(INDEX($K$4:$K$2598,SMALL(IF($B$4:$B$2598=$P$1,ROW($A$4:$A$2598)-ROW($A$4)+1),ROWS($N$4:X105))),"") ->  | Y105: =IFERROR(INDEX($L$4:$L$2598,SMALL(IF($B$4:$B$2598=$P$1,ROW($A$4:$A$2598)-ROW($A$4)+1),ROWS($N$4:Y105))),"") -> 
A106: 2026-04-08 | C106: =IF(B106="","",VLOOKUP(B106,العملاء!A:B,2,0)) ->  | E106: =IF(D106="","",VLOOKUP(D106,المخزن!B:C,2,0)) ->  | G106: =IF(D106="","",VLOOKUP(D106,المخزن!B:M,12,0)) ->  | I106: =IF(D106="","",VLOOKUP(D106,المخزن!B:E,4,0)) ->  | L106: =IF(D106="","",VLOOKUP(D106,المخزن!B:L,8,0)) ->  | N106: =IFERROR(INDEX($A$4:$A$2598,SMALL(IF($B$4:$B$2598=$P$1,ROW($A$4:$A$2598)-ROW($A$4)+1),ROWS($N$4:N106))),"") ->  | O106: =IFERROR(INDEX($B$4:$B$2598,SMALL(IF($B$4:$B$2598=$P$1,ROW($A$4:$A$2598)-ROW($A$4)+1),ROWS($N$4:O106))),"") ->  | P106: =IFERROR(INDEX($C$4:$C$2598,SMALL(IF($B$4:$B$2598=$P$1,ROW($A$4:$A$2598)-ROW($A$4)+1),ROWS($N$4:P106))),"") ->  | Q106: =IFERROR(INDEX($D$4:$D$2598,SMALL(IF($B$4:$B$2598=$P$1,ROW($A$4:$A$2598)-ROW($A$4)+1),ROWS($N$4:Q106))),"") ->  | R106: =IFERROR(INDEX($E$4:$E$2598,SMALL(IF($B$4:$B$2598=$P$1,ROW($A$4:$A$2598)-ROW($A$4)+1),ROWS($N$4:R106))),"") ->  | S106: =IFERROR(INDEX($F$4:$F$2598,SMALL(IF($B$4:$B$2598=$P$1,ROW($A$4:$A$2598)-ROW($A$4)+1),ROWS($N$4:S106))),"") ->  | T106: =IFERROR(INDEX($G$4:$G$2598,SMALL(IF($B$4:$B$2598=$P$1,ROW($A$4:$A$2598)-ROW($A$4)+1),ROWS($N$4:T106))),"") ->  | U106: =IFERROR(INDEX($H$4:$H$2598,SMALL(IF($B$4:$B$2598=$P$1,ROW($A$4:$A$2598)-ROW($A$4)+1),ROWS($N$4:U106))),"") ->  | V106: =IFERROR(INDEX($I$4:$I$2598,SMALL(IF($B$4:$B$2598=$P$1,ROW($A$4:$A$2598)-ROW($A$4)+1),ROWS($N$4:V106))),"") ->  | W106: =IFERROR(INDEX($J$4:$J$2598,SMALL(IF($B$4:$B$2598=$P$1,ROW($A$4:$A$2598)-ROW($A$4)+1),ROWS($N$4:W106))),"") ->  | X106: =IFERROR(INDEX($K$4:$K$2598,SMALL(IF($B$4:$B$2598=$P$1,ROW($A$4:$A$2598)-ROW($A$4)+1),ROWS($N$4:X106))),"") ->  | Y106: =IFERROR(INDEX($L$4:$L$2598,SMALL(IF($B$4:$B$2598=$P$1,ROW($A$4:$A$2598)-ROW($A$4)+1),ROWS($N$4:Y106))),"") -> 
A107: 2026-04-08 | C107: =IF(B107="","",VLOOKUP(B107,العملاء!A:B,2,0)) ->  | E107: =IF(D107="","",VLOOKUP(D107,المخزن!B:C,2,0)) ->  | G107: =IF(D107="","",VLOOKUP(D107,المخزن!B:M,12,0)) ->  | I107: =IF(D107="","",VLOOKUP(D107,المخزن!B:E,4,0)) ->  | L107: =IF(D107="","",VLOOKUP(D107,المخزن!B:L,8,0)) ->  | N107: =IFERROR(INDEX($A$4:$A$2598,SMALL(IF($B$4:$B$2598=$P$1,ROW($A$4:$A$2598)-ROW($A$4)+1),ROWS($N$4:N107))),"") ->  | O107: =IFERROR(INDEX($B$4:$B$2598,SMALL(IF($B$4:$B$2598=$P$1,ROW($A$4:$A$2598)-ROW($A$4)+1),ROWS($N$4:O107))),"") ->  | P107: =IFERROR(INDEX($C$4:$C$2598,SMALL(IF($B$4:$B$2598=$P$1,ROW($A$4:$A$2598)-ROW($A$4)+1),ROWS($N$4:P107))),"") ->  | Q107: =IFERROR(INDEX($D$4:$D$2598,SMALL(IF($B$4:$B$2598=$P$1,ROW($A$4:$A$2598)-ROW($A$4)+1),ROWS($N$4:Q107))),"") ->  | R107: =IFERROR(INDEX($E$4:$E$2598,SMALL(IF($B$4:$B$2598=$P$1,ROW($A$4:$A$2598)-ROW($A$4)+1),ROWS($N$4:R107))),"") ->  | S107: =IFERROR(INDEX($F$4:$F$2598,SMALL(IF($B$4:$B$2598=$P$1,ROW($A$4:$A$2598)-ROW($A$4)+1),ROWS($N$4:S107))),"") ->  | T107: =IFERROR(INDEX($G$4:$G$2598,SMALL(IF($B$4:$B$2598=$P$1,ROW($A$4:$A$2598)-ROW($A$4)+1),ROWS($N$4:T107))),"") ->  | U107: =IFERROR(INDEX($H$4:$H$2598,SMALL(IF($B$4:$B$2598=$P$1,ROW($A$4:$A$2598)-ROW($A$4)+1),ROWS($N$4:U107))),"") ->  | V107: =IFERROR(INDEX($I$4:$I$2598,SMALL(IF($B$4:$B$2598=$P$1,ROW($A$4:$A$2598)-ROW($A$4)+1),ROWS($N$4:V107))),"") ->  | W107: =IFERROR(INDEX($J$4:$J$2598,SMALL(IF($B$4:$B$2598=$P$1,ROW($A$4:$A$2598)-ROW($A$4)+1),ROWS($N$4:W107))),"") ->  | X107: =IFERROR(INDEX($K$4:$K$2598,SMALL(IF($B$4:$B$2598=$P$1,ROW($A$4:$A$2598)-ROW($A$4)+1),ROWS($N$4:X107))),"") ->  | Y107: =IFERROR(INDEX($L$4:$L$2598,SMALL(IF($B$4:$B$2598=$P$1,ROW($A$4:$A$2598)-ROW($A$4)+1),ROWS($N$4:Y107))),"") -> 
A108: 2026-04-08 | C108: =IF(B108="","",VLOOKUP(B108,العملاء!A:B,2,0)) ->  | E108: =IF(D108="","",VLOOKUP(D108,المخزن!B:C,2,0)) ->  | G108: =IF(D108="","",VLOOKUP(D108,المخزن!B:M,12,0)) ->  | I108: =IF(D108="","",VLOOKUP(D108,المخزن!B:E,4,0)) ->  | L108: =IF(D108="","",VLOOKUP(D108,المخزن!B:L,8,0)) ->  | N108: =IFERROR(INDEX($A$4:$A$2598,SMALL(IF($B$4:$B$2598=$P$1,ROW($A$4:$A$2598)-ROW($A$4)+1),ROWS($N$4:N108))),"") ->  | O108: =IFERROR(INDEX($B$4:$B$2598,SMALL(IF($B$4:$B$2598=$P$1,ROW($A$4:$A$2598)-ROW($A$4)+1),ROWS($N$4:O108))),"") ->  | P108: =IFERROR(INDEX($C$4:$C$2598,SMALL(IF($B$4:$B$2598=$P$1,ROW($A$4:$A$2598)-ROW($A$4)+1),ROWS($N$4:P108))),"") ->  | Q108: =IFERROR(INDEX($D$4:$D$2598,SMALL(IF($B$4:$B$2598=$P$1,ROW($A$4:$A$2598)-ROW($A$4)+1),ROWS($N$4:Q108))),"") ->  | R108: =IFERROR(INDEX($E$4:$E$2598,SMALL(IF($B$4:$B$2598=$P$1,ROW($A$4:$A$2598)-ROW($A$4)+1),ROWS($N$4:R108))),"") ->  | S108: =IFERROR(INDEX($F$4:$F$2598,SMALL(IF($B$4:$B$2598=$P$1,ROW($A$4:$A$2598)-ROW($A$4)+1),ROWS($N$4:S108))),"") ->  | T108: =IFERROR(INDEX($G$4:$G$2598,SMALL(IF($B$4:$B$2598=$P$1,ROW($A$4:$A$2598)-ROW($A$4)+1),ROWS($N$4:T108))),"") ->  | U108: =IFERROR(INDEX($H$4:$H$2598,SMALL(IF($B$4:$B$2598=$P$1,ROW($A$4:$A$2598)-ROW($A$4)+1),ROWS($N$4:U108))),"") ->  | V108: =IFERROR(INDEX($I$4:$I$2598,SMALL(IF($B$4:$B$2598=$P$1,ROW($A$4:$A$2598)-ROW($A$4)+1),ROWS($N$4:V108))),"") ->  | W108: =IFERROR(INDEX($J$4:$J$2598,SMALL(IF($B$4:$B$2598=$P$1,ROW($A$4:$A$2598)-ROW($A$4)+1),ROWS($N$4:W108))),"") ->  | X108: =IFERROR(INDEX($K$4:$K$2598,SMALL(IF($B$4:$B$2598=$P$1,ROW($A$4:$A$2598)-ROW($A$4)+1),ROWS($N$4:X108))),"") ->  | Y108: =IFERROR(INDEX($L$4:$L$2598,SMALL(IF($B$4:$B$2598=$P$1,ROW($A$4:$A$2598)-ROW($A$4)+1),ROWS($N$4:Y108))),"") -> 
A109: 2026-04-08 | C109: =IF(B109="","",VLOOKUP(B109,العملاء!A:B,2,0)) ->  | E109: =IF(D109="","",VLOOKUP(D109,المخزن!B:C,2,0)) ->  | G109: =IF(D109="","",VLOOKUP(D109,المخزن!B:M,12,0)) ->  | I109: =IF(D109="","",VLOOKUP(D109,المخزن!B:E,4,0)) ->  | L109: =IF(D109="","",VLOOKUP(D109,المخزن!B:L,8,0)) ->  | N109: =IFERROR(INDEX($A$4:$A$2598,SMALL(IF($B$4:$B$2598=$P$1,ROW($A$4:$A$2598)-ROW($A$4)+1),ROWS($N$4:N109))),"") ->  | O109: =IFERROR(INDEX($B$4:$B$2598,SMALL(IF($B$4:$B$2598=$P$1,ROW($A$4:$A$2598)-ROW($A$4)+1),ROWS($N$4:O109))),"") ->  | P109: =IFERROR(INDEX($C$4:$C$2598,SMALL(IF($B$4:$B$2598=$P$1,ROW($A$4:$A$2598)-ROW($A$4)+1),ROWS($N$4:P109))),"") ->  | Q109: =IFERROR(INDEX($D$4:$D$2598,SMALL(IF($B$4:$B$2598=$P$1,ROW($A$4:$A$2598)-ROW($A$4)+1),ROWS($N$4:Q109))),"") ->  | R109: =IFERROR(INDEX($E$4:$E$2598,SMALL(IF($B$4:$B$2598=$P$1,ROW($A$4:$A$2598)-ROW($A$4)+1),ROWS($N$4:R109))),"") ->  | S109: =IFERROR(INDEX($F$4:$F$2598,SMALL(IF($B$4:$B$2598=$P$1,ROW($A$4:$A$2598)-ROW($A$4)+1),ROWS($N$4:S109))),"") ->  | T109: =IFERROR(INDEX($G$4:$G$2598,SMALL(IF($B$4:$B$2598=$P$1,ROW($A$4:$A$2598)-ROW($A$4)+1),ROWS($N$4:T109))),"") ->  | U109: =IFERROR(INDEX($H$4:$H$2598,SMALL(IF($B$4:$B$2598=$P$1,ROW($A$4:$A$2598)-ROW($A$4)+1),ROWS($N$4:U109))),"") ->  | V109: =IFERROR(INDEX($I$4:$I$2598,SMALL(IF($B$4:$B$2598=$P$1,ROW($A$4:$A$2598)-ROW($A$4)+1),ROWS($N$4:V109))),"") ->  | W109: =IFERROR(INDEX($J$4:$J$2598,SMALL(IF($B$4:$B$2598=$P$1,ROW($A$4:$A$2598)-ROW($A$4)+1),ROWS($N$4:W109))),"") ->  | X109: =IFERROR(INDEX($K$4:$K$2598,SMALL(IF($B$4:$B$2598=$P$1,ROW($A$4:$A$2598)-ROW($A$4)+1),ROWS($N$4:X109))),"") ->  | Y109: =IFERROR(INDEX($L$4:$L$2598,SMALL(IF($B$4:$B$2598=$P$1,ROW($A$4:$A$2598)-ROW($A$4)+1),ROWS($N$4:Y109))),"") -> 
A110: 2026-04-08 | C110: =IF(B110="","",VLOOKUP(B110,العملاء!A:B,2,0)) ->  | E110: =IF(D110="","",VLOOKUP(D110,المخزن!B:C,2,0)) ->  | G110: =IF(D110="","",VLOOKUP(D110,المخزن!B:M,12,0)) ->  | I110: =IF(D110="","",VLOOKUP(D110,المخزن!B:E,4,0)) ->  | L110: =IF(D110="","",VLOOKUP(D110,المخزن!B:L,8,0)) ->  | N110: =IFERROR(INDEX($A$4:$A$2598,SMALL(IF($B$4:$B$2598=$P$1,ROW($A$4:$A$2598)-ROW($A$4)+1),ROWS($N$4:N110))),"") ->  | O110: =IFERROR(INDEX($B$4:$B$2598,SMALL(IF($B$4:$B$2598=$P$1,ROW($A$4:$A$2598)-ROW($A$4)+1),ROWS($N$4:O110))),"") ->  | P110: =IFERROR(INDEX($C$4:$C$2598,SMALL(IF($B$4:$B$2598=$P$1,ROW($A$4:$A$2598)-ROW($A$4)+1),ROWS($N$4:P110))),"") ->  | Q110: =IFERROR(INDEX($D$4:$D$2598,SMALL(IF($B$4:$B$2598=$P$1,ROW($A$4:$A$2598)-ROW($A$4)+1),ROWS($N$4:Q110))),"") ->  | R110: =IFERROR(INDEX($E$4:$E$2598,SMALL(IF($B$4:$B$2598=$P$1,ROW($A$4:$A$2598)-ROW($A$4)+1),ROWS($N$4:R110))),"") ->  | S110: =IFERROR(INDEX($F$4:$F$2598,SMALL(IF($B$4:$B$2598=$P$1,ROW($A$4:$A$2598)-ROW($A$4)+1),ROWS($N$4:S110))),"") ->  | T110: =IFERROR(INDEX($G$4:$G$2598,SMALL(IF($B$4:$B$2598=$P$1,ROW($A$4:$A$2598)-ROW($A$4)+1),ROWS($N$4:T110))),"") ->  | U110: =IFERROR(INDEX($H$4:$H$2598,SMALL(IF($B$4:$B$2598=$P$1,ROW($A$4:$A$2598)-ROW($A$4)+1),ROWS($N$4:U110))),"") ->  | V110: =IFERROR(INDEX($I$4:$I$2598,SMALL(IF($B$4:$B$2598=$P$1,ROW($A$4:$A$2598)-ROW($A$4)+1),ROWS($N$4:V110))),"") ->  | W110: =IFERROR(INDEX($J$4:$J$2598,SMALL(IF($B$4:$B$2598=$P$1,ROW($A$4:$A$2598)-ROW($A$4)+1),ROWS($N$4:W110))),"") ->  | X110: =IFERROR(INDEX($K$4:$K$2598,SMALL(IF($B$4:$B$2598=$P$1,ROW($A$4:$A$2598)-ROW($A$4)+1),ROWS($N$4:X110))),"") ->  | Y110: =IFERROR(INDEX($L$4:$L$2598,SMALL(IF($B$4:$B$2598=$P$1,ROW($A$4:$A$2598)-ROW($A$4)+1),ROWS($N$4:Y110))),"") -> 
A111: 2026-04-08 | C111: =IF(B111="","",VLOOKUP(B111,العملاء!A:B,2,0)) ->  | E111: =IF(D111="","",VLOOKUP(D111,المخزن!B:C,2,0)) ->  | G111: =IF(D111="","",VLOOKUP(D111,المخزن!B:M,12,0)) ->  | I111: =IF(D111="","",VLOOKUP(D111,المخزن!B:E,4,0)) ->  | L111: =IF(D111="","",VLOOKUP(D111,المخزن!B:L,8,0)) ->  | N111: =IFERROR(INDEX($A$4:$A$2598,SMALL(IF($B$4:$B$2598=$P$1,ROW($A$4:$A$2598)-ROW($A$4)+1),ROWS($N$4:N111))),"") ->  | O111: =IFERROR(INDEX($B$4:$B$2598,SMALL(IF($B$4:$B$2598=$P$1,ROW($A$4:$A$2598)-ROW($A$4)+1),ROWS($N$4:O111))),"") ->  | P111: =IFERROR(INDEX($C$4:$C$2598,SMALL(IF($B$4:$B$2598=$P$1,ROW($A$4:$A$2598)-ROW($A$4)+1),ROWS($N$4:P111))),"") ->  | Q111: =IFERROR(INDEX($D$4:$D$2598,SMALL(IF($B$4:$B$2598=$P$1,ROW($A$4:$A$2598)-ROW($A$4)+1),ROWS($N$4:Q111))),"") ->  | R111: =IFERROR(INDEX($E$4:$E$2598,SMALL(IF($B$4:$B$2598=$P$1,ROW($A$4:$A$2598)-ROW($A$4)+1),ROWS($N$4:R111))),"") ->  | S111: =IFERROR(INDEX($F$4:$F$2598,SMALL(IF($B$4:$B$2598=$P$1,ROW($A$4:$A$2598)-ROW($A$4)+1),ROWS($N$4:S111))),"") ->  | T111: =IFERROR(INDEX($G$4:$G$2598,SMALL(IF($B$4:$B$2598=$P$1,ROW($A$4:$A$2598)-ROW($A$4)+1),ROWS($N$4:T111))),"") ->  | U111: =IFERROR(INDEX($H$4:$H$2598,SMALL(IF($B$4:$B$2598=$P$1,ROW($A$4:$A$2598)-ROW($A$4)+1),ROWS($N$4:U111))),"") ->  | V111: =IFERROR(INDEX($I$4:$I$2598,SMALL(IF($B$4:$B$2598=$P$1,ROW($A$4:$A$2598)-ROW($A$4)+1),ROWS($N$4:V111))),"") ->  | W111: =IFERROR(INDEX($J$4:$J$2598,SMALL(IF($B$4:$B$2598=$P$1,ROW($A$4:$A$2598)-ROW($A$4)+1),ROWS($N$4:W111))),"") ->  | X111: =IFERROR(INDEX($K$4:$K$2598,SMALL(IF($B$4:$B$2598=$P$1,ROW($A$4:$A$2598)-ROW($A$4)+1),ROWS($N$4:X111))),"") ->  | Y111: =IFERROR(INDEX($L$4:$L$2598,SMALL(IF($B$4:$B$2598=$P$1,ROW($A$4:$A$2598)-ROW($A$4)+1),ROWS($N$4:Y111))),"") -> 
A112: 2026-04-09 | C112: =IF(B112="","",VLOOKUP(B112,العملاء!A:B,2,0)) ->  | E112: =IF(D112="","",VLOOKUP(D112,المخزن!B:C,2,0)) ->  | G112: =IF(D112="","",VLOOKUP(D112,المخزن!B:M,12,0)) ->  | I112: =IF(D112="","",VLOOKUP(D112,المخزن!B:E,4,0)) ->  | L112: =IF(D112="","",VLOOKUP(D112,المخزن!B:L,8,0)) ->  | N112: =IFERROR(INDEX($A$4:$A$2598,SMALL(IF($B$4:$B$2598=$P$1,ROW($A$4:$A$2598)-ROW($A$4)+1),ROWS($N$4:N112))),"") ->  | O112: =IFERROR(INDEX($B$4:$B$2598,SMALL(IF($B$4:$B$2598=$P$1,ROW($A$4:$A$2598)-ROW($A$4)+1),ROWS($N$4:O112))),"") ->  | P112: =IFERROR(INDEX($C$4:$C$2598,SMALL(IF($B$4:$B$2598=$P$1,ROW($A$4:$A$2598)-ROW($A$4)+1),ROWS($N$4:P112))),"") ->  | Q112: =IFERROR(INDEX($D$4:$D$2598,SMALL(IF($B$4:$B$2598=$P$1,ROW($A$4:$A$2598)-ROW($A$4)+1),ROWS($N$4:Q112))),"") ->  | R112: =IFERROR(INDEX($E$4:$E$2598,SMALL(IF($B$4:$B$2598=$P$1,ROW($A$4:$A$2598)-ROW($A$4)+1),ROWS($N$4:R112))),"") ->  | S112: =IFERROR(INDEX($F$4:$F$2598,SMALL(IF($B$4:$B$2598=$P$1,ROW($A$4:$A$2598)-ROW($A$4)+1),ROWS($N$4:S112))),"") ->  | T112: =IFERROR(INDEX($G$4:$G$2598,SMALL(IF($B$4:$B$2598=$P$1,ROW($A$4:$A$2598)-ROW($A$4)+1),ROWS($N$4:T112))),"") ->  | U112: =IFERROR(INDEX($H$4:$H$2598,SMALL(IF($B$4:$B$2598=$P$1,ROW($A$4:$A$2598)-ROW($A$4)+1),ROWS($N$4:U112))),"") ->  | V112: =IFERROR(INDEX($I$4:$I$2598,SMALL(IF($B$4:$B$2598=$P$1,ROW($A$4:$A$2598)-ROW($A$4)+1),ROWS($N$4:V112))),"") ->  | W112: =IFERROR(INDEX($J$4:$J$2598,SMALL(IF($B$4:$B$2598=$P$1,ROW($A$4:$A$2598)-ROW($A$4)+1),ROWS($N$4:W112))),"") ->  | X112: =IFERROR(INDEX($K$4:$K$2598,SMALL(IF($B$4:$B$2598=$P$1,ROW($A$4:$A$2598)-ROW($A$4)+1),ROWS($N$4:X112))),"") ->  | Y112: =IFERROR(INDEX($L$4:$L$2598,SMALL(IF($B$4:$B$2598=$P$1,ROW($A$4:$A$2598)-ROW($A$4)+1),ROWS($N$4:Y112))),"") -> 
A113: 2026-04-09 | C113: =IF(B113="","",VLOOKUP(B113,العملاء!A:B,2,0)) ->  | E113: =IF(D113="","",VLOOKUP(D113,المخزن!B:C,2,0)) ->  | G113: =IF(D113="","",VLOOKUP(D113,المخزن!B:M,12,0)) ->  | I113: =IF(D113="","",VLOOKUP(D113,المخزن!B:E,4,0)) ->  | L113: =IF(D113="","",VLOOKUP(D113,المخزن!B:L,8,0)) ->  | N113: =IFERROR(INDEX($A$4:$A$2598,SMALL(IF($B$4:$B$2598=$P$1,ROW($A$4:$A$2598)-ROW($A$4)+1),ROWS($N$4:N113))),"") ->  | O113: =IFERROR(INDEX($B$4:$B$2598,SMALL(IF($B$4:$B$2598=$P$1,ROW($A$4:$A$2598)-ROW($A$4)+1),ROWS($N$4:O113))),"") ->  | P113: =IFERROR(INDEX($C$4:$C$2598,SMALL(IF($B$4:$B$2598=$P$1,ROW($A$4:$A$2598)-ROW($A$4)+1),ROWS($N$4:P113))),"") ->  | Q113: =IFERROR(INDEX($D$4:$D$2598,SMALL(IF($B$4:$B$2598=$P$1,ROW($A$4:$A$2598)-ROW($A$4)+1),ROWS($N$4:Q113))),"") ->  | R113: =IFERROR(INDEX($E$4:$E$2598,SMALL(IF($B$4:$B$2598=$P$1,ROW($A$4:$A$2598)-ROW($A$4)+1),ROWS($N$4:R113))),"") ->  | S113: =IFERROR(INDEX($F$4:$F$2598,SMALL(IF($B$4:$B$2598=$P$1,ROW($A$4:$A$2598)-ROW($A$4)+1),ROWS($N$4:S113))),"") ->  | T113: =IFERROR(INDEX($G$4:$G$2598,SMALL(IF($B$4:$B$2598=$P$1,ROW($A$4:$A$2598)-ROW($A$4)+1),ROWS($N$4:T113))),"") ->  | U113: =IFERROR(INDEX($H$4:$H$2598,SMALL(IF($B$4:$B$2598=$P$1,ROW($A$4:$A$2598)-ROW($A$4)+1),ROWS($N$4:U113))),"") ->  | V113: =IFERROR(INDEX($I$4:$I$2598,SMALL(IF($B$4:$B$2598=$P$1,ROW($A$4:$A$2598)-ROW($A$4)+1),ROWS($N$4:V113))),"") ->  | W113: =IFERROR(INDEX($J$4:$J$2598,SMALL(IF($B$4:$B$2598=$P$1,ROW($A$4:$A$2598)-ROW($A$4)+1),ROWS($N$4:W113))),"") ->  | X113: =IFERROR(INDEX($K$4:$K$2598,SMALL(IF($B$4:$B$2598=$P$1,ROW($A$4:$A$2598)-ROW($A$4)+1),ROWS($N$4:X113))),"") ->  | Y113: =IFERROR(INDEX($L$4:$L$2598,SMALL(IF($B$4:$B$2598=$P$1,ROW($A$4:$A$2598)-ROW($A$4)+1),ROWS($N$4:Y113))),"") -> 
A114: 2026-04-09 | C114: =IF(B114="","",VLOOKUP(B114,العملاء!A:B,2,0)) ->  | E114: =IF(D114="","",VLOOKUP(D114,المخزن!B:C,2,0)) ->  | G114: =IF(D114="","",VLOOKUP(D114,المخزن!B:M,12,0)) ->  | I114: =IF(D114="","",VLOOKUP(D114,المخزن!B:E,4,0)) ->  | L114: =IF(D114="","",VLOOKUP(D114,المخزن!B:L,8,0)) ->  | N114: =IFERROR(INDEX($A$4:$A$2598,SMALL(IF($B$4:$B$2598=$P$1,ROW($A$4:$A$2598)-ROW($A$4)+1),ROWS($N$4:N114))),"") ->  | O114: =IFERROR(INDEX($B$4:$B$2598,SMALL(IF($B$4:$B$2598=$P$1,ROW($A$4:$A$2598)-ROW($A$4)+1),ROWS($N$4:O114))),"") ->  | P114: =IFERROR(INDEX($C$4:$C$2598,SMALL(IF($B$4:$B$2598=$P$1,ROW($A$4:$A$2598)-ROW($A$4)+1),ROWS($N$4:P114))),"") ->  | Q114: =IFERROR(INDEX($D$4:$D$2598,SMALL(IF($B$4:$B$2598=$P$1,ROW($A$4:$A$2598)-ROW($A$4)+1),ROWS($N$4:Q114))),"") ->  | R114: =IFERROR(INDEX($E$4:$E$2598,SMALL(IF($B$4:$B$2598=$P$1,ROW($A$4:$A$2598)-ROW($A$4)+1),ROWS($N$4:R114))),"") ->  | S114: =IFERROR(INDEX($F$4:$F$2598,SMALL(IF($B$4:$B$2598=$P$1,ROW($A$4:$A$2598)-ROW($A$4)+1),ROWS($N$4:S114))),"") ->  | T114: =IFERROR(INDEX($G$4:$G$2598,SMALL(IF($B$4:$B$2598=$P$1,ROW($A$4:$A$2598)-ROW($A$4)+1),ROWS($N$4:T114))),"") ->  | U114: =IFERROR(INDEX($H$4:$H$2598,SMALL(IF($B$4:$B$2598=$P$1,ROW($A$4:$A$2598)-ROW($A$4)+1),ROWS($N$4:U114))),"") ->  | V114: =IFERROR(INDEX($I$4:$I$2598,SMALL(IF($B$4:$B$2598=$P$1,ROW($A$4:$A$2598)-ROW($A$4)+1),ROWS($N$4:V114))),"") ->  | W114: =IFERROR(INDEX($J$4:$J$2598,SMALL(IF($B$4:$B$2598=$P$1,ROW($A$4:$A$2598)-ROW($A$4)+1),ROWS($N$4:W114))),"") ->  | X114: =IFERROR(INDEX($K$4:$K$2598,SMALL(IF($B$4:$B$2598=$P$1,ROW($A$4:$A$2598)-ROW($A$4)+1),ROWS($N$4:X114))),"") ->  | Y114: =IFERROR(INDEX($L$4:$L$2598,SMALL(IF($B$4:$B$2598=$P$1,ROW($A$4:$A$2598)-ROW($A$4)+1),ROWS($N$4:Y114))),"") -> 
A115: 2026-04-09 | C115: =IF(B115="","",VLOOKUP(B115,العملاء!A:B,2,0)) ->  | E115: =IF(D115="","",VLOOKUP(D115,المخزن!B:C,2,0)) ->  | G115: =IF(D115="","",VLOOKUP(D115,المخزن!B:M,12,0)) ->  | I115: =IF(D115="","",VLOOKUP(D115,المخزن!B:E,4,0)) ->  | L115: =IF(D115="","",VLOOKUP(D115,المخزن!B:L,8,0)) ->  | N115: =IFERROR(INDEX($A$4:$A$2598,SMALL(IF($B$4:$B$2598=$P$1,ROW($A$4:$A$2598)-ROW($A$4)+1),ROWS($N$4:N115))),"") ->  | O115: =IFERROR(INDEX($B$4:$B$2598,SMALL(IF($B$4:$B$2598=$P$1,ROW($A$4:$A$2598)-ROW($A$4)+1),ROWS($N$4:O115))),"") ->  | P115: =IFERROR(INDEX($C$4:$C$2598,SMALL(IF($B$4:$B$2598=$P$1,ROW($A$4:$A$2598)-ROW($A$4)+1),ROWS($N$4:P115))),"") ->  | Q115: =IFERROR(INDEX($D$4:$D$2598,SMALL(IF($B$4:$B$2598=$P$1,ROW($A$4:$A$2598)-ROW($A$4)+1),ROWS($N$4:Q115))),"") ->  | R115: =IFERROR(INDEX($E$4:$E$2598,SMALL(IF($B$4:$B$2598=$P$1,ROW($A$4:$A$2598)-ROW($A$4)+1),ROWS($N$4:R115))),"") ->  | S115: =IFERROR(INDEX($F$4:$F$2598,SMALL(IF($B$4:$B$2598=$P$1,ROW($A$4:$A$2598)-ROW($A$4)+1),ROWS($N$4:S115))),"") ->  | T115: =IFERROR(INDEX($G$4:$G$2598,SMALL(IF($B$4:$B$2598=$P$1,ROW($A$4:$A$2598)-ROW($A$4)+1),ROWS($N$4:T115))),"") ->  | U115: =IFERROR(INDEX($H$4:$H$2598,SMALL(IF($B$4:$B$2598=$P$1,ROW($A$4:$A$2598)-ROW($A$4)+1),ROWS($N$4:U115))),"") ->  | V115: =IFERROR(INDEX($I$4:$I$2598,SMALL(IF($B$4:$B$2598=$P$1,ROW($A$4:$A$2598)-ROW($A$4)+1),ROWS($N$4:V115))),"") ->  | W115: =IFERROR(INDEX($J$4:$J$2598,SMALL(IF($B$4:$B$2598=$P$1,ROW($A$4:$A$2598)-ROW($A$4)+1),ROWS($N$4:W115))),"") ->  | X115: =IFERROR(INDEX($K$4:$K$2598,SMALL(IF($B$4:$B$2598=$P$1,ROW($A$4:$A$2598)-ROW($A$4)+1),ROWS($N$4:X115))),"") ->  | Y115: =IFERROR(INDEX($L$4:$L$2598,SMALL(IF($B$4:$B$2598=$P$1,ROW($A$4:$A$2598)-ROW($A$4)+1),ROWS($N$4:Y115))),"") -> 
A116: 2026-04-09 | C116: =IF(B116="","",VLOOKUP(B116,العملاء!A:B,2,0)) ->  | E116: =IF(D116="","",VLOOKUP(D116,المخزن!B:C,2,0)) ->  | G116: =IF(D116="","",VLOOKUP(D116,المخزن!B:M,12,0)) ->  | I116: =IF(D116="","",VLOOKUP(D116,المخزن!B:E,4,0)) ->  | L116: =IF(D116="","",VLOOKUP(D116,المخزن!B:L,8,0)) ->  | N116: =IFERROR(INDEX($A$4:$A$2598,SMALL(IF($B$4:$B$2598=$P$1,ROW($A$4:$A$2598)-ROW($A$4)+1),ROWS($N$4:N116))),"") ->  | O116: =IFERROR(INDEX($B$4:$B$2598,SMALL(IF($B$4:$B$2598=$P$1,ROW($A$4:$A$2598)-ROW($A$4)+1),ROWS($N$4:O116))),"") ->  | P116: =IFERROR(INDEX($C$4:$C$2598,SMALL(IF($B$4:$B$2598=$P$1,ROW($A$4:$A$2598)-ROW($A$4)+1),ROWS($N$4:P116))),"") ->  | Q116: =IFERROR(INDEX($D$4:$D$2598,SMALL(IF($B$4:$B$2598=$P$1,ROW($A$4:$A$2598)-ROW($A$4)+1),ROWS($N$4:Q116))),"") ->  | R116: =IFERROR(INDEX($E$4:$E$2598,SMALL(IF($B$4:$B$2598=$P$1,ROW($A$4:$A$2598)-ROW($A$4)+1),ROWS($N$4:R116))),"") ->  | S116: =IFERROR(INDEX($F$4:$F$2598,SMALL(IF($B$4:$B$2598=$P$1,ROW($A$4:$A$2598)-ROW($A$4)+1),ROWS($N$4:S116))),"") ->  | T116: =IFERROR(INDEX($G$4:$G$2598,SMALL(IF($B$4:$B$2598=$P$1,ROW($A$4:$A$2598)-ROW($A$4)+1),ROWS($N$4:T116))),"") ->  | U116: =IFERROR(INDEX($H$4:$H$2598,SMALL(IF($B$4:$B$2598=$P$1,ROW($A$4:$A$2598)-ROW($A$4)+1),ROWS($N$4:U116))),"") ->  | V116: =IFERROR(INDEX($I$4:$I$2598,SMALL(IF($B$4:$B$2598=$P$1,ROW($A$4:$A$2598)-ROW($A$4)+1),ROWS($N$4:V116))),"") ->  | W116: =IFERROR(INDEX($J$4:$J$2598,SMALL(IF($B$4:$B$2598=$P$1,ROW($A$4:$A$2598)-ROW($A$4)+1),ROWS($N$4:W116))),"") ->  | X116: =IFERROR(INDEX($K$4:$K$2598,SMALL(IF($B$4:$B$2598=$P$1,ROW($A$4:$A$2598)-ROW($A$4)+1),ROWS($N$4:X116))),"") ->  | Y116: =IFERROR(INDEX($L$4:$L$2598,SMALL(IF($B$4:$B$2598=$P$1,ROW($A$4:$A$2598)-ROW($A$4)+1),ROWS($N$4:Y116))),"") -> 
A117: 2026-04-09 | C117: =IF(B117="","",VLOOKUP(B117,العملاء!A:B,2,0)) ->  | E117: =IF(D117="","",VLOOKUP(D117,المخزن!B:C,2,0)) ->  | G117: =IF(D117="","",VLOOKUP(D117,المخزن!B:M,12,0)) ->  | I117: =IF(D117="","",VLOOKUP(D117,المخزن!B:E,4,0)) ->  | L117: =IF(D117="","",VLOOKUP(D117,المخزن!B:L,8,0)) ->  | N117: =IFERROR(INDEX($A$4:$A$2598,SMALL(IF($B$4:$B$2598=$P$1,ROW($A$4:$A$2598)-ROW($A$4)+1),ROWS($N$4:N117))),"") ->  | O117: =IFERROR(INDEX($B$4:$B$2598,SMALL(IF($B$4:$B$2598=$P$1,ROW($A$4:$A$2598)-ROW($A$4)+1),ROWS($N$4:O117))),"") ->  | P117: =IFERROR(INDEX($C$4:$C$2598,SMALL(IF($B$4:$B$2598=$P$1,ROW($A$4:$A$2598)-ROW($A$4)+1),ROWS($N$4:P117))),"") ->  | Q117: =IFERROR(INDEX($D$4:$D$2598,SMALL(IF($B$4:$B$2598=$P$1,ROW($A$4:$A$2598)-ROW($A$4)+1),ROWS($N$4:Q117))),"") ->  | R117: =IFERROR(INDEX($E$4:$E$2598,SMALL(IF($B$4:$B$2598=$P$1,ROW($A$4:$A$2598)-ROW($A$4)+1),ROWS($N$4:R117))),"") ->  | S117: =IFERROR(INDEX($F$4:$F$2598,SMALL(IF($B$4:$B$2598=$P$1,ROW($A$4:$A$2598)-ROW($A$4)+1),ROWS($N$4:S117))),"") ->  | T117: =IFERROR(INDEX($G$4:$G$2598,SMALL(IF($B$4:$B$2598=$P$1,ROW($A$4:$A$2598)-ROW($A$4)+1),ROWS($N$4:T117))),"") ->  | U117: =IFERROR(INDEX($H$4:$H$2598,SMALL(IF($B$4:$B$2598=$P$1,ROW($A$4:$A$2598)-ROW($A$4)+1),ROWS($N$4:U117))),"") ->  | V117: =IFERROR(INDEX($I$4:$I$2598,SMALL(IF($B$4:$B$2598=$P$1,ROW($A$4:$A$2598)-ROW($A$4)+1),ROWS($N$4:V117))),"") ->  | W117: =IFERROR(INDEX($J$4:$J$2598,SMALL(IF($B$4:$B$2598=$P$1,ROW($A$4:$A$2598)-ROW($A$4)+1),ROWS($N$4:W117))),"") ->  | X117: =IFERROR(INDEX($K$4:$K$2598,SMALL(IF($B$4:$B$2598=$P$1,ROW($A$4:$A$2598)-ROW($A$4)+1),ROWS($N$4:X117))),"") ->  | Y117: =IFERROR(INDEX($L$4:$L$2598,SMALL(IF($B$4:$B$2598=$P$1,ROW($A$4:$A$2598)-ROW($A$4)+1),ROWS($N$4:Y117))),"") -> 
A118: 2026-04-09 | C118: =IF(B118="","",VLOOKUP(B118,العملاء!A:B,2,0)) ->  | E118: =IF(D118="","",VLOOKUP(D118,المخزن!B:C,2,0)) ->  | G118: =IF(D118="","",VLOOKUP(D118,المخزن!B:M,12,0)) ->  | I118: =IF(D118="","",VLOOKUP(D118,المخزن!B:E,4,0)) ->  | L118: =IF(D118="","",VLOOKUP(D118,المخزن!B:L,8,0)) ->  | N118: =IFERROR(INDEX($A$4:$A$2598,SMALL(IF($B$4:$B$2598=$P$1,ROW($A$4:$A$2598)-ROW($A$4)+1),ROWS($N$4:N118))),"") ->  | O118: =IFERROR(INDEX($B$4:$B$2598,SMALL(IF($B$4:$B$2598=$P$1,ROW($A$4:$A$2598)-ROW($A$4)+1),ROWS($N$4:O118))),"") ->  | P118: =IFERROR(INDEX($C$4:$C$2598,SMALL(IF($B$4:$B$2598=$P$1,ROW($A$4:$A$2598)-ROW($A$4)+1),ROWS($N$4:P118))),"") ->  | Q118: =IFERROR(INDEX($D$4:$D$2598,SMALL(IF($B$4:$B$2598=$P$1,ROW($A$4:$A$2598)-ROW($A$4)+1),ROWS($N$4:Q118))),"") ->  | R118: =IFERROR(INDEX($E$4:$E$2598,SMALL(IF($B$4:$B$2598=$P$1,ROW($A$4:$A$2598)-ROW($A$4)+1),ROWS($N$4:R118))),"") ->  | S118: =IFERROR(INDEX($F$4:$F$2598,SMALL(IF($B$4:$B$2598=$P$1,ROW($A$4:$A$2598)-ROW($A$4)+1),ROWS($N$4:S118))),"") ->  | T118: =IFERROR(INDEX($G$4:$G$2598,SMALL(IF($B$4:$B$2598=$P$1,ROW($A$4:$A$2598)-ROW($A$4)+1),ROWS($N$4:T118))),"") ->  | U118: =IFERROR(INDEX($H$4:$H$2598,SMALL(IF($B$4:$B$2598=$P$1,ROW($A$4:$A$2598)-ROW($A$4)+1),ROWS($N$4:U118))),"") ->  | V118: =IFERROR(INDEX($I$4:$I$2598,SMALL(IF($B$4:$B$2598=$P$1,ROW($A$4:$A$2598)-ROW($A$4)+1),ROWS($N$4:V118))),"") ->  | W118: =IFERROR(INDEX($J$4:$J$2598,SMALL(IF($B$4:$B$2598=$P$1,ROW($A$4:$A$2598)-ROW($A$4)+1),ROWS($N$4:W118))),"") ->  | X118: =IFERROR(INDEX($K$4:$K$2598,SMALL(IF($B$4:$B$2598=$P$1,ROW($A$4:$A$2598)-ROW($A$4)+1),ROWS($N$4:X118))),"") ->  | Y118: =IFERROR(INDEX($L$4:$L$2598,SMALL(IF($B$4:$B$2598=$P$1,ROW($A$4:$A$2598)-ROW($A$4)+1),ROWS($N$4:Y118))),"") -> 
A119: 2026-04-09 | C119: =IF(B119="","",VLOOKUP(B119,العملاء!A:B,2,0)) ->  | E119: =IF(D119="","",VLOOKUP(D119,المخزن!B:C,2,0)) ->  | G119: =IF(D119="","",VLOOKUP(D119,المخزن!B:M,12,0)) ->  | I119: =IF(D119="","",VLOOKUP(D119,المخزن!B:E,4,0)) ->  | L119: =IF(D119="","",VLOOKUP(D119,المخزن!B:L,8,0)) ->  | N119: =IFERROR(INDEX($A$4:$A$2598,SMALL(IF($B$4:$B$2598=$P$1,ROW($A$4:$A$2598)-ROW($A$4)+1),ROWS($N$4:N119))),"") ->  | O119: =IFERROR(INDEX($B$4:$B$2598,SMALL(IF($B$4:$B$2598=$P$1,ROW($A$4:$A$2598)-ROW($A$4)+1),ROWS($N$4:O119))),"") ->  | P119: =IFERROR(INDEX($C$4:$C$2598,SMALL(IF($B$4:$B$2598=$P$1,ROW($A$4:$A$2598)-ROW($A$4)+1),ROWS($N$4:P119))),"") ->  | Q119: =IFERROR(INDEX($D$4:$D$2598,SMALL(IF($B$4:$B$2598=$P$1,ROW($A$4:$A$2598)-ROW($A$4)+1),ROWS($N$4:Q119))),"") ->  | R119: =IFERROR(INDEX($E$4:$E$2598,SMALL(IF($B$4:$B$2598=$P$1,ROW($A$4:$A$2598)-ROW($A$4)+1),ROWS($N$4:R119))),"") ->  | S119: =IFERROR(INDEX($F$4:$F$2598,SMALL(IF($B$4:$B$2598=$P$1,ROW($A$4:$A$2598)-ROW($A$4)+1),ROWS($N$4:S119))),"") ->  | T119: =IFERROR(INDEX($G$4:$G$2598,SMALL(IF($B$4:$B$2598=$P$1,ROW($A$4:$A$2598)-ROW($A$4)+1),ROWS($N$4:T119))),"") ->  | U119: =IFERROR(INDEX($H$4:$H$2598,SMALL(IF($B$4:$B$2598=$P$1,ROW($A$4:$A$2598)-ROW($A$4)+1),ROWS($N$4:U119))),"") ->  | V119: =IFERROR(INDEX($I$4:$I$2598,SMALL(IF($B$4:$B$2598=$P$1,ROW($A$4:$A$2598)-ROW($A$4)+1),ROWS($N$4:V119))),"") ->  | W119: =IFERROR(INDEX($J$4:$J$2598,SMALL(IF($B$4:$B$2598=$P$1,ROW($A$4:$A$2598)-ROW($A$4)+1),ROWS($N$4:W119))),"") ->  | X119: =IFERROR(INDEX($K$4:$K$2598,SMALL(IF($B$4:$B$2598=$P$1,ROW($A$4:$A$2598)-ROW($A$4)+1),ROWS($N$4:X119))),"") ->  | Y119: =IFERROR(INDEX($L$4:$L$2598,SMALL(IF($B$4:$B$2598=$P$1,ROW($A$4:$A$2598)-ROW($A$4)+1),ROWS($N$4:Y119))),"") -> 
A120: 2026-04-09 | C120: =IF(B120="","",VLOOKUP(B120,العملاء!A:B,2,0)) ->  | E120: =IF(D120="","",VLOOKUP(D120,المخزن!B:C,2,0)) ->  | G120: =IF(D120="","",VLOOKUP(D120,المخزن!B:M,12,0)) ->  | I120: =IF(D120="","",VLOOKUP(D120,المخزن!B:E,4,0)) ->  | L120: =IF(D120="","",VLOOKUP(D120,المخزن!B:L,8,0)) ->  | N120: =IFERROR(INDEX($A$4:$A$2598,SMALL(IF($B$4:$B$2598=$P$1,ROW($A$4:$A$2598)-ROW($A$4)+1),ROWS($N$4:N120))),"") ->  | O120: =IFERROR(INDEX($B$4:$B$2598,SMALL(IF($B$4:$B$2598=$P$1,ROW($A$4:$A$2598)-ROW($A$4)+1),ROWS($N$4:O120))),"") ->  | P120: =IFERROR(INDEX($C$4:$C$2598,SMALL(IF($B$4:$B$2598=$P$1,ROW($A$4:$A$2598)-ROW($A$4)+1),ROWS($N$4:P120))),"") ->  | Q120: =IFERROR(INDEX($D$4:$D$2598,SMALL(IF($B$4:$B$2598=$P$1,ROW($A$4:$A$2598)-ROW($A$4)+1),ROWS($N$4:Q120))),"") ->  | R120: =IFERROR(INDEX($E$4:$E$2598,SMALL(IF($B$4:$B$2598=$P$1,ROW($A$4:$A$2598)-ROW($A$4)+1),ROWS($N$4:R120))),"") ->  | S120: =IFERROR(INDEX($F$4:$F$2598,SMALL(IF($B$4:$B$2598=$P$1,ROW($A$4:$A$2598)-ROW($A$4)+1),ROWS($N$4:S120))),"") ->  | T120: =IFERROR(INDEX($G$4:$G$2598,SMALL(IF($B$4:$B$2598=$P$1,ROW($A$4:$A$2598)-ROW($A$4)+1),ROWS($N$4:T120))),"") ->  | U120: =IFERROR(INDEX($H$4:$H$2598,SMALL(IF($B$4:$B$2598=$P$1,ROW($A$4:$A$2598)-ROW($A$4)+1),ROWS($N$4:U120))),"") ->  | V120: =IFERROR(INDEX($I$4:$I$2598,SMALL(IF($B$4:$B$2598=$P$1,ROW($A$4:$A$2598)-ROW($A$4)+1),ROWS($N$4:V120))),"") ->  | W120: =IFERROR(INDEX($J$4:$J$2598,SMALL(IF($B$4:$B$2598=$P$1,ROW($A$4:$A$2598)-ROW($A$4)+1),ROWS($N$4:W120))),"") ->  | X120: =IFERROR(INDEX($K$4:$K$2598,SMALL(IF($B$4:$B$2598=$P$1,ROW($A$4:$A$2598)-ROW($A$4)+1),ROWS($N$4:X120))),"") ->  | Y120: =IFERROR(INDEX($L$4:$L$2598,SMALL(IF($B$4:$B$2598=$P$1,ROW($A$4:$A$2598)-ROW($A$4)+1),ROWS($N$4:Y120))),"") -> 
A121: 2026-04-09 | C121: =IF(B121="","",VLOOKUP(B121,العملاء!A:B,2,0)) ->  | E121: =IF(D121="","",VLOOKUP(D121,المخزن!B:C,2,0)) ->  | G121: =IF(D121="","",VLOOKUP(D121,المخزن!B:M,12,0)) ->  | I121: =IF(D121="","",VLOOKUP(D121,المخزن!B:E,4,0)) ->  | L121: =IF(D121="","",VLOOKUP(D121,المخزن!B:L,8,0)) ->  | N121: =IFERROR(INDEX($A$4:$A$2598,SMALL(IF($B$4:$B$2598=$P$1,ROW($A$4:$A$2598)-ROW($A$4)+1),ROWS($N$4:N121))),"") ->  | O121: =IFERROR(INDEX($B$4:$B$2598,SMALL(IF($B$4:$B$2598=$P$1,ROW($A$4:$A$2598)-ROW($A$4)+1),ROWS($N$4:O121))),"") ->  | P121: =IFERROR(INDEX($C$4:$C$2598,SMALL(IF($B$4:$B$2598=$P$1,ROW($A$4:$A$2598)-ROW($A$4)+1),ROWS($N$4:P121))),"") ->  | Q121: =IFERROR(INDEX($D$4:$D$2598,SMALL(IF($B$4:$B$2598=$P$1,ROW($A$4:$A$2598)-ROW($A$4)+1),ROWS($N$4:Q121))),"") ->  | R121: =IFERROR(INDEX($E$4:$E$2598,SMALL(IF($B$4:$B$2598=$P$1,ROW($A$4:$A$2598)-ROW($A$4)+1),ROWS($N$4:R121))),"") ->  | S121: =IFERROR(INDEX($F$4:$F$2598,SMALL(IF($B$4:$B$2598=$P$1,ROW($A$4:$A$2598)-ROW($A$4)+1),ROWS($N$4:S121))),"") ->  | T121: =IFERROR(INDEX($G$4:$G$2598,SMALL(IF($B$4:$B$2598=$P$1,ROW($A$4:$A$2598)-ROW($A$4)+1),ROWS($N$4:T121))),"") ->  | U121: =IFERROR(INDEX($H$4:$H$2598,SMALL(IF($B$4:$B$2598=$P$1,ROW($A$4:$A$2598)-ROW($A$4)+1),ROWS($N$4:U121))),"") ->  | V121: =IFERROR(INDEX($I$4:$I$2598,SMALL(IF($B$4:$B$2598=$P$1,ROW($A$4:$A$2598)-ROW($A$4)+1),ROWS($N$4:V121))),"") ->  | W121: =IFERROR(INDEX($J$4:$J$2598,SMALL(IF($B$4:$B$2598=$P$1,ROW($A$4:$A$2598)-ROW($A$4)+1),ROWS($N$4:W121))),"") ->  | X121: =IFERROR(INDEX($K$4:$K$2598,SMALL(IF($B$4:$B$2598=$P$1,ROW($A$4:$A$2598)-ROW($A$4)+1),ROWS($N$4:X121))),"") ->  | Y121: =IFERROR(INDEX($L$4:$L$2598,SMALL(IF($B$4:$B$2598=$P$1,ROW($A$4:$A$2598)-ROW($A$4)+1),ROWS($N$4:Y121))),"") -> 
A122: 2026-04-09 | C122: =IF(B122="","",VLOOKUP(B122,العملاء!A:B,2,0)) ->  | E122: =IF(D122="","",VLOOKUP(D122,المخزن!B:C,2,0)) ->  | G122: =IF(D122="","",VLOOKUP(D122,المخزن!B:M,12,0)) ->  | I122: =IF(D122="","",VLOOKUP(D122,المخزن!B:E,4,0)) ->  | L122: =IF(D122="","",VLOOKUP(D122,المخزن!B:L,8,0)) ->  | N122: =IFERROR(INDEX($A$4:$A$2598,SMALL(IF($B$4:$B$2598=$P$1,ROW($A$4:$A$2598)-ROW($A$4)+1),ROWS($N$4:N122))),"") ->  | O122: =IFERROR(INDEX($B$4:$B$2598,SMALL(IF($B$4:$B$2598=$P$1,ROW($A$4:$A$2598)-ROW($A$4)+1),ROWS($N$4:O122))),"") ->  | P122: =IFERROR(INDEX($C$4:$C$2598,SMALL(IF($B$4:$B$2598=$P$1,ROW($A$4:$A$2598)-ROW($A$4)+1),ROWS($N$4:P122))),"") ->  | Q122: =IFERROR(INDEX($D$4:$D$2598,SMALL(IF($B$4:$B$2598=$P$1,ROW($A$4:$A$2598)-ROW($A$4)+1),ROWS($N$4:Q122))),"") ->  | R122: =IFERROR(INDEX($E$4:$E$2598,SMALL(IF($B$4:$B$2598=$P$1,ROW($A$4:$A$2598)-ROW($A$4)+1),ROWS($N$4:R122))),"") ->  | S122: =IFERROR(INDEX($F$4:$F$2598,SMALL(IF($B$4:$B$2598=$P$1,ROW($A$4:$A$2598)-ROW($A$4)+1),ROWS($N$4:S122))),"") ->  | T122: =IFERROR(INDEX($G$4:$G$2598,SMALL(IF($B$4:$B$2598=$P$1,ROW($A$4:$A$2598)-ROW($A$4)+1),ROWS($N$4:T122))),"") ->  | U122: =IFERROR(INDEX($H$4:$H$2598,SMALL(IF($B$4:$B$2598=$P$1,ROW($A$4:$A$2598)-ROW($A$4)+1),ROWS($N$4:U122))),"") ->  | V122: =IFERROR(INDEX($I$4:$I$2598,SMALL(IF($B$4:$B$2598=$P$1,ROW($A$4:$A$2598)-ROW($A$4)+1),ROWS($N$4:V122))),"") ->  | W122: =IFERROR(INDEX($J$4:$J$2598,SMALL(IF($B$4:$B$2598=$P$1,ROW($A$4:$A$2598)-ROW($A$4)+1),ROWS($N$4:W122))),"") ->  | X122: =IFERROR(INDEX($K$4:$K$2598,SMALL(IF($B$4:$B$2598=$P$1,ROW($A$4:$A$2598)-ROW($A$4)+1),ROWS($N$4:X122))),"") ->  | Y122: =IFERROR(INDEX($L$4:$L$2598,SMALL(IF($B$4:$B$2598=$P$1,ROW($A$4:$A$2598)-ROW($A$4)+1),ROWS($N$4:Y122))),"") -> 
A123: 2026-04-09 | C123: =IF(B123="","",VLOOKUP(B123,العملاء!A:B,2,0)) ->  | E123: =IF(D123="","",VLOOKUP(D123,المخزن!B:C,2,0)) ->  | G123: =IF(D123="","",VLOOKUP(D123,المخزن!B:M,12,0)) ->  | I123: =IF(D123="","",VLOOKUP(D123,المخزن!B:E,4,0)) ->  | L123: =IF(D123="","",VLOOKUP(D123,المخزن!B:L,8,0)) ->  | N123: =IFERROR(INDEX($A$4:$A$2598,SMALL(IF($B$4:$B$2598=$P$1,ROW($A$4:$A$2598)-ROW($A$4)+1),ROWS($N$4:N123))),"") ->  | O123: =IFERROR(INDEX($B$4:$B$2598,SMALL(IF($B$4:$B$2598=$P$1,ROW($A$4:$A$2598)-ROW($A$4)+1),ROWS($N$4:O123))),"") ->  | P123: =IFERROR(INDEX($C$4:$C$2598,SMALL(IF($B$4:$B$2598=$P$1,ROW($A$4:$A$2598)-ROW($A$4)+1),ROWS($N$4:P123))),"") ->  | Q123: =IFERROR(INDEX($D$4:$D$2598,SMALL(IF($B$4:$B$2598=$P$1,ROW($A$4:$A$2598)-ROW($A$4)+1),ROWS($N$4:Q123))),"") ->  | R123: =IFERROR(INDEX($E$4:$E$2598,SMALL(IF($B$4:$B$2598=$P$1,ROW($A$4:$A$2598)-ROW($A$4)+1),ROWS($N$4:R123))),"") ->  | S123: =IFERROR(INDEX($F$4:$F$2598,SMALL(IF($B$4:$B$2598=$P$1,ROW($A$4:$A$2598)-ROW($A$4)+1),ROWS($N$4:S123))),"") ->  | T123: =IFERROR(INDEX($G$4:$G$2598,SMALL(IF($B$4:$B$2598=$P$1,ROW($A$4:$A$2598)-ROW($A$4)+1),ROWS($N$4:T123))),"") ->  | U123: =IFERROR(INDEX($H$4:$H$2598,SMALL(IF($B$4:$B$2598=$P$1,ROW($A$4:$A$2598)-ROW($A$4)+1),ROWS($N$4:U123))),"") ->  | V123: =IFERROR(INDEX($I$4:$I$2598,SMALL(IF($B$4:$B$2598=$P$1,ROW($A$4:$A$2598)-ROW($A$4)+1),ROWS($N$4:V123))),"") ->  | W123: =IFERROR(INDEX($J$4:$J$2598,SMALL(IF($B$4:$B$2598=$P$1,ROW($A$4:$A$2598)-ROW($A$4)+1),ROWS($N$4:W123))),"") ->  | X123: =IFERROR(INDEX($K$4:$K$2598,SMALL(IF($B$4:$B$2598=$P$1,ROW($A$4:$A$2598)-ROW($A$4)+1),ROWS($N$4:X123))),"") ->  | Y123: =IFERROR(INDEX($L$4:$L$2598,SMALL(IF($B$4:$B$2598=$P$1,ROW($A$4:$A$2598)-ROW($A$4)+1),ROWS($N$4:Y123))),"") -> 
A124: 1900-01-09 | C124: =IF(B124="","",VLOOKUP(B124,العملاء!A:B,2,0)) ->  | E124: =IF(D124="","",VLOOKUP(D124,المخزن!B:C,2,0)) ->  | G124: =IF(D124="","",VLOOKUP(D124,المخزن!B:M,12,0)) ->  | I124: =IF(D124="","",VLOOKUP(D124,المخزن!B:E,4,0)) ->  | L124: =IF(D124="","",VLOOKUP(D124,المخزن!B:L,8,0)) ->  | N124: =IFERROR(INDEX($A$4:$A$2598,SMALL(IF($B$4:$B$2598=$P$1,ROW($A$4:$A$2598)-ROW($A$4)+1),ROWS($N$4:N124))),"") ->  | O124: =IFERROR(INDEX($B$4:$B$2598,SMALL(IF($B$4:$B$2598=$P$1,ROW($A$4:$A$2598)-ROW($A$4)+1),ROWS($N$4:O124))),"") ->  | P124: =IFERROR(INDEX($C$4:$C$2598,SMALL(IF($B$4:$B$2598=$P$1,ROW($A$4:$A$2598)-ROW($A$4)+1),ROWS($N$4:P124))),"") ->  | Q124: =IFERROR(INDEX($D$4:$D$2598,SMALL(IF($B$4:$B$2598=$P$1,ROW($A$4:$A$2598)-ROW($A$4)+1),ROWS($N$4:Q124))),"") ->  | R124: =IFERROR(INDEX($E$4:$E$2598,SMALL(IF($B$4:$B$2598=$P$1,ROW($A$4:$A$2598)-ROW($A$4)+1),ROWS($N$4:R124))),"") ->  | S124: =IFERROR(INDEX($F$4:$F$2598,SMALL(IF($B$4:$B$2598=$P$1,ROW($A$4:$A$2598)-ROW($A$4)+1),ROWS($N$4:S124))),"") ->  | T124: =IFERROR(INDEX($G$4:$G$2598,SMALL(IF($B$4:$B$2598=$P$1,ROW($A$4:$A$2598)-ROW($A$4)+1),ROWS($N$4:T124))),"") ->  | U124: =IFERROR(INDEX($H$4:$H$2598,SMALL(IF($B$4:$B$2598=$P$1,ROW($A$4:$A$2598)-ROW($A$4)+1),ROWS($N$4:U124))),"") ->  | V124: =IFERROR(INDEX($I$4:$I$2598,SMALL(IF($B$4:$B$2598=$P$1,ROW($A$4:$A$2598)-ROW($A$4)+1),ROWS($N$4:V124))),"") ->  | W124: =IFERROR(INDEX($J$4:$J$2598,SMALL(IF($B$4:$B$2598=$P$1,ROW($A$4:$A$2598)-ROW($A$4)+1),ROWS($N$4:W124))),"") ->  | X124: =IFERROR(INDEX($K$4:$K$2598,SMALL(IF($B$4:$B$2598=$P$1,ROW($A$4:$A$2598)-ROW($A$4)+1),ROWS($N$4:X124))),"") ->  | Y124: =IFERROR(INDEX($L$4:$L$2598,SMALL(IF($B$4:$B$2598=$P$1,ROW($A$4:$A$2598)-ROW($A$4)+1),ROWS($N$4:Y124))),"") -> 
A125: 2026-04-09 | C125: =IF(B125="","",VLOOKUP(B125,العملاء!A:B,2,0)) ->  | E125: =IF(D125="","",VLOOKUP(D125,المخزن!B:C,2,0)) ->  | G125: =IF(D125="","",VLOOKUP(D125,المخزن!B:M,12,0)) ->  | I125: =IF(D125="","",VLOOKUP(D125,المخزن!B:E,4,0)) ->  | L125: =IF(D125="","",VLOOKUP(D125,المخزن!B:L,8,0)) ->  | N125: =IFERROR(INDEX($A$4:$A$2598,SMALL(IF($B$4:$B$2598=$P$1,ROW($A$4:$A$2598)-ROW($A$4)+1),ROWS($N$4:N125))),"") ->  | O125: =IFERROR(INDEX($B$4:$B$2598,SMALL(IF($B$4:$B$2598=$P$1,ROW($A$4:$A$2598)-ROW($A$4)+1),ROWS($N$4:O125))),"") ->  | P125: =IFERROR(INDEX($C$4:$C$2598,SMALL(IF($B$4:$B$2598=$P$1,ROW($A$4:$A$2598)-ROW($A$4)+1),ROWS($N$4:P125))),"") ->  | Q125: =IFERROR(INDEX($D$4:$D$2598,SMALL(IF($B$4:$B$2598=$P$1,ROW($A$4:$A$2598)-ROW($A$4)+1),ROWS($N$4:Q125))),"") ->  | R125: =IFERROR(INDEX($E$4:$E$2598,SMALL(IF($B$4:$B$2598=$P$1,ROW($A$4:$A$2598)-ROW($A$4)+1),ROWS($N$4:R125))),"") ->  | S125: =IFERROR(INDEX($F$4:$F$2598,SMALL(IF($B$4:$B$2598=$P$1,ROW($A$4:$A$2598)-ROW($A$4)+1),ROWS($N$4:S125))),"") ->  | T125: =IFERROR(INDEX($G$4:$G$2598,SMALL(IF($B$4:$B$2598=$P$1,ROW($A$4:$A$2598)-ROW($A$4)+1),ROWS($N$4:T125))),"") ->  | U125: =IFERROR(INDEX($H$4:$H$2598,SMALL(IF($B$4:$B$2598=$P$1,ROW($A$4:$A$2598)-ROW($A$4)+1),ROWS($N$4:U125))),"") ->  | V125: =IFERROR(INDEX($I$4:$I$2598,SMALL(IF($B$4:$B$2598=$P$1,ROW($A$4:$A$2598)-ROW($A$4)+1),ROWS($N$4:V125))),"") ->  | W125: =IFERROR(INDEX($J$4:$J$2598,SMALL(IF($B$4:$B$2598=$P$1,ROW($A$4:$A$2598)-ROW($A$4)+1),ROWS($N$4:W125))),"") ->  | X125: =IFERROR(INDEX($K$4:$K$2598,SMALL(IF($B$4:$B$2598=$P$1,ROW($A$4:$A$2598)-ROW($A$4)+1),ROWS($N$4:X125))),"") ->  | Y125: =IFERROR(INDEX($L$4:$L$2598,SMALL(IF($B$4:$B$2598=$P$1,ROW($A$4:$A$2598)-ROW($A$4)+1),ROWS($N$4:Y125))),"") -> 
A126: 2026-04-09 | C126: =IF(B126="","",VLOOKUP(B126,العملاء!A:B,2,0)) ->  | E126: =IF(D126="","",VLOOKUP(D126,المخزن!B:C,2,0)) ->  | G126: =IF(D126="","",VLOOKUP(D126,المخزن!B:M,12,0)) ->  | I126: =IF(D126="","",VLOOKUP(D126,المخزن!B:E,4,0)) ->  | L126: =IF(D126="","",VLOOKUP(D126,المخزن!B:L,8,0)) ->  | N126: =IFERROR(INDEX($A$4:$A$2598,SMALL(IF($B$4:$B$2598=$P$1,ROW($A$4:$A$2598)-ROW($A$4)+1),ROWS($N$4:N126))),"") ->  | O126: =IFERROR(INDEX($B$4:$B$2598,SMALL(IF($B$4:$B$2598=$P$1,ROW($A$4:$A$2598)-ROW($A$4)+1),ROWS($N$4:O126))),"") ->  | P126: =IFERROR(INDEX($C$4:$C$2598,SMALL(IF($B$4:$B$2598=$P$1,ROW($A$4:$A$2598)-ROW($A$4)+1),ROWS($N$4:P126))),"") ->  | Q126: =IFERROR(INDEX($D$4:$D$2598,SMALL(IF($B$4:$B$2598=$P$1,ROW($A$4:$A$2598)-ROW($A$4)+1),ROWS($N$4:Q126))),"") ->  | R126: =IFERROR(INDEX($E$4:$E$2598,SMALL(IF($B$4:$B$2598=$P$1,ROW($A$4:$A$2598)-ROW($A$4)+1),ROWS($N$4:R126))),"") ->  | S126: =IFERROR(INDEX($F$4:$F$2598,SMALL(IF($B$4:$B$2598=$P$1,ROW($A$4:$A$2598)-ROW($A$4)+1),ROWS($N$4:S126))),"") ->  | T126: =IFERROR(INDEX($G$4:$G$2598,SMALL(IF($B$4:$B$2598=$P$1,ROW($A$4:$A$2598)-ROW($A$4)+1),ROWS($N$4:T126))),"") ->  | U126: =IFERROR(INDEX($H$4:$H$2598,SMALL(IF($B$4:$B$2598=$P$1,ROW($A$4:$A$2598)-ROW($A$4)+1),ROWS($N$4:U126))),"") ->  | V126: =IFERROR(INDEX($I$4:$I$2598,SMALL(IF($B$4:$B$2598=$P$1,ROW($A$4:$A$2598)-ROW($A$4)+1),ROWS($N$4:V126))),"") ->  | W126: =IFERROR(INDEX($J$4:$J$2598,SMALL(IF($B$4:$B$2598=$P$1,ROW($A$4:$A$2598)-ROW($A$4)+1),ROWS($N$4:W126))),"") ->  | X126: =IFERROR(INDEX($K$4:$K$2598,SMALL(IF($B$4:$B$2598=$P$1,ROW($A$4:$A$2598)-ROW($A$4)+1),ROWS($N$4:X126))),"") ->  | Y126: =IFERROR(INDEX($L$4:$L$2598,SMALL(IF($B$4:$B$2598=$P$1,ROW($A$4:$A$2598)-ROW($A$4)+1),ROWS($N$4:Y126))),"") -> 
A127: 2026-04-09 | C127: =IF(B127="","",VLOOKUP(B127,العملاء!A:B,2,0)) ->  | E127: =IF(D127="","",VLOOKUP(D127,المخزن!B:C,2,0)) ->  | G127: =IF(D127="","",VLOOKUP(D127,المخزن!B:M,12,0)) ->  | I127: =IF(D127="","",VLOOKUP(D127,المخزن!B:E,4,0)) ->  | L127: =IF(D127="","",VLOOKUP(D127,المخزن!B:L,8,0)) ->  | N127: =IFERROR(INDEX($A$4:$A$2598,SMALL(IF($B$4:$B$2598=$P$1,ROW($A$4:$A$2598)-ROW($A$4)+1),ROWS($N$4:N127))),"") ->  | O127: =IFERROR(INDEX($B$4:$B$2598,SMALL(IF($B$4:$B$2598=$P$1,ROW($A$4:$A$2598)-ROW($A$4)+1),ROWS($N$4:O127))),"") ->  | P127: =IFERROR(INDEX($C$4:$C$2598,SMALL(IF($B$4:$B$2598=$P$1,ROW($A$4:$A$2598)-ROW($A$4)+1),ROWS($N$4:P127))),"") ->  | Q127: =IFERROR(INDEX($D$4:$D$2598,SMALL(IF($B$4:$B$2598=$P$1,ROW($A$4:$A$2598)-ROW($A$4)+1),ROWS($N$4:Q127))),"") ->  | R127: =IFERROR(INDEX($E$4:$E$2598,SMALL(IF($B$4:$B$2598=$P$1,ROW($A$4:$A$2598)-ROW($A$4)+1),ROWS($N$4:R127))),"") ->  | S127: =IFERROR(INDEX($F$4:$F$2598,SMALL(IF($B$4:$B$2598=$P$1,ROW($A$4:$A$2598)-ROW($A$4)+1),ROWS($N$4:S127))),"") ->  | T127: =IFERROR(INDEX($G$4:$G$2598,SMALL(IF($B$4:$B$2598=$P$1,ROW($A$4:$A$2598)-ROW($A$4)+1),ROWS($N$4:T127))),"") ->  | U127: =IFERROR(INDEX($H$4:$H$2598,SMALL(IF($B$4:$B$2598=$P$1,ROW($A$4:$A$2598)-ROW($A$4)+1),ROWS($N$4:U127))),"") ->  | V127: =IFERROR(INDEX($I$4:$I$2598,SMALL(IF($B$4:$B$2598=$P$1,ROW($A$4:$A$2598)-ROW($A$4)+1),ROWS($N$4:V127))),"") ->  | W127: =IFERROR(INDEX($J$4:$J$2598,SMALL(IF($B$4:$B$2598=$P$1,ROW($A$4:$A$2598)-ROW($A$4)+1),ROWS($N$4:W127))),"") ->  | X127: =IFERROR(INDEX($K$4:$K$2598,SMALL(IF($B$4:$B$2598=$P$1,ROW($A$4:$A$2598)-ROW($A$4)+1),ROWS($N$4:X127))),"") ->  | Y127: =IFERROR(INDEX($L$4:$L$2598,SMALL(IF($B$4:$B$2598=$P$1,ROW($A$4:$A$2598)-ROW($A$4)+1),ROWS($N$4:Y127))),"") -> 
A128: 2026-04-09 | C128: =IF(B128="","",VLOOKUP(B128,العملاء!A:B,2,0)) ->  | E128: =IF(D128="","",VLOOKUP(D128,المخزن!B:C,2,0)) ->  | G128: =IF(D128="","",VLOOKUP(D128,المخزن!B:M,12,0)) ->  | I128: =IF(D128="","",VLOOKUP(D128,المخزن!B:E,4,0)) ->  | L128: =IF(D128="","",VLOOKUP(D128,المخزن!B:L,8,0)) ->  | N128: =IFERROR(INDEX($A$4:$A$2598,SMALL(IF($B$4:$B$2598=$P$1,ROW($A$4:$A$2598)-ROW($A$4)+1),ROWS($N$4:N128))),"") ->  | O128: =IFERROR(INDEX($B$4:$B$2598,SMALL(IF($B$4:$B$2598=$P$1,ROW($A$4:$A$2598)-ROW($A$4)+1),ROWS($N$4:O128))),"") ->  | P128: =IFERROR(INDEX($C$4:$C$2598,SMALL(IF($B$4:$B$2598=$P$1,ROW($A$4:$A$2598)-ROW($A$4)+1),ROWS($N$4:P128))),"") ->  | Q128: =IFERROR(INDEX($D$4:$D$2598,SMALL(IF($B$4:$B$2598=$P$1,ROW($A$4:$A$2598)-ROW($A$4)+1),ROWS($N$4:Q128))),"") ->  | R128: =IFERROR(INDEX($E$4:$E$2598,SMALL(IF($B$4:$B$2598=$P$1,ROW($A$4:$A$2598)-ROW($A$4)+1),ROWS($N$4:R128))),"") ->  | S128: =IFERROR(INDEX($F$4:$F$2598,SMALL(IF($B$4:$B$2598=$P$1,ROW($A$4:$A$2598)-ROW($A$4)+1),ROWS($N$4:S128))),"") ->  | T128: =IFERROR(INDEX($G$4:$G$2598,SMALL(IF($B$4:$B$2598=$P$1,ROW($A$4:$A$2598)-ROW($A$4)+1),ROWS($N$4:T128))),"") ->  | U128: =IFERROR(INDEX($H$4:$H$2598,SMALL(IF($B$4:$B$2598=$P$1,ROW($A$4:$A$2598)-ROW($A$4)+1),ROWS($N$4:U128))),"") ->  | V128: =IFERROR(INDEX($I$4:$I$2598,SMALL(IF($B$4:$B$2598=$P$1,ROW($A$4:$A$2598)-ROW($A$4)+1),ROWS($N$4:V128))),"") ->  | W128: =IFERROR(INDEX($J$4:$J$2598,SMALL(IF($B$4:$B$2598=$P$1,ROW($A$4:$A$2598)-ROW($A$4)+1),ROWS($N$4:W128))),"") ->  | X128: =IFERROR(INDEX($K$4:$K$2598,SMALL(IF($B$4:$B$2598=$P$1,ROW($A$4:$A$2598)-ROW($A$4)+1),ROWS($N$4:X128))),"") ->  | Y128: =IFERROR(INDEX($L$4:$L$2598,SMALL(IF($B$4:$B$2598=$P$1,ROW($A$4:$A$2598)-ROW($A$4)+1),ROWS($N$4:Y128))),"") -> 
A129: 2026-04-09 | C129: =IF(B129="","",VLOOKUP(B129,العملاء!A:B,2,0)) ->  | E129: =IF(D129="","",VLOOKUP(D129,المخزن!B:C,2,0)) ->  | G129: =IF(D129="","",VLOOKUP(D129,المخزن!B:M,12,0)) ->  | I129: =IF(D129="","",VLOOKUP(D129,المخزن!B:E,4,0)) ->  | L129: =IF(D129="","",VLOOKUP(D129,المخزن!B:L,8,0)) ->  | N129: =IFERROR(INDEX($A$4:$A$2598,SMALL(IF($B$4:$B$2598=$P$1,ROW($A$4:$A$2598)-ROW($A$4)+1),ROWS($N$4:N129))),"") ->  | O129: =IFERROR(INDEX($B$4:$B$2598,SMALL(IF($B$4:$B$2598=$P$1,ROW($A$4:$A$2598)-ROW($A$4)+1),ROWS($N$4:O129))),"") ->  | P129: =IFERROR(INDEX($C$4:$C$2598,SMALL(IF($B$4:$B$2598=$P$1,ROW($A$4:$A$2598)-ROW($A$4)+1),ROWS($N$4:P129))),"") ->  | Q129: =IFERROR(INDEX($D$4:$D$2598,SMALL(IF($B$4:$B$2598=$P$1,ROW($A$4:$A$2598)-ROW($A$4)+1),ROWS($N$4:Q129))),"") ->  | R129: =IFERROR(INDEX($E$4:$E$2598,SMALL(IF($B$4:$B$2598=$P$1,ROW($A$4:$A$2598)-ROW($A$4)+1),ROWS($N$4:R129))),"") ->  | S129: =IFERROR(INDEX($F$4:$F$2598,SMALL(IF($B$4:$B$2598=$P$1,ROW($A$4:$A$2598)-ROW($A$4)+1),ROWS($N$4:S129))),"") ->  | T129: =IFERROR(INDEX($G$4:$G$2598,SMALL(IF($B$4:$B$2598=$P$1,ROW($A$4:$A$2598)-ROW($A$4)+1),ROWS($N$4:T129))),"") ->  | U129: =IFERROR(INDEX($H$4:$H$2598,SMALL(IF($B$4:$B$2598=$P$1,ROW($A$4:$A$2598)-ROW($A$4)+1),ROWS($N$4:U129))),"") ->  | V129: =IFERROR(INDEX($I$4:$I$2598,SMALL(IF($B$4:$B$2598=$P$1,ROW($A$4:$A$2598)-ROW($A$4)+1),ROWS($N$4:V129))),"") ->  | W129: =IFERROR(INDEX($J$4:$J$2598,SMALL(IF($B$4:$B$2598=$P$1,ROW($A$4:$A$2598)-ROW($A$4)+1),ROWS($N$4:W129))),"") ->  | X129: =IFERROR(INDEX($K$4:$K$2598,SMALL(IF($B$4:$B$2598=$P$1,ROW($A$4:$A$2598)-ROW($A$4)+1),ROWS($N$4:X129))),"") ->  | Y129: =IFERROR(INDEX($L$4:$L$2598,SMALL(IF($B$4:$B$2598=$P$1,ROW($A$4:$A$2598)-ROW($A$4)+1),ROWS($N$4:Y129))),"") -> 
A130: 2026-04-09 | C130: =IF(B130="","",VLOOKUP(B130,العملاء!A:B,2,0)) ->  | E130: =IF(D130="","",VLOOKUP(D130,المخزن!B:C,2,0)) ->  | G130: =IF(D130="","",VLOOKUP(D130,المخزن!B:M,12,0)) ->  | I130: =IF(D130="","",VLOOKUP(D130,المخزن!B:E,4,0)) ->  | L130: =IF(D130="","",VLOOKUP(D130,المخزن!B:L,8,0)) ->  | N130: =IFERROR(INDEX($A$4:$A$2598,SMALL(IF($B$4:$B$2598=$P$1,ROW($A$4:$A$2598)-ROW($A$4)+1),ROWS($N$4:N130))),"") ->  | O130: =IFERROR(INDEX($B$4:$B$2598,SMALL(IF($B$4:$B$2598=$P$1,ROW($A$4:$A$2598)-ROW($A$4)+1),ROWS($N$4:O130))),"") ->  | P130: =IFERROR(INDEX($C$4:$C$2598,SMALL(IF($B$4:$B$2598=$P$1,ROW($A$4:$A$2598)-ROW($A$4)+1),ROWS($N$4:P130))),"") ->  | Q130: =IFERROR(INDEX($D$4:$D$2598,SMALL(IF($B$4:$B$2598=$P$1,ROW($A$4:$A$2598)-ROW($A$4)+1),ROWS($N$4:Q130))),"") ->  | R130: =IFERROR(INDEX($E$4:$E$2598,SMALL(IF($B$4:$B$2598=$P$1,ROW($A$4:$A$2598)-ROW($A$4)+1),ROWS($N$4:R130))),"") ->  | S130: =IFERROR(INDEX($F$4:$F$2598,SMALL(IF($B$4:$B$2598=$P$1,ROW($A$4:$A$2598)-ROW($A$4)+1),ROWS($N$4:S130))),"") ->  | T130: =IFERROR(INDEX($G$4:$G$2598,SMALL(IF($B$4:$B$2598=$P$1,ROW($A$4:$A$2598)-ROW($A$4)+1),ROWS($N$4:T130))),"") ->  | U130: =IFERROR(INDEX($H$4:$H$2598,SMALL(IF($B$4:$B$2598=$P$1,ROW($A$4:$A$2598)-ROW($A$4)+1),ROWS($N$4:U130))),"") ->  | V130: =IFERROR(INDEX($I$4:$I$2598,SMALL(IF($B$4:$B$2598=$P$1,ROW($A$4:$A$2598)-ROW($A$4)+1),ROWS($N$4:V130))),"") ->  | W130: =IFERROR(INDEX($J$4:$J$2598,SMALL(IF($B$4:$B$2598=$P$1,ROW($A$4:$A$2598)-ROW($A$4)+1),ROWS($N$4:W130))),"") ->  | X130: =IFERROR(INDEX($K$4:$K$2598,SMALL(IF($B$4:$B$2598=$P$1,ROW($A$4:$A$2598)-ROW($A$4)+1),ROWS($N$4:X130))),"") ->  | Y130: =IFERROR(INDEX($L$4:$L$2598,SMALL(IF($B$4:$B$2598=$P$1,ROW($A$4:$A$2598)-ROW($A$4)+1),ROWS($N$4:Y130))),"") -> 
A131: 2026-04-09 | C131: =IF(B131="","",VLOOKUP(B131,العملاء!A:B,2,0)) ->  | E131: =IF(D131="","",VLOOKUP(D131,المخزن!B:C,2,0)) ->  | G131: =IF(D131="","",VLOOKUP(D131,المخزن!B:M,12,0)) ->  | I131: =IF(D131="","",VLOOKUP(D131,المخزن!B:E,4,0)) ->  | L131: =IF(D131="","",VLOOKUP(D131,المخزن!B:L,8,0)) ->  | N131: =IFERROR(INDEX($A$4:$A$2598,SMALL(IF($B$4:$B$2598=$P$1,ROW($A$4:$A$2598)-ROW($A$4)+1),ROWS($N$4:N131))),"") ->  | O131: =IFERROR(INDEX($B$4:$B$2598,SMALL(IF($B$4:$B$2598=$P$1,ROW($A$4:$A$2598)-ROW($A$4)+1),ROWS($N$4:O131))),"") ->  | P131: =IFERROR(INDEX($C$4:$C$2598,SMALL(IF($B$4:$B$2598=$P$1,ROW($A$4:$A$2598)-ROW($A$4)+1),ROWS($N$4:P131))),"") ->  | Q131: =IFERROR(INDEX($D$4:$D$2598,SMALL(IF($B$4:$B$2598=$P$1,ROW($A$4:$A$2598)-ROW($A$4)+1),ROWS($N$4:Q131))),"") ->  | R131: =IFERROR(INDEX($E$4:$E$2598,SMALL(IF($B$4:$B$2598=$P$1,ROW($A$4:$A$2598)-ROW($A$4)+1),ROWS($N$4:R131))),"") ->  | S131: =IFERROR(INDEX($F$4:$F$2598,SMALL(IF($B$4:$B$2598=$P$1,ROW($A$4:$A$2598)-ROW($A$4)+1),ROWS($N$4:S131))),"") ->  | T131: =IFERROR(INDEX($G$4:$G$2598,SMALL(IF($B$4:$B$2598=$P$1,ROW($A$4:$A$2598)-ROW($A$4)+1),ROWS($N$4:T131))),"") ->  | U131: =IFERROR(INDEX($H$4:$H$2598,SMALL(IF($B$4:$B$2598=$P$1,ROW($A$4:$A$2598)-ROW($A$4)+1),ROWS($N$4:U131))),"") ->  | V131: =IFERROR(INDEX($I$4:$I$2598,SMALL(IF($B$4:$B$2598=$P$1,ROW($A$4:$A$2598)-ROW($A$4)+1),ROWS($N$4:V131))),"") ->  | W131: =IFERROR(INDEX($J$4:$J$2598,SMALL(IF($B$4:$B$2598=$P$1,ROW($A$4:$A$2598)-ROW($A$4)+1),ROWS($N$4:W131))),"") ->  | X131: =IFERROR(INDEX($K$4:$K$2598,SMALL(IF($B$4:$B$2598=$P$1,ROW($A$4:$A$2598)-ROW($A$4)+1),ROWS($N$4:X131))),"") ->  | Y131: =IFERROR(INDEX($L$4:$L$2598,SMALL(IF($B$4:$B$2598=$P$1,ROW($A$4:$A$2598)-ROW($A$4)+1),ROWS($N$4:Y131))),"") -> 
A132: 2026-04-09 | C132: =IF(B132="","",VLOOKUP(B132,العملاء!A:B,2,0)) ->  | E132: =IF(D132="","",VLOOKUP(D132,المخزن!B:C,2,0)) ->  | G132: =IF(D132="","",VLOOKUP(D132,المخزن!B:M,12,0)) ->  | I132: =IF(D132="","",VLOOKUP(D132,المخزن!B:E,4,0)) ->  | L132: =IF(D132="","",VLOOKUP(D132,المخزن!B:L,8,0)) ->  | N132: =IFERROR(INDEX($A$4:$A$2598,SMALL(IF($B$4:$B$2598=$P$1,ROW($A$4:$A$2598)-ROW($A$4)+1),ROWS($N$4:N132))),"") ->  | O132: =IFERROR(INDEX($B$4:$B$2598,SMALL(IF($B$4:$B$2598=$P$1,ROW($A$4:$A$2598)-ROW($A$4)+1),ROWS($N$4:O132))),"") ->  | P132: =IFERROR(INDEX($C$4:$C$2598,SMALL(IF($B$4:$B$2598=$P$1,ROW($A$4:$A$2598)-ROW($A$4)+1),ROWS($N$4:P132))),"") ->  | Q132: =IFERROR(INDEX($D$4:$D$2598,SMALL(IF($B$4:$B$2598=$P$1,ROW($A$4:$A$2598)-ROW($A$4)+1),ROWS($N$4:Q132))),"") ->  | R132: =IFERROR(INDEX($E$4:$E$2598,SMALL(IF($B$4:$B$2598=$P$1,ROW($A$4:$A$2598)-ROW($A$4)+1),ROWS($N$4:R132))),"") ->  | S132: =IFERROR(INDEX($F$4:$F$2598,SMALL(IF($B$4:$B$2598=$P$1,ROW($A$4:$A$2598)-ROW($A$4)+1),ROWS($N$4:S132))),"") ->  | T132: =IFERROR(INDEX($G$4:$G$2598,SMALL(IF($B$4:$B$2598=$P$1,ROW($A$4:$A$2598)-ROW($A$4)+1),ROWS($N$4:T132))),"") ->  | U132: =IFERROR(INDEX($H$4:$H$2598,SMALL(IF($B$4:$B$2598=$P$1,ROW($A$4:$A$2598)-ROW($A$4)+1),ROWS($N$4:U132))),"") ->  | V132: =IFERROR(INDEX($I$4:$I$2598,SMALL(IF($B$4:$B$2598=$P$1,ROW($A$4:$A$2598)-ROW($A$4)+1),ROWS($N$4:V132))),"") ->  | W132: =IFERROR(INDEX($J$4:$J$2598,SMALL(IF($B$4:$B$2598=$P$1,ROW($A$4:$A$2598)-ROW($A$4)+1),ROWS($N$4:W132))),"") ->  | X132: =IFERROR(INDEX($K$4:$K$2598,SMALL(IF($B$4:$B$2598=$P$1,ROW($A$4:$A$2598)-ROW($A$4)+1),ROWS($N$4:X132))),"") ->  | Y132: =IFERROR(INDEX($L$4:$L$2598,SMALL(IF($B$4:$B$2598=$P$1,ROW($A$4:$A$2598)-ROW($A$4)+1),ROWS($N$4:Y132))),"") -> 
A133: 2026-04-09 | C133: =IF(B133="","",VLOOKUP(B133,العملاء!A:B,2,0)) ->  | E133: =IF(D133="","",VLOOKUP(D133,المخزن!B:C,2,0)) ->  | G133: =IF(D133="","",VLOOKUP(D133,المخزن!B:M,12,0)) ->  | I133: =IF(D133="","",VLOOKUP(D133,المخزن!B:E,4,0)) ->  | L133: =IF(D133="","",VLOOKUP(D133,المخزن!B:L,8,0)) ->  | N133: =IFERROR(INDEX($A$4:$A$2598,SMALL(IF($B$4:$B$2598=$P$1,ROW($A$4:$A$2598)-ROW($A$4)+1),ROWS($N$4:N133))),"") ->  | O133: =IFERROR(INDEX($B$4:$B$2598,SMALL(IF($B$4:$B$2598=$P$1,ROW($A$4:$A$2598)-ROW($A$4)+1),ROWS($N$4:O133))),"") ->  | P133: =IFERROR(INDEX($C$4:$C$2598,SMALL(IF($B$4:$B$2598=$P$1,ROW($A$4:$A$2598)-ROW($A$4)+1),ROWS($N$4:P133))),"") ->  | Q133: =IFERROR(INDEX($D$4:$D$2598,SMALL(IF($B$4:$B$2598=$P$1,ROW($A$4:$A$2598)-ROW($A$4)+1),ROWS($N$4:Q133))),"") ->  | R133: =IFERROR(INDEX($E$4:$E$2598,SMALL(IF($B$4:$B$2598=$P$1,ROW($A$4:$A$2598)-ROW($A$4)+1),ROWS($N$4:R133))),"") ->  | S133: =IFERROR(INDEX($F$4:$F$2598,SMALL(IF($B$4:$B$2598=$P$1,ROW($A$4:$A$2598)-ROW($A$4)+1),ROWS($N$4:S133))),"") ->  | T133: =IFERROR(INDEX($G$4:$G$2598,SMALL(IF($B$4:$B$2598=$P$1,ROW($A$4:$A$2598)-ROW($A$4)+1),ROWS($N$4:T133))),"") ->  | U133: =IFERROR(INDEX($H$4:$H$2598,SMALL(IF($B$4:$B$2598=$P$1,ROW($A$4:$A$2598)-ROW($A$4)+1),ROWS($N$4:U133))),"") ->  | V133: =IFERROR(INDEX($I$4:$I$2598,SMALL(IF($B$4:$B$2598=$P$1,ROW($A$4:$A$2598)-ROW($A$4)+1),ROWS($N$4:V133))),"") ->  | W133: =IFERROR(INDEX($J$4:$J$2598,SMALL(IF($B$4:$B$2598=$P$1,ROW($A$4:$A$2598)-ROW($A$4)+1),ROWS($N$4:W133))),"") ->  | X133: =IFERROR(INDEX($K$4:$K$2598,SMALL(IF($B$4:$B$2598=$P$1,ROW($A$4:$A$2598)-ROW($A$4)+1),ROWS($N$4:X133))),"") ->  | Y133: =IFERROR(INDEX($L$4:$L$2598,SMALL(IF($B$4:$B$2598=$P$1,ROW($A$4:$A$2598)-ROW($A$4)+1),ROWS($N$4:Y133))),"") -> 
A134: 2026-04-10 | C134: =IF(B134="","",VLOOKUP(B134,العملاء!A:B,2,0)) ->  | E134: =IF(D134="","",VLOOKUP(D134,المخزن!B:C,2,0)) ->  | G134: =IF(D134="","",VLOOKUP(D134,المخزن!B:M,12,0)) ->  | I134: =IF(D134="","",VLOOKUP(D134,المخزن!B:E,4,0)) ->  | L134: =IF(D134="","",VLOOKUP(D134,المخزن!B:L,8,0)) ->  | N134: =IFERROR(INDEX($A$4:$A$2598,SMALL(IF($B$4:$B$2598=$P$1,ROW($A$4:$A$2598)-ROW($A$4)+1),ROWS($N$4:N134))),"") ->  | O134: =IFERROR(INDEX($B$4:$B$2598,SMALL(IF($B$4:$B$2598=$P$1,ROW($A$4:$A$2598)-ROW($A$4)+1),ROWS($N$4:O134))),"") ->  | P134: =IFERROR(INDEX($C$4:$C$2598,SMALL(IF($B$4:$B$2598=$P$1,ROW($A$4:$A$2598)-ROW($A$4)+1),ROWS($N$4:P134))),"") ->  | Q134: =IFERROR(INDEX($D$4:$D$2598,SMALL(IF($B$4:$B$2598=$P$1,ROW($A$4:$A$2598)-ROW($A$4)+1),ROWS($N$4:Q134))),"") ->  | R134: =IFERROR(INDEX($E$4:$E$2598,SMALL(IF($B$4:$B$2598=$P$1,ROW($A$4:$A$2598)-ROW($A$4)+1),ROWS($N$4:R134))),"") ->  | S134: =IFERROR(INDEX($F$4:$F$2598,SMALL(IF($B$4:$B$2598=$P$1,ROW($A$4:$A$2598)-ROW($A$4)+1),ROWS($N$4:S134))),"") ->  | T134: =IFERROR(INDEX($G$4:$G$2598,SMALL(IF($B$4:$B$2598=$P$1,ROW($A$4:$A$2598)-ROW($A$4)+1),ROWS($N$4:T134))),"") ->  | U134: =IFERROR(INDEX($H$4:$H$2598,SMALL(IF($B$4:$B$2598=$P$1,ROW($A$4:$A$2598)-ROW($A$4)+1),ROWS($N$4:U134))),"") ->  | V134: =IFERROR(INDEX($I$4:$I$2598,SMALL(IF($B$4:$B$2598=$P$1,ROW($A$4:$A$2598)-ROW($A$4)+1),ROWS($N$4:V134))),"") ->  | W134: =IFERROR(INDEX($J$4:$J$2598,SMALL(IF($B$4:$B$2598=$P$1,ROW($A$4:$A$2598)-ROW($A$4)+1),ROWS($N$4:W134))),"") ->  | X134: =IFERROR(INDEX($K$4:$K$2598,SMALL(IF($B$4:$B$2598=$P$1,ROW($A$4:$A$2598)-ROW($A$4)+1),ROWS($N$4:X134))),"") ->  | Y134: =IFERROR(INDEX($L$4:$L$2598,SMALL(IF($B$4:$B$2598=$P$1,ROW($A$4:$A$2598)-ROW($A$4)+1),ROWS($N$4:Y134))),"") -> 
A135: 2026-04-10 | C135: =IF(B135="","",VLOOKUP(B135,العملاء!A:B,2,0)) ->  | E135: =IF(D135="","",VLOOKUP(D135,المخزن!B:C,2,0)) ->  | G135: =IF(D135="","",VLOOKUP(D135,المخزن!B:M,12,0)) ->  | I135: =IF(D135="","",VLOOKUP(D135,المخزن!B:E,4,0)) ->  | L135: =IF(D135="","",VLOOKUP(D135,المخزن!B:L,8,0)) ->  | N135: =IFERROR(INDEX($A$4:$A$2598,SMALL(IF($B$4:$B$2598=$P$1,ROW($A$4:$A$2598)-ROW($A$4)+1),ROWS($N$4:N135))),"") ->  | O135: =IFERROR(INDEX($B$4:$B$2598,SMALL(IF($B$4:$B$2598=$P$1,ROW($A$4:$A$2598)-ROW($A$4)+1),ROWS($N$4:O135))),"") ->  | P135: =IFERROR(INDEX($C$4:$C$2598,SMALL(IF($B$4:$B$2598=$P$1,ROW($A$4:$A$2598)-ROW($A$4)+1),ROWS($N$4:P135))),"") ->  | Q135: =IFERROR(INDEX($D$4:$D$2598,SMALL(IF($B$4:$B$2598=$P$1,ROW($A$4:$A$2598)-ROW($A$4)+1),ROWS($N$4:Q135))),"") ->  | R135: =IFERROR(INDEX($E$4:$E$2598,SMALL(IF($B$4:$B$2598=$P$1,ROW($A$4:$A$2598)-ROW($A$4)+1),ROWS($N$4:R135))),"") ->  | S135: =IFERROR(INDEX($F$4:$F$2598,SMALL(IF($B$4:$B$2598=$P$1,ROW($A$4:$A$2598)-ROW($A$4)+1),ROWS($N$4:S135))),"") ->  | T135: =IFERROR(INDEX($G$4:$G$2598,SMALL(IF($B$4:$B$2598=$P$1,ROW($A$4:$A$2598)-ROW($A$4)+1),ROWS($N$4:T135))),"") ->  | U135: =IFERROR(INDEX($H$4:$H$2598,SMALL(IF($B$4:$B$2598=$P$1,ROW($A$4:$A$2598)-ROW($A$4)+1),ROWS($N$4:U135))),"") ->  | V135: =IFERROR(INDEX($I$4:$I$2598,SMALL(IF($B$4:$B$2598=$P$1,ROW($A$4:$A$2598)-ROW($A$4)+1),ROWS($N$4:V135))),"") ->  | W135: =IFERROR(INDEX($J$4:$J$2598,SMALL(IF($B$4:$B$2598=$P$1,ROW($A$4:$A$2598)-ROW($A$4)+1),ROWS($N$4:W135))),"") ->  | X135: =IFERROR(INDEX($K$4:$K$2598,SMALL(IF($B$4:$B$2598=$P$1,ROW($A$4:$A$2598)-ROW($A$4)+1),ROWS($N$4:X135))),"") ->  | Y135: =IFERROR(INDEX($L$4:$L$2598,SMALL(IF($B$4:$B$2598=$P$1,ROW($A$4:$A$2598)-ROW($A$4)+1),ROWS($N$4:Y135))),"") -> 
A136: 2026-04-10 | C136: =IF(B136="","",VLOOKUP(B136,العملاء!A:B,2,0)) ->  | E136: =IF(D136="","",VLOOKUP(D136,المخزن!B:C,2,0)) ->  | G136: =IF(D136="","",VLOOKUP(D136,المخزن!B:M,12,0)) ->  | I136: =IF(D136="","",VLOOKUP(D136,المخزن!B:E,4,0)) ->  | L136: =IF(D136="","",VLOOKUP(D136,المخزن!B:L,8,0)) ->  | N136: =IFERROR(INDEX($A$4:$A$2598,SMALL(IF($B$4:$B$2598=$P$1,ROW($A$4:$A$2598)-ROW($A$4)+1),ROWS($N$4:N136))),"") ->  | O136: =IFERROR(INDEX($B$4:$B$2598,SMALL(IF($B$4:$B$2598=$P$1,ROW($A$4:$A$2598)-ROW($A$4)+1),ROWS($N$4:O136))),"") ->  | P136: =IFERROR(INDEX($C$4:$C$2598,SMALL(IF($B$4:$B$2598=$P$1,ROW($A$4:$A$2598)-ROW($A$4)+1),ROWS($N$4:P136))),"") ->  | Q136: =IFERROR(INDEX($D$4:$D$2598,SMALL(IF($B$4:$B$2598=$P$1,ROW($A$4:$A$2598)-ROW($A$4)+1),ROWS($N$4:Q136))),"") ->  | R136: =IFERROR(INDEX($E$4:$E$2598,SMALL(IF($B$4:$B$2598=$P$1,ROW($A$4:$A$2598)-ROW($A$4)+1),ROWS($N$4:R136))),"") ->  | S136: =IFERROR(INDEX($F$4:$F$2598,SMALL(IF($B$4:$B$2598=$P$1,ROW($A$4:$A$2598)-ROW($A$4)+1),ROWS($N$4:S136))),"") ->  | T136: =IFERROR(INDEX($G$4:$G$2598,SMALL(IF($B$4:$B$2598=$P$1,ROW($A$4:$A$2598)-ROW($A$4)+1),ROWS($N$4:T136))),"") ->  | U136: =IFERROR(INDEX($H$4:$H$2598,SMALL(IF($B$4:$B$2598=$P$1,ROW($A$4:$A$2598)-ROW($A$4)+1),ROWS($N$4:U136))),"") ->  | V136: =IFERROR(INDEX($I$4:$I$2598,SMALL(IF($B$4:$B$2598=$P$1,ROW($A$4:$A$2598)-ROW($A$4)+1),ROWS($N$4:V136))),"") ->  | W136: =IFERROR(INDEX($J$4:$J$2598,SMALL(IF($B$4:$B$2598=$P$1,ROW($A$4:$A$2598)-ROW($A$4)+1),ROWS($N$4:W136))),"") ->  | X136: =IFERROR(INDEX($K$4:$K$2598,SMALL(IF($B$4:$B$2598=$P$1,ROW($A$4:$A$2598)-ROW($A$4)+1),ROWS($N$4:X136))),"") ->  | Y136: =IFERROR(INDEX($L$4:$L$2598,SMALL(IF($B$4:$B$2598=$P$1,ROW($A$4:$A$2598)-ROW($A$4)+1),ROWS($N$4:Y136))),"") -> 
A137: 2026-04-10 | C137: =IF(B137="","",VLOOKUP(B137,العملاء!A:B,2,0)) ->  | E137: =IF(D137="","",VLOOKUP(D137,المخزن!B:C,2,0)) ->  | G137: =IF(D137="","",VLOOKUP(D137,المخزن!B:M,12,0)) ->  | I137: =IF(D137="","",VLOOKUP(D137,المخزن!B:E,4,0)) ->  | L137: =IF(D137="","",VLOOKUP(D137,المخزن!B:L,8,0)) -> 
A138: 2026-04-10 | C138: =IF(B138="","",VLOOKUP(B138,العملاء!A:B,2,0)) ->  | E138: =IF(D138="","",VLOOKUP(D138,المخزن!B:C,2,0)) ->  | G138: =IF(D138="","",VLOOKUP(D138,المخزن!B:M,12,0)) ->  | I138: =IF(D138="","",VLOOKUP(D138,المخزن!B:E,4,0)) ->  | L138: =IF(D138="","",VLOOKUP(D138,المخزن!B:L,8,0)) -> 
A139: 2026-04-10 | C139: =IF(B139="","",VLOOKUP(B139,العملاء!A:B,2,0)) ->  | E139: =IF(D139="","",VLOOKUP(D139,المخزن!B:C,2,0)) ->  | G139: =IF(D139="","",VLOOKUP(D139,المخزن!B:M,12,0)) ->  | I139: =IF(D139="","",VLOOKUP(D139,المخزن!B:E,4,0)) ->  | L139: =IF(D139="","",VLOOKUP(D139,المخزن!B:L,8,0)) -> 
A140: 2026-04-10 | C140: =IF(B140="","",VLOOKUP(B140,العملاء!A:B,2,0)) ->  | E140: =IF(D140="","",VLOOKUP(D140,المخزن!B:C,2,0)) ->  | G140: =IF(D140="","",VLOOKUP(D140,المخزن!B:M,12,0)) ->  | I140: =IF(D140="","",VLOOKUP(D140,المخزن!B:E,4,0)) ->  | L140: =IF(D140="","",VLOOKUP(D140,المخزن!B:L,8,0)) -> 
A141: 2026-04-10 | C141: =IF(B141="","",VLOOKUP(B141,العملاء!A:B,2,0)) ->  | E141: =IF(D141="","",VLOOKUP(D141,المخزن!B:C,2,0)) ->  | G141: =IF(D141="","",VLOOKUP(D141,المخزن!B:M,12,0)) ->  | I141: =IF(D141="","",VLOOKUP(D141,المخزن!B:E,4,0)) ->  | L141: =IF(D141="","",VLOOKUP(D141,المخزن!B:L,8,0)) -> 
A142: 2026-04-10 | C142: =IF(B142="","",VLOOKUP(B142,العملاء!A:B,2,0)) ->  | E142: =IF(D142="","",VLOOKUP(D142,المخزن!B:C,2,0)) ->  | G142: =IF(D142="","",VLOOKUP(D142,المخزن!B:M,12,0)) ->  | I142: =IF(D142="","",VLOOKUP(D142,المخزن!B:E,4,0)) ->  | L142: =IF(D142="","",VLOOKUP(D142,المخزن!B:L,8,0)) -> 
A143: 2026-04-10 | C143: =IF(B143="","",VLOOKUP(B143,العملاء!A:B,2,0)) ->  | E143: =IF(D143="","",VLOOKUP(D143,المخزن!B:C,2,0)) ->  | G143: =IF(D143="","",VLOOKUP(D143,المخزن!B:M,12,0)) ->  | I143: =IF(D143="","",VLOOKUP(D143,المخزن!B:E,4,0)) ->  | L143: =IF(D143="","",VLOOKUP(D143,المخزن!B:L,8,0)) -> 
A144: 2026-04-10 | C144: =IF(B144="","",VLOOKUP(B144,العملاء!A:B,2,0)) ->  | E144: =IF(D144="","",VLOOKUP(D144,المخزن!B:C,2,0)) ->  | G144: =IF(D144="","",VLOOKUP(D144,المخزن!B:M,12,0)) ->  | I144: =IF(D144="","",VLOOKUP(D144,المخزن!B:E,4,0)) ->  | L144: =IF(D144="","",VLOOKUP(D144,المخزن!B:L,8,0)) -> 
A145: 2026-04-10 | C145: =IF(B145="","",VLOOKUP(B145,العملاء!A:B,2,0)) ->  | E145: =IF(D145="","",VLOOKUP(D145,المخزن!B:C,2,0)) ->  | G145: =IF(D145="","",VLOOKUP(D145,المخزن!B:M,12,0)) ->  | I145: =IF(D145="","",VLOOKUP(D145,المخزن!B:E,4,0)) ->  | L145: =IF(D145="","",VLOOKUP(D145,المخزن!B:L,8,0)) -> 
A146: 2026-04-10 | C146: =IF(B146="","",VLOOKUP(B146,العملاء!A:B,2,0)) ->  | E146: =IF(D146="","",VLOOKUP(D146,المخزن!B:C,2,0)) ->  | G146: =IF(D146="","",VLOOKUP(D146,المخزن!B:M,12,0)) ->  | I146: =IF(D146="","",VLOOKUP(D146,المخزن!B:E,4,0)) ->  | L146: =IF(D146="","",VLOOKUP(D146,المخزن!B:L,8,0)) -> 
A147: 2026-04-10 | C147: =IF(B147="","",VLOOKUP(B147,العملاء!A:B,2,0)) ->  | E147: =IF(D147="","",VLOOKUP(D147,المخزن!B:C,2,0)) ->  | G147: =IF(D147="","",VLOOKUP(D147,المخزن!B:M,12,0)) ->  | I147: =IF(D147="","",VLOOKUP(D147,المخزن!B:E,4,0)) ->  | L147: =IF(D147="","",VLOOKUP(D147,المخزن!B:L,8,0)) -> 
A148: 2026-04-10 | C148: =IF(B148="","",VLOOKUP(B148,العملاء!A:B,2,0)) ->  | E148: =IF(D148="","",VLOOKUP(D148,المخزن!B:C,2,0)) ->  | G148: =IF(D148="","",VLOOKUP(D148,المخزن!B:M,12,0)) ->  | I148: =IF(D148="","",VLOOKUP(D148,المخزن!B:E,4,0)) ->  | L148: =IF(D148="","",VLOOKUP(D148,المخزن!B:L,8,0)) -> 
A149: 2026-04-10 | C149: =IF(B149="","",VLOOKUP(B149,العملاء!A:B,2,0)) ->  | E149: =IF(D149="","",VLOOKUP(D149,المخزن!B:C,2,0)) ->  | G149: =IF(D149="","",VLOOKUP(D149,المخزن!B:M,12,0)) ->  | I149: =IF(D149="","",VLOOKUP(D149,المخزن!B:E,4,0)) ->  | L149: =IF(D149="","",VLOOKUP(D149,المخزن!B:L,8,0)) -> 
A150: 2026-04-10 | C150: =IF(B150="","",VLOOKUP(B150,العملاء!A:B,2,0)) ->  | E150: =IF(D150="","",VLOOKUP(D150,المخزن!B:C,2,0)) ->  | G150: =IF(D150="","",VLOOKUP(D150,المخزن!B:M,12,0)) ->  | I150: =IF(D150="","",VLOOKUP(D150,المخزن!B:E,4,0)) ->  | L150: =IF(D150="","",VLOOKUP(D150,المخزن!B:L,8,0)) -> 
A151: 2026-04-10 | C151: =IF(B151="","",VLOOKUP(B151,العملاء!A:B,2,0)) ->  | E151: =IF(D151="","",VLOOKUP(D151,المخزن!B:C,2,0)) ->  | G151: =IF(D151="","",VLOOKUP(D151,المخزن!B:M,12,0)) ->  | I151: =IF(D151="","",VLOOKUP(D151,المخزن!B:E,4,0)) ->  | L151: =IF(D151="","",VLOOKUP(D151,المخزن!B:L,8,0)) -> 
A152: 2026-04-10 | C152: =IF(B152="","",VLOOKUP(B152,العملاء!A:B,2,0)) ->  | E152: =IF(D152="","",VLOOKUP(D152,المخزن!B:C,2,0)) ->  | G152: =IF(D152="","",VLOOKUP(D152,المخزن!B:M,12,0)) ->  | I152: =IF(D152="","",VLOOKUP(D152,المخزن!B:E,4,0)) ->  | L152: =IF(D152="","",VLOOKUP(D152,المخزن!B:L,8,0)) -> 
A153: 2026-04-10 | C153: =IF(B153="","",VLOOKUP(B153,العملاء!A:B,2,0)) ->  | E153: =IF(D153="","",VLOOKUP(D153,المخزن!B:C,2,0)) ->  | G153: =IF(D153="","",VLOOKUP(D153,المخزن!B:M,12,0)) ->  | I153: =IF(D153="","",VLOOKUP(D153,المخزن!B:E,4,0)) ->  | L153: =IF(D153="","",VLOOKUP(D153,المخزن!B:L,8,0)) -> 
A154: 2026-04-10 | C154: =IF(B154="","",VLOOKUP(B154,العملاء!A:B,2,0)) ->  | E154: =IF(D154="","",VLOOKUP(D154,المخزن!B:C,2,0)) ->  | G154: =IF(D154="","",VLOOKUP(D154,المخزن!B:M,12,0)) ->  | I154: =IF(D154="","",VLOOKUP(D154,المخزن!B:E,4,0)) ->  | L154: =IF(D154="","",VLOOKUP(D154,المخزن!B:L,8,0)) -> 
A155: 2026-04-10 | C155: =IF(B155="","",VLOOKUP(B155,العملاء!A:B,2,0)) ->  | E155: =IF(D155="","",VLOOKUP(D155,المخزن!B:C,2,0)) ->  | G155: =IF(D155="","",VLOOKUP(D155,المخزن!B:M,12,0)) ->  | I155: =IF(D155="","",VLOOKUP(D155,المخزن!B:E,4,0)) ->  | L155: =IF(D155="","",VLOOKUP(D155,المخزن!B:L,8,0)) -> 
C156: =IF(B156="","",VLOOKUP(B156,العملاء!A:B,2,0)) ->  | E156: =IF(D156="","",VLOOKUP(D156,المخزن!B:C,2,0)) ->  | G156: =IF(D156="","",VLOOKUP(D156,المخزن!B:M,12,0)) ->  | I156: =IF(D156="","",VLOOKUP(D156,المخزن!B:E,4,0)) ->  | L156: =IF(D156="","",VLOOKUP(D156,المخزن!B:L,8,0)) -> 
C157: =IF(B157="","",VLOOKUP(B157,العملاء!A:B,2,0)) ->  | E157: =IF(D157="","",VLOOKUP(D157,المخزن!B:C,2,0)) ->  | G157: =IF(D157="","",VLOOKUP(D157,المخزن!B:M,12,0)) ->  | I157: =IF(D157="","",VLOOKUP(D157,المخزن!B:E,4,0)) ->  | L157: =IF(D157="","",VLOOKUP(D157,المخزن!B:L,8,0)) -> 
C158: =IF(B158="","",VLOOKUP(B158,العملاء!A:B,2,0)) ->  | E158: =IF(D158="","",VLOOKUP(D158,المخزن!B:C,2,0)) ->  | G158: =IF(D158="","",VLOOKUP(D158,المخزن!B:M,12,0)) ->  | I158: =IF(D158="","",VLOOKUP(D158,المخزن!B:E,4,0)) ->  | L158: =IF(D158="","",VLOOKUP(D158,المخزن!B:L,8,0)) -> 
C159: =IF(B159="","",VLOOKUP(B159,العملاء!A:B,2,0)) ->  | E159: =IF(D159="","",VLOOKUP(D159,المخزن!B:C,2,0)) ->  | G159: =IF(D159="","",VLOOKUP(D159,المخزن!B:M,12,0)) ->  | I159: =IF(D159="","",VLOOKUP(D159,المخزن!B:E,4,0)) ->  | L159: =IF(D159="","",VLOOKUP(D159,المخزن!B:L,8,0)) -> 
C160: =IF(B160="","",VLOOKUP(B160,العملاء!A:B,2,0)) ->  | E160: =IF(D160="","",VLOOKUP(D160,المخزن!B:C,2,0)) ->  | G160: =IF(D160="","",VLOOKUP(D160,المخزن!B:M,12,0)) ->  | H160: =IF(E160="","",G160*F160) ->  | I160: =IF(D160="","",VLOOKUP(D160,المخزن!B:E,4,0)) ->  | J160: =IF(D160>0,I160*F160," ") ->  | K160: =IF(E160="","",H160-J160) ->  | L160: =IF(D160="","",VLOOKUP(D160,المخزن!B:L,8,0)) -> 
C161: =IF(B161="","",VLOOKUP(B161,العملاء!A:B,2,0)) ->  | E161: =IF(D161="","",VLOOKUP(D161,المخزن!B:C,2,0)) ->  | G161: =IF(D161="","",VLOOKUP(D161,المخزن!B:M,12,0)) ->  | I161: =IF(D161="","",VLOOKUP(D161,المخزن!B:E,4,0)) ->  | L161: =IF(D161="","",VLOOKUP(D161,المخزن!B:L,8,0)) -> 
C162: =IF(B162="","",VLOOKUP(B162,العملاء!A:B,2,0)) ->  | E162: =IF(D162="","",VLOOKUP(D162,المخزن!B:C,2,0)) ->  | G162: =IF(D162="","",VLOOKUP(D162,المخزن!B:M,12,0)) ->  | I162: =IF(D162="","",VLOOKUP(D162,المخزن!B:E,4,0)) ->  | L162: =IF(D162="","",VLOOKUP(D162,المخزن!B:L,8,0)) -> 
C163: =IF(B163="","",VLOOKUP(B163,العملاء!A:B,2,0)) ->  | E163: =IF(D163="","",VLOOKUP(D163,المخزن!B:C,2,0)) ->  | G163: =IF(D163="","",VLOOKUP(D163,المخزن!B:M,12,0)) ->  | I163: =IF(D163="","",VLOOKUP(D163,المخزن!B:E,4,0)) ->  | L163: =IF(D163="","",VLOOKUP(D163,المخزن!B:L,8,0)) -> 
C164: =IF(B164="","",VLOOKUP(B164,العملاء!A:B,2,0)) ->  | E164: =IF(D164="","",VLOOKUP(D164,المخزن!B:C,2,0)) ->  | G164: =IF(D164="","",VLOOKUP(D164,المخزن!B:M,12,0)) ->  | I164: =IF(D164="","",VLOOKUP(D164,المخزن!B:E,4,0)) ->  | L164: =IF(D164="","",VLOOKUP(D164,المخزن!B:L,8,0)) -> 
